Workbook

Sheet Protect
B2: Liberty Midstates
B3: WNAR Filing
B4: Password Protection Worksheet
B6: This worksheet provides password protection for the report pages to prevent unintentional formula changes. The password is "WNAR".
G11: All Report Worksheets are Protected

Sheet Final Checklist
B2: Liberty Midstates
B3: Semi-Annual WNAR Filing
B4: Final Checklist
B7: Data Table List | C7: Check For | D7: Result | E7: Initials | F7: Initials
B8: Validation Lists | C8: Changes from prior filings | D8: Ok, no changes | E8: RS
B9: Beta Coefficient | C9: Changes from prior filings | D9: Ok until reset by new rate case | E9: RS
B10: Billing Determinants | C10: Changes from prior filings | D10: Ok until reset by new rate case | E10: RS
B11: Volumetric Rates | C11: Changes from prior filings | D11: Ok until reset by new rate case | E11: RS
B12: Chillicothe Temp Adjustment | C12: Changes from prior filings | D12: Ok until reset by new rate case | E12: RS
B13: Ranked Normal HDD | C13: Changes from prior filings | D13: Ok until reset by new rate case | E13: RS
B14: Prior Period Adustments | C14: Additions and corrections add to total adjustment | D14: OK. Total adjustment = $960,611 | E14: RS
B15: Volumetric True-Up | C15: Ties out on Reconciliation Worksheet | D15: Checked and ties. | E15: RS
B16: Reconciliation Period Adjustment | C16: Ties out on Reconciliation Worksheet | D16: Checked and ties. | E16: RS
B17: CSWNA Amounts | C17: Ties out on Reconciliation Worksheet | D17: Checked and ties. | E17: RS
B18: WNAR Rates | C18: Ties out on Reconciliation Worksheet | D18: Checked and ties. | E18: RS
B19: Customer Estimated Revenue | C19: Table has been updated. | D19: Checked and updated through March 2023 | E19: RS
B20: Customer Estimated Volume | C20: Table has been updated. | D20: Checked and updated through December 2023 | E20: RS
B21: WNAR Revenue Table | C21: Table has been updated and ties to supporting workbook. | D21: Checked and ties. | E21: RS
B22: WNAR Revenue Breakdown Workbook | C22: Calculated revenue amounts closely match billed amounts from Revenue Packages | D22: NEMO within +/- $15 | E22: RS
D23: WEMO within +/- $1 | E23: RS
D24: SEMO within +/- $22 | E24: RS
B25: Meter Read Schedule | C25: Table has been updated. | D25: Checked and updated through December 2022 | E25: RS
B26: Customer Actual Volumes | C26: Table updated and ties to monthly Revenue Package reports. | D26: Updated through December 2022. | E26: RS
B27: Number of Bills | C27: Make sure final bills, rebills, and voided bills are removed from totals. | D27: Checked OK. | E27: RS
B28: CGI Actual Temperatures | C28: Make sure table is updated and RANK SORTED | D28: Checked OK. | E28: RS
B29: Chillicothe Actual Temperatures | C29: Make sure table is updated and RANK SORTED | D29: Checked OK. | E29: RS
B32: Report Worksheets | C32: Check For | D32: Result | E32: Initials | F32: Initials
B33: All Report Pages | C33: Correct year and filing period are showing on the dropdown menus. | D33: Checked OK. | E33: RS
B34: Reconciliaion worksheet | C34: No cells are shaded yellow, which indicates inconsistencies. | D34: Checked OK. | E34: RS
B35: Protect worksheet | C35: Password protection is turned on for report worksheets | D35: Checked OK. | E35: RS

Sheet Reconciliation
B2: Reconciiation Worksheet
B3: Worksheets vs. Tables
B4: Year: | C4: =DateSet!C2 -> 2023
B5: Period: | C5: =DateSet!C3 -> S1
B7: CSWNA Amounts
B8: Res | C8: CSWNA Worksheets | F8: CSWNA Amount Table | I8: Difference
B9: Month | C9: NEMO | D9: WEMO | E9: SEMO | F9: NEMO | G9: WEMO | H9: SEMO | I9: NEMO | J9: WEMO | K9: SEMO
B10: ='CSWNA NEMO'!B12 -> 44743 | C10: ='CSWNA NEMO'!M12 -> 1078.35 | D10: ='CSWNA WEMO'!M12 -> 334.52 | E10: ='CSWNA SEMO'!M12 -> 70.12 | F10: =SUMPRODUCT((CSWNAAmounts[Month]=$B10)*(CSWNAAmounts[Region]=C$9)*(CSWNAAmounts[CustClass]="Res")*CSWNAAmounts[CSWNA]) -> 1078.35 | G10: =SUMPRODUCT((CSWNAAmounts[Month]=$B10)*(CSWNAAmounts[Region]=D$9)*(CSWNAAmounts[CustClass]="Res")*CSWNAAmounts[CSWNA]) -> 334.52 | H10: =SUMPRODUCT((CSWNAAmounts[Month]=$B10)*(CSWNAAmounts[Region]=E$9)*(CSWNAAmounts[CustClass]="Res")*CSWNAAmounts[CSWNA]) -> 70.12 | I10: =F10-C10 -> 0 | J10: =G10-D10 -> 0 | K10: 0
B11: ='CSWNA NEMO'!B13 -> 44774 | C11: ='CSWNA NEMO'!M13 -> 3583.29 | D11: ='CSWNA WEMO'!M13 -> 972.17 | E11: ='CSWNA SEMO'!M13 -> 699.83 | F11: =SUMPRODUCT((CSWNAAmounts[Month]=$B11)*(CSWNAAmounts[Region]=C$9)*(CSWNAAmounts[CustClass]="Res")*CSWNAAmounts[CSWNA]) -> 3583.29 | G11: =SUMPRODUCT((CSWNAAmounts[Month]=$B11)*(CSWNAAmounts[Region]=D$9)*(CSWNAAmounts[CustClass]="Res")*CSWNAAmounts[CSWNA]) -> 972.17 | H11: =SUMPRODUCT((CSWNAAmounts[Month]=$B11)*(CSWNAAmounts[Region]=E$9)*(CSWNAAmounts[CustClass]="Res")*CSWNAAmounts[CSWNA]) -> 699.83 | I11: =F11-C11 -> 0 | J11: 0 | K11: 0
B12: ='CSWNA NEMO'!B14 -> 44805 | C12: ='CSWNA NEMO'!M14 -> 12169.35 | D12: ='CSWNA WEMO'!M14 -> 1495.22 | E12: ='CSWNA SEMO'!M14 -> 2447.53 | F12: =SUMPRODUCT((CSWNAAmounts[Month]=$B12)*(CSWNAAmounts[Region]=C$9)*(CSWNAAmounts[CustClass]="Res")*CSWNAAmounts[CSWNA]) -> 12169.35 | G12: =SUMPRODUCT((CSWNAAmounts[Month]=$B12)*(CSWNAAmounts[Region]=D$9)*(CSWNAAmounts[CustClass]="Res")*CSWNAAmounts[CSWNA]) -> 1495.22 | H12: =SUMPRODUCT((CSWNAAmounts[Month]=$B12)*(CSWNAAmounts[Region]=E$9)*(CSWNAAmounts[CustClass]="Res")*CSWNAAmounts[CSWNA]) -> 2447.53 | I12: 0 | J12: 0 | K12: 0
B13: ='CSWNA NEMO'!B15 -> 44835 | C13: ='CSWNA NEMO'!M15 -> -20607.72 | D13: ='CSWNA WEMO'!M15 -> -1673.06 | E13: ='CSWNA SEMO'!M15 -> -7769.64 | F13: =SUMPRODUCT((CSWNAAmounts[Month]=$B13)*(CSWNAAmounts[Region]=C$9)*(CSWNAAmounts[CustClass]="Res")*CSWNAAmounts[CSWNA]) -> -20607.72 | G13: =SUMPRODUCT((CSWNAAmounts[Month]=$B13)*(CSWNAAmounts[Region]=D$9)*(CSWNAAmounts[CustClass]="Res")*CSWNAAmounts[CSWNA]) -> -1673.06 | H13: =SUMPRODUCT((CSWNAAmounts[Month]=$B13)*(CSWNAAmounts[Region]=E$9)*(CSWNAAmounts[CustClass]="Res")*CSWNAAmounts[CSWNA]) -> -7769.64 | I13: 0 | J13: 0 | K13: 0
B14: ='CSWNA NEMO'!B16 -> 44866 | C14: ='CSWNA NEMO'!M16 -> -24472.77 | D14: ='CSWNA WEMO'!M16 -> -5575.46 | E14: ='CSWNA SEMO'!M16 -> -13255.77 | F14: =SUMPRODUCT((CSWNAAmounts[Month]=$B14)*(CSWNAAmounts[Region]=C$9)*(CSWNAAmounts[CustClass]="Res")*CSWNAAmounts[CSWNA]) -> -24472.77 | G14: =SUMPRODUCT((CSWNAAmounts[Month]=$B14)*(CSWNAAmounts[Region]=D$9)*(CSWNAAmounts[CustClass]="Res")*CSWNAAmounts[CSWNA]) -> -5575.46 | H14: =SUMPRODUCT((CSWNAAmounts[Month]=$B14)*(CSWNAAmounts[Region]=E$9)*(CSWNAAmounts[CustClass]="Res")*CSWNAAmounts[CSWNA]) -> -13255.77 | I14: 0 | J14: 0 | K14: 0
B15: ='CSWNA NEMO'!B17 -> 44896 | C15: ='CSWNA NEMO'!M17 -> -60621.2 | D15: ='CSWNA WEMO'!M17 -> -11451.44 | E15: ='CSWNA SEMO'!M17 -> 17043.24 | F15: =SUMPRODUCT((CSWNAAmounts[Month]=$B15)*(CSWNAAmounts[Region]=C$9)*(CSWNAAmounts[CustClass]="Res")*CSWNAAmounts[CSWNA]) -> -60621.2 | G15: =SUMPRODUCT((CSWNAAmounts[Month]=$B15)*(CSWNAAmounts[Region]=D$9)*(CSWNAAmounts[CustClass]="Res")*CSWNAAmounts[CSWNA]) -> -11451.44 | H15: =SUMPRODUCT((CSWNAAmounts[Month]=$B15)*(CSWNAAmounts[Region]=E$9)*(CSWNAAmounts[CustClass]="Res")*CSWNAAmounts[CSWNA]) -> 17043.24 | I15: 0 | J15: 0 | K15: 0
B16: Total | C16: =SUM(C10:C15) -> -88870.7 | D16: =SUM(D10:D15) -> -15898.05 | E16: -764.69 | F16: -88870.7 | G16: -15898.05 | H16: -764.69 | I16: 0 | J16: 0 | K16: 0
B18: SGS | C18: CSWNA Worksheets | F18: CSWNA Amount Table | I18: Difference
B19: Month | C19: NEMO | D19: WEMO | E19: SEMO | F19: NEMO | G19: WEMO | H19: SEMO | I19: NEMO | J19: WEMO | K19: SEMO
B20: ='CSWNA NEMO'!B25 -> 44743 | C20: ='CSWNA NEMO'!M25 -> 137.63 | D20: ='CSWNA WEMO'!M25 -> 48.45 | E20: ='CSWNA SEMO'!M25 -> 6.17 | F20: =SUMPRODUCT((CSWNAAmounts[Month]=$B20)*(CSWNAAmounts[Region]=C$9)*(CSWNAAmounts[CustClass]="SGS")*CSWNAAmounts[CSWNA]) -> 137.63 | G20: =SUMPRODUCT((CSWNAAmounts[Month]=$B20)*(CSWNAAmounts[Region]=D$9)*(CSWNAAmounts[CustClass]="SGS")*CSWNAAmounts[CSWNA]) -> 48.45 | H20: =SUMPRODUCT((CSWNAAmounts[Month]=$B20)*(CSWNAAmounts[Region]=E$9)*(CSWNAAmounts[CustClass]="SGS")*CSWNAAmounts[CSWNA]) -> 6.17 | I20: =F20-C20 -> 0 | J20: =G20-D20 -> 0 | K20: =H20-E20 -> 0
B21: ='CSWNA NEMO'!B26 -> 44774 | C21: ='CSWNA NEMO'!M26 -> 455.57 | D21: ='CSWNA WEMO'!M26 -> 139.77 | E21: ='CSWNA SEMO'!M26 -> 61.58 | F21: =SUMPRODUCT((CSWNAAmounts[Month]=$B21)*(CSWNAAmounts[Region]=C$9)*(CSWNAAmounts[CustClass]="SGS")*CSWNAAmounts[CSWNA]) -> 455.57 | G21: =SUMPRODUCT((CSWNAAmounts[Month]=$B21)*(CSWNAAmounts[Region]=D$9)*(CSWNAAmounts[CustClass]="SGS")*CSWNAAmounts[CSWNA]) -> 139.77 | H21: =SUMPRODUCT((CSWNAAmounts[Month]=$B21)*(CSWNAAmounts[Region]=E$9)*(CSWNAAmounts[CustClass]="SGS")*CSWNAAmounts[CSWNA]) -> 61.58 | I21: =F21-C21 -> 0 | J21: 0 | K21: 0
B22: ='CSWNA NEMO'!B27 -> 44805 | C22: ='CSWNA NEMO'!M27 -> 1539.36 | D22: ='CSWNA WEMO'!M27 -> 215.52 | E22: ='CSWNA SEMO'!M27 -> 215.61 | F22: =SUMPRODUCT((CSWNAAmounts[Month]=$B22)*(CSWNAAmounts[Region]=C$9)*(CSWNAAmounts[CustClass]="SGS")*CSWNAAmounts[CSWNA]) -> 1539.36 | G22: =SUMPRODUCT((CSWNAAmounts[Month]=$B22)*(CSWNAAmounts[Region]=D$9)*(CSWNAAmounts[CustClass]="SGS")*CSWNAAmounts[CSWNA]) -> 215.52 | H22: =SUMPRODUCT((CSWNAAmounts[Month]=$B22)*(CSWNAAmounts[Region]=E$9)*(CSWNAAmounts[CustClass]="SGS")*CSWNAAmounts[CSWNA]) -> 215.61 | I22: 0 | J22: 0 | K22: 0
B23: ='CSWNA NEMO'!B28 -> 44835 | C23: ='CSWNA NEMO'!M28 -> -2573.18 | D23: ='CSWNA WEMO'!M28 -> -239.61 | E23: ='CSWNA SEMO'!M28 -> -675.98 | F23: =SUMPRODUCT((CSWNAAmounts[Month]=$B23)*(CSWNAAmounts[Region]=C$9)*(CSWNAAmounts[CustClass]="SGS")*CSWNAAmounts[CSWNA]) -> -2573.18 | G23: =SUMPRODUCT((CSWNAAmounts[Month]=$B23)*(CSWNAAmounts[Region]=D$9)*(CSWNAAmounts[CustClass]="SGS")*CSWNAAmounts[CSWNA]) -> -239.61 | H23: =SUMPRODUCT((CSWNAAmounts[Month]=$B23)*(CSWNAAmounts[Region]=E$9)*(CSWNAAmounts[CustClass]="SGS")*CSWNAAmounts[CSWNA]) -> -675.98 | I23: 0 | J23: 0 | K23: 0
B24: ='CSWNA NEMO'!B29 -> 44866 | C24: ='CSWNA NEMO'!M29 -> -3033.73 | D24: ='CSWNA WEMO'!M29 -> -797.18 | E24: ='CSWNA SEMO'!M29 -> -1169.64 | F24: =SUMPRODUCT((CSWNAAmounts[Month]=$B24)*(CSWNAAmounts[Region]=C$9)*(CSWNAAmounts[CustClass]="SGS")*CSWNAAmounts[CSWNA]) -> -3033.73 | G24: =SUMPRODUCT((CSWNAAmounts[Month]=$B24)*(CSWNAAmounts[Region]=D$9)*(CSWNAAmounts[CustClass]="SGS")*CSWNAAmounts[CSWNA]) -> -797.18 | H24: =SUMPRODUCT((CSWNAAmounts[Month]=$B24)*(CSWNAAmounts[Region]=E$9)*(CSWNAAmounts[CustClass]="SGS")*CSWNAAmounts[CSWNA]) -> -1169.64 | I24: 0 | J24: 0 | K24: 0
B25: ='CSWNA NEMO'!B30 -> 44896 | C25: ='CSWNA NEMO'!M30 -> -7421.7 | D25: ='CSWNA WEMO'!M30 -> -1631.27 | E25: ='CSWNA SEMO'!M30 -> 1505.29 | F25: =SUMPRODUCT((CSWNAAmounts[Month]=$B25)*(CSWNAAmounts[Region]=C$9)*(CSWNAAmounts[CustClass]="SGS")*CSWNAAmounts[CSWNA]) -> -7421.7 | G25: =SUMPRODUCT((CSWNAAmounts[Month]=$B25)*(CSWNAAmounts[Region]=D$9)*(CSWNAAmounts[CustClass]="SGS")*CSWNAAmounts[CSWNA]) -> -1631.27 | H25: =SUMPRODUCT((CSWNAAmounts[Month]=$B25)*(CSWNAAmounts[Region]=E$9)*(CSWNAAmounts[CustClass]="SGS")*CSWNAAmounts[CSWNA]) -> 1505.29 | I25: 0 | J25: 0 | K25: 0
B26: Total | C26: =SUM(C20:C25) -> -10896.05 | D26: =SUM(D20:D25) -> -2264.32 | E26: =SUM(E20:E25) -> -56.97 | F26: =SUM(F20:F25) -> -10896.05 | G26: =SUM(G20:G25) -> -2264.32 | H26: =SUM(H20:H25) -> -56.97 | I26: =SUM(I20:I25) -> 0 | J26: =SUM(J20:J25) -> 0 | K26: =SUM(K20:K25) -> 0
B28: Reconciliation Period Adjustments
B29: CSWNA | C29: SRR Summary Worksheet | E29: ReconPerAdj Table | G29: Difference
B30: Region | C30: Res | D30: SGS | E30: Res | F30: SGS | G30: Res | H30: SGS
B31: NEMO | C31: ='CSWNA NEMO'!D19 -> -88870.7 | D31: ='CSWNA NEMO'!D32 -> -10896.05 | E31: =SUMPRODUCT((ReconPerAdj[Year]=$C$4)*(ReconPerAdj[Period]=$C$5)*(ReconPerAdj[Region]=$B31)*(ReconPerAdj[RateName]=$B$29)*(ReconPerAdj[CustClass]=E$30)*ReconPerAdj[ReconcilingPeriodAdj]) -> -88870.7 | F31: =SUMPRODUCT((ReconPerAdj[Year]=$C$4)*(ReconPerAdj[Period]=$C$5)*(ReconPerAdj[Region]=$B31)*(ReconPerAdj[RateName]=$B$29)*(ReconPerAdj[CustClass]=F$30)*ReconPerAdj[ReconcilingPeriodAdj]) -> -10896.05 | G31: =E31-C31 -> 0 | H31: =F31-D31 -> 0
B32: WEMO | C32: ='CSWNA WEMO'!D19 -> -15898.05 | D32: ='CSWNA WEMO'!D32 -> -2264.32 | E32: =SUMPRODUCT((ReconPerAdj[Year]=$C$4)*(ReconPerAdj[Period]=$C$5)*(ReconPerAdj[Region]=$B32)*(ReconPerAdj[RateName]=$B$29)*(ReconPerAdj[CustClass]=E$30)*ReconPerAdj[ReconcilingPeriodAdj]) -> -15898.05 | F32: =SUMPRODUCT((ReconPerAdj[Year]=$C$4)*(ReconPerAdj[Period]=$C$5)*(ReconPerAdj[Region]=$B32)*(ReconPerAdj[RateName]=$B$29)*(ReconPerAdj[CustClass]=F$30)*ReconPerAdj[ReconcilingPeriodAdj]) -> -2264.32 | G32: =E32-C32 -> 0 | H32: 0
B33: SEMO | C33: ='CSWNA SEMO'!D19 -> -764.69 | D33: ='CSWNA SEMO'!D32 -> -56.97 | E33: =SUMPRODUCT((ReconPerAdj[Year]=$C$4)*(ReconPerAdj[Period]=$C$5)*(ReconPerAdj[Region]=$B33)*(ReconPerAdj[RateName]=$B$29)*(ReconPerAdj[CustClass]=E$30)*ReconPerAdj[ReconcilingPeriodAdj]) -> -764.69 | F33: =SUMPRODUCT((ReconPerAdj[Year]=$C$4)*(ReconPerAdj[Period]=$C$5)*(ReconPerAdj[Region]=$B33)*(ReconPerAdj[RateName]=$B$29)*(ReconPerAdj[CustClass]=F$30)*ReconPerAdj[ReconcilingPeriodAdj]) -> -56.97 | G33: 0 | H33: 0
B34: SRR | C34: SRR Summary Worksheet | E34: ReconPerAdj Table | G34: Difference
B35: Region | C35: Res | D35: SGS | E35: Res | F35: SGS | G35: Res | H35: SGS
B36: NEMO | C36: ='SRR Summary'!C61 -> -307042.09 | D36: ='SRR Summary'!F61 -> -69254.82 | E36: =SUMPRODUCT((ReconPerAdj[Year]=$C$4)*(ReconPerAdj[Period]=$C$5)*(ReconPerAdj[Region]=$B36)*(ReconPerAdj[RateName]=$B$34)*(ReconPerAdj[CustClass]=E$35)*ReconPerAdj[ReconcilingPeriodAdj]) -> -307042.09 | F36: =SUMPRODUCT((ReconPerAdj[Year]=$C$4)*(ReconPerAdj[Period]=$C$5)*(ReconPerAdj[Region]=$B36)*(ReconPerAdj[RateName]=$B$34)*(ReconPerAdj[CustClass]=F$35)*ReconPerAdj[ReconcilingPeriodAdj]) -> -69254.82 | G36: =E36-C36 -> 0 | H36: =F36-D36 -> 0
B37: WEMO | C37: ='SRR Summary'!D61 -> -47439.33 | D37: ='SRR Summary'!G61 -> -14199.32 | E37: =SUMPRODUCT((ReconPerAdj[Year]=$C$4)*(ReconPerAdj[Period]=$C$5)*(ReconPerAdj[Region]=$B37)*(ReconPerAdj[RateName]=$B$34)*(ReconPerAdj[CustClass]=E$35)*ReconPerAdj[ReconcilingPeriodAdj]) -> -47439.33 | F37: =SUMPRODUCT((ReconPerAdj[Year]=$C$4)*(ReconPerAdj[Period]=$C$5)*(ReconPerAdj[Region]=$B37)*(ReconPerAdj[RateName]=$B$34)*(ReconPerAdj[CustClass]=F$35)*ReconPerAdj[ReconcilingPeriodAdj]) -> -14199.32 | G37: =E37-C37 -> 0 | H37: 0
B38: SEMO | C38: ='SRR Summary'!I61 -> -458606.28 | D38: ='SRR Summary'!J61 -> -12563.68 | E38: =SUMPRODUCT((ReconPerAdj[Year]=$C$4)*(ReconPerAdj[Period]=$C$5)*(ReconPerAdj[Region]=$B38)*(ReconPerAdj[RateName]=$B$34)*(ReconPerAdj[CustClass]=E$35)*ReconPerAdj[ReconcilingPeriodAdj]) -> -458606.28 | F38: =SUMPRODUCT((ReconPerAdj[Year]=$C$4)*(ReconPerAdj[Period]=$C$5)*(ReconPerAdj[Region]=$B38)*(ReconPerAdj[RateName]=$B$34)*(ReconPerAdj[CustClass]=F$35)*ReconPerAdj[ReconcilingPeriodAdj]) -> -12563.68 | G38: 0 | H38: 0
B40: SRR Volumetric True-Ups
C41: SRR Worksheets | E41: VolTrueUp Table | G41: Difference
B42: Region | C42: Res | D42: SGS | E42: Res | F42: SGS | G42: Res | H42: SGS
B43: NEMO | C43: ='SRR NEMO'!C22 -> 3577.98 | D43: ='SRR NEMO'!C37 -> 200.09 | E43: =SUMPRODUCT((VolTrueUp[Year]=$C$4)*(VolTrueUp[Period]=$C$5)*(VolTrueUp[Region]=$B43)*(VolTrueUp[CustClass]=E$42)*VolTrueUp[TrueUp]) -> 3577.98 | F43: =SUMPRODUCT((VolTrueUp[Year]=$C$4)*(VolTrueUp[Period]=$C$5)*(VolTrueUp[Region]=$B43)*(VolTrueUp[CustClass]=F$42)*VolTrueUp[TrueUp]) -> 200.09 | G43: =E43-C43 -> 0 | H43: =F43-D43 -> 0
B44: WEMO | C44: ='SRR WEMO'!C22 -> 358.07 | D44: ='SRR WEMO'!C37 -> 93.27 | E44: =SUMPRODUCT((VolTrueUp[Year]=$C$4)*(VolTrueUp[Period]=$C$5)*(VolTrueUp[Region]=$B44)*(VolTrueUp[CustClass]=E$42)*VolTrueUp[TrueUp]) -> 358.07 | F44: =SUMPRODUCT((VolTrueUp[Year]=$C$4)*(VolTrueUp[Period]=$C$5)*(VolTrueUp[Region]=$B44)*(VolTrueUp[CustClass]=F$42)*VolTrueUp[TrueUp]) -> 93.27 | G44: =E44-C44 -> 0 | H44: 0
B45: SEMO | C45: ='SRR SEMO'!C22 -> -216.26 | D45: ='SRR SEMO'!C37 -> -312.86 | E45: =SUMPRODUCT((VolTrueUp[Year]=$C$4)*(VolTrueUp[Period]=$C$5)*(VolTrueUp[Region]=$B45)*(VolTrueUp[CustClass]=E$42)*VolTrueUp[TrueUp]) -> -216.26 | F45: =SUMPRODUCT((VolTrueUp[Year]=$C$4)*(VolTrueUp[Period]=$C$5)*(VolTrueUp[Region]=$B45)*(VolTrueUp[CustClass]=F$42)*VolTrueUp[TrueUp]) -> -312.86 | G45: 0 | H45: 0
B47: WNAR Rates
B48: CSWNA | C48: CSWNA Summary Wrksht | E48: WNAR Rates Table | G48: Difference
B49: Region | C49: Res | D49: SGS | E49: Res | F49: SGS | G49: Res | H49: SGS
B50: NEMO | C50: ='CSWNA Summary'!E26 -> -0.00792 | D50: ='CSWNA Summary'!H26 -> -0.00333 | E50: =SUMPRODUCT((WNARRates[Year]=$C$4)*(WNARRates[Period]=$C$5)*(WNARRates[Region]=$B50)*(WNARRates[CustClass]=E$49)*WNARRates[AdjCSWNA]) -> -0.00792 | F50: =SUMPRODUCT((WNARRates[Year]=$C$4)*(WNARRates[Period]=$C$5)*(WNARRates[Region]=$B50)*(WNARRates[CustClass]=F$49)*WNARRates[AdjCSWNA]) -> -0.00333 | G50: =E50-C50 -> 0 | H50: =F50-D50 -> 0
B51: WEMO | C51: ='CSWNA Summary'!E26 -> -0.00792 | D51: ='CSWNA Summary'!H26 -> -0.00333 | E51: =SUMPRODUCT((WNARRates[Year]=$C$4)*(WNARRates[Period]=$C$5)*(WNARRates[Region]=$B51)*(WNARRates[CustClass]=E$49)*WNARRates[AdjCSWNA]) -> -0.00792 | F51: =SUMPRODUCT((WNARRates[Year]=$C$4)*(WNARRates[Period]=$C$5)*(WNARRates[Region]=$B51)*(WNARRates[CustClass]=F$49)*WNARRates[AdjCSWNA]) -> -0.00333 | G51: =E51-C51 -> 0 | H51: 0
B52: SEMO | C52: ='CSWNA Summary'!I26 -> -5e-05 | D52: ='CSWNA Summary'!J26 -> -1e-05 | E52: =SUMPRODUCT((WNARRates[Year]=$C$4)*(WNARRates[Period]=$C$5)*(WNARRates[Region]=$B52)*(WNARRates[CustClass]=E$49)*WNARRates[AdjCSWNA]) -> -5e-05 | F52: =SUMPRODUCT((WNARRates[Year]=$C$4)*(WNARRates[Period]=$C$5)*(WNARRates[Region]=$B52)*(WNARRates[CustClass]=F$49)*WNARRates[AdjCSWNA]) -> -1e-05 | G52: 0 | H52: 0
B53: SRR | C53: SRR Summary Worksheet | E53: WNAR Rates Table | G53: Difference
B54: Region | C54: Res | D54: SGS | E54: Res | F54: SGS | G54: Res | H54: SGS
B55: NEMO | C55: ='SRR Summary'!C84 -> -0.02679 | D55: ='SRR Summary'!D84 -> -0.02113 | E55: =SUMPRODUCT((WNARRates[Year]=$C$4)*(WNARRates[Period]=$C$5)*(WNARRates[Region]=$B55)*(WNARRates[CustClass]=E$54)*WNARRates[AdjSRR]) -> -0.02679 | F55: =SUMPRODUCT((WNARRates[Year]=$C$4)*(WNARRates[Period]=$C$5)*(WNARRates[Region]=$B55)*(WNARRates[CustClass]=F$54)*WNARRates[AdjSRR]) -> -0.02113 | G55: =E55-C55 -> 0 | H55: =F55-D55 -> 0
B56: WEMO | C56: ='SRR Summary'!C84 -> -0.02679 | D56: ='SRR Summary'!D84 -> -0.02113 | E56: =SUMPRODUCT((WNARRates[Year]=$C$4)*(WNARRates[Period]=$C$5)*(WNARRates[Region]=$B56)*(WNARRates[CustClass]=E$54)*WNARRates[AdjSRR]) -> -0.02679 | F56: =SUMPRODUCT((WNARRates[Year]=$C$4)*(WNARRates[Period]=$C$5)*(WNARRates[Region]=$B56)*(WNARRates[CustClass]=F$54)*WNARRates[AdjSRR]) -> -0.02113 | G56: =E56-C56 -> 0 | H56: 0
B57: SEMO | C57: ='SRR Summary'!E84 -> -0.02997 | D57: ='SRR Summary'!F84 -> -0.00321 | E57: =SUMPRODUCT((WNARRates[Year]=$C$4)*(WNARRates[Period]=$C$5)*(WNARRates[Region]=$B57)*(WNARRates[CustClass]=E$54)*WNARRates[AdjSRR]) -> -0.02997 | F57: =SUMPRODUCT((WNARRates[Year]=$C$4)*(WNARRates[Period]=$C$5)*(WNARRates[Region]=$B57)*(WNARRates[CustClass]=F$54)*WNARRates[AdjSRR]) -> -0.00321 | G57: 0 | H57: 0

Sheet Rates - Sheets 67.2-67.5
D1: Liberty Utilities (Midstates Natural Gas) Corp.
D2: Weather Normalization Adjustment Rider
D3: Semiannual Adjustment Filing
D4: Tariff Rates
D5: Sheets 67.2 through 67.5
B9: Residential Rates for Northeast and West District (Sheet No. 67.2)
B11: CWNA Table: | H11: Lookup Criteria
B12: Period | C12: Rate First Effective | D12: Months | E12: Rate Ending Effective | F12: CSWNA (Annual) | H12: Region | I12: Cust Class | J12: Rate Name
B13: =DateSet!L4 -> 2022 S1 | C13: =DateSet!M4 -> 44652 | D13: 12 | E13: =EOMONTH(C13,11) -> 2023-03-31 | F13: =SUMPRODUCT((WNARRates[BeginDate]=C13)*(WNARRates[Region]=H13)*(WNARRates[CustClass]=I13)*WNARRates[AdjCSWNA]) -> 0.0573 | H13: NEMO | I13: Res | J13: CSWNA
B14: =DateSet!L5 -> 2022 S2 | C14: =DateSet!M5 -> 44835 | D14: 12 | E14: =EOMONTH(C14,11) -> 2023-09-30 | F14: =SUMPRODUCT((WNARRates[BeginDate]=C14)*(WNARRates[Region]=H14)*(WNARRates[CustClass]=I14)*WNARRates[AdjCSWNA]) -> -0.01938 | H14: NEMO | I14: Res | J14: CSWNA
B15: =DateSet!L6 -> 2023 S1 | C15: =DateSet!M6 -> 45017 | D15: 12 | E15: =EOMONTH(C15,11) -> 2024-03-31 | F15: =SUMPRODUCT((WNARRates[BeginDate]=C15)*(WNARRates[Region]=H15)*(WNARRates[CustClass]=I15)*WNARRates[AdjCSWNA]) -> -0.00792 | H15: NEMO | I15: Res | J15: CSWNA
B17: SRR Table:
B18: Period | C18: Rate First Effective | D18: Months | E18: Rate Ending Effective | F18: SRR (Annual)
B19: =$B$13 -> 2022 S1 | C19: =$C$13 -> 44652 | D19: 12 | E19: =EOMONTH(C19,11) -> 2023-03-31 | F19: =SUMPRODUCT((WNARRates[BeginDate]=C19)*(WNARRates[Region]=H19)*(WNARRates[CustClass]=I19)*WNARRates[AdjSRR]) -> 0.00278 | H19: NEMO | I19: Res | J19: SRR
B20: =$B$14 -> 2022 S2 | C20: =$C$14 -> 44835 | D20: 12 | E20: =EOMONTH(C20,11) -> 2023-09-30 | F20: =SUMPRODUCT((WNARRates[BeginDate]=C20)*(WNARRates[Region]=H20)*(WNARRates[CustClass]=I20)*WNARRates[AdjSRR]) -> 0.00047 | H20: NEMO | I20: Res | J20: SRR
B21: =$B$15 -> 2023 S1 | C21: =$C$15 -> 45017 | D21: 12 | E21: =EOMONTH(C21,11) -> 2024-03-31 | F21: =SUMPRODUCT((WNARRates[BeginDate]=C21)*(WNARRates[Region]=H21)*(WNARRates[CustClass]=I21)*WNARRates[AdjSRR]) -> -0.02679 | H21: NEMO | I21: Res | J21: SRR
B23: WNA Rider Rate:
B24: Period | C24: Rate First Effective | D24: Months | E24: Rate Ending Effective | F24: WNA (Semiannual)
B25: =$B$14 -> 2022 S2 | C25: =$C$14 -> 44835 | D25: 6 | E25: =EOMONTH(C25,D25-1) -> 2023-03-31 | F25: =SUMPRODUCT((WNARRates[BeginDate]<=C25)*(WNARRates[EndDate]>=C25)*(WNARRates[Region]=H25)*(WNARRates[CustClass]=I25)*WNARRates[AdjSRR])+SUMPRODUCT((WNARRates[BeginDate]<=C25)*(WNARRates[EndDate]>=C25)*(WNARRates[Region]=H25)*(WNARRates[CustClass]=I25)*WNARRates[AdjCSWNA]) -> 0.04117 | H25: NEMO | I25: Res | J25: WNA
B26: =$B$15 -> 2023 S1 | C26: =$C$15 -> 45017 | D26: 6 | E26: =EOMONTH(C26,D26-1) -> 2023-09-30 | F26: =SUMPRODUCT((WNARRates[BeginDate]<=C26)*(WNARRates[EndDate]>=C26)*(WNARRates[Region]=H26)*(WNARRates[CustClass]=I26)*WNARRates[AdjSRR])+SUMPRODUCT((WNARRates[BeginDate]<=C26)*(WNARRates[EndDate]>=C26)*(WNARRates[Region]=H26)*(WNARRates[CustClass]=I26)*WNARRates[AdjCSWNA]) -> -0.05362 | H26: NEMO | I26: Res | J26: WNA
B28: Residential Rates for Southeast District (Sheet No. 67.3)
B30: CWNA Table:
B31: Period | C31: Rate First Effective | D31: Months | E31: Rate Ending Effective | F31: CSWNA (Annual)
B32: =$B$13 -> 2022 S1 | C32: =$C$13 -> 44652 | D32: 12 | E32: =EOMONTH(C32,11) -> 2023-03-31 | F32: =SUMPRODUCT((WNARRates[BeginDate]=C32)*(WNARRates[Region]=H32)*(WNARRates[CustClass]=I32)*WNARRates[AdjCSWNA]) -> 0.04743 | H32: SEMO | I32: Res | J32: CSWNA
B33: =$B$14 -> 2022 S2 | C33: =$C$14 -> 44835 | D33: 12 | E33: =EOMONTH(C33,11) -> 2023-09-30 | F33: =SUMPRODUCT((WNARRates[BeginDate]=C33)*(WNARRates[Region]=H33)*(WNARRates[CustClass]=I33)*WNARRates[AdjCSWNA]) -> 0.00128 | H33: SEMO | I33: Res | J33: CSWNA
B34: =$B$15 -> 2023 S1 | C34: =$C$15 -> 45017 | D34: 12 | E34: =EOMONTH(C34,11) -> 2024-03-31 | F34: =SUMPRODUCT((WNARRates[BeginDate]=C34)*(WNARRates[Region]=H34)*(WNARRates[CustClass]=I34)*WNARRates[AdjCSWNA]) -> -5e-05 | H34: SEMO | I34: Res | J34: CSWNA
B36: SRR Table:
B37: Period | C37: Rate First Effective | D37: Months | E37: Rate Ending Effective | F37: SRR (Annual)
B38: =$B$13 -> 2022 S1 | C38: =$C$13 -> 44652 | D38: 12 | E38: =EOMONTH(C38,11) -> 2023-03-31 | F38: =SUMPRODUCT((WNARRates[BeginDate]=C38)*(WNARRates[Region]=H38)*(WNARRates[CustClass]=I38)*WNARRates[AdjSRR]) -> 0.00099 | H38: SEMO | I38: Res | J38: SRR
B39: =$B$14 -> 2022 S2 | C39: =$C$14 -> 44835 | D39: 12 | E39: =EOMONTH(C39,11) -> 2023-09-30 | F39: =SUMPRODUCT((WNARRates[BeginDate]=C39)*(WNARRates[Region]=H39)*(WNARRates[CustClass]=I39)*WNARRates[AdjSRR]) -> -0.00012 | H39: SEMO | I39: Res | J39: SRR
B40: =$B$15 -> 2023 S1 | C40: =$C$15 -> 45017 | D40: 12 | E40: =EOMONTH(C40,11) -> 2024-03-31 | F40: =SUMPRODUCT((WNARRates[BeginDate]=C40)*(WNARRates[Region]=H40)*(WNARRates[CustClass]=I40)*WNARRates[AdjSRR]) -> -0.02997 | H40: SEMO | I40: Res | J40: SRR
B42: WNA Rider Rate:
B43: Period | C43: Rate First Effective | D43: Months | E43: Rate Ending Effective | F43: WNA (Semiannual)
B44: =$B$14 -> 2022 S2 | C44: =$C$14 -> 44835 | D44: 6 | E44: =EOMONTH(C44,D44-1) -> 2023-03-31 | F44: =SUMPRODUCT((WNARRates[BeginDate]<=C44)*(WNARRates[EndDate]>=C44)*(WNARRates[Region]=H44)*(WNARRates[CustClass]=I44)*WNARRates[AdjSRR])+SUMPRODUCT((WNARRates[BeginDate]<=C44)*(WNARRates[EndDate]>=C44)*(WNARRates[Region]=H44)*(WNARRates[CustClass]=I44)*WNARRates[AdjCSWNA]) -> 0.04958 | H44: SEMO | I44: Res | J44: WNA
B45: =$B$15 -> 2023 S1 | C45: =$C$15 -> 45017 | D45: 6 | E45: =EOMONTH(C45,D45-1) -> 2023-09-30 | F45: =SUMPRODUCT((WNARRates[BeginDate]<=C45)*(WNARRates[EndDate]>=C45)*(WNARRates[Region]=H45)*(WNARRates[CustClass]=I45)*WNARRates[AdjSRR])+SUMPRODUCT((WNARRates[BeginDate]<=C45)*(WNARRates[EndDate]>=C45)*(WNARRates[Region]=H45)*(WNARRates[CustClass]=I45)*WNARRates[AdjCSWNA]) -> -0.02886 | H45: SEMO | I45: Res | J45: WNA
B48: SGS Rates for Northeast and West District (Sheet No. 67.4)
B50: CWNA Table:
B51: Period | C51: Rate First Effective | D51: Months | E51: Rate Ending Effective | F51: CSWNA (Annual)
B52: =$B$13 -> 2022 S1 | C52: =$C$13 -> 44652 | D52: 12 | E52: =EOMONTH(C52,11) -> 2023-03-31 | F52: =SUMPRODUCT((WNARRates[BeginDate]=C52)*(WNARRates[Region]=H52)*(WNARRates[CustClass]=I52)*WNARRates[AdjCSWNA]) -> 0.02781 | H52: NEMO | I52: SGS | J52: CSWNA
B53: =$B$14 -> 2022 S2 | C53: =$C$14 -> 44835 | D53: 12 | E53: =EOMONTH(C53,11) -> 2023-09-30 | F53: =SUMPRODUCT((WNARRates[BeginDate]=C53)*(WNARRates[Region]=H53)*(WNARRates[CustClass]=I53)*WNARRates[AdjCSWNA]) -> -0.00809 | H53: NEMO | I53: SGS | J53: CSWNA
B54: =$B$15 -> 2023 S1 | C54: =$C$15 -> 45017 | D54: 12 | E54: =EOMONTH(C54,11) -> 2024-03-31 | F54: =SUMPRODUCT((WNARRates[BeginDate]=C54)*(WNARRates[Region]=H54)*(WNARRates[CustClass]=I54)*WNARRates[AdjCSWNA]) -> -0.00333 | H54: NEMO | I54: SGS | J54: CSWNA
B56: SRR Table:
B57: Period | C57: Rate First Effective | D57: Months | E57: Rate Ending Effective | F57: SRR (Annual)
B58: =$B$13 -> 2022 S1 | C58: =$C$13 -> 44652 | D58: 12 | E58: =EOMONTH(C58,11) -> 2023-03-31 | F58: =SUMPRODUCT((WNARRates[BeginDate]=C58)*(WNARRates[Region]=H58)*(WNARRates[CustClass]=I58)*WNARRates[AdjSRR]) -> -0.00022 | H58: NEMO | I58: SGS | J58: SRR
B59: =$B$14 -> 2022 S2 | C59: =$C$14 -> 44835 | D59: 12 | E59: =EOMONTH(C59,11) -> 2023-09-30 | F59: =SUMPRODUCT((WNARRates[BeginDate]=C59)*(WNARRates[Region]=H59)*(WNARRates[CustClass]=I59)*WNARRates[AdjSRR]) -> 0.0006 | H59: NEMO | I59: SGS | J59: SRR
B60: =$B$15 -> 2023 S1 | C60: =$C$15 -> 45017 | D60: 12 | E60: =EOMONTH(C60,11) -> 2024-03-31 | F60: =SUMPRODUCT((WNARRates[BeginDate]=C60)*(WNARRates[Region]=H60)*(WNARRates[CustClass]=I60)*WNARRates[AdjSRR]) -> -0.02113 | H60: NEMO | I60: SGS | J60: SRR
B62: WNA Rider Rate:
B63: Period | C63: Rate First Effective | D63: Months | E63: Rate Ending Effective | F63: WNA (Semiannual)
B64: =$B$14 -> 2022 S2 | C64: =$C$14 -> 44835 | D64: 6 | E64: =EOMONTH(C64,D64-1) -> 2023-03-31 | F64: =SUMPRODUCT((WNARRates[BeginDate]<=C64)*(WNARRates[EndDate]>=C64)*(WNARRates[Region]=H64)*(WNARRates[CustClass]=I64)*WNARRates[AdjSRR])+SUMPRODUCT((WNARRates[BeginDate]<=C64)*(WNARRates[EndDate]>=C64)*(WNARRates[Region]=H64)*(WNARRates[CustClass]=I64)*WNARRates[AdjCSWNA]) -> 0.0201 | H64: NEMO | I64: SGS | J64: WNA
B65: =$B$15 -> 2023 S1 | C65: =$C$15 -> 45017 | D65: 6 | E65: =EOMONTH(C65,D65-1) -> 2023-09-30 | F65: =SUMPRODUCT((WNARRates[BeginDate]<=C65)*(WNARRates[EndDate]>=C65)*(WNARRates[Region]=H65)*(WNARRates[CustClass]=I65)*WNARRates[AdjSRR])+SUMPRODUCT((WNARRates[BeginDate]<=C65)*(WNARRates[EndDate]>=C65)*(WNARRates[Region]=H65)*(WNARRates[CustClass]=I65)*WNARRates[AdjCSWNA]) -> -0.03195 | H65: NEMO | I65: SGS | J65: WNA
B67: SGS Rates for Southeast District (Sheet No. 67.5)
B69: CWNA Table:
B70: Period | C70: Rate First Effective | D70: Months | E70: Rate Ending Effective | F70: CSWNA (Annual)
B71: =$B$13 -> 2022 S1 | C71: =$C$13 -> 44652 | D71: 12 | E71: =EOMONTH(C71,11) -> 2023-03-31 | F71: =SUMPRODUCT((WNARRates[BeginDate]=C71)*(WNARRates[Region]=H71)*(WNARRates[CustClass]=I71)*WNARRates[AdjCSWNA]) -> 0.01623 | H71: SEMO | I71: SGS | J71: CSWNA
B72: =$B$14 -> 2022 S2 | C72: =$C$14 -> 44835 | D72: 12 | E72: =EOMONTH(C72,11) -> 2023-09-30 | F72: =SUMPRODUCT((WNARRates[BeginDate]=C72)*(WNARRates[Region]=H72)*(WNARRates[CustClass]=I72)*WNARRates[AdjCSWNA]) -> 0.00044 | H72: SEMO | I72: SGS | J72: CSWNA
B73: =$B$15 -> 2023 S1 | C73: =$C$15 -> 45017 | D73: 12 | E73: =EOMONTH(C73,11) -> 2024-03-31 | F73: =SUMPRODUCT((WNARRates[BeginDate]=C73)*(WNARRates[Region]=H73)*(WNARRates[CustClass]=I73)*WNARRates[AdjCSWNA]) -> -1e-05 | H73: SEMO | I73: SGS | J73: CSWNA
B75: SRR Table:
B76: Period | C76: Rate First Effective | D76: Months | E76: Rate Ending Effective | F76: SRR (Annual)
B77: =$B$13 -> 2022 S1 | C77: =$C$13 -> 44652 | D77: 12 | E77: =EOMONTH(C77,11) -> 2023-03-31 | F77: =SUMPRODUCT((WNARRates[BeginDate]=C77)*(WNARRates[Region]=H77)*(WNARRates[CustClass]=I77)*WNARRates[AdjSRR]) -> -0.00372 | H77: SEMO | I77: SGS | J77: SRR
B78: =$B$14 -> 2022 S2 | C78: =$C$14 -> 44835 | D78: 12 | E78: =EOMONTH(C78,11) -> 2023-09-30 | F78: =SUMPRODUCT((WNARRates[BeginDate]=C78)*(WNARRates[Region]=H78)*(WNARRates[CustClass]=I78)*WNARRates[AdjSRR]) -> 7e-05 | H78: SEMO | I78: SGS | J78: SRR
B79: =$B$15 -> 2023 S1 | C79: =$C$15 -> 45017 | D79: 12 | E79: =EOMONTH(C79,11) -> 2024-03-31 | F79: =SUMPRODUCT((WNARRates[BeginDate]=C79)*(WNARRates[Region]=H79)*(WNARRates[CustClass]=I79)*WNARRates[AdjSRR]) -> -0.00321 | H79: SEMO | I79: SGS | J79: SRR
B81: WNA Rider Rate:
B82: Period | C82: Rate First Effective | D82: Months | E82: Rate Ending Effective | F82: WNA (Semiannual)
B83: =$B$14 -> 2022 S2 | C83: =$C$14 -> 44835 | D83: 6 | E83: =EOMONTH(C83,D83-1) -> 2023-03-31 | F83: =SUMPRODUCT((WNARRates[BeginDate]<=C83)*(WNARRates[EndDate]>=C83)*(WNARRates[Region]=H83)*(WNARRates[CustClass]=I83)*WNARRates[AdjSRR])+SUMPRODUCT((WNARRates[BeginDate]<=C83)*(WNARRates[EndDate]>=C83)*(WNARRates[Region]=H83)*(WNARRates[CustClass]=I83)*WNARRates[AdjCSWNA]) -> 0.01302 | H83: SEMO | I83: SGS | J83: WNA
B84: =$B$15 -> 2023 S1 | C84: =$C$15 -> 45017 | D84: 6 | E84: =EOMONTH(C84,D84-1) -> 2023-09-30 | F84: =SUMPRODUCT((WNARRates[BeginDate]<=C84)*(WNARRates[EndDate]>=C84)*(WNARRates[Region]=H84)*(WNARRates[CustClass]=I84)*WNARRates[AdjSRR])+SUMPRODUCT((WNARRates[BeginDate]<=C84)*(WNARRates[EndDate]>=C84)*(WNARRates[Region]=H84)*(WNARRates[CustClass]=I84)*WNARRates[AdjCSWNA]) -> -0.00271 | H84: SEMO | I84: SGS | J84: WNA

Sheet CSWNA Summary
B2: Liberty Midstates | F2: Filing Period
B3: WNAR Filing | F3: Year | G3: Period
B4: CSWNA Summary
B5: Year | C5: =DateSet!C2 -> 2023
B6: Period | C6: =DateSet!C3 -> S1
B7: CSWNA Analysis | C7: =DateSet!J8 -> 44743
B8: New Rate Effec. | C8: =DateSet!D4 -> 45017
B10: Current Period Dollar Adjustment
B11: Customer Class | C11: Res | F11: SGS | I11: Res | J11: SGS
B12: Month | C12: NEMO | D12: WEMO | E12: Combined | F12: NEMO | G12: WEMO | H12: Combined | I12: SEMO | J12: SEMO
B13: =C7 -> 2022-07-01 | C13: =SUMPRODUCT((CSWNAAmounts[Month]=$B13)*(CSWNAAmounts[CustClass]=$C$11)*(CSWNAAmounts[Region]=C$12)*CSWNAAmounts[CSWNA]) -> 1078.35 | D13: =SUMPRODUCT((CSWNAAmounts[Month]=$B13)*(CSWNAAmounts[CustClass]=$C$11)*(CSWNAAmounts[Region]=D$12)*CSWNAAmounts[CSWNA]) -> 334.52 | E13: =C13+D13 -> 1412.87 | F13: =SUMPRODUCT((CSWNAAmounts[Month]=$B13)*(CSWNAAmounts[CustClass]=$F$11)*(CSWNAAmounts[Region]=F$12)*CSWNAAmounts[CSWNA]) -> 137.63 | G13: =SUMPRODUCT((CSWNAAmounts[Month]=$B13)*(CSWNAAmounts[CustClass]=$F$11)*(CSWNAAmounts[Region]=G$12)*CSWNAAmounts[CSWNA]) -> 48.45 | H13: =F13+G13 -> 186.08 | I13: =SUMPRODUCT((CSWNAAmounts[Month]=$B13)*(CSWNAAmounts[CustClass]=$I$11)*(CSWNAAmounts[Region]=I$12)*CSWNAAmounts[CSWNA]) -> 70.12 | J13: =SUMPRODUCT((CSWNAAmounts[Month]=$B13)*(CSWNAAmounts[CustClass]=$J$11)*(CSWNAAmounts[Region]=J$12)*CSWNAAmounts[CSWNA]) -> 6.17
B14: =EDATE(B13,1) -> 2022-08-01 | C14: =SUMPRODUCT((CSWNAAmounts[Month]=$B14)*(CSWNAAmounts[CustClass]=$C$11)*(CSWNAAmounts[Region]=C$12)*CSWNAAmounts[CSWNA]) -> 3583.29 | D14: =SUMPRODUCT((CSWNAAmounts[Month]=$B14)*(CSWNAAmounts[CustClass]=$C$11)*(CSWNAAmounts[Region]=D$12)*CSWNAAmounts[CSWNA]) -> 972.17 | E14: =C14+D14 -> 4555.46 | F14: =SUMPRODUCT((CSWNAAmounts[Month]=$B14)*(CSWNAAmounts[CustClass]=$F$11)*(CSWNAAmounts[Region]=F$12)*CSWNAAmounts[CSWNA]) -> 455.57 | G14: =SUMPRODUCT((CSWNAAmounts[Month]=$B14)*(CSWNAAmounts[CustClass]=$F$11)*(CSWNAAmounts[Region]=G$12)*CSWNAAmounts[CSWNA]) -> 139.77 | H14: =F14+G14 -> 595.34 | I14: =SUMPRODUCT((CSWNAAmounts[Month]=$B14)*(CSWNAAmounts[CustClass]=$I$11)*(CSWNAAmounts[Region]=I$12)*CSWNAAmounts[CSWNA]) -> 699.83 | J14: =SUMPRODUCT((CSWNAAmounts[Month]=$B14)*(CSWNAAmounts[CustClass]=$J$11)*(CSWNAAmounts[Region]=J$12)*CSWNAAmounts[CSWNA]) -> 61.58
B15: =EDATE(B14,1) -> 2022-09-01 | C15: =SUMPRODUCT((CSWNAAmounts[Month]=$B15)*(CSWNAAmounts[CustClass]=$C$11)*(CSWNAAmounts[Region]=C$12)*CSWNAAmounts[CSWNA]) -> 12169.35 | D15: =SUMPRODUCT((CSWNAAmounts[Month]=$B15)*(CSWNAAmounts[CustClass]=$C$11)*(CSWNAAmounts[Region]=D$12)*CSWNAAmounts[CSWNA]) -> 1495.22 | E15: 13664.57 | F15: =SUMPRODUCT((CSWNAAmounts[Month]=$B15)*(CSWNAAmounts[CustClass]=$F$11)*(CSWNAAmounts[Region]=F$12)*CSWNAAmounts[CSWNA]) -> 1539.36 | G15: =SUMPRODUCT((CSWNAAmounts[Month]=$B15)*(CSWNAAmounts[CustClass]=$F$11)*(CSWNAAmounts[Region]=G$12)*CSWNAAmounts[CSWNA]) -> 215.52 | H15: 1754.88 | I15: =SUMPRODUCT((CSWNAAmounts[Month]=$B15)*(CSWNAAmounts[CustClass]=$I$11)*(CSWNAAmounts[Region]=I$12)*CSWNAAmounts[CSWNA]) -> 2447.53 | J15: =SUMPRODUCT((CSWNAAmounts[Month]=$B15)*(CSWNAAmounts[CustClass]=$J$11)*(CSWNAAmounts[Region]=J$12)*CSWNAAmounts[CSWNA]) -> 215.61
B16: 2022-10-01 | C16: =SUMPRODUCT((CSWNAAmounts[Month]=$B16)*(CSWNAAmounts[CustClass]=$C$11)*(CSWNAAmounts[Region]=C$12)*CSWNAAmounts[CSWNA]) -> -20607.72 | D16: =SUMPRODUCT((CSWNAAmounts[Month]=$B16)*(CSWNAAmounts[CustClass]=$C$11)*(CSWNAAmounts[Region]=D$12)*CSWNAAmounts[CSWNA]) -> -1673.06 | E16: -22280.78 | F16: =SUMPRODUCT((CSWNAAmounts[Month]=$B16)*(CSWNAAmounts[CustClass]=$F$11)*(CSWNAAmounts[Region]=F$12)*CSWNAAmounts[CSWNA]) -> -2573.18 | G16: =SUMPRODUCT((CSWNAAmounts[Month]=$B16)*(CSWNAAmounts[CustClass]=$F$11)*(CSWNAAmounts[Region]=G$12)*CSWNAAmounts[CSWNA]) -> -239.61 | H16: -2812.79 | I16: =SUMPRODUCT((CSWNAAmounts[Month]=$B16)*(CSWNAAmounts[CustClass]=$I$11)*(CSWNAAmounts[Region]=I$12)*CSWNAAmounts[CSWNA]) -> -7769.64 | J16: =SUMPRODUCT((CSWNAAmounts[Month]=$B16)*(CSWNAAmounts[CustClass]=$J$11)*(CSWNAAmounts[Region]=J$12)*CSWNAAmounts[CSWNA]) -> -675.98
B17: 2022-11-01 | C17: =SUMPRODUCT((CSWNAAmounts[Month]=$B17)*(CSWNAAmounts[CustClass]=$C$11)*(CSWNAAmounts[Region]=C$12)*CSWNAAmounts[CSWNA]) -> -24472.77 | D17: =SUMPRODUCT((CSWNAAmounts[Month]=$B17)*(CSWNAAmounts[CustClass]=$C$11)*(CSWNAAmounts[Region]=D$12)*CSWNAAmounts[CSWNA]) -> -5575.46 | E17: -30048.23 | F17: =SUMPRODUCT((CSWNAAmounts[Month]=$B17)*(CSWNAAmounts[CustClass]=$F$11)*(CSWNAAmounts[Region]=F$12)*CSWNAAmounts[CSWNA]) -> -3033.73 | G17: =SUMPRODUCT((CSWNAAmounts[Month]=$B17)*(CSWNAAmounts[CustClass]=$F$11)*(CSWNAAmounts[Region]=G$12)*CSWNAAmounts[CSWNA]) -> -797.18 | H17: -3830.91 | I17: =SUMPRODUCT((CSWNAAmounts[Month]=$B17)*(CSWNAAmounts[CustClass]=$I$11)*(CSWNAAmounts[Region]=I$12)*CSWNAAmounts[CSWNA]) -> -13255.77 | J17: =SUMPRODUCT((CSWNAAmounts[Month]=$B17)*(CSWNAAmounts[CustClass]=$J$11)*(CSWNAAmounts[Region]=J$12)*CSWNAAmounts[CSWNA]) -> -1169.64
B18: 2022-12-01 | C18: =SUMPRODUCT((CSWNAAmounts[Month]=$B18)*(CSWNAAmounts[CustClass]=$C$11)*(CSWNAAmounts[Region]=C$12)*CSWNAAmounts[CSWNA]) -> -60621.2 | D18: =SUMPRODUCT((CSWNAAmounts[Month]=$B18)*(CSWNAAmounts[CustClass]=$C$11)*(CSWNAAmounts[Region]=D$12)*CSWNAAmounts[CSWNA]) -> -11451.44 | E18: -72072.64 | F18: =SUMPRODUCT((CSWNAAmounts[Month]=$B18)*(CSWNAAmounts[CustClass]=$F$11)*(CSWNAAmounts[Region]=F$12)*CSWNAAmounts[CSWNA]) -> -7421.7 | G18: =SUMPRODUCT((CSWNAAmounts[Month]=$B18)*(CSWNAAmounts[CustClass]=$F$11)*(CSWNAAmounts[Region]=G$12)*CSWNAAmounts[CSWNA]) -> -1631.27 | H18: -9052.97 | I18: =SUMPRODUCT((CSWNAAmounts[Month]=$B18)*(CSWNAAmounts[CustClass]=$I$11)*(CSWNAAmounts[Region]=I$12)*CSWNAAmounts[CSWNA]) -> 17043.24 | J18: =SUMPRODUCT((CSWNAAmounts[Month]=$B18)*(CSWNAAmounts[CustClass]=$J$11)*(CSWNAAmounts[Region]=J$12)*CSWNAAmounts[CSWNA]) -> 1505.29
B19: Total Adjustment | C19: =SUM(C13:C18) -> -88870.7 | D19: =SUM(D13:D18) -> -15898.05 | E19: -104768.75 | F19: -10896.05 | G19: -2264.32 | H19: -13160.37 | I19: =SUM(I13:I18) -> -764.69 | J19: =SUM(J13:J18) -> -56.97
B21: CSWNA Rate Calculation | C21: Res | F21: SGS | I21: Res | J21: SGS
C22: NEMO | D22: WEMO | E22: Combined | F22: NEMO | G22: WEMO | H22: Combined | I22: SEMO | J22: SEMO
B23: Billing Determinants | C23: =SUMPRODUCT((BillDeter[Region]=C12)*(BillDeter[CustClass]=$C11)*BillDeter[BillingDeterminants]) -> 11089284.46 | D23: =SUMPRODUCT((BillDeter[Region]=D12)*(BillDeter[CustClass]=$C11)*BillDeter[BillingDeterminants]) -> 2140376.989 | E23: =C23+D23 -> 13229661.45 | F23: =SUMPRODUCT((BillDeter[Region]=F12)*(BillDeter[CustClass]=$F11)*BillDeter[BillingDeterminants]) -> 3249867.68 | G23: =SUMPRODUCT((BillDeter[Region]=G12)*(BillDeter[CustClass]=$F11)*BillDeter[BillingDeterminants]) -> 700365.6444 | H23: =F23+G23 -> 3950233.324 | I23: =SUMPRODUCT((BillDeter[Region]=I12)*(BillDeter[CustClass]=I11)*BillDeter[BillingDeterminants]) -> 15300894.64 | J23: =SUMPRODUCT((BillDeter[Region]=J12)*(BillDeter[CustClass]=J11)*BillDeter[BillingDeterminants]) -> 3908443.556
B24: CSWNA Unadjusted | E24: =ROUND(E19/E23,5) -> -0.00792 | H24: =ROUND(H19/H23,5) -> -0.00333 | I24: =ROUND(I19/I23,5) -> -5e-05 | J24: =ROUND(J19/J23,5) -> -1e-05
B25: WNA Limit Adjust. | E25: =E42 -> 0 | H25: =F42 -> 0 | I25: =G42 -> 0 | J25: 0
B26: CSWNA Adjusted | E26: =E24+E25 -> -0.00792 | H26: =H24+H25 -> -0.00333 | I26: -5e-05 | J26: -1e-05
B27: Enter these rates in the CSWNA column of the WNAR Rates table.
B29: New WNA Rate Calculation | E29: NEMO + WEMO | G29: SEMO
B30: Rate | C30: Period | D30: Eff. Date | E30: Res | F30: SGS | G30: Res | H30: SGS
B31: CSWNA | C31: S1 | D31: =DateSet!J4 -> 45017 | E31: =SUMPRODUCT((WNARRates[BeginDate]=$D31)*(WNARRates[Region]="NEMO")*(WNARRates[CustClass]=E$30)*(WNARRates[Period]=$C31)*WNARRates[CSWNA]) -> -0.00792 | F31: =SUMPRODUCT((WNARRates[BeginDate]=$D31)*(WNARRates[Region]="NEMO")*(WNARRates[CustClass]=F$30)*(WNARRates[Period]=$C31)*WNARRates[CSWNA]) -> -0.00333 | G31: =SUMPRODUCT((WNARRates[BeginDate]=$D31)*(WNARRates[Region]=$G$29)*(WNARRates[CustClass]=G$30)*(WNARRates[Period]=$C31)*WNARRates[CSWNA]) -> -5e-05 | H31: =SUMPRODUCT((WNARRates[BeginDate]=$D31)*(WNARRates[Region]=$G$29)*(WNARRates[CustClass]=H$30)*(WNARRates[Period]=$C31)*WNARRates[CSWNA]) -> -1e-05
B32: CSWNA | C32: S2 | D32: =DateSet!J5 -> 44835 | E32: =SUMPRODUCT((WNARRates[BeginDate]=$D32)*(WNARRates[Region]="NEMO")*(WNARRates[CustClass]=E$30)*(WNARRates[Period]=$C32)*WNARRates[CSWNA]) -> -0.01938 | F32: =SUMPRODUCT((WNARRates[BeginDate]=$D32)*(WNARRates[Region]="NEMO")*(WNARRates[CustClass]=F$30)*(WNARRates[Period]=$C32)*WNARRates[CSWNA]) -> -0.00809 | G32: =SUMPRODUCT((WNARRates[BeginDate]=$D32)*(WNARRates[Region]=$G$29)*(WNARRates[CustClass]=G$30)*(WNARRates[Period]=$C32)*WNARRates[CSWNA]) -> 0.00128 | H32: =SUMPRODUCT((WNARRates[BeginDate]=$D32)*(WNARRates[Region]=$G$29)*(WNARRates[CustClass]=H$30)*(WNARRates[Period]=$C32)*WNARRates[CSWNA]) -> 0.00044
B33: SRR | C33: S1 | D33: =DateSet!J6 -> 45017 | E33: =SUMPRODUCT((WNARRates[BeginDate]=$D33)*(WNARRates[Region]="NEMO")*(WNARRates[CustClass]=E$30)*(WNARRates[Period]=$C33)*WNARRates[SRR]) -> -0.02679 | F33: =SUMPRODUCT((WNARRates[BeginDate]=$D33)*(WNARRates[Region]="NEMO")*(WNARRates[CustClass]=F$30)*(WNARRates[Period]=$C33)*WNARRates[SRR]) -> -0.02113 | G33: =SUMPRODUCT((WNARRates[BeginDate]=$D33)*(WNARRates[Region]=$G$29)*(WNARRates[CustClass]=G$30)*(WNARRates[Period]=$C33)*WNARRates[SRR]) -> -0.02997 | H33: =SUMPRODUCT((WNARRates[BeginDate]=$D33)*(WNARRates[Region]=$G$29)*(WNARRates[CustClass]=H$30)*(WNARRates[Period]=$C33)*WNARRates[SRR]) -> -0.00321
B34: SRR | C34: S2 | D34: =DateSet!J7 -> 44835 | E34: =SUMPRODUCT((WNARRates[BeginDate]=$D34)*(WNARRates[Region]="NEMO")*(WNARRates[CustClass]=E$30)*(WNARRates[Period]=$C34)*WNARRates[SRR]) -> 0.00047 | F34: =SUMPRODUCT((WNARRates[BeginDate]=$D34)*(WNARRates[Region]="NEMO")*(WNARRates[CustClass]=F$30)*(WNARRates[Period]=$C34)*WNARRates[SRR]) -> 0.0006 | G34: =SUMPRODUCT((WNARRates[BeginDate]=$D34)*(WNARRates[Region]=$G$29)*(WNARRates[CustClass]=G$30)*(WNARRates[Period]=$C34)*WNARRates[SRR]) -> -0.00012 | H34: =SUMPRODUCT((WNARRates[BeginDate]=$D34)*(WNARRates[Region]=$G$29)*(WNARRates[CustClass]=H$30)*(WNARRates[Period]=$C34)*WNARRates[SRR]) -> 7e-05
B35: Proposed WNA | E35: =SUM(E31:E34) -> -0.05362 | F35: =SUM(F31:F34) -> -0.03195 | G35: =SUM(G31:G34) -> -0.02886 | H35: -0.00271
B37: Change Limit Calculations | C37: Period | E37: NEMO + WEMO | G37: SEMO
D38: Eff. Date | E38: Res | F38: SGS | G38: Res | H38: SGS
B39: Prior Period WNA Rate | C39: =IF($C$6="S1","S2","S1") -> S2 | D39: =EDATE($C$8,-6) -> 44835 | E39: =SUMPRODUCT((WNARRates[BeginDate]<=$D39)*(WNARRates[EndDate]>=$D39)*(WNARRates[Region]="NEMO")*(WNARRates[CustClass]=E30)*WNARRates[Combined]) -> 0.05023 | F39: =SUMPRODUCT((WNARRates[BeginDate]<=$D39)*(WNARRates[EndDate]>=$D39)*(WNARRates[Region]="NEMO")*(WNARRates[CustClass]=F30)*WNARRates[Combined]) -> 0.0201 | G39: =SUMPRODUCT((WNARRates[BeginDate]<=$D39)*(WNARRates[EndDate]>=$D39)*(WNARRates[Region]=$G29)*(WNARRates[CustClass]=G30)*WNARRates[Combined]) -> 0.04958 | H39: =SUMPRODUCT((WNARRates[BeginDate]<=$D39)*(WNARRates[EndDate]>=$D39)*(WNARRates[Region]=$G29)*(WNARRates[CustClass]=H30)*WNARRates[Combined]) -> 0.01302
B40: Change from Prior Period | E40: =E35-E39 -> -0.10385 | F40: =F35-F39 -> -0.05205 | G40: =G35-G39 -> -0.07844 | H40: =H35-H39 -> -0.01573
B41: Change Limit | E41: 0.05 | F41: 0.05 | G41: 0.05 | H41: 0.05
B42: Change Limit Adjustment | E42: =IF(E41>E40,0,E41-E40) -> 0 | F42: =IF(F41>F40,0,F41-F40) -> 0 | G42: 0 | H42: 0
B43: Excess Limit Amount | E43: =E42*E23 -> 0 | F43: =F42*H23 -> 0 | G43: =G42*I23 -> 0 | H43: =H42*J23 -> 0

Sheet SRR Summary
B2: Liberty Midstates | F2: Filing Period
B3: WNAR Filing | F3: Year | G3: Period
B4: SRR Summary
B5: Year | C5: =DateSet!C2 -> 2023
B6: Period | C6: =DateSet!C3 -> S1
B7: Billed Rev. From | C7: =DateSet!J10 -> 44652
B8: New Rate Effec. | C8: =DateSet!D4 -> 45017
B10: Reconciliation Summary | C10: CSWNA
B11: Customer Class | C11: Res | F11: SGS | I11: Res | J11: SGS | K11: Notes
B12: Region | C12: NEMO | D12: WEMO | E12: Combined | F12: NEMO | G12: WEMO | H12: Combined | I12: SEMO | J12: SEMO
B13: Reconciling Period Adj. | C13: =SUMPRODUCT((ReconPerAdj[EffDate]=$C$7)*(ReconPerAdj[Region]=C$12)*(ReconPerAdj[CustClass]=C$11)*(ReconPerAdj[RateName]=$C$10)*ReconPerAdj[ReconcilingPeriodAdj]) -> 728517 | D13: =SUMPRODUCT((ReconPerAdj[EffDate]=$C$7)*(ReconPerAdj[Region]=D$12)*(ReconPerAdj[CustClass]=C$11)*(ReconPerAdj[RateName]=$C$10)*ReconPerAdj[ReconcilingPeriodAdj]) -> 149390 | E13: =C13+D13 -> 877907 | F13: =SUMPRODUCT((ReconPerAdj[EffDate]=$C$7)*(ReconPerAdj[Region]=F$12)*(ReconPerAdj[CustClass]=F$11)*(ReconPerAdj[RateName]=$C$10)*ReconPerAdj[ReconcilingPeriodAdj]) -> 88590 | G13: =SUMPRODUCT((ReconPerAdj[EffDate]=$C$7)*(ReconPerAdj[Region]=G$12)*(ReconPerAdj[CustClass]=F$11)*(ReconPerAdj[RateName]=$C$10)*ReconPerAdj[ReconcilingPeriodAdj]) -> 21247 | H13: =F13+G13 -> 109837 | I13: =SUMPRODUCT((ReconPerAdj[EffDate]=$C$7)*(ReconPerAdj[Region]=I$12)*(ReconPerAdj[CustClass]=I$11)*(ReconPerAdj[RateName]=$C$10)*ReconPerAdj[ReconcilingPeriodAdj]) -> 725749 | J13: =SUMPRODUCT((ReconPerAdj[EffDate]=$C$7)*(ReconPerAdj[Region]=J$12)*(ReconPerAdj[CustClass]=J$11)*(ReconPerAdj[RateName]=$C$10)*ReconPerAdj[ReconcilingPeriodAdj]) -> 63423 | K13: From ReconPerAdj Table
B14: PPA Correction | C14: =SUMPRODUCT((PPA[Year]=$C$5)*(PPA[Period]=$C$6)*(PPA[Region]=C12)*(PPA[CustClass]=$C$11)*(PPA[RateName]=$C$10)*PPA[Amount]) -> -362076.17 | D14: =SUMPRODUCT((PPA[Year]=$C$5)*(PPA[Period]=$C$6)*(PPA[Region]=D12)*(PPA[CustClass]=$C$11)*(PPA[RateName]=$C$10)*PPA[Amount]) -> -74247.83 | E14: =C14+D14 -> -436324 | F14: =SUMPRODUCT((PPA[Year]=$C$5)*(PPA[Period]=$C$6)*(PPA[Region]=F12)*(PPA[CustClass]=$F$11)*(PPA[RateName]=$C$10)*PPA[Amount]) -> -55632.41 | G14: =SUMPRODUCT((PPA[Year]=$C$5)*(PPA[Period]=$C$6)*(PPA[Region]=G12)*(PPA[CustClass]=$F$11)*(PPA[RateName]=$C$10)*PPA[Amount]) -> -13934.43 | H14: =F14+G14 -> -69566.84 | I14: =SUMPRODUCT((PPA[Year]=$C$5)*(PPA[Period]=$C$6)*(PPA[Region]=I12)*(PPA[CustClass]=I$11)*(PPA[RateName]=$C$10)*PPA[Amount]) -> -432309.64 | J14: =SUMPRODUCT((PPA[Year]=$C$5)*(PPA[Period]=$C$6)*(PPA[Region]=J12)*(PPA[CustClass]=J$11)*(PPA[RateName]=$C$10)*PPA[Amount]) -> -22410.31 | K14: From PriorPerAdj Table
B15: Net Reconciling Period Adj. | C15: =C13+C14 -> 366440.83 | D15: =D13+D14 -> 75142.17 | E15: =E13+E14 -> 441583 | F15: =F13+F14 -> 32957.59 | G15: 7312.57 | H15: 40270.16 | I15: =I13+I14 -> 293439.36 | J15: =J13+J14 -> 41012.69
B16: Actual Revenues
B17: =C7 -> 2022-04-01 | C17: =-SUMPRODUCT((WNARRev[Flow Month]=$B17)*(WNARRev[Period]=$C$6)*WNARRev[N6063-GRF-CSWNA]) -> -58244.76577 | D17: =-SUMPRODUCT((WNARRev[Flow Month]=$B17)*(WNARRev[Period]=$C$6)*WNARRev[W61-GRF-CSWNA]) -> -9549.039467 | E17: =C17+D17 -> -67793.80523 | F17: =-SUMPRODUCT((WNARRev[Flow Month]=$B17)*(WNARRev[Period]=$C$6)*WNARRev[N6063-GCSF-CSWNA]) -> -8210.095992 | G17: =-SUMPRODUCT((WNARRev[Flow Month]=$B17)*(WNARRev[Period]=$C$6)*WNARRev[W61-GCSF-CSWNA]) -> -1586.36354 | H17: =F17+G17 -> -9796.459532 | I17: =-SUMPRODUCT((WNARRev[Flow Month]=$B17)*(WNARRev[Period]=$C$6)*WNARRev[S62-GRF-CSWNA]) -> -50664.74791 | J17: =-SUMPRODUCT((WNARRev[Flow Month]=$B17)*(WNARRev[Period]=$C$6)*WNARRev[S62-GCSF-CSWNA]) -> -4372.805511 | K17: From WNAR Rev Table
B18: =EDATE(B17,1) -> 2022-05-01 | C18: =-SUMPRODUCT((WNARRev[Flow Month]=$B18)*(WNARRev[Period]=$C$6)*WNARRev[N6063-GRF-CSWNA]) -> -17559.88161 | D18: =-SUMPRODUCT((WNARRev[Flow Month]=$B18)*(WNARRev[Period]=$C$6)*WNARRev[W61-GRF-CSWNA]) -> -3870.591242 | E18: =C18+D18 -> -21430.47285 | F18: =-SUMPRODUCT((WNARRev[Flow Month]=$B18)*(WNARRev[Period]=$C$6)*WNARRev[N6063-GCSF-CSWNA]) -> -2655.544696 | G18: =-SUMPRODUCT((WNARRev[Flow Month]=$B18)*(WNARRev[Period]=$C$6)*WNARRev[W61-GCSF-CSWNA]) -> -591.5448822 | H18: =F18+G18 -> -3247.089578 | I18: =-SUMPRODUCT((WNARRev[Flow Month]=$B18)*(WNARRev[Period]=$C$6)*WNARRev[S62-GRF-CSWNA]) -> -16865.82212 | J18: =-SUMPRODUCT((WNARRev[Flow Month]=$B18)*(WNARRev[Period]=$C$6)*WNARRev[S62-GCSF-CSWNA]) -> -1547.529829 | K18: From WNAR Rev Table
B19: =EDATE(B18,1) -> 2022-06-01 | C19: =-SUMPRODUCT((WNARRev[Flow Month]=$B19)*(WNARRev[Period]=$C$6)*WNARRev[N6063-GRF-CSWNA]) -> -8938.64252 | D19: =-SUMPRODUCT((WNARRev[Flow Month]=$B19)*(WNARRev[Period]=$C$6)*WNARRev[W61-GRF-CSWNA]) -> -1806.292029 | E19: -10744.93455 | F19: =-SUMPRODUCT((WNARRev[Flow Month]=$B19)*(WNARRev[Period]=$C$6)*WNARRev[N6063-GCSF-CSWNA]) -> -1621.847375 | G19: =-SUMPRODUCT((WNARRev[Flow Month]=$B19)*(WNARRev[Period]=$C$6)*WNARRev[W61-GCSF-CSWNA]) -> -580.5013386 | H19: -2202.348714 | I19: =-SUMPRODUCT((WNARRev[Flow Month]=$B19)*(WNARRev[Period]=$C$6)*WNARRev[S62-GRF-CSWNA]) -> -14434.47985 | J19: =-SUMPRODUCT((WNARRev[Flow Month]=$B19)*(WNARRev[Period]=$C$6)*WNARRev[S62-GCSF-CSWNA]) -> -1481.090946 | K19: From WNAR Rev Table
B20: 2022-07-01 | C20: =-SUMPRODUCT((WNARRev[Flow Month]=$B20)*(WNARRev[Period]=$C$6)*WNARRev[N6063-GRF-CSWNA]) -> -6971.584845 | D20: =-SUMPRODUCT((WNARRev[Flow Month]=$B20)*(WNARRev[Period]=$C$6)*WNARRev[W61-GRF-CSWNA]) -> -1495.055125 | E20: -8466.639969 | F20: =-SUMPRODUCT((WNARRev[Flow Month]=$B20)*(WNARRev[Period]=$C$6)*WNARRev[N6063-GCSF-CSWNA]) -> -1324.153588 | G20: =-SUMPRODUCT((WNARRev[Flow Month]=$B20)*(WNARRev[Period]=$C$6)*WNARRev[W61-GCSF-CSWNA]) -> -59.13855798 | H20: -1383.292146 | I20: =-SUMPRODUCT((WNARRev[Flow Month]=$B20)*(WNARRev[Period]=$C$6)*WNARRev[S62-GRF-CSWNA]) -> -10700.71878 | J20: =-SUMPRODUCT((WNARRev[Flow Month]=$B20)*(WNARRev[Period]=$C$6)*WNARRev[S62-GCSF-CSWNA]) -> -1194.276646 | K20: From WNAR Rev Table
B21: 2022-08-01 | C21: =-SUMPRODUCT((WNARRev[Flow Month]=$B21)*(WNARRev[Period]=$C$6)*WNARRev[N6063-GRF-CSWNA]) -> -6986.575528 | D21: =-SUMPRODUCT((WNARRev[Flow Month]=$B21)*(WNARRev[Period]=$C$6)*WNARRev[W61-GRF-CSWNA]) -> -1474.937248 | E21: -8461.512776 | F21: =-SUMPRODUCT((WNARRev[Flow Month]=$B21)*(WNARRev[Period]=$C$6)*WNARRev[N6063-GCSF-CSWNA]) -> -1374.748894 | G21: =-SUMPRODUCT((WNARRev[Flow Month]=$B21)*(WNARRev[Period]=$C$6)*WNARRev[W61-GCSF-CSWNA]) -> -285.0607891 | H21: -1659.809683 | I21: =-SUMPRODUCT((WNARRev[Flow Month]=$B21)*(WNARRev[Period]=$C$6)*WNARRev[S62-GRF-CSWNA]) -> -11455.82997 | J21: =-SUMPRODUCT((WNARRev[Flow Month]=$B21)*(WNARRev[Period]=$C$6)*WNARRev[S62-GCSF-CSWNA]) -> -1224.500582 | K21: From WNAR Rev Table
B22: 2022-09-01 | C22: =-SUMPRODUCT((WNARRev[Flow Month]=$B22)*(WNARRev[Period]=$C$6)*WNARRev[N6063-GRF-CSWNA]) -> -8715.153014 | D22: =-SUMPRODUCT((WNARRev[Flow Month]=$B22)*(WNARRev[Period]=$C$6)*WNARRev[W61-GRF-CSWNA]) -> -1462.144728 | E22: -10177.29774 | F22: =-SUMPRODUCT((WNARRev[Flow Month]=$B22)*(WNARRev[Period]=$C$6)*WNARRev[N6063-GCSF-CSWNA]) -> -1570.668281 | G22: =-SUMPRODUCT((WNARRev[Flow Month]=$B22)*(WNARRev[Period]=$C$6)*WNARRev[W61-GCSF-CSWNA]) -> -287.5807378 | H22: -1858.249019 | I22: =-SUMPRODUCT((WNARRev[Flow Month]=$B22)*(WNARRev[Period]=$C$6)*WNARRev[S62-GRF-CSWNA]) -> -11181.20882 | J22: =-SUMPRODUCT((WNARRev[Flow Month]=$B22)*(WNARRev[Period]=$C$6)*WNARRev[S62-GCSF-CSWNA]) -> -1195.590348 | K22: From WNAR Rev Table
B23: 2022-10-01 | C23: =-SUMPRODUCT((WNARRev[Flow Month]=$B23)*(WNARRev[Period]=$C$6)*WNARRev[N6063-GRF-CSWNA]) -> -27468.54797 | D23: =-SUMPRODUCT((WNARRev[Flow Month]=$B23)*(WNARRev[Period]=$C$6)*WNARRev[W61-GRF-CSWNA]) -> -4302.798433 | E23: -31771.34641 | F23: =-SUMPRODUCT((WNARRev[Flow Month]=$B23)*(WNARRev[Period]=$C$6)*WNARRev[N6063-GCSF-CSWNA]) -> -3678.842334 | G23: =-SUMPRODUCT((WNARRev[Flow Month]=$B23)*(WNARRev[Period]=$C$6)*WNARRev[W61-GCSF-CSWNA]) -> -671.0993524 | H23: -4349.941686 | I23: =-SUMPRODUCT((WNARRev[Flow Month]=$B23)*(WNARRev[Period]=$C$6)*WNARRev[S62-GRF-CSWNA]) -> -26414.27708 | J23: =-SUMPRODUCT((WNARRev[Flow Month]=$B23)*(WNARRev[Period]=$C$6)*WNARRev[S62-GCSF-CSWNA]) -> -2170.530419 | K23: From WNAR Rev Table
B24: 2022-11-01 | C24: =-SUMPRODUCT((WNARRev[Flow Month]=$B24)*(WNARRev[Period]=$C$6)*WNARRev[N6063-GRF-CSWNA]) -> -66672.444 | D24: =-SUMPRODUCT((WNARRev[Flow Month]=$B24)*(WNARRev[Period]=$C$6)*WNARRev[W61-GRF-CSWNA]) -> -13261.80085 | E24: -79934.24485 | F24: =-SUMPRODUCT((WNARRev[Flow Month]=$B24)*(WNARRev[Period]=$C$6)*WNARRev[N6063-GCSF-CSWNA]) -> -9850.90685 | G24: =-SUMPRODUCT((WNARRev[Flow Month]=$B24)*(WNARRev[Period]=$C$6)*WNARRev[W61-GCSF-CSWNA]) -> -2174.821784 | H24: -12025.72863 | I24: =-SUMPRODUCT((WNARRev[Flow Month]=$B24)*(WNARRev[Period]=$C$6)*WNARRev[S62-GRF-CSWNA]) -> -69862.94707 | J24: =-SUMPRODUCT((WNARRev[Flow Month]=$B24)*(WNARRev[Period]=$C$6)*WNARRev[S62-GCSF-CSWNA]) -> -6188.065621 | K24: From WNAR Rev Table
B25: 2022-12-01 | C25: =-SUMPRODUCT((WNARRev[Flow Month]=$B25)*(WNARRev[Period]=$C$6)*WNARRev[N6063-GRF-CSWNA]) -> -102641.1545 | D25: =-SUMPRODUCT((WNARRev[Flow Month]=$B25)*(WNARRev[Period]=$C$6)*WNARRev[W61-GRF-CSWNA]) -> -18810.25855 | E25: -121451.413 | F25: =-SUMPRODUCT((WNARRev[Flow Month]=$B25)*(WNARRev[Period]=$C$6)*WNARRev[N6063-GCSF-CSWNA]) -> -16134.83633 | G25: =-SUMPRODUCT((WNARRev[Flow Month]=$B25)*(WNARRev[Period]=$C$6)*WNARRev[W61-GCSF-CSWNA]) -> -3362.983941 | H25: -19497.82027 | I25: =-SUMPRODUCT((WNARRev[Flow Month]=$B25)*(WNARRev[Period]=$C$6)*WNARRev[S62-GRF-CSWNA]) -> -118286.7145 | J25: =-SUMPRODUCT((WNARRev[Flow Month]=$B25)*(WNARRev[Period]=$C$6)*WNARRev[S62-GCSF-CSWNA]) -> -11642.16226 | K25: From WNAR Rev Table
B26: Total Actual Revenues | C26: =SUM(C17:C25) -> -304198.7497 | D26: =SUM(D17:D25) -> -56032.91767 | E26: -360231.6674 | F26: -46421.64434 | G26: -9599.094923 | H26: -56020.73927 | I26: -329866.7461 | J26: -31016.55216
B27: Projected Revenues
B28: =EDATE(B25,1) -> 2023-01-01 | C28: =-SUMPRODUCT((CustEstRev[MonthFlow]=$B28)*(CustEstRev[Region]=$C$12)*(CustEstRev[CustClass]=C$11)*(CustEstRev[Period]=$C$6)*CustEstRev[CSNWARev]) -> -144189 | D28: =-SUMPRODUCT((CustEstRev[MonthFlow]=$B28)*(CustEstRev[Region]=D$12)*(CustEstRev[CustClass]=C$11)*(CustEstRev[Period]=$C$6)*CustEstRev[CSNWARev]) -> -27936 | E28: -172125 | F28: =-SUMPRODUCT((CustEstRev[MonthFlow]=$B28)*(CustEstRev[Region]=F$12)*(CustEstRev[CustClass]=F$11)*(CustEstRev[Period]=$C$6)*CustEstRev[CSNWARev]) -> -23545 | G28: =-SUMPRODUCT((CustEstRev[MonthFlow]=$B28)*(CustEstRev[Region]=G$12)*(CustEstRev[CustClass]=F$11)*(CustEstRev[Period]=$C$6)*CustEstRev[CSNWARev]) -> -4860 | H28: -28405 | I28: =-SUMPRODUCT((CustEstRev[MonthFlow]=$B28)*(CustEstRev[Region]=I$12)*(CustEstRev[CustClass]=I$11)*(CustEstRev[Period]=$C$6)*CustEstRev[CSNWARev]) -> -163035 | J28: =-SUMPRODUCT((CustEstRev[MonthFlow]=$B28)*(CustEstRev[Region]=J$12)*(CustEstRev[CustClass]=J$11)*(CustEstRev[Period]=$C$6)*CustEstRev[CSNWARev]) -> -16628 | K28: From CustEstRev Table
B29: 2023-02-01 | C29: =-SUMPRODUCT((CustEstRev[MonthFlow]=$B29)*(CustEstRev[Region]=$C$12)*(CustEstRev[CustClass]=C$11)*(CustEstRev[Period]=$C$6)*CustEstRev[CSNWARev]) -> -122359 | D29: =-SUMPRODUCT((CustEstRev[MonthFlow]=$B29)*(CustEstRev[Region]=D$12)*(CustEstRev[CustClass]=C$11)*(CustEstRev[Period]=$C$6)*CustEstRev[CSNWARev]) -> -23533 | E29: =C29+D29 -> -145892 | F29: =-SUMPRODUCT((CustEstRev[MonthFlow]=$B29)*(CustEstRev[Region]=F$12)*(CustEstRev[CustClass]=F$11)*(CustEstRev[Period]=$C$6)*CustEstRev[CSNWARev]) -> -19373 | G29: =-SUMPRODUCT((CustEstRev[MonthFlow]=$B29)*(CustEstRev[Region]=G$12)*(CustEstRev[CustClass]=F$11)*(CustEstRev[Period]=$C$6)*CustEstRev[CSNWARev]) -> -4216 | H29: =F29+G29 -> -23589 | I29: =-SUMPRODUCT((CustEstRev[MonthFlow]=$B29)*(CustEstRev[Region]=I$12)*(CustEstRev[CustClass]=I$11)*(CustEstRev[Period]=$C$6)*CustEstRev[CSNWARev]) -> -136837 | J29: =-SUMPRODUCT((CustEstRev[MonthFlow]=$B29)*(CustEstRev[Region]=J$12)*(CustEstRev[CustClass]=J$11)*(CustEstRev[Period]=$C$6)*CustEstRev[CSNWARev]) -> -13454 | K29: From CustEstRev Table
B30: 2023-03-01 | C30: =-SUMPRODUCT((CustEstRev[MonthFlow]=$B30)*(CustEstRev[Region]=$C$12)*(CustEstRev[CustClass]=C$11)*(CustEstRev[Period]=$C$6)*CustEstRev[CSNWARev]) -> -92112 | D30: =-SUMPRODUCT((CustEstRev[MonthFlow]=$B30)*(CustEstRev[Region]=D$12)*(CustEstRev[CustClass]=C$11)*(CustEstRev[Period]=$C$6)*CustEstRev[CSNWARev]) -> -18638 | E30: -110750 | F30: =-SUMPRODUCT((CustEstRev[MonthFlow]=$B30)*(CustEstRev[Region]=F$12)*(CustEstRev[CustClass]=F$11)*(CustEstRev[Period]=$C$6)*CustEstRev[CSNWARev]) -> -14235 | G30: =-SUMPRODUCT((CustEstRev[MonthFlow]=$B30)*(CustEstRev[Region]=G$12)*(CustEstRev[CustClass]=F$11)*(CustEstRev[Period]=$C$6)*CustEstRev[CSNWARev]) -> -3192 | H30: -17427 | I30: =-SUMPRODUCT((CustEstRev[MonthFlow]=$B30)*(CustEstRev[Region]=I$12)*(CustEstRev[CustClass]=I$11)*(CustEstRev[Period]=$C$6)*CustEstRev[CSNWARev]) -> -107590 | J30: =-SUMPRODUCT((CustEstRev[MonthFlow]=$B30)*(CustEstRev[Region]=J$12)*(CustEstRev[CustClass]=J$11)*(CustEstRev[Period]=$C$6)*CustEstRev[CSNWARev]) -> -10030 | K30: From CustEstRev Table
B31: Total Projected Revenues | C31: =SUM(C28:C30) -> -358660 | D31: =SUM(D28:D30) -> -70107 | E31: -428767 | F31: -57153 | G31: -12268 | H31: -69421 | I31: -407462 | J31: -40112
B32: Total Billings | C32: =C26+C31 -> -662858.7497 | D32: -126139.9177 | E32: -788998.6674 | F32: -103574.6443 | G32: -21867.09492 | H32: -125441.7393 | I32: -737328.7461 | J32: -71128.55216
B33: CSWNA Net (Over)/Under Recov 1/ | C33: =ROUND(C15+C32,2) -> -296417.92 | D33: -50997.75 | E33: -347415.67 | F33: -70617.05 | G33: -14554.52 | H33: -85171.58 | I33: -443889.39 | J33: -30115.86
B35: Reconciliation Summary | C35: SRR
B36: Customer Class | C36: Res | F36: SGS | I36: Res | J36: SGS | K36: Notes
B37: Region | C37: NEMO | D37: WEMO | E37: Combined | F37: NEMO | G37: WEMO | H37: Combined | I37: SEMO | J37: SEMO
B38: Reconciling Period Adj. | C38: =SUMPRODUCT((ReconPerAdj[EffDate]=$C$7)*(ReconPerAdj[Region]=C$37)*(ReconPerAdj[CustClass]=C$36)*(ReconPerAdj[RateName]=$C$35)*ReconPerAdj[ReconcilingPeriodAdj]) -> 17504.1 | D38: =SUMPRODUCT((ReconPerAdj[EffDate]=$C$7)*(ReconPerAdj[Region]=D$37)*(ReconPerAdj[CustClass]=C$36)*(ReconPerAdj[RateName]=$C$35)*ReconPerAdj[ReconcilingPeriodAdj]) -> 9215.69 | E38: =C38+D38 -> 26719.79 | F38: =SUMPRODUCT((ReconPerAdj[EffDate]=$C$7)*(ReconPerAdj[Region]=F$37)*(ReconPerAdj[CustClass]=F$36)*(ReconPerAdj[RateName]=$C$35)*ReconPerAdj[ReconcilingPeriodAdj]) -> 337.89 | G38: =SUMPRODUCT((ReconPerAdj[EffDate]=$C$7)*(ReconPerAdj[Region]=G$37)*(ReconPerAdj[CustClass]=F$36)*(ReconPerAdj[RateName]=$C$35)*ReconPerAdj[ReconcilingPeriodAdj]) -> 88.48 | H38: =F38+G38 -> 426.37 | I38: =SUMPRODUCT((ReconPerAdj[EffDate]=$C$7)*(ReconPerAdj[Region]=I$37)*(ReconPerAdj[CustClass]=I$36)*(ReconPerAdj[RateName]=$C$35)*ReconPerAdj[ReconcilingPeriodAdj]) -> 824.68 | J38: =SUMPRODUCT((ReconPerAdj[EffDate]=$C$7)*(ReconPerAdj[Region]=J$37)*(ReconPerAdj[CustClass]=J$36)*(ReconPerAdj[RateName]=$C$35)*ReconPerAdj[ReconcilingPeriodAdj]) -> 1591.17 | K38: From ReconPerAdj Table
B39: Volumetric True-Up | C39: =SUMPRODUCT((VolTrueUp[Year]=$C$5)*(VolTrueUp[Period]=$C$6)*(VolTrueUp[Region]=C37)*(VolTrueUp[CustClass]=C36)*VolTrueUp[TrueUp]) -> 3577.98 | D39: =SUMPRODUCT((VolTrueUp[Year]=$C$5)*(VolTrueUp[Period]=$C$6)*(VolTrueUp[Region]=D37)*(VolTrueUp[CustClass]=C36)*VolTrueUp[TrueUp]) -> 358.07 | E39: =C39+D39 -> 3936.05 | F39: =SUMPRODUCT((VolTrueUp[Year]=$C$5)*(VolTrueUp[Period]=$C$6)*(VolTrueUp[Region]=F37)*(VolTrueUp[CustClass]=F36)*VolTrueUp[TrueUp]) -> 200.09 | G39: =SUMPRODUCT((VolTrueUp[Year]=$C$5)*(VolTrueUp[Period]=$C$6)*(VolTrueUp[Region]=G37)*(VolTrueUp[CustClass]=F36)*VolTrueUp[TrueUp]) -> 93.27 | H39: =F39+G39 -> 293.36 | I39: =SUMPRODUCT((VolTrueUp[Year]=$C$5)*(VolTrueUp[Period]=$C$6)*(VolTrueUp[Region]=I37)*(VolTrueUp[CustClass]=I36)*VolTrueUp[TrueUp]) -> -216.26 | J39: =SUMPRODUCT((VolTrueUp[Year]=$C$5)*(VolTrueUp[Period]=$C$6)*(VolTrueUp[Region]=J37)*(VolTrueUp[CustClass]=J36)*VolTrueUp[TrueUp]) -> -312.86 | K39: From VolTrueUp Table
B40: Adj. Amount to be Recovered | C40: =C38+C39 -> 21082.08 | D40: =D38+D39 -> 9573.76 | E40: 30655.84 | F40: 537.98 | G40: 181.75 | H40: 719.73 | I40: 608.42 | J40: 1278.31
B41: Actual Revenues
B42: =C7 -> 2022-04-01 | C42: =-ROUND(SUMPRODUCT((WNARRev[Flow Month]=$B42)*(WNARRev[Period]=$C$6)*WNARRev[N6063-GRF-SRR]),2) -> -2372.4 | D42: =-ROUND(SUMPRODUCT((WNARRev[Flow Month]=$B42)*(WNARRev[Period]=$C$6)*WNARRev[W61-GRF-SRR]),2) -> -359.09 | E42: =C42+D42 -> -2731.49 | F42: =-ROUND(SUMPRODUCT((WNARRev[Flow Month]=$B42)*(WNARRev[Period]=$C$6)*WNARRev[N6063-GCSF-SRR]),2) -> 69.95 | G42: =-ROUND(SUMPRODUCT((WNARRev[Flow Month]=$B42)*(WNARRev[Period]=$C$6)*WNARRev[W61-GCSF-SRR]),2) -> 14.06 | H42: =F42+G42 -> 84.01 | I42: =-ROUND(SUMPRODUCT((WNARRev[Flow Month]=$B42)*(WNARRev[Period]=$C$6)*WNARRev[S62-GRF-SRR]),2) -> -992.57 | J42: =-ROUND(SUMPRODUCT((WNARRev[Flow Month]=$B42)*(WNARRev[Period]=$C$6)*WNARRev[S62-GCSF-SRR]),2) -> 972.99 | K42: From WNAR Rev Table
B43: =EDATE(B42,1) -> 2022-05-01 | C43: =-ROUND(SUMPRODUCT((WNARRev[Flow Month]=$B43)*(WNARRev[Period]=$C$6)*WNARRev[N6063-GRF-SRR]),2) -> -851.95 | D43: =-ROUND(SUMPRODUCT((WNARRev[Flow Month]=$B43)*(WNARRev[Period]=$C$6)*WNARRev[W61-GRF-SRR]),2) -> -187.79 | E43: =C43+D43 -> -1039.74 | F43: =-ROUND(SUMPRODUCT((WNARRev[Flow Month]=$B43)*(WNARRev[Period]=$C$6)*WNARRev[N6063-GCSF-SRR]),2) -> 21.01 | G43: =-ROUND(SUMPRODUCT((WNARRev[Flow Month]=$B43)*(WNARRev[Period]=$C$6)*WNARRev[W61-GCSF-SRR]),2) -> 4.68 | H43: =F43+G43 -> 25.69 | I43: =-ROUND(SUMPRODUCT((WNARRev[Flow Month]=$B43)*(WNARRev[Period]=$C$6)*WNARRev[S62-GRF-SRR]),2) -> -352.04 | J43: =-ROUND(SUMPRODUCT((WNARRev[Flow Month]=$B43)*(WNARRev[Period]=$C$6)*WNARRev[S62-GCSF-SRR]),2) -> 354.7 | K43: From WNAR Rev Table
B44: =EDATE(B43,1) -> 2022-06-01 | C44: =-ROUND(SUMPRODUCT((WNARRev[Flow Month]=$B44)*(WNARRev[Period]=$C$6)*WNARRev[N6063-GRF-SRR]),2) -> -433.67 | D44: =-ROUND(SUMPRODUCT((WNARRev[Flow Month]=$B44)*(WNARRev[Period]=$C$6)*WNARRev[W61-GRF-SRR]),2) -> -87.64 | E44: -521.31 | F44: =-ROUND(SUMPRODUCT((WNARRev[Flow Month]=$B44)*(WNARRev[Period]=$C$6)*WNARRev[N6063-GCSF-SRR]),2) -> 12.83 | G44: =-ROUND(SUMPRODUCT((WNARRev[Flow Month]=$B44)*(WNARRev[Period]=$C$6)*WNARRev[W61-GCSF-SRR]),2) -> 4.59 | H44: 17.42 | I44: =-ROUND(SUMPRODUCT((WNARRev[Flow Month]=$B44)*(WNARRev[Period]=$C$6)*WNARRev[S62-GRF-SRR]),2) -> -301.29 | J44: =-ROUND(SUMPRODUCT((WNARRev[Flow Month]=$B44)*(WNARRev[Period]=$C$6)*WNARRev[S62-GCSF-SRR]),2) -> 339.47 | K44: From WNAR Rev Table
B45: 2022-07-01 | C45: =-ROUND(SUMPRODUCT((WNARRev[Flow Month]=$B45)*(WNARRev[Period]=$C$6)*WNARRev[N6063-GRF-SRR]),2) -> -338.24 | D45: =-ROUND(SUMPRODUCT((WNARRev[Flow Month]=$B45)*(WNARRev[Period]=$C$6)*WNARRev[W61-GRF-SRR]),2) -> -72.53 | E45: -410.77 | F45: =-ROUND(SUMPRODUCT((WNARRev[Flow Month]=$B45)*(WNARRev[Period]=$C$6)*WNARRev[N6063-GCSF-SRR]),2) -> 10.48 | G45: =-ROUND(SUMPRODUCT((WNARRev[Flow Month]=$B45)*(WNARRev[Period]=$C$6)*WNARRev[W61-GCSF-SRR]),2) -> 0.47 | H45: 10.95 | I45: =-ROUND(SUMPRODUCT((WNARRev[Flow Month]=$B45)*(WNARRev[Period]=$C$6)*WNARRev[S62-GRF-SRR]),2) -> -223.35 | J45: =-ROUND(SUMPRODUCT((WNARRev[Flow Month]=$B45)*(WNARRev[Period]=$C$6)*WNARRev[S62-GCSF-SRR]),2) -> 273.73 | K45: From WNAR Rev Table
B46: 2022-08-01 | C46: =-ROUND(SUMPRODUCT((WNARRev[Flow Month]=$B46)*(WNARRev[Period]=$C$6)*WNARRev[N6063-GRF-SRR]),2) -> -338.96 | D46: =-ROUND(SUMPRODUCT((WNARRev[Flow Month]=$B46)*(WNARRev[Period]=$C$6)*WNARRev[W61-GRF-SRR]),2) -> -71.56 | E46: -410.52 | F46: =-ROUND(SUMPRODUCT((WNARRev[Flow Month]=$B46)*(WNARRev[Period]=$C$6)*WNARRev[N6063-GCSF-SRR]),2) -> 10.88 | G46: =-ROUND(SUMPRODUCT((WNARRev[Flow Month]=$B46)*(WNARRev[Period]=$C$6)*WNARRev[W61-GCSF-SRR]),2) -> 2.26 | H46: 13.14 | I46: =-ROUND(SUMPRODUCT((WNARRev[Flow Month]=$B46)*(WNARRev[Period]=$C$6)*WNARRev[S62-GRF-SRR]),2) -> -239.12 | J46: =-ROUND(SUMPRODUCT((WNARRev[Flow Month]=$B46)*(WNARRev[Period]=$C$6)*WNARRev[S62-GCSF-SRR]),2) -> 280.66 | K46: From WNAR Rev Table
B47: 2022-09-01 | C47: =-ROUND(SUMPRODUCT((WNARRev[Flow Month]=$B47)*(WNARRev[Period]=$C$6)*WNARRev[N6063-GRF-SRR]),2) -> -422.83 | D47: =-ROUND(SUMPRODUCT((WNARRev[Flow Month]=$B47)*(WNARRev[Period]=$C$6)*WNARRev[W61-GRF-SRR]),2) -> -70.94 | E47: -493.77 | F47: =-ROUND(SUMPRODUCT((WNARRev[Flow Month]=$B47)*(WNARRev[Period]=$C$6)*WNARRev[N6063-GCSF-SRR]),2) -> 12.43 | G47: =-ROUND(SUMPRODUCT((WNARRev[Flow Month]=$B47)*(WNARRev[Period]=$C$6)*WNARRev[W61-GCSF-SRR]),2) -> 2.28 | H47: 14.71 | I47: =-ROUND(SUMPRODUCT((WNARRev[Flow Month]=$B47)*(WNARRev[Period]=$C$6)*WNARRev[S62-GRF-SRR]),2) -> -233.38 | J47: =-ROUND(SUMPRODUCT((WNARRev[Flow Month]=$B47)*(WNARRev[Period]=$C$6)*WNARRev[S62-GCSF-SRR]),2) -> 274.04 | K47: From WNAR Rev Table
B48: 2022-10-01 | C48: =-ROUND(SUMPRODUCT((WNARRev[Flow Month]=$B48)*(WNARRev[Period]=$C$6)*WNARRev[N6063-GRF-SRR]),2) -> -1332.68 | D48: =-ROUND(SUMPRODUCT((WNARRev[Flow Month]=$B48)*(WNARRev[Period]=$C$6)*WNARRev[W61-GRF-SRR]),2) -> -208.76 | E48: -1541.44 | F48: =-ROUND(SUMPRODUCT((WNARRev[Flow Month]=$B48)*(WNARRev[Period]=$C$6)*WNARRev[N6063-GCSF-SRR]),2) -> 29.1 | G48: =-ROUND(SUMPRODUCT((WNARRev[Flow Month]=$B48)*(WNARRev[Period]=$C$6)*WNARRev[W61-GCSF-SRR]),2) -> 5.31 | H48: 34.41 | I48: =-ROUND(SUMPRODUCT((WNARRev[Flow Month]=$B48)*(WNARRev[Period]=$C$6)*WNARRev[S62-GRF-SRR]),2) -> -551.34 | J48: =-ROUND(SUMPRODUCT((WNARRev[Flow Month]=$B48)*(WNARRev[Period]=$C$6)*WNARRev[S62-GCSF-SRR]),2) -> 497.5 | K48: From WNAR Rev Table
B49: 2022-11-01 | C49: =-ROUND(SUMPRODUCT((WNARRev[Flow Month]=$B49)*(WNARRev[Period]=$C$6)*WNARRev[N6063-GRF-SRR]),2) -> -3234.72 | D49: =-ROUND(SUMPRODUCT((WNARRev[Flow Month]=$B49)*(WNARRev[Period]=$C$6)*WNARRev[W61-GRF-SRR]),2) -> -643.42 | E49: -3878.14 | F49: =-ROUND(SUMPRODUCT((WNARRev[Flow Month]=$B49)*(WNARRev[Period]=$C$6)*WNARRev[N6063-GCSF-SRR]),2) -> 77.93 | G49: =-ROUND(SUMPRODUCT((WNARRev[Flow Month]=$B49)*(WNARRev[Period]=$C$6)*WNARRev[W61-GCSF-SRR]),2) -> 17.2 | H49: 95.13 | I49: =-ROUND(SUMPRODUCT((WNARRev[Flow Month]=$B49)*(WNARRev[Period]=$C$6)*WNARRev[S62-GRF-SRR]),2) -> -1458.24 | J49: =-ROUND(SUMPRODUCT((WNARRev[Flow Month]=$B49)*(WNARRev[Period]=$C$6)*WNARRev[S62-GCSF-SRR]),2) -> 1418.34 | K49: From WNAR Rev Table
B50: 2022-12-01 | C50: =-ROUND(SUMPRODUCT((WNARRev[Flow Month]=$B50)*(WNARRev[Period]=$C$6)*WNARRev[N6063-GRF-SRR]),2) -> -4979.8 | D50: =-ROUND(SUMPRODUCT((WNARRev[Flow Month]=$B50)*(WNARRev[Period]=$C$6)*WNARRev[W61-GRF-SRR]),2) -> -912.61 | E50: -5892.41 | F50: =-ROUND(SUMPRODUCT((WNARRev[Flow Month]=$B50)*(WNARRev[Period]=$C$6)*WNARRev[N6063-GCSF-SRR]),2) -> 127.64 | G50: =-ROUND(SUMPRODUCT((WNARRev[Flow Month]=$B50)*(WNARRev[Period]=$C$6)*WNARRev[W61-GCSF-SRR]),2) -> 26.6 | H50: 154.24 | I50: =-ROUND(SUMPRODUCT((WNARRev[Flow Month]=$B50)*(WNARRev[Period]=$C$6)*WNARRev[S62-GRF-SRR]),2) -> -2468.98 | J50: =-ROUND(SUMPRODUCT((WNARRev[Flow Month]=$B50)*(WNARRev[Period]=$C$6)*WNARRev[S62-GCSF-SRR]),2) -> 2668.44 | K50: From WNAR Rev Table
B51: Total Actual Revenues | C51: =SUM(C42:C50) -> -14305.25 | D51: =SUM(D42:D50) -> -2614.34 | E51: -16919.59 | F51: 372.25 | G51: 77.45 | H51: 449.7 | I51: -6820.31 | J51: 7079.87
B52: Projected Revenues
B53: =EDATE(B50,1) -> 2023-01-01 | C53: =-ROUND(SUMPRODUCT((CustEstRev[MonthFlow]=$B53)*(CustEstRev[Region]=C$37)*(CustEstRev[CustClass]=C$36)*(CustEstRev[Period]=$C$6)*CustEstRev[SRRRev]),2) -> -6996 | D53: =-ROUND(SUMPRODUCT((CustEstRev[MonthFlow]=$B53)*(CustEstRev[Region]=D$37)*(CustEstRev[CustClass]=C$36)*(CustEstRev[Period]=$C$6)*CustEstRev[SRRRev]),2) -> -1355 | E53: =C53+D53 -> -8351 | F53: =-ROUND(SUMPRODUCT((CustEstRev[MonthFlow]=$B53)*(CustEstRev[Region]=$F$37)*(CustEstRev[CustClass]=F$36)*(CustEstRev[Period]=$C$6)*CustEstRev[SRRRev]),2) -> 186 | G53: =-ROUND(SUMPRODUCT((CustEstRev[MonthFlow]=$B53)*(CustEstRev[Region]=$G$37)*(CustEstRev[CustClass]=F$36)*(CustEstRev[Period]=$C$6)*CustEstRev[SRRRev]),2) -> 38 | H53: =F53+G53 -> 224 | I53: =-ROUND(SUMPRODUCT((CustEstRev[MonthFlow]=$B53)*(CustEstRev[Region]=I$37)*(CustEstRev[CustClass]=I$36)*(CustEstRev[Period]=$C$6)*CustEstRev[SRRRev]),2) -> -3403 | J53: =-ROUND(SUMPRODUCT((CustEstRev[MonthFlow]=$B53)*(CustEstRev[Region]=J$37)*(CustEstRev[CustClass]=J$36)*(CustEstRev[Period]=$C$6)*CustEstRev[SRRRev]),2) -> 3811 | K53: From CustEstRev Table
B54: =EDATE(B53,1) -> 2023-02-01 | C54: =-ROUND(SUMPRODUCT((CustEstRev[MonthFlow]=$B54)*(CustEstRev[Region]=C$37)*(CustEstRev[CustClass]=C$36)*(CustEstRev[Period]=$C$6)*CustEstRev[SRRRev]),2) -> -5936 | D54: =-ROUND(SUMPRODUCT((CustEstRev[MonthFlow]=$B54)*(CustEstRev[Region]=D$37)*(CustEstRev[CustClass]=C$36)*(CustEstRev[Period]=$C$6)*CustEstRev[SRRRev]),2) -> -1142 | E54: =C54+D54 -> -7078 | F54: =-ROUND(SUMPRODUCT((CustEstRev[MonthFlow]=$B54)*(CustEstRev[Region]=$F$37)*(CustEstRev[CustClass]=F$36)*(CustEstRev[Period]=$C$6)*CustEstRev[SRRRev]),2) -> 153 | G54: =-ROUND(SUMPRODUCT((CustEstRev[MonthFlow]=$B54)*(CustEstRev[Region]=$G$37)*(CustEstRev[CustClass]=F$36)*(CustEstRev[Period]=$C$6)*CustEstRev[SRRRev]),2) -> 33 | H54: =F54+G54 -> 186 | I54: =-ROUND(SUMPRODUCT((CustEstRev[MonthFlow]=$B54)*(CustEstRev[Region]=I$37)*(CustEstRev[CustClass]=I$36)*(CustEstRev[Period]=$C$6)*CustEstRev[SRRRev]),2) -> -2856 | J54: =-ROUND(SUMPRODUCT((CustEstRev[MonthFlow]=$B54)*(CustEstRev[Region]=J$37)*(CustEstRev[CustClass]=J$36)*(CustEstRev[Period]=$C$6)*CustEstRev[SRRRev]),2) -> 3084 | K54: From CustEstRev Table
B55: 2023-03-01 | C55: =-ROUND(SUMPRODUCT((CustEstRev[MonthFlow]=$B55)*(CustEstRev[Region]=C$37)*(CustEstRev[CustClass]=C$36)*(CustEstRev[Period]=$C$6)*CustEstRev[SRRRev]),2) -> -4469 | D55: =-ROUND(SUMPRODUCT((CustEstRev[MonthFlow]=$B55)*(CustEstRev[Region]=D$37)*(CustEstRev[CustClass]=C$36)*(CustEstRev[Period]=$C$6)*CustEstRev[SRRRev]),2) -> -904 | E55: -5373 | F55: =-ROUND(SUMPRODUCT((CustEstRev[MonthFlow]=$B55)*(CustEstRev[Region]=$F$37)*(CustEstRev[CustClass]=F$36)*(CustEstRev[Period]=$C$6)*CustEstRev[SRRRev]),2) -> 113 | G55: =-ROUND(SUMPRODUCT((CustEstRev[MonthFlow]=$B55)*(CustEstRev[Region]=$G$37)*(CustEstRev[CustClass]=F$36)*(CustEstRev[Period]=$C$6)*CustEstRev[SRRRev]),2) -> 25 | H55: 138 | I55: =-ROUND(SUMPRODUCT((CustEstRev[MonthFlow]=$B55)*(CustEstRev[Region]=I$37)*(CustEstRev[CustClass]=I$36)*(CustEstRev[Period]=$C$6)*CustEstRev[SRRRev]),2) -> -2246 | J55: =-ROUND(SUMPRODUCT((CustEstRev[MonthFlow]=$B55)*(CustEstRev[Region]=J$37)*(CustEstRev[CustClass]=J$36)*(CustEstRev[Period]=$C$6)*CustEstRev[SRRRev]),2) -> 2299 | K55: From CustEstRev Table
B56: Total Projected Revenues | C56: =SUM(C53:C55) -> -17401 | D56: =SUM(D53:D55) -> -3401 | E56: =SUM(E53:E55) -> -20802 | F56: =SUM(F53:F55) -> 452 | G56: =SUM(G53:G55) -> 96 | H56: =SUM(H53:H55) -> 548 | I56: =SUM(I53:I55) -> -8505 | J56: =SUM(J53:J55) -> 9194
B57: Total Billings | C57: =C51+C56 -> -31706.25 | D57: -6015.34 | E57: -37721.59 | F57: 824.25 | G57: 173.45 | H57: 997.7 | I57: -15325.31 | J57: 16273.87
B58: Total WNA Recovery | C58: =ROUND(C32+C57,2) -> -694565 | D58: -132155.26 | E58: -826720.26 | F58: -102750.39 | G58: -21693.64 | H58: -124444.04 | I58: -752654.06 | J58: -54854.68
B59: SRR Net (Over)/Under Recov 1/ | C59: =ROUND(C57+C40,2) -> -10624.17 | D59: =ROUND(D57+D40,2) -> 3558.42 | E59: -7065.75 | F59: 1362.23 | G59: 355.2 | H59: 1717.43 | I59: -14716.89 | J59: 17552.18
B60: CSWNA Net (Over)/Under Recov 1/ | C60: =C33 -> -296417.92 | D60: =D33 -> -50997.75 | E60: =E33 -> -347415.67 | F60: -70617.05 | G60: -14554.52 | H60: -85171.58 | I60: -443889.39 | J60: =J33 -> -30115.86
B61: Total Net O/U for SRR ReconPerAdj | C61: =C59+C60 -> -307042.09 | D61: =D59+D60 -> -47439.33 | E61: -354481.42 | F61: -69254.82 | G61: -14199.32 | H61: -83454.15 | I61: -458606.28 | J61: -12563.68
B62: Enter These Amounts in the ReconPerAdj Table
B64: Region | C64: NEMO + WEMO | E64: SEMO
B65: Customer Class | C65: Res | D65: SGS | E65: Res | F65: SGS
B66: WNA to be Recovered
B67: CSWNA | C67: =E15 -> 441583 | D67: =H15 -> 40270.16 | E67: =I15 -> 293439.36 | F67: =J15 -> 41012.69
B68: SRR | C68: =E40 -> 30655.84 | D68: =H40 -> 719.73 | E68: =I40 -> 608.42 | F68: =J40 -> 1278.31
B69: Total | C69: =SUM(C67:C68) -> 472238.84 | D69: =SUM(D67:D68) -> 40989.89 | E69: 294047.78 | F69: 42291
B70: WNA Actually Recovered
B71: CSWNA | C71: =E32 -> -788998.6674 | D71: =H32 -> -125441.7393 | E71: =I32 -> -737328.7461 | F71: =J32 -> -71128.55216
B72: SRR | C72: =E57 -> -37721.59 | D72: =H57 -> 997.7 | E72: =I57 -> -15325.31 | F72: =J57 -> 16273.87
B73: Total | C73: =SUM(C71:C72) -> -826720.2574 | D73: =SUM(D71:D72) -> -124444.0393 | E73: =SUM(E71:E72) -> -752654.0561 | F73: =SUM(F71:F72) -> -54854.68216
B74: WNA Net Difference
B75: CSWNA | C75: =C67+C71 -> -347415.6674 | D75: =D67+D71 -> -85171.57927 | E75: -443889.3861 | F75: -30115.86216
B76: SRR | C76: =C68+C72 -> -7065.75 | D76: =D68+D72 -> 1717.43 | E76: -14716.89 | F76: 17552.18
B77: Total | C77: =SUM(C75:C76) -> -354481.4174 | D77: =SUM(D75:D76) -> -83454.14927 | E77: -458606.2761 | F77: -12563.68216
B79: WNA Deferred Balance 1/ | C79: 0 | D79: 0 | E79: 0 | F79: 0
B80: SRR Adjustment 1/ | C80: =C77+C79 -> -354481.4174 | D80: =D77+D79 -> -83454.14927 | E80: -458606.2761 | F80: -12563.68216
B82: Billing Determinants | C82: =SUMPRODUCT((BillDeter[Region]=C12)*(BillDeter[CustClass]=C11)*BillDeter[BillingDeterminants])+SUMPRODUCT((BillDeter[Region]=D12)*(BillDeter[CustClass]=C11)*BillDeter[BillingDeterminants]) -> 13229661.45 | D82: =SUMPRODUCT((BillDeter[Region]=F12)*(BillDeter[CustClass]=F11)*BillDeter[BillingDeterminants])+SUMPRODUCT((BillDeter[Region]=G12)*(BillDeter[CustClass]=F11)*BillDeter[BillingDeterminants]) -> 3950233.324 | E82: =SUMPRODUCT((BillDeter[Region]=I12)*(BillDeter[CustClass]=I11)*BillDeter[BillingDeterminants]) -> 15300894.64 | F82: =SUMPRODUCT((BillDeter[Region]=J12)*(BillDeter[CustClass]=J11)*BillDeter[BillingDeterminants]) -> 3908443.556
B84: Rate | C84: =ROUND(C80/C82,5) -> -0.02679 | D84: =ROUND(D80/D82,5) -> -0.02113 | E84: =ROUND(E80/E82,5) -> -0.02997 | F84: =ROUND(F80/F82,5) -> -0.00321
B85: Enter these rates in the SRR column of the WNAR Rates table.
B87: 1/ Negative amount = Due Customer, Positive amount = Due Company

Sheet SRR SEMO
B2: Liberty Midstates | F2: Filing Period
B3: Semi-Annual Reconciliation Rate | F3: Year | G3: Period
B4: Region | C4: SEMO
B5: Year | C5: =DateSet!C2 -> 2023
B6: Period | C6: =DateSet!C3 -> S1
B7: Analysis Start | C7: =DateSet!J9 -> 2022-01-01
B9: Rate Sched | C9: 62-GRF | D9: Res
B10: Residential | C10: True-Up Period | F10: Actual Period* | O10: Projected Period
B11: Month (Flow) | C11: =C7 -> 44562 | D11: =EDATE(C11,1) -> 44593 | E11: =EDATE(D11,1) -> 44621 | F11: 44652 | G11: 44682 | H11: 44713 | I11: 44743 | J11: 44774 | K11: 44805 | L11: 44835 | M11: 44866 | N11: 44896 | O11: 44927 | P11: 44958 | Q11: 44986
B12: Est. Volume | C12: =SUMPRODUCT((CustEstVol[MonthFlow]=C$11)*(CustEstVol[RateSched]=$C$9)*CustEstVol[NormVol]) -> 3437383 | D12: =SUMPRODUCT((CustEstVol[MonthFlow]=D$11)*(CustEstVol[RateSched]=$C$9)*CustEstVol[NormVol]) -> 2885041 | E12: =SUMPRODUCT((CustEstVol[MonthFlow]=E$11)*(CustEstVol[RateSched]=$C$9)*CustEstVol[NormVol]) -> 2268398 | O12: =SUMPRODUCT((CustEstVol[MonthFlow]=O$11)*(CustEstVol[RateSched]=$C$9)*CustEstVol[NormVol]) -> 3437383 | P12: =SUMPRODUCT((CustEstVol[MonthFlow]=P$11)*(CustEstVol[RateSched]=$C$9)*CustEstVol[NormVol]) -> 2885041 | Q12: =SUMPRODUCT((CustEstVol[MonthFlow]=Q$11)*(CustEstVol[RateSched]=$C$9)*CustEstVol[NormVol]) -> 2268398
B13: Actual Volume | C13: =SUMPRODUCT((CustActVol[MonthFlow]=C$11)*(CustActVol[RateSched]=$C$9)*CustActVol[Volume]) -> 3118918.559 | D13: =SUMPRODUCT((CustActVol[MonthFlow]=D$11)*(CustActVol[RateSched]=$C$9)*CustActVol[Volume]) -> 3480269.529 | E13: =SUMPRODUCT((CustActVol[MonthFlow]=E$11)*(CustActVol[RateSched]=$C$9)*CustActVol[Volume]) -> 1974456.685 | F13: =SUMPRODUCT((CustActVol[MonthFlow]=F$11)*(CustActVol[RateSched]=$C$9)*CustActVol[Volume]) -> 1207539.75 | G13: =SUMPRODUCT((CustActVol[MonthFlow]=G$11)*(CustActVol[RateSched]=$C$9)*CustActVol[Volume]) -> 355997.6753 | H13: =SUMPRODUCT((CustActVol[MonthFlow]=H$11)*(CustActVol[RateSched]=$C$9)*CustActVol[Volume]) -> 304457.8262 | I13: =SUMPRODUCT((CustActVol[MonthFlow]=I$11)*(CustActVol[RateSched]=$C$9)*CustActVol[Volume]) -> 225819.4517 | J13: =SUMPRODUCT((CustActVol[MonthFlow]=J$11)*(CustActVol[RateSched]=$C$9)*CustActVol[Volume]) -> 241978.1335 | K13: =SUMPRODUCT((CustActVol[MonthFlow]=K$11)*(CustActVol[RateSched]=$C$9)*CustActVol[Volume]) -> 235924.6082 | L13: =SUMPRODUCT((CustActVol[MonthFlow]=L$11)*(CustActVol[RateSched]=$C$9)*CustActVol[Volume]) -> 557010.0293 | M13: =SUMPRODUCT((CustActVol[MonthFlow]=M$11)*(CustActVol[RateSched]=$C$9)*CustActVol[Volume]) -> 1472962.069 | N13: =SUMPRODUCT((CustActVol[MonthFlow]=N$11)*(CustActVol[RateSched]=$C$9)*CustActVol[Volume]) -> 2493948.966
B14: Vol True-Up | C14: =C13-C12 -> -318464.4406 | D14: =D13-D12 -> 595228.5293 | E14: -293941.3145
B15: ="WNAR "&$C$6&" Rates in Effect" -> WNAR S1 Rates in Effect
B16: CSWNA | C16: =SUMPRODUCT((WNARRates[BeginDate]<=C$11)*(WNARRates[EndDate]>=C$11)*(WNARRates[Region]=$C$4)*(WNARRates[CustClass]=$D$9)*(WNARRates[Period]=$C$6)*WNARRates[CSWNA]) -> 0.01265 | D16: =SUMPRODUCT((WNARRates[BeginDate]<=D$11)*(WNARRates[EndDate]>=D$11)*(WNARRates[Region]=$C$4)*(WNARRates[CustClass]=$D$9)*(WNARRates[Period]=$C$6)*WNARRates[CSWNA]) -> 0.01265 | E16: =SUMPRODUCT((WNARRates[BeginDate]<=E$11)*(WNARRates[EndDate]>=E$11)*(WNARRates[Region]=$C$4)*(WNARRates[CustClass]=$D$9)*(WNARRates[Period]=$C$6)*WNARRates[CSWNA]) -> 0.01265 | F16: =SUMPRODUCT((WNARRates[BeginDate]<=F$11)*(WNARRates[EndDate]>=F$11)*(WNARRates[Region]=$C$4)*(WNARRates[CustClass]=$D$9)*(WNARRates[Period]=$C$6)*WNARRates[AdjCSWNA]) -> 0.04743 | G16: =SUMPRODUCT((WNARRates[BeginDate]<=G$11)*(WNARRates[EndDate]>=G$11)*(WNARRates[Region]=$C$4)*(WNARRates[CustClass]=$D$9)*(WNARRates[Period]=$C$6)*WNARRates[AdjCSWNA]) -> 0.04743 | H16: =SUMPRODUCT((WNARRates[BeginDate]<=H$11)*(WNARRates[EndDate]>=H$11)*(WNARRates[Region]=$C$4)*(WNARRates[CustClass]=$D$9)*(WNARRates[Period]=$C$6)*WNARRates[AdjCSWNA]) -> 0.04743 | I16: =SUMPRODUCT((WNARRates[BeginDate]<=I$11)*(WNARRates[EndDate]>=I$11)*(WNARRates[Region]=$C$4)*(WNARRates[CustClass]=$D$9)*(WNARRates[Period]=$C$6)*WNARRates[AdjCSWNA]) -> 0.04743 | J16: =SUMPRODUCT((WNARRates[BeginDate]<=J$11)*(WNARRates[EndDate]>=J$11)*(WNARRates[Region]=$C$4)*(WNARRates[CustClass]=$D$9)*(WNARRates[Period]=$C$6)*WNARRates[AdjCSWNA]) -> 0.04743 | K16: =SUMPRODUCT((WNARRates[BeginDate]<=K$11)*(WNARRates[EndDate]>=K$11)*(WNARRates[Region]=$C$4)*(WNARRates[CustClass]=$D$9)*(WNARRates[Period]=$C$6)*WNARRates[AdjCSWNA]) -> 0.04743 | L16: =SUMPRODUCT((WNARRates[BeginDate]<=L$11)*(WNARRates[EndDate]>=L$11)*(WNARRates[Region]=$C$4)*(WNARRates[CustClass]=$D$9)*(WNARRates[Period]=$C$6)*WNARRates[AdjCSWNA]) -> 0.04743 | M16: =SUMPRODUCT((WNARRates[BeginDate]<=M$11)*(WNARRates[EndDate]>=M$11)*(WNARRates[Region]=$C$4)*(WNARRates[CustClass]=$D$9)*(WNARRates[Period]=$C$6)*WNARRates[AdjCSWNA]) -> 0.04743 | N16: =SUMPRODUCT((WNARRates[BeginDate]<=N$11)*(WNARRates[EndDate]>=N$11)*(WNARRates[Region]=$C$4)*(WNARRates[CustClass]=$D$9)*(WNARRates[Period]=$C$6)*WNARRates[AdjCSWNA]) -> 0.04743 | O16: =SUMPRODUCT((WNARRates[BeginDate]<=O$11)*(WNARRates[EndDate]>=O$11)*(WNARRates[Region]=$C$4)*(WNARRates[CustClass]=$D$9)*(WNARRates[Period]=$C$6)*WNARRates[AdjCSWNA]) -> 0.04743 | P16: =SUMPRODUCT((WNARRates[BeginDate]<=P$11)*(WNARRates[EndDate]>=P$11)*(WNARRates[Region]=$C$4)*(WNARRates[CustClass]=$D$9)*(WNARRates[Period]=$C$6)*WNARRates[AdjCSWNA]) -> 0.04743 | Q16: =SUMPRODUCT((WNARRates[BeginDate]<=Q$11)*(WNARRates[EndDate]>=Q$11)*(WNARRates[Region]=$C$4)*(WNARRates[CustClass]=$D$9)*(WNARRates[Period]=$C$6)*WNARRates[AdjCSWNA]) -> 0.04743
B17: SRR | C17: =SUMPRODUCT((WNARRates[BeginDate]<=C$11)*(WNARRates[EndDate]>=C$11)*(WNARRates[Region]=$C$4)*(WNARRates[CustClass]=$D$9)*(WNARRates[Period]=$C$6)*WNARRates[SRR]) -> -6e-05 | D17: =SUMPRODUCT((WNARRates[BeginDate]<=D$11)*(WNARRates[EndDate]>=D$11)*(WNARRates[Region]=$C$4)*(WNARRates[CustClass]=$D$9)*(WNARRates[Period]=$C$6)*WNARRates[SRR]) -> -6e-05 | E17: =SUMPRODUCT((WNARRates[BeginDate]<=E$11)*(WNARRates[EndDate]>=E$11)*(WNARRates[Region]=$C$4)*(WNARRates[CustClass]=$D$9)*(WNARRates[Period]=$C$6)*WNARRates[SRR]) -> -6e-05 | F17: =SUMPRODUCT((WNARRates[BeginDate]<=F$11)*(WNARRates[EndDate]>=F$11)*(WNARRates[Region]=$C$4)*(WNARRates[CustClass]=$D$9)*(WNARRates[Period]=$C$6)*WNARRates[AdjSRR]) -> 0.00099 | G17: =SUMPRODUCT((WNARRates[BeginDate]<=G$11)*(WNARRates[EndDate]>=G$11)*(WNARRates[Region]=$C$4)*(WNARRates[CustClass]=$D$9)*(WNARRates[Period]=$C$6)*WNARRates[AdjSRR]) -> 0.00099 | H17: =SUMPRODUCT((WNARRates[BeginDate]<=H$11)*(WNARRates[EndDate]>=H$11)*(WNARRates[Region]=$C$4)*(WNARRates[CustClass]=$D$9)*(WNARRates[Period]=$C$6)*WNARRates[AdjSRR]) -> 0.00099 | I17: =SUMPRODUCT((WNARRates[BeginDate]<=I$11)*(WNARRates[EndDate]>=I$11)*(WNARRates[Region]=$C$4)*(WNARRates[CustClass]=$D$9)*(WNARRates[Period]=$C$6)*WNARRates[AdjSRR]) -> 0.00099 | J17: =SUMPRODUCT((WNARRates[BeginDate]<=J$11)*(WNARRates[EndDate]>=J$11)*(WNARRates[Region]=$C$4)*(WNARRates[CustClass]=$D$9)*(WNARRates[Period]=$C$6)*WNARRates[AdjSRR]) -> 0.00099 | K17: =SUMPRODUCT((WNARRates[BeginDate]<=K$11)*(WNARRates[EndDate]>=K$11)*(WNARRates[Region]=$C$4)*(WNARRates[CustClass]=$D$9)*(WNARRates[Period]=$C$6)*WNARRates[AdjSRR]) -> 0.00099 | L17: =SUMPRODUCT((WNARRates[BeginDate]<=L$11)*(WNARRates[EndDate]>=L$11)*(WNARRates[Region]=$C$4)*(WNARRates[CustClass]=$D$9)*(WNARRates[Period]=$C$6)*WNARRates[AdjSRR]) -> 0.00099 | M17: =SUMPRODUCT((WNARRates[BeginDate]<=M$11)*(WNARRates[EndDate]>=M$11)*(WNARRates[Region]=$C$4)*(WNARRates[CustClass]=$D$9)*(WNARRates[Period]=$C$6)*WNARRates[AdjSRR]) -> 0.00099 | N17: =SUMPRODUCT((WNARRates[BeginDate]<=N$11)*(WNARRates[EndDate]>=N$11)*(WNARRates[Region]=$C$4)*(WNARRates[CustClass]=$D$9)*(WNARRates[Period]=$C$6)*WNARRates[AdjSRR]) -> 0.00099 | O17: =SUMPRODUCT((WNARRates[BeginDate]<=O$11)*(WNARRates[EndDate]>=O$11)*(WNARRates[Region]=$C$4)*(WNARRates[CustClass]=$D$9)*(WNARRates[Period]=$C$6)*WNARRates[AdjSRR]) -> 0.00099 | P17: =SUMPRODUCT((WNARRates[BeginDate]<=P$11)*(WNARRates[EndDate]>=P$11)*(WNARRates[Region]=$C$4)*(WNARRates[CustClass]=$D$9)*(WNARRates[Period]=$C$6)*WNARRates[AdjSRR]) -> 0.00099 | Q17: =SUMPRODUCT((WNARRates[BeginDate]<=Q$11)*(WNARRates[EndDate]>=Q$11)*(WNARRates[Region]=$C$4)*(WNARRates[CustClass]=$D$9)*(WNARRates[Period]=$C$6)*WNARRates[AdjSRR]) -> 0.00099
B18: Total | C18: =SUM(C16:C17) -> 0.01259 | D18: =SUM(D16:D17) -> 0.01259 | E18: 0.01259
B19: CSWNA and SRR Revenue for Period
B20: CSWNA $ | F20: =SUMPRODUCT((WNARRev[Flow Month]=F$11)*(WNARRev[Period]=$C$6)*WNARRev[S62-GRF-CSWNA]) -> 50664.74791 | G20: =SUMPRODUCT((WNARRev[Flow Month]=G$11)*(WNARRev[Period]=$C$6)*WNARRev[S62-GRF-CSWNA]) -> 16865.82212 | H20: =SUMPRODUCT((WNARRev[Flow Month]=H$11)*(WNARRev[Period]=$C$6)*WNARRev[S62-GRF-CSWNA]) -> 14434.47985 | I20: =SUMPRODUCT((WNARRev[Flow Month]=I$11)*(WNARRev[Period]=$C$6)*WNARRev[S62-GRF-CSWNA]) -> 10700.71878 | J20: =SUMPRODUCT((WNARRev[Flow Month]=J$11)*(WNARRev[Period]=$C$6)*WNARRev[S62-GRF-CSWNA]) -> 11455.82997 | K20: =SUMPRODUCT((WNARRev[Flow Month]=K$11)*(WNARRev[Period]=$C$6)*WNARRev[S62-GRF-CSWNA]) -> 11181.20882 | L20: =SUMPRODUCT((WNARRev[Flow Month]=L$11)*(WNARRev[Period]=$C$6)*WNARRev[S62-GRF-CSWNA]) -> 26414.27708 | M20: =SUMPRODUCT((WNARRev[Flow Month]=M$11)*(WNARRev[Period]=$C$6)*WNARRev[S62-GRF-CSWNA]) -> 69862.94707 | N20: =SUMPRODUCT((WNARRev[Flow Month]=N$11)*(WNARRev[Period]=$C$6)*WNARRev[S62-GRF-CSWNA]) -> 118286.7145 | O20: =ROUND(O$12*O16,0) -> 163035 | P20: =ROUND(P$12*P16,0) -> 136837 | Q20: 107590
B21: SRR $ | C21: =ROUND(C14*C18,2) -> -4009.47 | D21: =ROUND(D14*D18,2) -> 7493.93 | E21: =ROUND(E14*E18,2) -> -3700.72 | F21: =SUMPRODUCT((WNARRev[Flow Month]=F$11)*(WNARRev[Period]=$C$6)*WNARRev[S62-GRF-SRR]) -> 992.5726834 | G21: =SUMPRODUCT((WNARRev[Flow Month]=G$11)*(WNARRev[Period]=$C$6)*WNARRev[S62-GRF-SRR]) -> 352.038033 | H21: =SUMPRODUCT((WNARRev[Flow Month]=H$11)*(WNARRev[Period]=$C$6)*WNARRev[S62-GRF-SRR]) -> 301.2889532 | I21: =SUMPRODUCT((WNARRev[Flow Month]=I$11)*(WNARRev[Period]=$C$6)*WNARRev[S62-GRF-SRR]) -> 223.3546614 | J21: =SUMPRODUCT((WNARRev[Flow Month]=J$11)*(WNARRev[Period]=$C$6)*WNARRev[S62-GRF-SRR]) -> 239.1159956 | K21: =SUMPRODUCT((WNARRev[Flow Month]=K$11)*(WNARRev[Period]=$C$6)*WNARRev[S62-GRF-SRR]) -> 233.3838652 | L21: =SUMPRODUCT((WNARRev[Flow Month]=L$11)*(WNARRev[Period]=$C$6)*WNARRev[S62-GRF-SRR]) -> 551.3416469 | M21: =SUMPRODUCT((WNARRev[Flow Month]=M$11)*(WNARRev[Period]=$C$6)*WNARRev[S62-GRF-SRR]) -> 1458.239882 | N21: =SUMPRODUCT((WNARRev[Flow Month]=N$11)*(WNARRev[Period]=$C$6)*WNARRev[S62-GRF-SRR]) -> 2468.982656 | O21: =ROUND(O$12*O17,0) -> 3403 | P21: =ROUND(P$12*P17,0) -> 2856 | Q21: 2246
B22: Total True-Up | C22: =SUM(C21:E21) -> -216.26 | D22: Enter in VolTrueUp Table
B24: Rate Sched | C24: 62-GCSF | D24: SGS
B25: Small Comm. | C25: True-Up Period | F25: Actual Period* | O25: Projected Period
B26: Month (Flow) | C26: =C7 -> 44562 | D26: =EDATE(C26,1) -> 44593 | E26: =EDATE(D26,1) -> 44621 | F26: 44652 | G26: 44682 | H26: 44713 | I26: 44743 | J26: 44774 | K26: 44805 | L26: 44835 | M26: 44866 | N26: 44896 | O26: 44927 | P26: 44958 | Q26: 44986
B27: Est. Volume | C27: =SUMPRODUCT((CustEstVol[MonthFlow]=C$26)*(CustEstVol[RateSched]=$C$24)*CustEstVol[NormVol]) -> 1047912 | D27: =SUMPRODUCT((CustEstVol[MonthFlow]=D$26)*(CustEstVol[RateSched]=$C$24)*CustEstVol[NormVol]) -> 847923 | E27: =SUMPRODUCT((CustEstVol[MonthFlow]=E$26)*(CustEstVol[RateSched]=$C$24)*CustEstVol[NormVol]) -> 632053 | O27: =SUMPRODUCT((CustEstVol[MonthFlow]=O$26)*(CustEstVol[RateSched]=$C$24)*CustEstVol[NormVol]) -> 1024543 | P27: =SUMPRODUCT((CustEstVol[MonthFlow]=P$26)*(CustEstVol[RateSched]=$C$24)*CustEstVol[NormVol]) -> 828989 | Q27: =SUMPRODUCT((CustEstVol[MonthFlow]=Q$26)*(CustEstVol[RateSched]=$C$24)*CustEstVol[NormVol]) -> 617967
B28: Actual Volume | C28: =SUMPRODUCT((CustActVol[MonthFlow]=C$26)*(CustActVol[RateSched]=$C$24)*CustActVol[Volume]) -> 896429.9178 | D28: =SUMPRODUCT((CustActVol[MonthFlow]=D$26)*(CustActVol[RateSched]=$C$24)*CustActVol[Volume]) -> 1020855.345 | E28: =SUMPRODUCT((CustActVol[MonthFlow]=E$26)*(CustActVol[RateSched]=$C$24)*CustActVol[Volume]) -> 531597.7635 | F28: =SUMPRODUCT((CustActVol[MonthFlow]=F$26)*(CustActVol[RateSched]=$C$24)*CustActVol[Volume]) -> 302819.7439 | G28: =SUMPRODUCT((CustActVol[MonthFlow]=G$26)*(CustActVol[RateSched]=$C$24)*CustActVol[Volume]) -> 95458.20859 | H28: =SUMPRODUCT((CustActVol[MonthFlow]=H$26)*(CustActVol[RateSched]=$C$24)*CustActVol[Volume]) -> 91294.02093 | I28: =SUMPRODUCT((CustActVol[MonthFlow]=I$26)*(CustActVol[RateSched]=$C$24)*CustActVol[Volume]) -> 73652.57625 | J28: =SUMPRODUCT((CustActVol[MonthFlow]=J$26)*(CustActVol[RateSched]=$C$24)*CustActVol[Volume]) -> 75586.3134 | K28: =SUMPRODUCT((CustActVol[MonthFlow]=K$26)*(CustActVol[RateSched]=$C$24)*CustActVol[Volume]) -> 73722.7436 | L28: =SUMPRODUCT((CustActVol[MonthFlow]=L$26)*(CustActVol[RateSched]=$C$24)*CustActVol[Volume]) -> 133759.5402 | M28: =SUMPRODUCT((CustActVol[MonthFlow]=M$26)*(CustActVol[RateSched]=$C$24)*CustActVol[Volume]) -> 381271.3542 | N28: =SUMPRODUCT((CustActVol[MonthFlow]=N$26)*(CustActVol[RateSched]=$C$24)*CustActVol[Volume]) -> 717331.4064
B29: Vol True-Up | C29: =C28-C27 -> -151482.0822 | D29: =D28-D27 -> 172932.3448 | E29: =E28-E27 -> -100455.2365
B30: ="WNAR "&$C$6&" Rates in Effect" -> WNAR S1 Rates in Effect
B31: CSWNA | C31: =SUMPRODUCT((WNARRates[BeginDate]<=C$26)*(WNARRates[EndDate]>=C$26)*(WNARRates[Region]=$C$4)*(WNARRates[CustClass]=$D$24)*(WNARRates[Period]=$C$6)*WNARRates[CSWNA]) -> 0.00435 | D31: =SUMPRODUCT((WNARRates[BeginDate]<=D$26)*(WNARRates[EndDate]>=D$26)*(WNARRates[Region]=$C$4)*(WNARRates[CustClass]=$D$24)*(WNARRates[Period]=$C$6)*WNARRates[CSWNA]) -> 0.00435 | E31: =SUMPRODUCT((WNARRates[BeginDate]<=E$26)*(WNARRates[EndDate]>=E$26)*(WNARRates[Region]=$C$4)*(WNARRates[CustClass]=$D$24)*(WNARRates[Period]=$C$6)*WNARRates[CSWNA]) -> 0.00435 | F31: =SUMPRODUCT((WNARRates[BeginDate]<=F$26)*(WNARRates[EndDate]>=F$26)*(WNARRates[Region]=$C$4)*(WNARRates[CustClass]=$D$24)*(WNARRates[Period]=$C$6)*WNARRates[AdjCSWNA]) -> 0.01623 | G31: =SUMPRODUCT((WNARRates[BeginDate]<=G$26)*(WNARRates[EndDate]>=G$26)*(WNARRates[Region]=$C$4)*(WNARRates[CustClass]=$D$24)*(WNARRates[Period]=$C$6)*WNARRates[AdjCSWNA]) -> 0.01623 | H31: =SUMPRODUCT((WNARRates[BeginDate]<=H$26)*(WNARRates[EndDate]>=H$26)*(WNARRates[Region]=$C$4)*(WNARRates[CustClass]=$D$24)*(WNARRates[Period]=$C$6)*WNARRates[AdjCSWNA]) -> 0.01623 | I31: =SUMPRODUCT((WNARRates[BeginDate]<=I$26)*(WNARRates[EndDate]>=I$26)*(WNARRates[Region]=$C$4)*(WNARRates[CustClass]=$D$24)*(WNARRates[Period]=$C$6)*WNARRates[AdjCSWNA]) -> 0.01623 | J31: =SUMPRODUCT((WNARRates[BeginDate]<=J$26)*(WNARRates[EndDate]>=J$26)*(WNARRates[Region]=$C$4)*(WNARRates[CustClass]=$D$24)*(WNARRates[Period]=$C$6)*WNARRates[AdjCSWNA]) -> 0.01623 | K31: =SUMPRODUCT((WNARRates[BeginDate]<=K$26)*(WNARRates[EndDate]>=K$26)*(WNARRates[Region]=$C$4)*(WNARRates[CustClass]=$D$24)*(WNARRates[Period]=$C$6)*WNARRates[AdjCSWNA]) -> 0.01623 | L31: =SUMPRODUCT((WNARRates[BeginDate]<=L$26)*(WNARRates[EndDate]>=L$26)*(WNARRates[Region]=$C$4)*(WNARRates[CustClass]=$D$24)*(WNARRates[Period]=$C$6)*WNARRates[AdjCSWNA]) -> 0.01623 | M31: =SUMPRODUCT((WNARRates[BeginDate]<=M$26)*(WNARRates[EndDate]>=M$26)*(WNARRates[Region]=$C$4)*(WNARRates[CustClass]=$D$24)*(WNARRates[Period]=$C$6)*WNARRates[AdjCSWNA]) -> 0.01623 | N31: =SUMPRODUCT((WNARRates[BeginDate]<=N$26)*(WNARRates[EndDate]>=N$26)*(WNARRates[Region]=$C$4)*(WNARRates[CustClass]=$D$24)*(WNARRates[Period]=$C$6)*WNARRates[AdjCSWNA]) -> 0.01623 | O31: =SUMPRODUCT((WNARRates[BeginDate]<=O$26)*(WNARRates[EndDate]>=O$26)*(WNARRates[Region]=$C$4)*(WNARRates[CustClass]=$D$24)*(WNARRates[Period]=$C$6)*WNARRates[AdjCSWNA]) -> 0.01623 | P31: =SUMPRODUCT((WNARRates[BeginDate]<=P$26)*(WNARRates[EndDate]>=P$26)*(WNARRates[Region]=$C$4)*(WNARRates[CustClass]=$D$24)*(WNARRates[Period]=$C$6)*WNARRates[AdjCSWNA]) -> 0.01623 | Q31: =SUMPRODUCT((WNARRates[BeginDate]<=Q$26)*(WNARRates[EndDate]>=Q$26)*(WNARRates[Region]=$C$4)*(WNARRates[CustClass]=$D$24)*(WNARRates[Period]=$C$6)*WNARRates[AdjCSWNA]) -> 0.01623
B32: SRR | C32: =SUMPRODUCT((WNARRates[BeginDate]<=C$26)*(WNARRates[EndDate]>=C$26)*(WNARRates[Region]=$C$4)*(WNARRates[CustClass]=$D$24)*(WNARRates[Period]=$C$6)*WNARRates[SRR]) -> -0.00039 | D32: =SUMPRODUCT((WNARRates[BeginDate]<=D$26)*(WNARRates[EndDate]>=D$26)*(WNARRates[Region]=$C$4)*(WNARRates[CustClass]=$D$24)*(WNARRates[Period]=$C$6)*WNARRates[SRR]) -> -0.00039 | E32: =SUMPRODUCT((WNARRates[BeginDate]<=E$26)*(WNARRates[EndDate]>=E$26)*(WNARRates[Region]=$C$4)*(WNARRates[CustClass]=$D$24)*(WNARRates[Period]=$C$6)*WNARRates[SRR]) -> -0.00039 | F32: =SUMPRODUCT((WNARRates[BeginDate]<=F$26)*(WNARRates[EndDate]>=F$26)*(WNARRates[Region]=$C$4)*(WNARRates[CustClass]=$D$24)*(WNARRates[Period]=$C$6)*WNARRates[AdjSRR]) -> -0.00372 | G32: =SUMPRODUCT((WNARRates[BeginDate]<=G$26)*(WNARRates[EndDate]>=G$26)*(WNARRates[Region]=$C$4)*(WNARRates[CustClass]=$D$24)*(WNARRates[Period]=$C$6)*WNARRates[AdjSRR]) -> -0.00372 | H32: =SUMPRODUCT((WNARRates[BeginDate]<=H$26)*(WNARRates[EndDate]>=H$26)*(WNARRates[Region]=$C$4)*(WNARRates[CustClass]=$D$24)*(WNARRates[Period]=$C$6)*WNARRates[AdjSRR]) -> -0.00372 | I32: =SUMPRODUCT((WNARRates[BeginDate]<=I$26)*(WNARRates[EndDate]>=I$26)*(WNARRates[Region]=$C$4)*(WNARRates[CustClass]=$D$24)*(WNARRates[Period]=$C$6)*WNARRates[AdjSRR]) -> -0.00372 | J32: =SUMPRODUCT((WNARRates[BeginDate]<=J$26)*(WNARRates[EndDate]>=J$26)*(WNARRates[Region]=$C$4)*(WNARRates[CustClass]=$D$24)*(WNARRates[Period]=$C$6)*WNARRates[AdjSRR]) -> -0.00372 | K32: =SUMPRODUCT((WNARRates[BeginDate]<=K$26)*(WNARRates[EndDate]>=K$26)*(WNARRates[Region]=$C$4)*(WNARRates[CustClass]=$D$24)*(WNARRates[Period]=$C$6)*WNARRates[AdjSRR]) -> -0.00372 | L32: =SUMPRODUCT((WNARRates[BeginDate]<=L$26)*(WNARRates[EndDate]>=L$26)*(WNARRates[Region]=$C$4)*(WNARRates[CustClass]=$D$24)*(WNARRates[Period]=$C$6)*WNARRates[AdjSRR]) -> -0.00372 | M32: =SUMPRODUCT((WNARRates[BeginDate]<=M$26)*(WNARRates[EndDate]>=M$26)*(WNARRates[Region]=$C$4)*(WNARRates[CustClass]=$D$24)*(WNARRates[Period]=$C$6)*WNARRates[AdjSRR]) -> -0.00372 | N32: =SUMPRODUCT((WNARRates[BeginDate]<=N$26)*(WNARRates[EndDate]>=N$26)*(WNARRates[Region]=$C$4)*(WNARRates[CustClass]=$D$24)*(WNARRates[Period]=$C$6)*WNARRates[AdjSRR]) -> -0.00372 | O32: =SUMPRODUCT((WNARRates[BeginDate]<=O$26)*(WNARRates[EndDate]>=O$26)*(WNARRates[Region]=$C$4)*(WNARRates[CustClass]=$D$24)*(WNARRates[Period]=$C$6)*WNARRates[AdjSRR]) -> -0.00372 | P32: =SUMPRODUCT((WNARRates[BeginDate]<=P$26)*(WNARRates[EndDate]>=P$26)*(WNARRates[Region]=$C$4)*(WNARRates[CustClass]=$D$24)*(WNARRates[Period]=$C$6)*WNARRates[AdjSRR]) -> -0.00372 | Q32: =SUMPRODUCT((WNARRates[BeginDate]<=Q$26)*(WNARRates[EndDate]>=Q$26)*(WNARRates[Region]=$C$4)*(WNARRates[CustClass]=$D$24)*(WNARRates[Period]=$C$6)*WNARRates[AdjSRR]) -> -0.00372
B33: Total | C33: =SUM(C31:C32) -> 0.00396 | D33: =SUM(D31:D32) -> 0.00396 | E33: =SUM(E31:E32) -> 0.00396
B34: CSWNA and SRR Revenue for Period
B35: CSWNA $ | F35: =SUMPRODUCT((WNARRev[Flow Month]=F$11)*(WNARRev[Period]=$C$6)*WNARRev[S62-GCSF-CSWNA]) -> 4372.805511 | G35: =SUMPRODUCT((WNARRev[Flow Month]=G$11)*(WNARRev[Period]=$C$6)*WNARRev[S62-GCSF-CSWNA]) -> 1547.529829 | H35: =SUMPRODUCT((WNARRev[Flow Month]=H$11)*(WNARRev[Period]=$C$6)*WNARRev[S62-GCSF-CSWNA]) -> 1481.090946 | I35: =SUMPRODUCT((WNARRev[Flow Month]=I$11)*(WNARRev[Period]=$C$6)*WNARRev[S62-GCSF-CSWNA]) -> 1194.276646 | J35: =SUMPRODUCT((WNARRev[Flow Month]=J$11)*(WNARRev[Period]=$C$6)*WNARRev[S62-GCSF-CSWNA]) -> 1224.500582 | K35: =SUMPRODUCT((WNARRev[Flow Month]=K$11)*(WNARRev[Period]=$C$6)*WNARRev[S62-GCSF-CSWNA]) -> 1195.590348 | L35: =SUMPRODUCT((WNARRev[Flow Month]=L$11)*(WNARRev[Period]=$C$6)*WNARRev[S62-GCSF-CSWNA]) -> 2170.530419 | M35: =SUMPRODUCT((WNARRev[Flow Month]=M$11)*(WNARRev[Period]=$C$6)*WNARRev[S62-GCSF-CSWNA]) -> 6188.065621 | N35: =SUMPRODUCT((WNARRev[Flow Month]=N$11)*(WNARRev[Period]=$C$6)*WNARRev[S62-GCSF-CSWNA]) -> 11642.16226 | O35: =ROUND(O$27*O31,0) -> 16628 | P35: =ROUND(P$27*P31,0) -> 13454 | Q35: =ROUND(Q$27*Q31,0) -> 10030
B36: SRR $ | C36: =ROUND(C29*C33,2) -> -599.87 | D36: =ROUND(D29*D33,2) -> 684.81 | E36: =ROUND(E29*E33,2) -> -397.8 | F36: =SUMPRODUCT((WNARRev[Flow Month]=F$11)*(WNARRev[Period]=$C$6)*WNARRev[S62-GCSF-SRR]) -> -972.9899077 | G36: =SUMPRODUCT((WNARRev[Flow Month]=G$11)*(WNARRev[Period]=$C$6)*WNARRev[S62-GCSF-SRR]) -> -354.7018462 | H36: =SUMPRODUCT((WNARRev[Flow Month]=H$11)*(WNARRev[Period]=$C$6)*WNARRev[S62-GCSF-SRR]) -> -339.4737103 | I36: =SUMPRODUCT((WNARRev[Flow Month]=I$11)*(WNARRev[Period]=$C$6)*WNARRev[S62-GCSF-SRR]) -> -273.7343883 | J36: =SUMPRODUCT((WNARRev[Flow Month]=J$11)*(WNARRev[Period]=$C$6)*WNARRev[S62-GCSF-SRR]) -> -280.6618709 | K36: =SUMPRODUCT((WNARRev[Flow Month]=K$11)*(WNARRev[Period]=$C$6)*WNARRev[S62-GCSF-SRR]) -> -274.0354956 | L36: =SUMPRODUCT((WNARRev[Flow Month]=L$11)*(WNARRev[Period]=$C$6)*WNARRev[S62-GCSF-SRR]) -> -497.4968058 | M36: =SUMPRODUCT((WNARRev[Flow Month]=M$11)*(WNARRev[Period]=$C$6)*WNARRev[S62-GCSF-SRR]) -> -1418.336667 | N36: =SUMPRODUCT((WNARRev[Flow Month]=N$11)*(WNARRev[Period]=$C$6)*WNARRev[S62-GCSF-SRR]) -> -2668.443844 | O36: =ROUND(O$27*O32,0) -> -3811 | P36: =ROUND(P$27*P32,0) -> -3084 | Q36: -2299
B37: Total True-Up | C37: =SUM(C36:E36) -> -312.86 | D37: Enter in VolTrueUp Table
B39: * Actual Period revenues were calculated using actual rates, and then adjusted for actual revenues billed.
B40: (See worksheet WNAR Rev S1 or S2, table WNAR Rev S1 or S2, and supporting workbook WNAR Breakdown)

Sheet SRR WEMO
B2: Liberty Midstates | F2: Filing Period
B3: Semi-Annual Reconciliation Rate | F3: Year | G3: Period
B4: Region | C4: WEMO
B5: Year | C5: =DateSet!C2 -> 2023
B6: Period | C6: =DateSet!C3 -> S1
B7: Analysis Start | C7: =DateSet!J9 -> 2022-01-01
B9: Rate Sched | C9: 61-GRF | D9: Res
B10: Residential | C10: True-Up Period | F10: Actual Period* | O10: Projected Period
B11: Month (Flow) | C11: =C7 -> 44562 | D11: =EDATE(C11,1) -> 44593 | E11: =EDATE(D11,1) -> 44621 | F11: 44652 | G11: 44682 | H11: 44713 | I11: 44743 | J11: 44774 | K11: 44805 | L11: 44835 | M11: 44866 | N11: 44896 | O11: 44927 | P11: 44958 | Q11: 44986
B12: Est. Volume | C12: =SUMPRODUCT((CustEstVol[MonthFlow]=C$11)*(CustEstVol[RateSched]=$C$9)*CustEstVol[NormVol]) -> 487541 | D12: =SUMPRODUCT((CustEstVol[MonthFlow]=D$11)*(CustEstVol[RateSched]=$C$9)*CustEstVol[NormVol]) -> 410704 | E12: =SUMPRODUCT((CustEstVol[MonthFlow]=E$11)*(CustEstVol[RateSched]=$C$9)*CustEstVol[NormVol]) -> 325270 | O12: =SUMPRODUCT((CustEstVol[MonthFlow]=O$11)*(CustEstVol[RateSched]=$C$9)*CustEstVol[NormVol]) -> 487541 | P12: =SUMPRODUCT((CustEstVol[MonthFlow]=P$11)*(CustEstVol[RateSched]=$C$9)*CustEstVol[NormVol]) -> 410704 | Q12: =SUMPRODUCT((CustEstVol[MonthFlow]=Q$11)*(CustEstVol[RateSched]=$C$9)*CustEstVol[NormVol]) -> 325270
B13: Actual Volume | C13: =SUMPRODUCT((CustActVol[MonthFlow]=C$11)*(CustActVol[RateSched]=$C$9)*CustActVol[Volume]) -> 488242.228 | D13: =SUMPRODUCT((CustActVol[MonthFlow]=D$11)*(CustActVol[RateSched]=$C$9)*CustActVol[Volume]) -> 413352.4743 | E13: =SUMPRODUCT((CustActVol[MonthFlow]=E$11)*(CustActVol[RateSched]=$C$9)*CustActVol[Volume]) -> 357442.8264 | F13: =SUMPRODUCT((CustActVol[MonthFlow]=F$11)*(CustActVol[RateSched]=$C$9)*CustActVol[Volume]) -> 197842.6162 | G13: =SUMPRODUCT((CustActVol[MonthFlow]=G$11)*(CustActVol[RateSched]=$C$9)*CustActVol[Volume]) -> 67682.91763 | H13: =SUMPRODUCT((CustActVol[MonthFlow]=H$11)*(CustActVol[RateSched]=$C$9)*CustActVol[Volume]) -> 31632.49756 | I13: =SUMPRODUCT((CustActVol[MonthFlow]=I$11)*(CustActVol[RateSched]=$C$9)*CustActVol[Volume]) -> 26107.3002 | J13: =SUMPRODUCT((CustActVol[MonthFlow]=J$11)*(CustActVol[RateSched]=$C$9)*CustActVol[Volume]) -> 25754.8224 | K13: =SUMPRODUCT((CustActVol[MonthFlow]=K$11)*(CustActVol[RateSched]=$C$9)*CustActVol[Volume]) -> 25535.70298 | L13: =SUMPRODUCT((CustActVol[MonthFlow]=L$11)*(CustActVol[RateSched]=$C$9)*CustActVol[Volume]) -> 75206.84254 | M13: =SUMPRODUCT((CustActVol[MonthFlow]=M$11)*(CustActVol[RateSched]=$C$9)*CustActVol[Volume]) -> 231449.9195 | N13: =SUMPRODUCT((CustActVol[MonthFlow]=N$11)*(CustActVol[RateSched]=$C$9)*CustActVol[Volume]) -> 328271.0989
B14: Vol True-Up | C14: =C13-C12 -> 701.228 | D14: =D13-D12 -> 2648.47435 | E14: 32172.82643
B15: ="WNAR "&$C$6&" Rates in Effect" -> WNAR S1 Rates in Effect
B16: CSWNA | C16: =SUMPRODUCT((WNARRates[BeginDate]<=C$11)*(WNARRates[EndDate]>=C$11)*(WNARRates[Region]=$C$4)*(WNARRates[CustClass]=$D$9)*(WNARRates[Period]=$C$6)*WNARRates[CSWNA]) -> 0.01208 | D16: =SUMPRODUCT((WNARRates[BeginDate]<=D$11)*(WNARRates[EndDate]>=D$11)*(WNARRates[Region]=$C$4)*(WNARRates[CustClass]=$D$9)*(WNARRates[Period]=$C$6)*WNARRates[CSWNA]) -> 0.01208 | E16: =SUMPRODUCT((WNARRates[BeginDate]<=E$11)*(WNARRates[EndDate]>=E$11)*(WNARRates[Region]=$C$4)*(WNARRates[CustClass]=$D$9)*(WNARRates[Period]=$C$6)*WNARRates[CSWNA]) -> 0.01208 | F16: =SUMPRODUCT((WNARRates[BeginDate]<=F$11)*(WNARRates[EndDate]>=F$11)*(WNARRates[Region]=$C$4)*(WNARRates[CustClass]=$D$9)*(WNARRates[Period]=$C$6)*WNARRates[AdjCSWNA]) -> 0.0573 | G16: =SUMPRODUCT((WNARRates[BeginDate]<=G$11)*(WNARRates[EndDate]>=G$11)*(WNARRates[Region]=$C$4)*(WNARRates[CustClass]=$D$9)*(WNARRates[Period]=$C$6)*WNARRates[AdjCSWNA]) -> 0.0573 | H16: =SUMPRODUCT((WNARRates[BeginDate]<=H$11)*(WNARRates[EndDate]>=H$11)*(WNARRates[Region]=$C$4)*(WNARRates[CustClass]=$D$9)*(WNARRates[Period]=$C$6)*WNARRates[AdjCSWNA]) -> 0.0573 | I16: =SUMPRODUCT((WNARRates[BeginDate]<=I$11)*(WNARRates[EndDate]>=I$11)*(WNARRates[Region]=$C$4)*(WNARRates[CustClass]=$D$9)*(WNARRates[Period]=$C$6)*WNARRates[AdjCSWNA]) -> 0.0573 | J16: =SUMPRODUCT((WNARRates[BeginDate]<=J$11)*(WNARRates[EndDate]>=J$11)*(WNARRates[Region]=$C$4)*(WNARRates[CustClass]=$D$9)*(WNARRates[Period]=$C$6)*WNARRates[AdjCSWNA]) -> 0.0573 | K16: =SUMPRODUCT((WNARRates[BeginDate]<=K$11)*(WNARRates[EndDate]>=K$11)*(WNARRates[Region]=$C$4)*(WNARRates[CustClass]=$D$9)*(WNARRates[Period]=$C$6)*WNARRates[AdjCSWNA]) -> 0.0573 | L16: =SUMPRODUCT((WNARRates[BeginDate]<=L$11)*(WNARRates[EndDate]>=L$11)*(WNARRates[Region]=$C$4)*(WNARRates[CustClass]=$D$9)*(WNARRates[Period]=$C$6)*WNARRates[AdjCSWNA]) -> 0.0573 | M16: =SUMPRODUCT((WNARRates[BeginDate]<=M$11)*(WNARRates[EndDate]>=M$11)*(WNARRates[Region]=$C$4)*(WNARRates[CustClass]=$D$9)*(WNARRates[Period]=$C$6)*WNARRates[AdjCSWNA]) -> 0.0573 | N16: =SUMPRODUCT((WNARRates[BeginDate]<=N$11)*(WNARRates[EndDate]>=N$11)*(WNARRates[Region]=$C$4)*(WNARRates[CustClass]=$D$9)*(WNARRates[Period]=$C$6)*WNARRates[AdjCSWNA]) -> 0.0573 | O16: =SUMPRODUCT((WNARRates[BeginDate]<=O$11)*(WNARRates[EndDate]>=O$11)*(WNARRates[Region]=$C$4)*(WNARRates[CustClass]=$D$9)*(WNARRates[Period]=$C$6)*WNARRates[AdjCSWNA]) -> 0.0573 | P16: =SUMPRODUCT((WNARRates[BeginDate]<=P$11)*(WNARRates[EndDate]>=P$11)*(WNARRates[Region]=$C$4)*(WNARRates[CustClass]=$D$9)*(WNARRates[Period]=$C$6)*WNARRates[AdjCSWNA]) -> 0.0573 | Q16: =SUMPRODUCT((WNARRates[BeginDate]<=Q$11)*(WNARRates[EndDate]>=Q$11)*(WNARRates[Region]=$C$4)*(WNARRates[CustClass]=$D$9)*(WNARRates[Period]=$C$6)*WNARRates[AdjCSWNA]) -> 0.0573
B17: SRR | C17: =SUMPRODUCT((WNARRates[BeginDate]<=C$11)*(WNARRates[EndDate]>=C$11)*(WNARRates[Region]=$C$4)*(WNARRates[CustClass]=$D$9)*(WNARRates[Period]=$C$6)*WNARRates[SRR]) -> -0.002 | D17: =SUMPRODUCT((WNARRates[BeginDate]<=D$11)*(WNARRates[EndDate]>=D$11)*(WNARRates[Region]=$C$4)*(WNARRates[CustClass]=$D$9)*(WNARRates[Period]=$C$6)*WNARRates[SRR]) -> -0.002 | E17: =SUMPRODUCT((WNARRates[BeginDate]<=E$11)*(WNARRates[EndDate]>=E$11)*(WNARRates[Region]=$C$4)*(WNARRates[CustClass]=$D$9)*(WNARRates[Period]=$C$6)*WNARRates[SRR]) -> -0.002 | F17: =SUMPRODUCT((WNARRates[BeginDate]<=F$11)*(WNARRates[EndDate]>=F$11)*(WNARRates[Region]=$C$4)*(WNARRates[CustClass]=$D$9)*(WNARRates[Period]=$C$6)*WNARRates[AdjSRR]) -> 0.00278 | G17: =SUMPRODUCT((WNARRates[BeginDate]<=G$11)*(WNARRates[EndDate]>=G$11)*(WNARRates[Region]=$C$4)*(WNARRates[CustClass]=$D$9)*(WNARRates[Period]=$C$6)*WNARRates[AdjSRR]) -> 0.00278 | H17: =SUMPRODUCT((WNARRates[BeginDate]<=H$11)*(WNARRates[EndDate]>=H$11)*(WNARRates[Region]=$C$4)*(WNARRates[CustClass]=$D$9)*(WNARRates[Period]=$C$6)*WNARRates[AdjSRR]) -> 0.00278 | I17: =SUMPRODUCT((WNARRates[BeginDate]<=I$11)*(WNARRates[EndDate]>=I$11)*(WNARRates[Region]=$C$4)*(WNARRates[CustClass]=$D$9)*(WNARRates[Period]=$C$6)*WNARRates[AdjSRR]) -> 0.00278 | J17: =SUMPRODUCT((WNARRates[BeginDate]<=J$11)*(WNARRates[EndDate]>=J$11)*(WNARRates[Region]=$C$4)*(WNARRates[CustClass]=$D$9)*(WNARRates[Period]=$C$6)*WNARRates[AdjSRR]) -> 0.00278 | K17: =SUMPRODUCT((WNARRates[BeginDate]<=K$11)*(WNARRates[EndDate]>=K$11)*(WNARRates[Region]=$C$4)*(WNARRates[CustClass]=$D$9)*(WNARRates[Period]=$C$6)*WNARRates[AdjSRR]) -> 0.00278 | L17: =SUMPRODUCT((WNARRates[BeginDate]<=L$11)*(WNARRates[EndDate]>=L$11)*(WNARRates[Region]=$C$4)*(WNARRates[CustClass]=$D$9)*(WNARRates[Period]=$C$6)*WNARRates[AdjSRR]) -> 0.00278 | M17: =SUMPRODUCT((WNARRates[BeginDate]<=M$11)*(WNARRates[EndDate]>=M$11)*(WNARRates[Region]=$C$4)*(WNARRates[CustClass]=$D$9)*(WNARRates[Period]=$C$6)*WNARRates[AdjSRR]) -> 0.00278 | N17: =SUMPRODUCT((WNARRates[BeginDate]<=N$11)*(WNARRates[EndDate]>=N$11)*(WNARRates[Region]=$C$4)*(WNARRates[CustClass]=$D$9)*(WNARRates[Period]=$C$6)*WNARRates[AdjSRR]) -> 0.00278 | O17: =SUMPRODUCT((WNARRates[BeginDate]<=O$11)*(WNARRates[EndDate]>=O$11)*(WNARRates[Region]=$C$4)*(WNARRates[CustClass]=$D$9)*(WNARRates[Period]=$C$6)*WNARRates[AdjSRR]) -> 0.00278 | P17: =SUMPRODUCT((WNARRates[BeginDate]<=P$11)*(WNARRates[EndDate]>=P$11)*(WNARRates[Region]=$C$4)*(WNARRates[CustClass]=$D$9)*(WNARRates[Period]=$C$6)*WNARRates[AdjSRR]) -> 0.00278 | Q17: =SUMPRODUCT((WNARRates[BeginDate]<=Q$11)*(WNARRates[EndDate]>=Q$11)*(WNARRates[Region]=$C$4)*(WNARRates[CustClass]=$D$9)*(WNARRates[Period]=$C$6)*WNARRates[AdjSRR]) -> 0.00278
B18: Total | C18: =SUM(C16:C17) -> 0.01008 | D18: =SUM(D16:D17) -> 0.01008 | E18: 0.01008
B19: CSWNA and SRR Revenue for Period
B20: CSWNA $ | F20: =SUMPRODUCT((WNARRev[Flow Month]=F$11)*(WNARRev[Period]=$C$6)*WNARRev[W61-GRF-CSWNA]) -> 9549.039467 | G20: =SUMPRODUCT((WNARRev[Flow Month]=G$11)*(WNARRev[Period]=$C$6)*WNARRev[W61-GRF-CSWNA]) -> 3870.591242 | H20: =SUMPRODUCT((WNARRev[Flow Month]=H$11)*(WNARRev[Period]=$C$6)*WNARRev[W61-GRF-CSWNA]) -> 1806.292029 | I20: =SUMPRODUCT((WNARRev[Flow Month]=I$11)*(WNARRev[Period]=$C$6)*WNARRev[W61-GRF-CSWNA]) -> 1495.055125 | J20: =SUMPRODUCT((WNARRev[Flow Month]=J$11)*(WNARRev[Period]=$C$6)*WNARRev[W61-GRF-CSWNA]) -> 1474.937248 | K20: =SUMPRODUCT((WNARRev[Flow Month]=K$11)*(WNARRev[Period]=$C$6)*WNARRev[W61-GRF-CSWNA]) -> 1462.144728 | L20: =SUMPRODUCT((WNARRev[Flow Month]=L$11)*(WNARRev[Period]=$C$6)*WNARRev[W61-GRF-CSWNA]) -> 4302.798433 | M20: =SUMPRODUCT((WNARRev[Flow Month]=M$11)*(WNARRev[Period]=$C$6)*WNARRev[W61-GRF-CSWNA]) -> 13261.80085 | N20: =SUMPRODUCT((WNARRev[Flow Month]=N$11)*(WNARRev[Period]=$C$6)*WNARRev[W61-GRF-CSWNA]) -> 18810.25855 | O20: =ROUND(O$12*O16,0) -> 27936 | P20: =ROUND(P$12*P16,0) -> 23533 | Q20: 18638
B21: SRR $ | C21: =ROUND(C14*C18,2) -> 7.07 | D21: =ROUND(D14*D18,2) -> 26.7 | E21: =ROUND(E14*E18,2) -> 324.3 | F21: =SUMPRODUCT((WNARRev[Flow Month]=F$11)*(WNARRev[Period]=$C$6)*WNARRev[W61-GRF-SRR]) -> 359.0888416 | G21: =SUMPRODUCT((WNARRev[Flow Month]=G$11)*(WNARRev[Period]=$C$6)*WNARRev[W61-GRF-SRR]) -> 187.7878473 | H21: =SUMPRODUCT((WNARRev[Flow Month]=H$11)*(WNARRev[Period]=$C$6)*WNARRev[W61-GRF-SRR]) -> 87.63511065 | I21: =SUMPRODUCT((WNARRev[Flow Month]=I$11)*(WNARRev[Period]=$C$6)*WNARRev[W61-GRF-SRR]) -> 72.53496068 | J21: =SUMPRODUCT((WNARRev[Flow Month]=J$11)*(WNARRev[Period]=$C$6)*WNARRev[W61-GRF-SRR]) -> 71.55891013 | K21: =SUMPRODUCT((WNARRev[Flow Month]=K$11)*(WNARRev[Period]=$C$6)*WNARRev[W61-GRF-SRR]) -> 70.93826078 | L21: =SUMPRODUCT((WNARRev[Flow Month]=L$11)*(WNARRev[Period]=$C$6)*WNARRev[W61-GRF-SRR]) -> 208.7570618 | M21: =SUMPRODUCT((WNARRev[Flow Month]=M$11)*(WNARRev[Period]=$C$6)*WNARRev[W61-GRF-SRR]) -> 643.4172138 | N21: =SUMPRODUCT((WNARRev[Flow Month]=N$11)*(WNARRev[Period]=$C$6)*WNARRev[W61-GRF-SRR]) -> 912.6094028 | O21: =ROUND(O$12*O17,0) -> 1355 | P21: 1142 | Q21: 904
B22: Total True-Up | C22: =SUM(C21:E21) -> 358.07 | D22: Enter in VolTrueUp Table
B24: Rate Sched | C24: 61-GCSF | D24: SGS
B25: Small Comm. | C25: True-Up Period | F25: Actual Period* | O25: Projected Period
B26: Month (Flow) | C26: =C7 -> 44562 | D26: =EDATE(C26,1) -> 44593 | E26: =EDATE(D26,1) -> 44621 | F26: 44652 | G26: 44682 | H26: 44713 | I26: 44743 | J26: 44774 | K26: 44805 | L26: 44835 | M26: 44866 | N26: 44896 | O26: 44927 | P26: 44958 | Q26: 44986
B27: Est. Volume | C27: =SUMPRODUCT((CustEstVol[MonthFlow]=C$26)*(CustEstVol[RateSched]=$C$24)*CustEstVol[NormVol]) -> 174753 | D27: =SUMPRODUCT((CustEstVol[MonthFlow]=D$26)*(CustEstVol[RateSched]=$C$24)*CustEstVol[NormVol]) -> 151587 | E27: =SUMPRODUCT((CustEstVol[MonthFlow]=E$26)*(CustEstVol[RateSched]=$C$24)*CustEstVol[NormVol]) -> 114780 | O27: =SUMPRODUCT((CustEstVol[MonthFlow]=O$26)*(CustEstVol[RateSched]=$C$24)*CustEstVol[NormVol]) -> 174753 | P27: =SUMPRODUCT((CustEstVol[MonthFlow]=P$26)*(CustEstVol[RateSched]=$C$24)*CustEstVol[NormVol]) -> 151587 | Q27: =SUMPRODUCT((CustEstVol[MonthFlow]=Q$26)*(CustEstVol[RateSched]=$C$24)*CustEstVol[NormVol]) -> 114780
B28: Actual Volume | C28: =SUMPRODUCT((CustActVol[MonthFlow]=C$26)*(CustActVol[RateSched]=$C$24)*CustActVol[Volume]) -> 177918.4193 | D28: =SUMPRODUCT((CustActVol[MonthFlow]=D$26)*(CustActVol[RateSched]=$C$24)*CustActVol[Volume]) -> 151365.631 | E28: =SUMPRODUCT((CustActVol[MonthFlow]=E$26)*(CustActVol[RateSched]=$C$24)*CustActVol[Volume]) -> 131638.1099 | F28: =SUMPRODUCT((CustActVol[MonthFlow]=F$26)*(CustActVol[RateSched]=$C$24)*CustActVol[Volume]) -> 67979.59036 | G28: =SUMPRODUCT((CustActVol[MonthFlow]=G$26)*(CustActVol[RateSched]=$C$24)*CustActVol[Volume]) -> 21312.92696 | H28: =SUMPRODUCT((CustActVol[MonthFlow]=H$26)*(CustActVol[RateSched]=$C$24)*CustActVol[Volume]) -> 20946.0616 | I28: =SUMPRODUCT((CustActVol[MonthFlow]=I$26)*(CustActVol[RateSched]=$C$24)*CustActVol[Volume]) -> 2127.79175 | J28: =SUMPRODUCT((CustActVol[MonthFlow]=J$26)*(CustActVol[RateSched]=$C$24)*CustActVol[Volume]) -> 10255.9556 | K28: =SUMPRODUCT((CustActVol[MonthFlow]=K$26)*(CustActVol[RateSched]=$C$24)*CustActVol[Volume]) -> 10348.3446 | L28: =SUMPRODUCT((CustActVol[MonthFlow]=L$26)*(CustActVol[RateSched]=$C$24)*CustActVol[Volume]) -> 24168.33916 | M28: =SUMPRODUCT((CustActVol[MonthFlow]=M$26)*(CustActVol[RateSched]=$C$24)*CustActVol[Volume]) -> 78204.5173 | N28: =SUMPRODUCT((CustActVol[MonthFlow]=N$26)*(CustActVol[RateSched]=$C$24)*CustActVol[Volume]) -> 120925.0597
B29: Vol True-Up | C29: =C28-C27 -> 3165.4193 | D29: =D28-D27 -> -221.369 | E29: 16858.10995
B30: ="WNAR "&$C$6&" Rates in Effect" -> WNAR S1 Rates in Effect
B31: CSWNA | C31: =SUMPRODUCT((WNARRates[BeginDate]<=C$26)*(WNARRates[EndDate]>=C$26)*(WNARRates[Region]=$C$4)*(WNARRates[CustClass]=$D$24)*(WNARRates[Period]=$C$6)*WNARRates[CSWNA]) -> 0.00486 | D31: =SUMPRODUCT((WNARRates[BeginDate]<=D$26)*(WNARRates[EndDate]>=D$26)*(WNARRates[Region]=$C$4)*(WNARRates[CustClass]=$D$24)*(WNARRates[Period]=$C$6)*WNARRates[CSWNA]) -> 0.00486 | E31: =SUMPRODUCT((WNARRates[BeginDate]<=E$26)*(WNARRates[EndDate]>=E$26)*(WNARRates[Region]=$C$4)*(WNARRates[CustClass]=$D$24)*(WNARRates[Period]=$C$6)*WNARRates[CSWNA]) -> 0.00486 | F31: =SUMPRODUCT((WNARRates[BeginDate]<=F$26)*(WNARRates[EndDate]>=F$26)*(WNARRates[Region]=$C$4)*(WNARRates[CustClass]=$D$24)*(WNARRates[Period]=$C$6)*WNARRates[AdjCSWNA]) -> 0.02781 | G31: =SUMPRODUCT((WNARRates[BeginDate]<=G$26)*(WNARRates[EndDate]>=G$26)*(WNARRates[Region]=$C$4)*(WNARRates[CustClass]=$D$24)*(WNARRates[Period]=$C$6)*WNARRates[AdjCSWNA]) -> 0.02781 | H31: =SUMPRODUCT((WNARRates[BeginDate]<=H$26)*(WNARRates[EndDate]>=H$26)*(WNARRates[Region]=$C$4)*(WNARRates[CustClass]=$D$24)*(WNARRates[Period]=$C$6)*WNARRates[AdjCSWNA]) -> 0.02781 | I31: =SUMPRODUCT((WNARRates[BeginDate]<=I$26)*(WNARRates[EndDate]>=I$26)*(WNARRates[Region]=$C$4)*(WNARRates[CustClass]=$D$24)*(WNARRates[Period]=$C$6)*WNARRates[AdjCSWNA]) -> 0.02781 | J31: =SUMPRODUCT((WNARRates[BeginDate]<=J$26)*(WNARRates[EndDate]>=J$26)*(WNARRates[Region]=$C$4)*(WNARRates[CustClass]=$D$24)*(WNARRates[Period]=$C$6)*WNARRates[AdjCSWNA]) -> 0.02781 | K31: =SUMPRODUCT((WNARRates[BeginDate]<=K$26)*(WNARRates[EndDate]>=K$26)*(WNARRates[Region]=$C$4)*(WNARRates[CustClass]=$D$24)*(WNARRates[Period]=$C$6)*WNARRates[AdjCSWNA]) -> 0.02781 | L31: =SUMPRODUCT((WNARRates[BeginDate]<=L$26)*(WNARRates[EndDate]>=L$26)*(WNARRates[Region]=$C$4)*(WNARRates[CustClass]=$D$24)*(WNARRates[Period]=$C$6)*WNARRates[AdjCSWNA]) -> 0.02781 | M31: =SUMPRODUCT((WNARRates[BeginDate]<=M$26)*(WNARRates[EndDate]>=M$26)*(WNARRates[Region]=$C$4)*(WNARRates[CustClass]=$D$24)*(WNARRates[Period]=$C$6)*WNARRates[AdjCSWNA]) -> 0.02781 | N31: =SUMPRODUCT((WNARRates[BeginDate]<=N$26)*(WNARRates[EndDate]>=N$26)*(WNARRates[Region]=$C$4)*(WNARRates[CustClass]=$D$24)*(WNARRates[Period]=$C$6)*WNARRates[AdjCSWNA]) -> 0.02781 | O31: =SUMPRODUCT((WNARRates[BeginDate]<=O$26)*(WNARRates[EndDate]>=O$26)*(WNARRates[Region]=$C$4)*(WNARRates[CustClass]=$D$24)*(WNARRates[Period]=$C$6)*WNARRates[AdjCSWNA]) -> 0.02781 | P31: =SUMPRODUCT((WNARRates[BeginDate]<=P$26)*(WNARRates[EndDate]>=P$26)*(WNARRates[Region]=$C$4)*(WNARRates[CustClass]=$D$24)*(WNARRates[Period]=$C$6)*WNARRates[AdjCSWNA]) -> 0.02781 | Q31: =SUMPRODUCT((WNARRates[BeginDate]<=Q$26)*(WNARRates[EndDate]>=Q$26)*(WNARRates[Region]=$C$4)*(WNARRates[CustClass]=$D$24)*(WNARRates[Period]=$C$6)*WNARRates[AdjCSWNA]) -> 0.02781
B32: SRR | C32: =SUMPRODUCT((WNARRates[BeginDate]<=C$26)*(WNARRates[EndDate]>=C$26)*(WNARRates[Region]=$C$4)*(WNARRates[CustClass]=$D$24)*(WNARRates[Period]=$C$6)*WNARRates[SRR]) -> -0.00015 | D32: =SUMPRODUCT((WNARRates[BeginDate]<=D$26)*(WNARRates[EndDate]>=D$26)*(WNARRates[Region]=$C$4)*(WNARRates[CustClass]=$D$24)*(WNARRates[Period]=$C$6)*WNARRates[SRR]) -> -0.00015 | E32: =SUMPRODUCT((WNARRates[BeginDate]<=E$26)*(WNARRates[EndDate]>=E$26)*(WNARRates[Region]=$C$4)*(WNARRates[CustClass]=$D$24)*(WNARRates[Period]=$C$6)*WNARRates[SRR]) -> -0.00015 | F32: =SUMPRODUCT((WNARRates[BeginDate]<=F$26)*(WNARRates[EndDate]>=F$26)*(WNARRates[Region]=$C$4)*(WNARRates[CustClass]=$D$24)*(WNARRates[Period]=$C$6)*WNARRates[AdjSRR]) -> -0.00022 | G32: =SUMPRODUCT((WNARRates[BeginDate]<=G$26)*(WNARRates[EndDate]>=G$26)*(WNARRates[Region]=$C$4)*(WNARRates[CustClass]=$D$24)*(WNARRates[Period]=$C$6)*WNARRates[AdjSRR]) -> -0.00022 | H32: =SUMPRODUCT((WNARRates[BeginDate]<=H$26)*(WNARRates[EndDate]>=H$26)*(WNARRates[Region]=$C$4)*(WNARRates[CustClass]=$D$24)*(WNARRates[Period]=$C$6)*WNARRates[AdjSRR]) -> -0.00022 | I32: =SUMPRODUCT((WNARRates[BeginDate]<=I$26)*(WNARRates[EndDate]>=I$26)*(WNARRates[Region]=$C$4)*(WNARRates[CustClass]=$D$24)*(WNARRates[Period]=$C$6)*WNARRates[AdjSRR]) -> -0.00022 | J32: =SUMPRODUCT((WNARRates[BeginDate]<=J$26)*(WNARRates[EndDate]>=J$26)*(WNARRates[Region]=$C$4)*(WNARRates[CustClass]=$D$24)*(WNARRates[Period]=$C$6)*WNARRates[AdjSRR]) -> -0.00022 | K32: =SUMPRODUCT((WNARRates[BeginDate]<=K$26)*(WNARRates[EndDate]>=K$26)*(WNARRates[Region]=$C$4)*(WNARRates[CustClass]=$D$24)*(WNARRates[Period]=$C$6)*WNARRates[AdjSRR]) -> -0.00022 | L32: =SUMPRODUCT((WNARRates[BeginDate]<=L$26)*(WNARRates[EndDate]>=L$26)*(WNARRates[Region]=$C$4)*(WNARRates[CustClass]=$D$24)*(WNARRates[Period]=$C$6)*WNARRates[AdjSRR]) -> -0.00022 | M32: =SUMPRODUCT((WNARRates[BeginDate]<=M$26)*(WNARRates[EndDate]>=M$26)*(WNARRates[Region]=$C$4)*(WNARRates[CustClass]=$D$24)*(WNARRates[Period]=$C$6)*WNARRates[AdjSRR]) -> -0.00022 | N32: =SUMPRODUCT((WNARRates[BeginDate]<=N$26)*(WNARRates[EndDate]>=N$26)*(WNARRates[Region]=$C$4)*(WNARRates[CustClass]=$D$24)*(WNARRates[Period]=$C$6)*WNARRates[AdjSRR]) -> -0.00022 | O32: =SUMPRODUCT((WNARRates[BeginDate]<=O$26)*(WNARRates[EndDate]>=O$26)*(WNARRates[Region]=$C$4)*(WNARRates[CustClass]=$D$24)*(WNARRates[Period]=$C$6)*WNARRates[AdjSRR]) -> -0.00022 | P32: =SUMPRODUCT((WNARRates[BeginDate]<=P$26)*(WNARRates[EndDate]>=P$26)*(WNARRates[Region]=$C$4)*(WNARRates[CustClass]=$D$24)*(WNARRates[Period]=$C$6)*WNARRates[AdjSRR]) -> -0.00022 | Q32: =SUMPRODUCT((WNARRates[BeginDate]<=Q$26)*(WNARRates[EndDate]>=Q$26)*(WNARRates[Region]=$C$4)*(WNARRates[CustClass]=$D$24)*(WNARRates[Period]=$C$6)*WNARRates[AdjSRR]) -> -0.00022
B33: Total | C33: =SUM(C31:C32) -> 0.00471 | D33: =SUM(D31:D32) -> 0.00471 | E33: 0.00471
B34: CSWNA and SRR Revenue for Period
B35: CSWNA $ | F35: =SUMPRODUCT((WNARRev[Flow Month]=F$11)*(WNARRev[Period]=$C$6)*WNARRev[W61-GCSF-CSWNA]) -> 1586.36354 | G35: =SUMPRODUCT((WNARRev[Flow Month]=G$11)*(WNARRev[Period]=$C$6)*WNARRev[W61-GCSF-CSWNA]) -> 591.5448822 | H35: =SUMPRODUCT((WNARRev[Flow Month]=H$11)*(WNARRev[Period]=$C$6)*WNARRev[W61-GCSF-CSWNA]) -> 580.5013386 | I35: =SUMPRODUCT((WNARRev[Flow Month]=I$11)*(WNARRev[Period]=$C$6)*WNARRev[W61-GCSF-CSWNA]) -> 59.13855798 | J35: =SUMPRODUCT((WNARRev[Flow Month]=J$11)*(WNARRev[Period]=$C$6)*WNARRev[W61-GCSF-CSWNA]) -> 285.0607891 | K35: =SUMPRODUCT((WNARRev[Flow Month]=K$11)*(WNARRev[Period]=$C$6)*WNARRev[W61-GCSF-CSWNA]) -> 287.5807378 | L35: =SUMPRODUCT((WNARRev[Flow Month]=L$11)*(WNARRev[Period]=$C$6)*WNARRev[W61-GCSF-CSWNA]) -> 671.0993524 | M35: =SUMPRODUCT((WNARRev[Flow Month]=M$11)*(WNARRev[Period]=$C$6)*WNARRev[W61-GCSF-CSWNA]) -> 2174.821784 | N35: =SUMPRODUCT((WNARRev[Flow Month]=N$11)*(WNARRev[Period]=$C$6)*WNARRev[W61-GCSF-CSWNA]) -> 3362.983941 | O35: =ROUND(O$27*O31,0) -> 4860 | P35: =ROUND(P$27*P31,0) -> 4216 | Q35: 3192
B36: SRR $ | C36: =ROUND(C29*C33,2) -> 14.91 | D36: =ROUND(D29*D33,2) -> -1.04 | E36: =ROUND(E29*E33,2) -> 79.4 | F36: =SUMPRODUCT((WNARRev[Flow Month]=F$11)*(WNARRev[Period]=$C$6)*WNARRev[W61-GCSF-SRR]) -> -14.05591299 | G36: =SUMPRODUCT((WNARRev[Flow Month]=G$11)*(WNARRev[Period]=$C$6)*WNARRev[W61-GCSF-SRR]) -> -4.679607123 | H36: =SUMPRODUCT((WNARRev[Flow Month]=H$11)*(WNARRev[Period]=$C$6)*WNARRev[W61-GCSF-SRR]) -> -4.592243599 | I36: =SUMPRODUCT((WNARRev[Flow Month]=I$11)*(WNARRev[Period]=$C$6)*WNARRev[W61-GCSF-SRR]) -> -0.4678346909 | J36: =SUMPRODUCT((WNARRev[Flow Month]=J$11)*(WNARRev[Period]=$C$6)*WNARRev[W61-GCSF-SRR]) -> -2.255065574 | K36: =SUMPRODUCT((WNARRev[Flow Month]=K$11)*(WNARRev[Period]=$C$6)*WNARRev[W61-GCSF-SRR]) -> -2.275000443 | L36: =SUMPRODUCT((WNARRev[Flow Month]=L$11)*(WNARRev[Period]=$C$6)*WNARRev[W61-GCSF-SRR]) -> -5.308948491 | M36: =SUMPRODUCT((WNARRev[Flow Month]=M$11)*(WNARRev[Period]=$C$6)*WNARRev[W61-GCSF-SRR]) -> -17.20463115 | N36: =SUMPRODUCT((WNARRev[Flow Month]=N$11)*(WNARRev[Period]=$C$6)*WNARRev[W61-GCSF-SRR]) -> -26.60397221 | O36: =ROUND(O$27*O32,0) -> -38 | P36: =ROUND(P$27*P32,0) -> -33 | Q36: -25
B37: Total True-Up | C37: =SUM(C36:E36) -> 93.27 | D37: Enter in VolTrueUp Table
B39: * Actual Period revenues were calculated using actual rates, and then adjusted for actual revenues billed.
B40: (See worksheet WNAR Rev S1 or S2, table WNAR Rev S1 or S2, and supporting workbook WNAR Breakdown)

Sheet SRR NEMO
B2: Liberty Midstates | F2: Filing Period
B3: Semi-Annual Reconciliation Rate | F3: Year | G3: Period
B4: Region | C4: NEMO
B5: Year | C5: =DateSet!C2 -> 2023
B6: Period | C6: =DateSet!C3 -> S1
B7: Analysis Start | C7: =DateSet!J9 -> 2022-01-01
B9: Rate Sched | C9: 60-GRF | D9: 63-GRF | E9: Res
B10: Residential | C10: True-Up Period | F10: Actual Period* | O10: Projected Period
B11: Month (Flow) | C11: =C7 -> 44562 | D11: =EDATE(C11,1) -> 44593 | E11: =EDATE(D11,1) -> 44621 | F11: 44652 | G11: 44682 | H11: 44713 | I11: 44743 | J11: 44774 | K11: 44805 | L11: 44835 | M11: 44866 | N11: 44896 | O11: 44927 | P11: 44958 | Q11: 44986
B12: Est. Volume | C12: =SUMPRODUCT((CustEstVol[MonthFlow]=C$11)*(CustEstVol[RateSched]=$C$9)*CustEstVol[NormVol])+SUMPRODUCT((CustEstVol[MonthFlow]=C$11)*(CustEstVol[RateSched]=$D$9)*CustEstVol[NormVol]) -> 2516391 | D12: =SUMPRODUCT((CustEstVol[MonthFlow]=D$11)*(CustEstVol[RateSched]=$C$9)*CustEstVol[NormVol])+SUMPRODUCT((CustEstVol[MonthFlow]=D$11)*(CustEstVol[RateSched]=$D$9)*CustEstVol[NormVol]) -> 2135402 | E12: =SUMPRODUCT((CustEstVol[MonthFlow]=E$11)*(CustEstVol[RateSched]=$C$9)*CustEstVol[NormVol])+SUMPRODUCT((CustEstVol[MonthFlow]=E$11)*(CustEstVol[RateSched]=$D$9)*CustEstVol[NormVol]) -> 1607542 | O12: =SUMPRODUCT((CustEstVol[MonthFlow]=O$11)*(CustEstVol[RateSched]=$C$9)*CustEstVol[NormVol])+SUMPRODUCT((CustEstVol[MonthFlow]=O$11)*(CustEstVol[RateSched]=$D$9)*CustEstVol[NormVol]) -> 2516391 | P12: =SUMPRODUCT((CustEstVol[MonthFlow]=P$11)*(CustEstVol[RateSched]=$C$9)*CustEstVol[NormVol])+SUMPRODUCT((CustEstVol[MonthFlow]=P$11)*(CustEstVol[RateSched]=$D$9)*CustEstVol[NormVol]) -> 2135402 | Q12: =SUMPRODUCT((CustEstVol[MonthFlow]=Q$11)*(CustEstVol[RateSched]=$C$9)*CustEstVol[NormVol])+SUMPRODUCT((CustEstVol[MonthFlow]=Q$11)*(CustEstVol[RateSched]=$D$9)*CustEstVol[NormVol]) -> 1607542
B13: Actual Volume | C13: =SUMPRODUCT((CustActVol[MonthFlow]=C$11)*(CustActVol[RateSched]=$C$9)*CustActVol[Volume])+SUMPRODUCT((CustActVol[MonthFlow]=C$11)*(CustActVol[RateSched]=$D$9)*CustActVol[Volume]) -> 2741560.673 | D13: =SUMPRODUCT((CustActVol[MonthFlow]=D$11)*(CustActVol[RateSched]=$C$9)*CustActVol[Volume])+SUMPRODUCT((CustActVol[MonthFlow]=D$11)*(CustActVol[RateSched]=$D$9)*CustActVol[Volume]) -> 2334174.466 | E13: =SUMPRODUCT((CustActVol[MonthFlow]=E$11)*(CustActVol[RateSched]=$C$9)*CustActVol[Volume])+SUMPRODUCT((CustActVol[MonthFlow]=E$11)*(CustActVol[RateSched]=$D$9)*CustActVol[Volume]) -> 1538558.278 | F13: =SUMPRODUCT((CustActVol[MonthFlow]=F$11)*(CustActVol[RateSched]=$C$9)*CustActVol[Volume])+SUMPRODUCT((CustActVol[MonthFlow]=F$11)*(CustActVol[RateSched]=$D$9)*CustActVol[Volume]) -> 1149235.994 | G13: =SUMPRODUCT((CustActVol[MonthFlow]=G$11)*(CustActVol[RateSched]=$C$9)*CustActVol[Volume])+SUMPRODUCT((CustActVol[MonthFlow]=G$11)*(CustActVol[RateSched]=$D$9)*CustActVol[Volume]) -> 305749.9005 | H13: =SUMPRODUCT((CustActVol[MonthFlow]=H$11)*(CustActVol[RateSched]=$C$9)*CustActVol[Volume])+SUMPRODUCT((CustActVol[MonthFlow]=H$11)*(CustActVol[RateSched]=$D$9)*CustActVol[Volume]) -> 156072.7872 | I13: =SUMPRODUCT((CustActVol[MonthFlow]=I$11)*(CustActVol[RateSched]=$C$9)*CustActVol[Volume])+SUMPRODUCT((CustActVol[MonthFlow]=I$11)*(CustActVol[RateSched]=$D$9)*CustActVol[Volume]) -> 121944.882 | J13: =SUMPRODUCT((CustActVol[MonthFlow]=J$11)*(CustActVol[RateSched]=$C$9)*CustActVol[Volume])+SUMPRODUCT((CustActVol[MonthFlow]=J$11)*(CustActVol[RateSched]=$D$9)*CustActVol[Volume]) -> 121973.7739 | K13: =SUMPRODUCT((CustActVol[MonthFlow]=K$11)*(CustActVol[RateSched]=$C$9)*CustActVol[Volume])+SUMPRODUCT((CustActVol[MonthFlow]=K$11)*(CustActVol[RateSched]=$D$9)*CustActVol[Volume]) -> 152143.4428 | L13: =SUMPRODUCT((CustActVol[MonthFlow]=L$11)*(CustActVol[RateSched]=$C$9)*CustActVol[Volume])+SUMPRODUCT((CustActVol[MonthFlow]=L$11)*(CustActVol[RateSched]=$D$9)*CustActVol[Volume]) -> 479574.8603 | M13: =SUMPRODUCT((CustActVol[MonthFlow]=M$11)*(CustActVol[RateSched]=$C$9)*CustActVol[Volume])+SUMPRODUCT((CustActVol[MonthFlow]=M$11)*(CustActVol[RateSched]=$D$9)*CustActVol[Volume]) -> 1163564.727 | N13: =SUMPRODUCT((CustActVol[MonthFlow]=N$11)*(CustActVol[RateSched]=$C$9)*CustActVol[Volume])+SUMPRODUCT((CustActVol[MonthFlow]=N$11)*(CustActVol[RateSched]=$D$9)*CustActVol[Volume]) -> 1791355.31
B14: Vol True-Up | C14: =C13-C12 -> 225169.6732 | D14: =D13-D12 -> 198772.4657 | E14: -68983.72213
B15: ="WNAR "&$C$6&" Rates in Effect" -> WNAR S1 Rates in Effect
B16: CSWNA | C16: =SUMPRODUCT((WNARRates[BeginDate]<=C$11)*(WNARRates[EndDate]>=C$11)*(WNARRates[Region]=$C$4)*(WNARRates[CustClass]=$E$9)*(WNARRates[Period]=$C$6)*WNARRates[CSWNA]) -> 0.01208 | D16: =SUMPRODUCT((WNARRates[BeginDate]<=D$11)*(WNARRates[EndDate]>=D$11)*(WNARRates[Region]=$C$4)*(WNARRates[CustClass]=$E$9)*(WNARRates[Period]=$C$6)*WNARRates[CSWNA]) -> 0.01208 | E16: =SUMPRODUCT((WNARRates[BeginDate]<=E$11)*(WNARRates[EndDate]>=E$11)*(WNARRates[Region]=$C$4)*(WNARRates[CustClass]=$E$9)*(WNARRates[Period]=$C$6)*WNARRates[CSWNA]) -> 0.01208 | F16: =SUMPRODUCT((WNARRates[BeginDate]<=F$11)*(WNARRates[EndDate]>=F$11)*(WNARRates[Region]=$C$4)*(WNARRates[CustClass]=$E$9)*(WNARRates[Period]=$C$6)*WNARRates[AdjCSWNA]) -> 0.0573 | G16: =SUMPRODUCT((WNARRates[BeginDate]<=G$11)*(WNARRates[EndDate]>=G$11)*(WNARRates[Region]=$C$4)*(WNARRates[CustClass]=$E$9)*(WNARRates[Period]=$C$6)*WNARRates[AdjCSWNA]) -> 0.0573 | H16: =SUMPRODUCT((WNARRates[BeginDate]<=H$11)*(WNARRates[EndDate]>=H$11)*(WNARRates[Region]=$C$4)*(WNARRates[CustClass]=$E$9)*(WNARRates[Period]=$C$6)*WNARRates[AdjCSWNA]) -> 0.0573 | I16: =SUMPRODUCT((WNARRates[BeginDate]<=I$11)*(WNARRates[EndDate]>=I$11)*(WNARRates[Region]=$C$4)*(WNARRates[CustClass]=$E$9)*(WNARRates[Period]=$C$6)*WNARRates[AdjCSWNA]) -> 0.0573 | J16: =SUMPRODUCT((WNARRates[BeginDate]<=J$11)*(WNARRates[EndDate]>=J$11)*(WNARRates[Region]=$C$4)*(WNARRates[CustClass]=$E$9)*(WNARRates[Period]=$C$6)*WNARRates[AdjCSWNA]) -> 0.0573 | K16: =SUMPRODUCT((WNARRates[BeginDate]<=K$11)*(WNARRates[EndDate]>=K$11)*(WNARRates[Region]=$C$4)*(WNARRates[CustClass]=$E$9)*(WNARRates[Period]=$C$6)*WNARRates[AdjCSWNA]) -> 0.0573 | L16: =SUMPRODUCT((WNARRates[BeginDate]<=L$11)*(WNARRates[EndDate]>=L$11)*(WNARRates[Region]=$C$4)*(WNARRates[CustClass]=$E$9)*(WNARRates[Period]=$C$6)*WNARRates[AdjCSWNA]) -> 0.0573 | M16: =SUMPRODUCT((WNARRates[BeginDate]<=M$11)*(WNARRates[EndDate]>=M$11)*(WNARRates[Region]=$C$4)*(WNARRates[CustClass]=$E$9)*(WNARRates[Period]=$C$6)*WNARRates[AdjCSWNA]) -> 0.0573 | N16: =SUMPRODUCT((WNARRates[BeginDate]<=N$11)*(WNARRates[EndDate]>=N$11)*(WNARRates[Region]=$C$4)*(WNARRates[CustClass]=$E$9)*(WNARRates[Period]=$C$6)*WNARRates[AdjCSWNA]) -> 0.0573 | O16: =SUMPRODUCT((WNARRates[BeginDate]<=O$11)*(WNARRates[EndDate]>=O$11)*(WNARRates[Region]=$C$4)*(WNARRates[CustClass]=$E$9)*(WNARRates[Period]=$C$6)*WNARRates[AdjCSWNA]) -> 0.0573 | P16: =SUMPRODUCT((WNARRates[BeginDate]<=P$11)*(WNARRates[EndDate]>=P$11)*(WNARRates[Region]=$C$4)*(WNARRates[CustClass]=$E$9)*(WNARRates[Period]=$C$6)*WNARRates[AdjCSWNA]) -> 0.0573 | Q16: =SUMPRODUCT((WNARRates[BeginDate]<=Q$11)*(WNARRates[EndDate]>=Q$11)*(WNARRates[Region]=$C$4)*(WNARRates[CustClass]=$E$9)*(WNARRates[Period]=$C$6)*WNARRates[AdjCSWNA]) -> 0.0573
B17: SRR | C17: =SUMPRODUCT((WNARRates[BeginDate]<=C$11)*(WNARRates[EndDate]>=C$11)*(WNARRates[Region]=$C$4)*(WNARRates[CustClass]=$E$9)*(WNARRates[Period]=$C$6)*WNARRates[SRR]) -> -0.002 | D17: =SUMPRODUCT((WNARRates[BeginDate]<=D$11)*(WNARRates[EndDate]>=D$11)*(WNARRates[Region]=$C$4)*(WNARRates[CustClass]=$E$9)*(WNARRates[Period]=$C$6)*WNARRates[SRR]) -> -0.002 | E17: =SUMPRODUCT((WNARRates[BeginDate]<=E$11)*(WNARRates[EndDate]>=E$11)*(WNARRates[Region]=$C$4)*(WNARRates[CustClass]=$E$9)*(WNARRates[Period]=$C$6)*WNARRates[SRR]) -> -0.002 | F17: =SUMPRODUCT((WNARRates[BeginDate]<=F$11)*(WNARRates[EndDate]>=F$11)*(WNARRates[Region]=$C$4)*(WNARRates[CustClass]=$E$9)*(WNARRates[Period]=$C$6)*WNARRates[AdjSRR]) -> 0.00278 | G17: =SUMPRODUCT((WNARRates[BeginDate]<=G$11)*(WNARRates[EndDate]>=G$11)*(WNARRates[Region]=$C$4)*(WNARRates[CustClass]=$E$9)*(WNARRates[Period]=$C$6)*WNARRates[AdjSRR]) -> 0.00278 | H17: =SUMPRODUCT((WNARRates[BeginDate]<=H$11)*(WNARRates[EndDate]>=H$11)*(WNARRates[Region]=$C$4)*(WNARRates[CustClass]=$E$9)*(WNARRates[Period]=$C$6)*WNARRates[AdjSRR]) -> 0.00278 | I17: =SUMPRODUCT((WNARRates[BeginDate]<=I$11)*(WNARRates[EndDate]>=I$11)*(WNARRates[Region]=$C$4)*(WNARRates[CustClass]=$E$9)*(WNARRates[Period]=$C$6)*WNARRates[AdjSRR]) -> 0.00278 | J17: =SUMPRODUCT((WNARRates[BeginDate]<=J$11)*(WNARRates[EndDate]>=J$11)*(WNARRates[Region]=$C$4)*(WNARRates[CustClass]=$E$9)*(WNARRates[Period]=$C$6)*WNARRates[AdjSRR]) -> 0.00278 | K17: =SUMPRODUCT((WNARRates[BeginDate]<=K$11)*(WNARRates[EndDate]>=K$11)*(WNARRates[Region]=$C$4)*(WNARRates[CustClass]=$E$9)*(WNARRates[Period]=$C$6)*WNARRates[AdjSRR]) -> 0.00278 | L17: =SUMPRODUCT((WNARRates[BeginDate]<=L$11)*(WNARRates[EndDate]>=L$11)*(WNARRates[Region]=$C$4)*(WNARRates[CustClass]=$E$9)*(WNARRates[Period]=$C$6)*WNARRates[AdjSRR]) -> 0.00278 | M17: =SUMPRODUCT((WNARRates[BeginDate]<=M$11)*(WNARRates[EndDate]>=M$11)*(WNARRates[Region]=$C$4)*(WNARRates[CustClass]=$E$9)*(WNARRates[Period]=$C$6)*WNARRates[AdjSRR]) -> 0.00278 | N17: =SUMPRODUCT((WNARRates[BeginDate]<=N$11)*(WNARRates[EndDate]>=N$11)*(WNARRates[Region]=$C$4)*(WNARRates[CustClass]=$E$9)*(WNARRates[Period]=$C$6)*WNARRates[AdjSRR]) -> 0.00278 | O17: =SUMPRODUCT((WNARRates[BeginDate]<=O$11)*(WNARRates[EndDate]>=O$11)*(WNARRates[Region]=$C$4)*(WNARRates[CustClass]=$E$9)*(WNARRates[Period]=$C$6)*WNARRates[AdjSRR]) -> 0.00278 | P17: =SUMPRODUCT((WNARRates[BeginDate]<=P$11)*(WNARRates[EndDate]>=P$11)*(WNARRates[Region]=$C$4)*(WNARRates[CustClass]=$E$9)*(WNARRates[Period]=$C$6)*WNARRates[AdjSRR]) -> 0.00278 | Q17: =SUMPRODUCT((WNARRates[BeginDate]<=Q$11)*(WNARRates[EndDate]>=Q$11)*(WNARRates[Region]=$C$4)*(WNARRates[CustClass]=$E$9)*(WNARRates[Period]=$C$6)*WNARRates[AdjSRR]) -> 0.00278
B18: Total | C18: =SUM(C16:C17) -> 0.01008 | D18: =SUM(D16:D17) -> 0.01008 | E18: 0.01008
B19: CSWNA and SRR Revenue for Period
B20: CSWNA $ | F20: =SUMPRODUCT((WNARRev[Flow Month]=F$11)*(WNARRev[Period]=$C$6)*WNARRev[N60-GRF-CSWNA])+SUMPRODUCT((WNARRev[Flow Month]=F$11)*(WNARRev[Period]=$C$6)*WNARRev[N63-GRF-CSWNA]) -> 58244.76577 | G20: =SUMPRODUCT((WNARRev[Flow Month]=G$11)*(WNARRev[Period]=$C$6)*WNARRev[N60-GRF-CSWNA])+SUMPRODUCT((WNARRev[Flow Month]=G$11)*(WNARRev[Period]=$C$6)*WNARRev[N63-GRF-CSWNA]) -> 17559.88161 | H20: =SUMPRODUCT((WNARRev[Flow Month]=H$11)*(WNARRev[Period]=$C$6)*WNARRev[N60-GRF-CSWNA])+SUMPRODUCT((WNARRev[Flow Month]=H$11)*(WNARRev[Period]=$C$6)*WNARRev[N63-GRF-CSWNA]) -> 8938.64252 | I20: =SUMPRODUCT((WNARRev[Flow Month]=I$11)*(WNARRev[Period]=$C$6)*WNARRev[N60-GRF-CSWNA])+SUMPRODUCT((WNARRev[Flow Month]=I$11)*(WNARRev[Period]=$C$6)*WNARRev[N63-GRF-CSWNA]) -> 6971.584845 | J20: =SUMPRODUCT((WNARRev[Flow Month]=J$11)*(WNARRev[Period]=$C$6)*WNARRev[N60-GRF-CSWNA])+SUMPRODUCT((WNARRev[Flow Month]=J$11)*(WNARRev[Period]=$C$6)*WNARRev[N63-GRF-CSWNA]) -> 6986.575528 | K20: =SUMPRODUCT((WNARRev[Flow Month]=K$11)*(WNARRev[Period]=$C$6)*WNARRev[N60-GRF-CSWNA])+SUMPRODUCT((WNARRev[Flow Month]=K$11)*(WNARRev[Period]=$C$6)*WNARRev[N63-GRF-CSWNA]) -> 8715.153014 | L20: =SUMPRODUCT((WNARRev[Flow Month]=L$11)*(WNARRev[Period]=$C$6)*WNARRev[N60-GRF-CSWNA])+SUMPRODUCT((WNARRev[Flow Month]=L$11)*(WNARRev[Period]=$C$6)*WNARRev[N63-GRF-CSWNA]) -> 27468.54797 | M20: =SUMPRODUCT((WNARRev[Flow Month]=M$11)*(WNARRev[Period]=$C$6)*WNARRev[N60-GRF-CSWNA])+SUMPRODUCT((WNARRev[Flow Month]=M$11)*(WNARRev[Period]=$C$6)*WNARRev[N63-GRF-CSWNA]) -> 66672.444 | N20: =SUMPRODUCT((WNARRev[Flow Month]=N$11)*(WNARRev[Period]=$C$6)*WNARRev[N60-GRF-CSWNA])+SUMPRODUCT((WNARRev[Flow Month]=N$11)*(WNARRev[Period]=$C$6)*WNARRev[N63-GRF-CSWNA]) -> 102641.1545 | O20: =ROUND(O$12*O16,0) -> 144189 | P20: =ROUND(P$12*P16,0) -> 122359 | Q20: 92112
B21: SRR $ | C21: =ROUND(C14*C18,2) -> 2269.71 | D21: =ROUND(D14*D18,2) -> 2003.63 | E21: =ROUND(E14*E18,2) -> -695.36 | F21: =SUMPRODUCT((WNARRev[Flow Month]=F$11)*(WNARRev[Period]=$C$6)*WNARRev[N60-GRF-SRR])+SUMPRODUCT((WNARRev[Flow Month]=F$11)*(WNARRev[Period]=$C$6)*WNARRev[N63-GRF-SRR]) -> 2372.397188 | G21: =SUMPRODUCT((WNARRev[Flow Month]=G$11)*(WNARRev[Period]=$C$6)*WNARRev[N60-GRF-SRR])+SUMPRODUCT((WNARRev[Flow Month]=G$11)*(WNARRev[Period]=$C$6)*WNARRev[N63-GRF-SRR]) -> 851.9453906 | H21: =SUMPRODUCT((WNARRev[Flow Month]=H$11)*(WNARRev[Period]=$C$6)*WNARRev[N60-GRF-SRR])+SUMPRODUCT((WNARRev[Flow Month]=H$11)*(WNARRev[Period]=$C$6)*WNARRev[N63-GRF-SRR]) -> 433.6723596 | I21: =SUMPRODUCT((WNARRev[Flow Month]=I$11)*(WNARRev[Period]=$C$6)*WNARRev[N60-GRF-SRR])+SUMPRODUCT((WNARRev[Flow Month]=I$11)*(WNARRev[Period]=$C$6)*WNARRev[N63-GRF-SRR]) -> 338.2374497 | J21: =SUMPRODUCT((WNARRev[Flow Month]=J$11)*(WNARRev[Period]=$C$6)*WNARRev[N60-GRF-SRR])+SUMPRODUCT((WNARRev[Flow Month]=J$11)*(WNARRev[Period]=$C$6)*WNARRev[N63-GRF-SRR]) -> 338.9647464 | K21: =SUMPRODUCT((WNARRev[Flow Month]=K$11)*(WNARRev[Period]=$C$6)*WNARRev[N60-GRF-SRR])+SUMPRODUCT((WNARRev[Flow Month]=K$11)*(WNARRev[Period]=$C$6)*WNARRev[N63-GRF-SRR]) -> 422.8294133 | L21: =SUMPRODUCT((WNARRev[Flow Month]=L$11)*(WNARRev[Period]=$C$6)*WNARRev[N60-GRF-SRR])+SUMPRODUCT((WNARRev[Flow Month]=L$11)*(WNARRev[Period]=$C$6)*WNARRev[N63-GRF-SRR]) -> 1332.679989 | M21: =SUMPRODUCT((WNARRev[Flow Month]=M$11)*(WNARRev[Period]=$C$6)*WNARRev[N60-GRF-SRR])+SUMPRODUCT((WNARRev[Flow Month]=M$11)*(WNARRev[Period]=$C$6)*WNARRev[N63-GRF-SRR]) -> 3234.718924 | N21: =SUMPRODUCT((WNARRev[Flow Month]=N$11)*(WNARRev[Period]=$C$6)*WNARRev[N60-GRF-SRR])+SUMPRODUCT((WNARRev[Flow Month]=N$11)*(WNARRev[Period]=$C$6)*WNARRev[N63-GRF-SRR]) -> 4979.797722 | O21: =ROUND(O$12*O17,0) -> 6996 | P21: 5936 | Q21: 4469
B22: Total True-Up | C22: =SUM(C21:E21) -> 3577.98 | D22: Enter in VolTrueUp Table
B24: Rate Sched | C24: 60-GCSF | D24: 63-GCSF | E24: SGS
B25: Small Comm. | C25: True-Up Period | F25: Actual Period* | O25: Projected Period
B26: Month (Flow) | C26: =C7 -> 44562 | D26: =EDATE(C26,1) -> 44593 | E26: =EDATE(D26,1) -> 44621 | F26: 44652 | G26: 44682 | H26: 44713 | I26: 44743 | J26: 44774 | K26: 44805 | L26: 44835 | M26: 44866 | N26: 44896 | O26: 44927 | P26: 44958 | Q26: 44986
B27: Est. Volume | C27: =SUMPRODUCT((CustEstVol[MonthFlow]=C$26)*(CustEstVol[RateSched]=$C$24)*CustEstVol[NormVol])+SUMPRODUCT((CustEstVol[MonthFlow]=C$26)*(CustEstVol[RateSched]=$D$24)*CustEstVol[NormVol]) -> 850476 | D27: =SUMPRODUCT((CustEstVol[MonthFlow]=D$26)*(CustEstVol[RateSched]=$C$24)*CustEstVol[NormVol])+SUMPRODUCT((CustEstVol[MonthFlow]=D$26)*(CustEstVol[RateSched]=$D$24)*CustEstVol[NormVol]) -> 699766 | E27: =SUMPRODUCT((CustEstVol[MonthFlow]=E$26)*(CustEstVol[RateSched]=$C$24)*CustEstVol[NormVol])+SUMPRODUCT((CustEstVol[MonthFlow]=E$26)*(CustEstVol[RateSched]=$D$24)*CustEstVol[NormVol]) -> 514163 | O27: =SUMPRODUCT((CustEstVol[MonthFlow]=O$26)*(CustEstVol[RateSched]=$C$24)*CustEstVol[NormVol])+SUMPRODUCT((CustEstVol[MonthFlow]=O$26)*(CustEstVol[RateSched]=$D$24)*CustEstVol[NormVol]) -> 846654 | P27: =SUMPRODUCT((CustEstVol[MonthFlow]=P$26)*(CustEstVol[RateSched]=$C$24)*CustEstVol[NormVol])+SUMPRODUCT((CustEstVol[MonthFlow]=P$26)*(CustEstVol[RateSched]=$D$24)*CustEstVol[NormVol]) -> 696626 | Q27: =SUMPRODUCT((CustEstVol[MonthFlow]=Q$26)*(CustEstVol[RateSched]=$C$24)*CustEstVol[NormVol])+SUMPRODUCT((CustEstVol[MonthFlow]=Q$26)*(CustEstVol[RateSched]=$D$24)*CustEstVol[NormVol]) -> 511849
B28: Actual Volume | C28: =SUMPRODUCT((CustActVol[MonthFlow]=C$26)*(CustActVol[RateSched]=$C$24)*CustActVol[Volume])+SUMPRODUCT((CustActVol[MonthFlow]=C$26)*(CustActVol[RateSched]=$D$24)*CustActVol[Volume]) -> 886051.95 | D28: =SUMPRODUCT((CustActVol[MonthFlow]=D$26)*(CustActVol[RateSched]=$C$24)*CustActVol[Volume])+SUMPRODUCT((CustActVol[MonthFlow]=D$26)*(CustActVol[RateSched]=$D$24)*CustActVol[Volume]) -> 745567.3731 | E28: =SUMPRODUCT((CustActVol[MonthFlow]=E$26)*(CustActVol[RateSched]=$C$24)*CustActVol[Volume])+SUMPRODUCT((CustActVol[MonthFlow]=E$26)*(CustActVol[RateSched]=$D$24)*CustActVol[Volume]) -> 475269.4093 | F28: =SUMPRODUCT((CustActVol[MonthFlow]=F$26)*(CustActVol[RateSched]=$C$24)*CustActVol[Volume])+SUMPRODUCT((CustActVol[MonthFlow]=F$26)*(CustActVol[RateSched]=$D$24)*CustActVol[Volume]) -> 330625.2475 | G28: =SUMPRODUCT((CustActVol[MonthFlow]=G$26)*(CustActVol[RateSched]=$C$24)*CustActVol[Volume])+SUMPRODUCT((CustActVol[MonthFlow]=G$26)*(CustActVol[RateSched]=$D$24)*CustActVol[Volume]) -> 95269.08397 | H28: =SUMPRODUCT((CustActVol[MonthFlow]=H$26)*(CustActVol[RateSched]=$C$24)*CustActVol[Volume])+SUMPRODUCT((CustActVol[MonthFlow]=H$26)*(CustActVol[RateSched]=$D$24)*CustActVol[Volume]) -> 58347.09424 | I28: =SUMPRODUCT((CustActVol[MonthFlow]=I$26)*(CustActVol[RateSched]=$C$24)*CustActVol[Volume])+SUMPRODUCT((CustActVol[MonthFlow]=I$26)*(CustActVol[RateSched]=$D$24)*CustActVol[Volume]) -> 47722.59547 | J28: =SUMPRODUCT((CustActVol[MonthFlow]=J$26)*(CustActVol[RateSched]=$C$24)*CustActVol[Volume])+SUMPRODUCT((CustActVol[MonthFlow]=J$26)*(CustActVol[RateSched]=$D$24)*CustActVol[Volume]) -> 49451.45964 | K28: =SUMPRODUCT((CustActVol[MonthFlow]=K$26)*(CustActVol[RateSched]=$C$24)*CustActVol[Volume])+SUMPRODUCT((CustActVol[MonthFlow]=K$26)*(CustActVol[RateSched]=$D$24)*CustActVol[Volume]) -> 56495.82169 | L28: =SUMPRODUCT((CustActVol[MonthFlow]=L$26)*(CustActVol[RateSched]=$C$24)*CustActVol[Volume])+SUMPRODUCT((CustActVol[MonthFlow]=L$26)*(CustActVol[RateSched]=$D$24)*CustActVol[Volume]) -> 132338.2889 | M28: =SUMPRODUCT((CustActVol[MonthFlow]=M$26)*(CustActVol[RateSched]=$C$24)*CustActVol[Volume])+SUMPRODUCT((CustActVol[MonthFlow]=M$26)*(CustActVol[RateSched]=$D$24)*CustActVol[Volume]) -> 354220.7658 | N28: =SUMPRODUCT((CustActVol[MonthFlow]=N$26)*(CustActVol[RateSched]=$C$24)*CustActVol[Volume])+SUMPRODUCT((CustActVol[MonthFlow]=N$26)*(CustActVol[RateSched]=$D$24)*CustActVol[Volume]) -> 580200.9086
B29: Vol True-Up | C29: =C28-C27 -> 35575.95 | D29: =D28-D27 -> 45801.37314 | E29: -38893.59071
B30: ="WNAR "&$C$6&" Rates in Effect" -> WNAR S1 Rates in Effect
B31: CSWNA | C31: =SUMPRODUCT((WNARRates[BeginDate]<=C$26)*(WNARRates[EndDate]>=C$26)*(WNARRates[Region]=$C$4)*(WNARRates[CustClass]=$E$24)*(WNARRates[Period]=$C$6)*WNARRates[CSWNA]) -> 0.00486 | D31: =SUMPRODUCT((WNARRates[BeginDate]<=D$26)*(WNARRates[EndDate]>=D$26)*(WNARRates[Region]=$C$4)*(WNARRates[CustClass]=$E$24)*(WNARRates[Period]=$C$6)*WNARRates[CSWNA]) -> 0.00486 | E31: =SUMPRODUCT((WNARRates[BeginDate]<=E$26)*(WNARRates[EndDate]>=E$26)*(WNARRates[Region]=$C$4)*(WNARRates[CustClass]=$E$24)*(WNARRates[Period]=$C$6)*WNARRates[CSWNA]) -> 0.00486 | F31: =SUMPRODUCT((WNARRates[BeginDate]<=F$26)*(WNARRates[EndDate]>=F$26)*(WNARRates[Region]=$C$4)*(WNARRates[CustClass]=$E$24)*(WNARRates[Period]=$C$6)*WNARRates[AdjCSWNA]) -> 0.02781 | G31: =SUMPRODUCT((WNARRates[BeginDate]<=G$26)*(WNARRates[EndDate]>=G$26)*(WNARRates[Region]=$C$4)*(WNARRates[CustClass]=$E$24)*(WNARRates[Period]=$C$6)*WNARRates[AdjCSWNA]) -> 0.02781 | H31: =SUMPRODUCT((WNARRates[BeginDate]<=H$26)*(WNARRates[EndDate]>=H$26)*(WNARRates[Region]=$C$4)*(WNARRates[CustClass]=$E$24)*(WNARRates[Period]=$C$6)*WNARRates[AdjCSWNA]) -> 0.02781 | I31: =SUMPRODUCT((WNARRates[BeginDate]<=I$26)*(WNARRates[EndDate]>=I$26)*(WNARRates[Region]=$C$4)*(WNARRates[CustClass]=$E$24)*(WNARRates[Period]=$C$6)*WNARRates[AdjCSWNA]) -> 0.02781 | J31: =SUMPRODUCT((WNARRates[BeginDate]<=J$26)*(WNARRates[EndDate]>=J$26)*(WNARRates[Region]=$C$4)*(WNARRates[CustClass]=$E$24)*(WNARRates[Period]=$C$6)*WNARRates[AdjCSWNA]) -> 0.02781 | K31: =SUMPRODUCT((WNARRates[BeginDate]<=K$26)*(WNARRates[EndDate]>=K$26)*(WNARRates[Region]=$C$4)*(WNARRates[CustClass]=$E$24)*(WNARRates[Period]=$C$6)*WNARRates[AdjCSWNA]) -> 0.02781 | L31: =SUMPRODUCT((WNARRates[BeginDate]<=L$26)*(WNARRates[EndDate]>=L$26)*(WNARRates[Region]=$C$4)*(WNARRates[CustClass]=$E$24)*(WNARRates[Period]=$C$6)*WNARRates[AdjCSWNA]) -> 0.02781 | M31: =SUMPRODUCT((WNARRates[BeginDate]<=M$26)*(WNARRates[EndDate]>=M$26)*(WNARRates[Region]=$C$4)*(WNARRates[CustClass]=$E$24)*(WNARRates[Period]=$C$6)*WNARRates[AdjCSWNA]) -> 0.02781 | N31: =SUMPRODUCT((WNARRates[BeginDate]<=N$26)*(WNARRates[EndDate]>=N$26)*(WNARRates[Region]=$C$4)*(WNARRates[CustClass]=$E$24)*(WNARRates[Period]=$C$6)*WNARRates[AdjCSWNA]) -> 0.02781 | O31: =SUMPRODUCT((WNARRates[BeginDate]<=O$26)*(WNARRates[EndDate]>=O$26)*(WNARRates[Region]=$C$4)*(WNARRates[CustClass]=$E$24)*(WNARRates[Period]=$C$6)*WNARRates[AdjCSWNA]) -> 0.02781 | P31: =SUMPRODUCT((WNARRates[BeginDate]<=P$26)*(WNARRates[EndDate]>=P$26)*(WNARRates[Region]=$C$4)*(WNARRates[CustClass]=$E$24)*(WNARRates[Period]=$C$6)*WNARRates[AdjCSWNA]) -> 0.02781 | Q31: =SUMPRODUCT((WNARRates[BeginDate]<=Q$26)*(WNARRates[EndDate]>=Q$26)*(WNARRates[Region]=$C$4)*(WNARRates[CustClass]=$E$24)*(WNARRates[Period]=$C$6)*WNARRates[AdjCSWNA]) -> 0.02781
B32: SRR | C32: =SUMPRODUCT((WNARRates[BeginDate]<=C$26)*(WNARRates[EndDate]>=C$26)*(WNARRates[Region]=$C$4)*(WNARRates[CustClass]=$E$24)*(WNARRates[Period]=$C$6)*WNARRates[SRR]) -> -0.00015 | D32: =SUMPRODUCT((WNARRates[BeginDate]<=D$26)*(WNARRates[EndDate]>=D$26)*(WNARRates[Region]=$C$4)*(WNARRates[CustClass]=$E$24)*(WNARRates[Period]=$C$6)*WNARRates[SRR]) -> -0.00015 | E32: =SUMPRODUCT((WNARRates[BeginDate]<=E$26)*(WNARRates[EndDate]>=E$26)*(WNARRates[Region]=$C$4)*(WNARRates[CustClass]=$E$24)*(WNARRates[Period]=$C$6)*WNARRates[SRR]) -> -0.00015 | F32: =SUMPRODUCT((WNARRates[BeginDate]<=F$26)*(WNARRates[EndDate]>=F$26)*(WNARRates[Region]=$C$4)*(WNARRates[CustClass]=$E$24)*(WNARRates[Period]=$C$6)*WNARRates[AdjSRR]) -> -0.00022 | G32: =SUMPRODUCT((WNARRates[BeginDate]<=G$26)*(WNARRates[EndDate]>=G$26)*(WNARRates[Region]=$C$4)*(WNARRates[CustClass]=$E$24)*(WNARRates[Period]=$C$6)*WNARRates[AdjSRR]) -> -0.00022 | H32: =SUMPRODUCT((WNARRates[BeginDate]<=H$26)*(WNARRates[EndDate]>=H$26)*(WNARRates[Region]=$C$4)*(WNARRates[CustClass]=$E$24)*(WNARRates[Period]=$C$6)*WNARRates[AdjSRR]) -> -0.00022 | I32: =SUMPRODUCT((WNARRates[BeginDate]<=I$26)*(WNARRates[EndDate]>=I$26)*(WNARRates[Region]=$C$4)*(WNARRates[CustClass]=$E$24)*(WNARRates[Period]=$C$6)*WNARRates[AdjSRR]) -> -0.00022 | J32: =SUMPRODUCT((WNARRates[BeginDate]<=J$26)*(WNARRates[EndDate]>=J$26)*(WNARRates[Region]=$C$4)*(WNARRates[CustClass]=$E$24)*(WNARRates[Period]=$C$6)*WNARRates[AdjSRR]) -> -0.00022 | K32: =SUMPRODUCT((WNARRates[BeginDate]<=K$26)*(WNARRates[EndDate]>=K$26)*(WNARRates[Region]=$C$4)*(WNARRates[CustClass]=$E$24)*(WNARRates[Period]=$C$6)*WNARRates[AdjSRR]) -> -0.00022 | L32: =SUMPRODUCT((WNARRates[BeginDate]<=L$26)*(WNARRates[EndDate]>=L$26)*(WNARRates[Region]=$C$4)*(WNARRates[CustClass]=$E$24)*(WNARRates[Period]=$C$6)*WNARRates[AdjSRR]) -> -0.00022 | M32: =SUMPRODUCT((WNARRates[BeginDate]<=M$26)*(WNARRates[EndDate]>=M$26)*(WNARRates[Region]=$C$4)*(WNARRates[CustClass]=$E$24)*(WNARRates[Period]=$C$6)*WNARRates[AdjSRR]) -> -0.00022 | N32: =SUMPRODUCT((WNARRates[BeginDate]<=N$26)*(WNARRates[EndDate]>=N$26)*(WNARRates[Region]=$C$4)*(WNARRates[CustClass]=$E$24)*(WNARRates[Period]=$C$6)*WNARRates[AdjSRR]) -> -0.00022 | O32: =SUMPRODUCT((WNARRates[BeginDate]<=O$26)*(WNARRates[EndDate]>=O$26)*(WNARRates[Region]=$C$4)*(WNARRates[CustClass]=$E$24)*(WNARRates[Period]=$C$6)*WNARRates[AdjSRR]) -> -0.00022 | P32: =SUMPRODUCT((WNARRates[BeginDate]<=P$26)*(WNARRates[EndDate]>=P$26)*(WNARRates[Region]=$C$4)*(WNARRates[CustClass]=$E$24)*(WNARRates[Period]=$C$6)*WNARRates[AdjSRR]) -> -0.00022 | Q32: =SUMPRODUCT((WNARRates[BeginDate]<=Q$26)*(WNARRates[EndDate]>=Q$26)*(WNARRates[Region]=$C$4)*(WNARRates[CustClass]=$E$24)*(WNARRates[Period]=$C$6)*WNARRates[AdjSRR]) -> -0.00022
B33: Total | C33: =SUM(C31:C32) -> 0.00471 | D33: =SUM(D31:D32) -> 0.00471 | E33: 0.00471
B34: CSWNA and SRR Revenue for Period
B35: CSWNA $ | F35: =SUMPRODUCT((WNARRev[Flow Month]=F$11)*(WNARRev[Period]=$C$6)*WNARRev[N60-GRF-CSWNA])+SUMPRODUCT((WNARRev[Flow Month]=F$11)*(WNARRev[Period]=$C$6)*WNARRev[N63-GRF-CSWNA]) -> 58244.76577 | G35: =SUMPRODUCT((WNARRev[Flow Month]=G$11)*(WNARRev[Period]=$C$6)*WNARRev[N60-GRF-CSWNA])+SUMPRODUCT((WNARRev[Flow Month]=G$11)*(WNARRev[Period]=$C$6)*WNARRev[N63-GRF-CSWNA]) -> 17559.88161 | H35: =SUMPRODUCT((WNARRev[Flow Month]=H$11)*(WNARRev[Period]=$C$6)*WNARRev[N60-GRF-CSWNA])+SUMPRODUCT((WNARRev[Flow Month]=H$11)*(WNARRev[Period]=$C$6)*WNARRev[N63-GRF-CSWNA]) -> 8938.64252 | I35: =SUMPRODUCT((WNARRev[Flow Month]=I$11)*(WNARRev[Period]=$C$6)*WNARRev[N60-GRF-CSWNA])+SUMPRODUCT((WNARRev[Flow Month]=I$11)*(WNARRev[Period]=$C$6)*WNARRev[N63-GRF-CSWNA]) -> 6971.584845 | J35: =SUMPRODUCT((WNARRev[Flow Month]=J$11)*(WNARRev[Period]=$C$6)*WNARRev[N60-GRF-CSWNA])+SUMPRODUCT((WNARRev[Flow Month]=J$11)*(WNARRev[Period]=$C$6)*WNARRev[N63-GRF-CSWNA]) -> 6986.575528 | K35: =SUMPRODUCT((WNARRev[Flow Month]=K$11)*(WNARRev[Period]=$C$6)*WNARRev[N60-GRF-CSWNA])+SUMPRODUCT((WNARRev[Flow Month]=K$11)*(WNARRev[Period]=$C$6)*WNARRev[N63-GRF-CSWNA]) -> 8715.153014 | L35: =SUMPRODUCT((WNARRev[Flow Month]=L$11)*(WNARRev[Period]=$C$6)*WNARRev[N60-GRF-CSWNA])+SUMPRODUCT((WNARRev[Flow Month]=L$11)*(WNARRev[Period]=$C$6)*WNARRev[N63-GRF-CSWNA]) -> 27468.54797 | M35: =SUMPRODUCT((WNARRev[Flow Month]=M$11)*(WNARRev[Period]=$C$6)*WNARRev[N60-GRF-CSWNA])+SUMPRODUCT((WNARRev[Flow Month]=M$11)*(WNARRev[Period]=$C$6)*WNARRev[N63-GRF-CSWNA]) -> 66672.444 | N35: =SUMPRODUCT((WNARRev[Flow Month]=N$11)*(WNARRev[Period]=$C$6)*WNARRev[N60-GRF-CSWNA])+SUMPRODUCT((WNARRev[Flow Month]=N$11)*(WNARRev[Period]=$C$6)*WNARRev[N63-GRF-CSWNA]) -> 102641.1545 | O35: =ROUND(O$27*O31,0) -> 23545 | P35: =ROUND(P$27*P31,0) -> 19373 | Q35: 14235
B36: SRR $ | C36: =ROUND(C29*C33,2) -> 167.56 | D36: =ROUND(D29*D33,2) -> 215.72 | E36: =ROUND(E29*E33,2) -> -183.19 | F36: =SUMPRODUCT((WNARRev[Flow Month]=F$11)*(WNARRev[Period]=$C$6)*WNARRev[N60-GRF-SRR])+SUMPRODUCT((WNARRev[Flow Month]=F$11)*(WNARRev[Period]=$C$6)*WNARRev[N63-GRF-SRR]) -> 2372.397188 | G36: =SUMPRODUCT((WNARRev[Flow Month]=G$11)*(WNARRev[Period]=$C$6)*WNARRev[N60-GRF-SRR])+SUMPRODUCT((WNARRev[Flow Month]=G$11)*(WNARRev[Period]=$C$6)*WNARRev[N63-GRF-SRR]) -> 851.9453906 | H36: =SUMPRODUCT((WNARRev[Flow Month]=H$11)*(WNARRev[Period]=$C$6)*WNARRev[N60-GRF-SRR])+SUMPRODUCT((WNARRev[Flow Month]=H$11)*(WNARRev[Period]=$C$6)*WNARRev[N63-GRF-SRR]) -> 433.6723596 | I36: =SUMPRODUCT((WNARRev[Flow Month]=I$11)*(WNARRev[Period]=$C$6)*WNARRev[N60-GRF-SRR])+SUMPRODUCT((WNARRev[Flow Month]=I$11)*(WNARRev[Period]=$C$6)*WNARRev[N63-GRF-SRR]) -> 338.2374497 | J36: =SUMPRODUCT((WNARRev[Flow Month]=J$11)*(WNARRev[Period]=$C$6)*WNARRev[N60-GRF-SRR])+SUMPRODUCT((WNARRev[Flow Month]=J$11)*(WNARRev[Period]=$C$6)*WNARRev[N63-GRF-SRR]) -> 338.9647464 | K36: =SUMPRODUCT((WNARRev[Flow Month]=K$11)*(WNARRev[Period]=$C$6)*WNARRev[N60-GRF-SRR])+SUMPRODUCT((WNARRev[Flow Month]=K$11)*(WNARRev[Period]=$C$6)*WNARRev[N63-GRF-SRR]) -> 422.8294133 | L36: =SUMPRODUCT((WNARRev[Flow Month]=L$11)*(WNARRev[Period]=$C$6)*WNARRev[N60-GRF-SRR])+SUMPRODUCT((WNARRev[Flow Month]=L$11)*(WNARRev[Period]=$C$6)*WNARRev[N63-GRF-SRR]) -> 1332.679989 | M36: =SUMPRODUCT((WNARRev[Flow Month]=M$11)*(WNARRev[Period]=$C$6)*WNARRev[N60-GRF-SRR])+SUMPRODUCT((WNARRev[Flow Month]=M$11)*(WNARRev[Period]=$C$6)*WNARRev[N63-GRF-SRR]) -> 3234.718924 | N36: =SUMPRODUCT((WNARRev[Flow Month]=N$11)*(WNARRev[Period]=$C$6)*WNARRev[N60-GRF-SRR])+SUMPRODUCT((WNARRev[Flow Month]=N$11)*(WNARRev[Period]=$C$6)*WNARRev[N63-GRF-SRR]) -> 4979.797722 | O36: =ROUND(O$27*O32,0) -> -186 | P36: -153 | Q36: -113
B37: Total True-Up | C37: =SUM(C36:E36) -> 200.09 | D37: Enter in VolTrueUp Table
B39: * Actual Period revenues were calculated using actual rates, and then adjusted for actual revenues billed.
B40: (See worksheet WNAR Rev S1 or S2, table WNAR Rev S1 or S2, and supporting workbook WNAR Breakdown)

Sheet CSWNA SEMO
B2: Liberty Midstates | F2: Filing Period
B3: Billing Cycle and HDD Data Summary | F3: Year | G3: Period
B4: Territory | C4: SEMO
B5: Year | C5: =DateSet!C2 -> 2023
B6: Period | C6: =DateSet!C3 -> S1
B7: Analysis Start | C7: =DateSet!J8 -> 2022-07-01
B9: Residential | C9: 62-GRF | D9: Res
B10: MonthFlow | C10: Meter Read Dates | E10: Days/ Cycle | F10: Heating Degree Days | H10: Difference | I10: No. of Bills | J10: Beta Coeff. | K10: WNAR | L10: WRVR | M10: WNAi | N10: Billing Determinants | O10: Mo Adj.
C11: Begin | D11: End | F11: NDDij | G11: ADDij | H11: (NDDij - ADDij) | I11: Cij | J11: b | K11: h*i*j | L11: Vol. Rate | M11: k*l | O11: m/n
B12: =$C$7 -> 44743 | C12: =SUMPRODUCT((MeterReadSch[MonthBill]=$B12)*MeterReadSch[SEMO]) -> 44738 | D12: =SUMPRODUCT((MeterReadSch[MonthFlow]=$B12)*MeterReadSch[SEMO]) -> 44768 | E12: =D12-C12 -> 30 | F12: =SUMPRODUCT((CGITempAct[Date]>=$C12)*(CGITempAct[Date]<$D12)*CGITempAct[CGINHDD]) -> 0.1 | G12: =SUMPRODUCT((CGITempAct[Date]>=$C12)*(CGITempAct[Date]<$D12)*CGITempAct[CGIHDD]) -> 0 | H12: =F12-G12 -> 0.1 | I12: =SUMPRODUCT((NoOfBills[MonthFlow]=$B12)*NoOfBills[62-GRF]) -> 25990 | J12: =INDEX(BetaCoeff[BetaCoeff],MATCH(C$9,BetaCoeff[RateSched],0)) -> 0.110869 | K12: =H12*I12*J12 -> 288.148531 | L12: =SUMPRODUCT((VolRates[Month]=MONTH(B12))*(VolRates[62-GRF])) -> 0.24335 | M12: =ROUND(K12*L12,2) -> 70.12 | N12: =SUMPRODUCT((BillDeter[Region]=$C$4)*(BillDeter[CustClass]=D$9)*BillDeter[BillingDeterminants]) -> 15300894.64 | O12: =ROUND(M12/N12,5) -> 0
B13: =EDATE(B12,1) -> 44774 | C13: =SUMPRODUCT((MeterReadSch[MonthBill]=$B13)*MeterReadSch[SEMO]) -> 44768 | D13: =SUMPRODUCT((MeterReadSch[MonthFlow]=$B13)*MeterReadSch[SEMO]) -> 44800 | E13: =D13-C13 -> 32 | F13: =SUMPRODUCT((CGITempAct[Date]>=$C13)*(CGITempAct[Date]<$D13)*CGITempAct[CGINHDD]) -> 1 | G13: =SUMPRODUCT((CGITempAct[Date]>=$C13)*(CGITempAct[Date]<$D13)*CGITempAct[CGIHDD]) -> 0 | H13: =F13-G13 -> 1 | I13: =SUMPRODUCT((NoOfBills[MonthFlow]=$B13)*NoOfBills[62-GRF]) -> 25939 | J13: =INDEX(BetaCoeff[BetaCoeff],MATCH(C$9,BetaCoeff[RateSched],0)) -> 0.110869 | K13: =H13*I13*J13 -> 2875.830991 | L13: =SUMPRODUCT((VolRates[Month]=MONTH(B13))*(VolRates[62-GRF])) -> 0.24335 | M13: =ROUND(K13*L13,2) -> 699.83 | N13: =SUMPRODUCT((BillDeter[Region]=$C$4)*(BillDeter[CustClass]=D$9)*BillDeter[BillingDeterminants]) -> 15300894.64 | O13: =ROUND(M13/N13,5) -> 5e-05
B14: =EDATE(B13,1) -> 44805 | C14: =SUMPRODUCT((MeterReadSch[MonthBill]=$B14)*MeterReadSch[SEMO]) -> 44800 | D14: =SUMPRODUCT((MeterReadSch[MonthFlow]=$B14)*MeterReadSch[SEMO]) -> 44830 | E14: 30 | F14: =SUMPRODUCT((CGITempAct[Date]>=$C14)*(CGITempAct[Date]<$D14)*CGITempAct[CGINHDD]) -> 5.5 | G14: =SUMPRODUCT((CGITempAct[Date]>=$C14)*(CGITempAct[Date]<$D14)*CGITempAct[CGIHDD]) -> 2 | H14: 3.5 | I14: =SUMPRODUCT((NoOfBills[MonthFlow]=$B14)*NoOfBills[62-GRF]) -> 25919 | J14: =INDEX(BetaCoeff[BetaCoeff],MATCH(C$9,BetaCoeff[RateSched],0)) -> 0.110869 | K14: 10057.64764 | L14: =SUMPRODUCT((VolRates[Month]=MONTH(B14))*(VolRates[62-GRF])) -> 0.24335 | M14: 2447.53 | N14: =SUMPRODUCT((BillDeter[Region]=$C$4)*(BillDeter[CustClass]=D$9)*BillDeter[BillingDeterminants]) -> 15300894.64 | O14: 0.00016
B15: 44835 | C15: =SUMPRODUCT((MeterReadSch[MonthBill]=$B15)*MeterReadSch[SEMO]) -> 44830 | D15: =SUMPRODUCT((MeterReadSch[MonthFlow]=$B15)*MeterReadSch[SEMO]) -> 44860 | E15: 30 | F15: =SUMPRODUCT((CGITempAct[Date]>=$C15)*(CGITempAct[Date]<$D15)*CGITempAct[CGINHDD]) -> 235.6 | G15: =SUMPRODUCT((CGITempAct[Date]>=$C15)*(CGITempAct[Date]<$D15)*CGITempAct[CGIHDD]) -> 246.5 | H15: -10.9 | I15: =SUMPRODUCT((NoOfBills[MonthFlow]=$B15)*NoOfBills[62-GRF]) -> 26420 | J15: =INDEX(BetaCoeff[BetaCoeff],MATCH(C$9,BetaCoeff[RateSched],0)) -> 0.110869 | K15: -31927.83288 | L15: =SUMPRODUCT((VolRates[Month]=MONTH(B15))*(VolRates[62-GRF])) -> 0.24335 | M15: -7769.64 | N15: =SUMPRODUCT((BillDeter[Region]=$C$4)*(BillDeter[CustClass]=D$9)*BillDeter[BillingDeterminants]) -> 15300894.64 | O15: -0.00051
B16: 44866 | C16: =SUMPRODUCT((MeterReadSch[MonthBill]=$B16)*MeterReadSch[SEMO]) -> 44860 | D16: =SUMPRODUCT((MeterReadSch[MonthFlow]=$B16)*MeterReadSch[SEMO]) -> 44888 | E16: 28 | F16: =SUMPRODUCT((CGITempAct[Date]>=$C16)*(CGITempAct[Date]<$D16)*CGITempAct[CGINHDD]) -> 458.9 | G16: =SUMPRODUCT((CGITempAct[Date]>=$C16)*(CGITempAct[Date]<$D16)*CGITempAct[CGIHDD]) -> 477.5 | H16: -18.6 | I16: =SUMPRODUCT((NoOfBills[MonthFlow]=$B16)*NoOfBills[62-GRF]) -> 26415 | J16: =INDEX(BetaCoeff[BetaCoeff],MATCH(C$9,BetaCoeff[RateSched],0)) -> 0.110869 | K16: -54472.04621 | L16: =SUMPRODUCT((VolRates[Month]=MONTH(B16))*(VolRates[62-GRF])) -> 0.24335 | M16: -13255.77 | N16: =SUMPRODUCT((BillDeter[Region]=$C$4)*(BillDeter[CustClass]=D$9)*BillDeter[BillingDeterminants]) -> 15300894.64 | O16: -0.00087
B17: 44896 | C17: =SUMPRODUCT((MeterReadSch[MonthBill]=$B17)*MeterReadSch[SEMO]) -> 44888 | D17: =SUMPRODUCT((MeterReadSch[MonthFlow]=$B17)*MeterReadSch[SEMO]) -> 44916 | E17: 28 | F17: =SUMPRODUCT((CGITempAct[Date]>=$C17)*(CGITempAct[Date]<$D17)*CGITempAct[CGINHDD]) -> 656.2 | G17: =SUMPRODUCT((CGITempAct[Date]>=$C17)*(CGITempAct[Date]<$D17)*CGITempAct[CGIHDD]) -> 632.5 | H17: 23.7 | I17: =SUMPRODUCT((NoOfBills[MonthFlow]=$B17)*NoOfBills[62-GRF]) -> 26654 | J17: =INDEX(BetaCoeff[BetaCoeff],MATCH(C$9,BetaCoeff[RateSched],0)) -> 0.110869 | K17: 70035.92513 | L17: =SUMPRODUCT((VolRates[Month]=MONTH(B17))*(VolRates[62-GRF])) -> 0.24335 | M17: 17043.24 | N17: =SUMPRODUCT((BillDeter[Region]=$C$4)*(BillDeter[CustClass]=D$9)*BillDeter[BillingDeterminants]) -> 15300894.64 | O17: 0.00111
B18: Totals | C18: =C12 -> 44738 | D18: =D17 -> 44916 | E18: 178 | F18: =SUM(F12:F17) -> 1357.3 | G18: 1358.5 | H18: -1.2 | I18: =SUM(I12:I17) -> 157337 | J18: =J17 -> 0.110869 | K18: =SUM(K12:K17) -> -3142.326806 | L18: =L17 -> 0.24335 | M18: =ROUND(SUM(M12:M17),2) -> -764.69 | N18: =N17 -> 15300894.64 | O18: -5e-05
B19: Reconciling Period Adj. | D19: =M18 -> -764.69 | E19: Enter in Reconciling Period Adjustment Table (ReconPerAdj)
B20: Enter WNA Amounts in Column M in CSWNA Amounts Table
B22: Small Comm. | C22: 62-GCSF | D22: SGS
B23: MonthFlow | C23: Meter Read Dates | E23: Days/ Cycle | F23: Heating Degree Days | H23: Difference | I23: No. of Bills | J23: Beta Coeff. | K23: WNAR | L23: WRVR | M23: WNAi | N23: Billing Determinants | O23: Mo Adj.
C24: Begin | D24: End | F24: NDDij | G24: ADDij | H24: (NDDij - ADDij) | I24: Cij | J24: b | K24: h*i*j | L24: Vol. Rate | M24: k*l | O24: m/n
B25: =$C$7 -> 44743 | C25: =SUMPRODUCT((MeterReadSch[MonthBill]=$B25)*MeterReadSch[SEMO]) -> 44738 | D25: =SUMPRODUCT((MeterReadSch[MonthFlow]=$B25)*MeterReadSch[SEMO]) -> 44768 | E25: =D25-C25 -> 30 | F25: =SUMPRODUCT((CGITempAct[Date]>=$C25)*(CGITempAct[Date]<$D25)*CGITempAct[CGINHDD]) -> 0.1 | G25: =SUMPRODUCT((CGITempAct[Date]>=$C25)*(CGITempAct[Date]<$D25)*CGITempAct[CGIHDD]) -> 0 | H25: =F25-G25 -> 0.1 | I25: =SUMPRODUCT((NoOfBills[MonthFlow]=$B25)*NoOfBills[62-GCSF]) -> 3129 | J25: =INDEX(BetaCoeff[BetaCoeff],MATCH(C$22,BetaCoeff[RateSched],0)) -> 0.2371604 | K25: =H25*I25*J25 -> 74.20748916 | L25: =SUMPRODUCT((VolRates[Month]=MONTH(B25))*(VolRates[62-GCSF])) -> 0.08312 | M25: =ROUND(K25*L25,2) -> 6.17 | N25: =SUMPRODUCT((BillDeter[Region]=$C$4)*(BillDeter[CustClass]=D$22)*BillDeter[BillingDeterminants]) -> 3908443.556 | O25: =ROUND(M25/N25,5) -> 0
B26: =EDATE(B25,1) -> 44774 | C26: =SUMPRODUCT((MeterReadSch[MonthBill]=$B26)*MeterReadSch[SEMO]) -> 44768 | D26: =SUMPRODUCT((MeterReadSch[MonthFlow]=$B26)*MeterReadSch[SEMO]) -> 44800 | E26: =D26-C26 -> 32 | F26: =SUMPRODUCT((CGITempAct[Date]>=$C26)*(CGITempAct[Date]<$D26)*CGITempAct[CGINHDD]) -> 1 | G26: =SUMPRODUCT((CGITempAct[Date]>=$C26)*(CGITempAct[Date]<$D26)*CGITempAct[CGIHDD]) -> 0 | H26: =F26-G26 -> 1 | I26: =SUMPRODUCT((NoOfBills[MonthFlow]=$B26)*NoOfBills[62-GCSF]) -> 3124 | J26: =INDEX(BetaCoeff[BetaCoeff],MATCH(C$22,BetaCoeff[RateSched],0)) -> 0.2371604 | K26: =H26*I26*J26 -> 740.8890896 | L26: =SUMPRODUCT((VolRates[Month]=MONTH(B26))*(VolRates[62-GCSF])) -> 0.08312 | M26: =ROUND(K26*L26,2) -> 61.58 | N26: =SUMPRODUCT((BillDeter[Region]=$C$4)*(BillDeter[CustClass]=D$22)*BillDeter[BillingDeterminants]) -> 3908443.556 | O26: =ROUND(M26/N26,5) -> 2e-05
B27: =EDATE(B26,1) -> 44805 | C27: =SUMPRODUCT((MeterReadSch[MonthBill]=$B27)*MeterReadSch[SEMO]) -> 44800 | D27: =SUMPRODUCT((MeterReadSch[MonthFlow]=$B27)*MeterReadSch[SEMO]) -> 44830 | E27: 30 | F27: =SUMPRODUCT((CGITempAct[Date]>=$C27)*(CGITempAct[Date]<$D27)*CGITempAct[CGINHDD]) -> 5.5 | G27: =SUMPRODUCT((CGITempAct[Date]>=$C27)*(CGITempAct[Date]<$D27)*CGITempAct[CGIHDD]) -> 2 | H27: 3.5 | I27: =SUMPRODUCT((NoOfBills[MonthFlow]=$B27)*NoOfBills[62-GCSF]) -> 3125 | J27: =INDEX(BetaCoeff[BetaCoeff],MATCH(C$22,BetaCoeff[RateSched],0)) -> 0.2371604 | K27: 2593.941875 | L27: =SUMPRODUCT((VolRates[Month]=MONTH(B27))*(VolRates[62-GCSF])) -> 0.08312 | M27: 215.61 | N27: =SUMPRODUCT((BillDeter[Region]=$C$4)*(BillDeter[CustClass]=D$22)*BillDeter[BillingDeterminants]) -> 3908443.556 | O27: 6e-05
B28: 44835 | C28: =SUMPRODUCT((MeterReadSch[MonthBill]=$B28)*MeterReadSch[SEMO]) -> 44830 | D28: =SUMPRODUCT((MeterReadSch[MonthFlow]=$B28)*MeterReadSch[SEMO]) -> 44860 | E28: 30 | F28: =SUMPRODUCT((CGITempAct[Date]>=$C28)*(CGITempAct[Date]<$D28)*CGITempAct[CGINHDD]) -> 235.6 | G28: =SUMPRODUCT((CGITempAct[Date]>=$C28)*(CGITempAct[Date]<$D28)*CGITempAct[CGIHDD]) -> 246.5 | H28: -10.9 | I28: =SUMPRODUCT((NoOfBills[MonthFlow]=$B28)*NoOfBills[62-GCSF]) -> 3146 | J28: =INDEX(BetaCoeff[BetaCoeff],MATCH(C$22,BetaCoeff[RateSched],0)) -> 0.2371604 | K28: -8132.562141 | L28: =SUMPRODUCT((VolRates[Month]=MONTH(B28))*(VolRates[62-GCSF])) -> 0.08312 | M28: -675.98 | N28: =SUMPRODUCT((BillDeter[Region]=$C$4)*(BillDeter[CustClass]=D$22)*BillDeter[BillingDeterminants]) -> 3908443.556 | O28: -0.00017
B29: 44866 | C29: =SUMPRODUCT((MeterReadSch[MonthBill]=$B29)*MeterReadSch[SEMO]) -> 44860 | D29: =SUMPRODUCT((MeterReadSch[MonthFlow]=$B29)*MeterReadSch[SEMO]) -> 44888 | E29: 28 | F29: =SUMPRODUCT((CGITempAct[Date]>=$C29)*(CGITempAct[Date]<$D29)*CGITempAct[CGINHDD]) -> 458.9 | G29: =SUMPRODUCT((CGITempAct[Date]>=$C29)*(CGITempAct[Date]<$D29)*CGITempAct[CGIHDD]) -> 477.5 | H29: -18.6 | I29: =SUMPRODUCT((NoOfBills[MonthFlow]=$B29)*NoOfBills[62-GCSF]) -> 3190 | J29: =INDEX(BetaCoeff[BetaCoeff],MATCH(C$22,BetaCoeff[RateSched],0)) -> 0.2371604 | K29: -14071.67517 | L29: =SUMPRODUCT((VolRates[Month]=MONTH(B29))*(VolRates[62-GCSF])) -> 0.08312 | M29: -1169.64 | N29: =SUMPRODUCT((BillDeter[Region]=$C$4)*(BillDeter[CustClass]=D$22)*BillDeter[BillingDeterminants]) -> 3908443.556 | O29: -0.0003
B30: 44896 | C30: =SUMPRODUCT((MeterReadSch[MonthBill]=$B30)*MeterReadSch[SEMO]) -> 44888 | D30: =SUMPRODUCT((MeterReadSch[MonthFlow]=$B30)*MeterReadSch[SEMO]) -> 44916 | E30: 28 | F30: =SUMPRODUCT((CGITempAct[Date]>=$C30)*(CGITempAct[Date]<$D30)*CGITempAct[CGINHDD]) -> 656.2 | G30: =SUMPRODUCT((CGITempAct[Date]>=$C30)*(CGITempAct[Date]<$D30)*CGITempAct[CGIHDD]) -> 632.5 | H30: 23.7 | I30: =SUMPRODUCT((NoOfBills[MonthFlow]=$B30)*NoOfBills[62-GCSF]) -> 3222 | J30: =INDEX(BetaCoeff[BetaCoeff],MATCH(C$22,BetaCoeff[RateSched],0)) -> 0.2371604 | K30: 18109.90017 | L30: =SUMPRODUCT((VolRates[Month]=MONTH(B30))*(VolRates[62-GCSF])) -> 0.08312 | M30: 1505.29 | N30: =SUMPRODUCT((BillDeter[Region]=$C$4)*(BillDeter[CustClass]=D$22)*BillDeter[BillingDeterminants]) -> 3908443.556 | O30: 0.00039
B31: Totals | C31: =C25 -> 44738 | D31: =D30 -> 44916 | E31: 178 | F31: =SUM(F25:F30) -> 1357.3 | G31: =SUM(G25:G30) -> 1358.5 | H31: =SUM(H25:H30) -> -1.2 | I31: =SUM(I25:I30) -> 18936 | J31: =J30 -> 0.2371604 | K31: =SUM(K25:K30) -> -685.2986918 | L31: =L30 -> 0.08312 | M31: =ROUND(SUM(M25:M30),2) -> -56.97 | N31: =N30 -> 3908443.556 | O31: -1e-05
B32: Reconciling Period Adj. | D32: =M31 -> -56.97 | E32: Enter in Reconciling Period Adjustment Table (ReconPerAdj)
B33: Enter WNA Amounts in Column M in CSWNA Amounts Table

Sheet CSWNA WEMO
B2: Liberty Midstates | F2: Filing Period
B3: Billing Cycle and HDD Data Summary | F3: Year | G3: Period
B4: Territory | C4: WEMO
B5: Year | C5: =DateSet!C2 -> 2023
B6: Period | C6: =DateSet!C3 -> S1
B7: Analysis Start | C7: =DateSet!J8 -> 2022-07-01
B9: Residential | C9: 61-GRF | D9: Res
B10: MonthFlow | C10: Meter Read Dates | E10: Days/ Cycle | F10: Heating Degree Days | H10: Difference | I10: No. of Bills | J10: Beta Coeff. | K10: WNAR | L10: WRVR | M10: WNAi | N10: Billing Determinants | O10: Mo Adj.
C11: Begin | D11: End | F11: NDDij | G11: ADDij | H11: (NDDij - ADDij) | I11: Cij | J11: b | K11: h*i*j | L11: Vol. Rate | M11: k*l | O11: m/n
B12: =$C$7 -> 44743 | C12: =SUMPRODUCT((MeterReadSch[MonthBill]=$B12)*MeterReadSch[WEMO]) -> 44737 | D12: =SUMPRODUCT((MeterReadSch[MonthFlow]=$B12)*MeterReadSch[WEMO]) -> 44768 | E12: =D12-C12 -> 31 | F12: =SUMPRODUCT((ChillTempAct[Date]>=$C12)*(ChillTempAct[Date]<$D12)*ChillTempAct[ChillNHDD]) -> 2.887222222 | G12: =SUMPRODUCT((ChillTempAct[Date]>=$C12)*(ChillTempAct[Date]<$D12)*ChillTempAct[ChillAdjHDD]) -> 0 | H12: =F12-G12 -> 2.887222222 | I12: =SUMPRODUCT((NoOfBills[MonthFlow]=$B12)*NoOfBills[61-GRF]) -> 3115 | J12: =INDEX(BetaCoeff[BetaCoeff],MATCH(C$9,BetaCoeff[RateSched],0)) -> 0.1125474 | K12: =H12*I12*J12 -> 1012.217239 | L12: =SUMPRODUCT((VolRates[Month]=MONTH(B12))*(VolRates[61-GRF])) -> 0.33048 | M12: =ROUND(K12*L12,2) -> 334.52 | N12: =SUMPRODUCT((BillDeter[Region]=$C$4)*(BillDeter[CustClass]=D$9)*BillDeter[BillingDeterminants]) -> 2140376.989 | O12: =ROUND(M12/N12,5) -> 0.00016
B13: =EDATE(B12,1) -> 44774 | C13: =SUMPRODUCT((MeterReadSch[MonthBill]=$B13)*MeterReadSch[WEMO]) -> 44768 | D13: =SUMPRODUCT((MeterReadSch[MonthFlow]=$B13)*MeterReadSch[WEMO]) -> 44799 | E13: =D13-C13 -> 31 | F13: =SUMPRODUCT((ChillTempAct[Date]>=$C13)*(ChillTempAct[Date]<$D13)*ChillTempAct[ChillNHDD]) -> 8.380501792 | G13: =SUMPRODUCT((ChillTempAct[Date]>=$C13)*(ChillTempAct[Date]<$D13)*ChillTempAct[ChillAdjHDD]) -> 0 | H13: =F13-G13 -> 8.380501792 | I13: =SUMPRODUCT((NoOfBills[MonthFlow]=$B13)*NoOfBills[61-GRF]) -> 3123 | J13: =INDEX(BetaCoeff[BetaCoeff],MATCH(C$9,BetaCoeff[RateSched],0)) -> 0.1125474 | K13: =H13*I13*J13 -> 2945.625116 | L13: =SUMPRODUCT((VolRates[Month]=MONTH(B13))*(VolRates[61-GRF])) -> 0.33004 | M13: 972.17 | N13: =SUMPRODUCT((BillDeter[Region]=$C$4)*(BillDeter[CustClass]=D$9)*BillDeter[BillingDeterminants]) -> 2140376.989 | O13: =ROUND(M13/N13,5) -> 0.00045
B14: =EDATE(B13,1) -> 44805 | C14: =SUMPRODUCT((MeterReadSch[MonthBill]=$B14)*MeterReadSch[WEMO]) -> 44799 | D14: =SUMPRODUCT((MeterReadSch[MonthFlow]=$B14)*MeterReadSch[WEMO]) -> 44829 | E14: 30 | F14: =SUMPRODUCT((ChillTempAct[Date]>=$C14)*(ChillTempAct[Date]<$D14)*ChillTempAct[ChillNHDD]) -> 45.05296296 | G14: =SUMPRODUCT((ChillTempAct[Date]>=$C14)*(ChillTempAct[Date]<$D14)*ChillTempAct[ChillAdjHDD]) -> 32.07785 | H14: 12.97511296 | I14: =SUMPRODUCT((NoOfBills[MonthFlow]=$B14)*NoOfBills[61-GRF]) -> 3100 | J14: =INDEX(BetaCoeff[BetaCoeff],MATCH(C$9,BetaCoeff[RateSched],0)) -> 0.1125474 | K14: 4526.977209 | L14: =SUMPRODUCT((VolRates[Month]=MONTH(B14))*(VolRates[61-GRF])) -> 0.33029 | M14: 1495.22 | N14: =SUMPRODUCT((BillDeter[Region]=$C$4)*(BillDeter[CustClass]=D$9)*BillDeter[BillingDeterminants]) -> 2140376.989 | O14: 0.0007
B15: 44835 | C15: =SUMPRODUCT((MeterReadSch[MonthBill]=$B15)*MeterReadSch[WEMO]) -> 44829 | D15: =SUMPRODUCT((MeterReadSch[MonthFlow]=$B15)*MeterReadSch[WEMO]) -> 44860 | E15: 31 | F15: =SUMPRODUCT((ChillTempAct[Date]>=$C15)*(ChillTempAct[Date]<$D15)*ChillTempAct[ChillNHDD]) -> 320.529546 | G15: =SUMPRODUCT((ChillTempAct[Date]>=$C15)*(ChillTempAct[Date]<$D15)*ChillTempAct[ChillAdjHDD]) -> 334.5536 | H15: -14.024054 | I15: =SUMPRODUCT((NoOfBills[MonthFlow]=$B15)*NoOfBills[61-GRF]) -> 3194 | J15: =INDEX(BetaCoeff[BetaCoeff],MATCH(C$9,BetaCoeff[RateSched],0)) -> 0.1125474 | K15: -5041.316384 | L15: =SUMPRODUCT((VolRates[Month]=MONTH(B15))*(VolRates[61-GRF])) -> 0.33187 | M15: -1673.06 | N15: =SUMPRODUCT((BillDeter[Region]=$C$4)*(BillDeter[CustClass]=D$9)*BillDeter[BillingDeterminants]) -> 2140376.989 | O15: -0.00078
B16: 44866 | C16: =SUMPRODUCT((MeterReadSch[MonthBill]=$B16)*MeterReadSch[WEMO]) -> 44860 | D16: =SUMPRODUCT((MeterReadSch[MonthFlow]=$B16)*MeterReadSch[WEMO]) -> 44888 | E16: 28 | F16: =SUMPRODUCT((ChillTempAct[Date]>=$C16)*(ChillTempAct[Date]<$D16)*ChillTempAct[ChillNHDD]) -> 602.7387814 | G16: =SUMPRODUCT((ChillTempAct[Date]>=$C16)*(ChillTempAct[Date]<$D16)*ChillTempAct[ChillAdjHDD]) -> 648.8464 | H16: -46.10761864 | I16: =SUMPRODUCT((NoOfBills[MonthFlow]=$B16)*NoOfBills[61-GRF]) -> 3197 | J16: =INDEX(BetaCoeff[BetaCoeff],MATCH(C$9,BetaCoeff[RateSched],0)) -> 0.1125474 | K16: -16590.16844 | L16: =SUMPRODUCT((VolRates[Month]=MONTH(B16))*(VolRates[61-GRF])) -> 0.33607 | M16: -5575.46 | N16: =SUMPRODUCT((BillDeter[Region]=$C$4)*(BillDeter[CustClass]=D$9)*BillDeter[BillingDeterminants]) -> 2140376.989 | O16: -0.0026
B17: 44896 | C17: =SUMPRODUCT((MeterReadSch[MonthBill]=$B17)*MeterReadSch[WEMO]) -> 44888 | D17: =SUMPRODUCT((MeterReadSch[MonthFlow]=$B17)*MeterReadSch[WEMO]) -> 44921 | E17: 33 | F17: =SUMPRODUCT((ChillTempAct[Date]>=$C17)*(ChillTempAct[Date]<$D17)*ChillTempAct[ChillNHDD]) -> 1101.520054 | G17: =SUMPRODUCT((ChillTempAct[Date]>=$C17)*(ChillTempAct[Date]<$D17)*ChillTempAct[ChillAdjHDD]) -> 1194.5903 | H17: -93.07024624 | I17: =SUMPRODUCT((NoOfBills[MonthFlow]=$B17)*NoOfBills[61-GRF]) -> 3253 | J17: =INDEX(BetaCoeff[BetaCoeff],MATCH(C$9,BetaCoeff[RateSched],0)) -> 0.1125474 | K17: -34074.57069 | L17: =SUMPRODUCT((VolRates[Month]=MONTH(B17))*(VolRates[61-GRF])) -> 0.33607 | M17: -11451.44 | N17: =SUMPRODUCT((BillDeter[Region]=$C$4)*(BillDeter[CustClass]=D$9)*BillDeter[BillingDeterminants]) -> 2140376.989 | O17: -0.00535
B18: Totals | C18: =C12 -> 44737 | D18: =D17 -> 44921 | E18: 184 | F18: =SUM(F12:F17) -> 2081.109068 | G18: 2210.06815 | H18: -128.9590819 | I18: =SUM(I12:I17) -> 18982 | J18: =J17 -> 0.1125474 | K18: =SUM(K12:K17) -> -47221.23595 | L18: =L17 -> 0.33607 | M18: =ROUND(SUM(M12:M17),2) -> -15898.05 | N18: =N17 -> 2140376.989 | O18: -0.00743
B19: Reconciling Period Adj. | D19: =M18 -> -15898.05 | E19: Enter in Reconciling Period Adjustment Table (ReconPerAdj)
B20: Enter WNA Amounts in Column M in CSWNA Amounts Table
B22: Small Comm. | C22: 61-GCSF | D22: SGS
B23: MonthFlow | C23: Meter Read Dates | E23: Days/ Cycle | F23: Heating Degree Days | H23: Difference | I23: No. of Bills | J23: Beta Coeff. | K23: WNAR | L23: WRVR | M23: WNAi | N23: Billing Determinants | O23: Mo Adj.
C24: Begin | D24: End | F24: NDDij | G24: ADDij | H24: (NDDij - ADDij) | I24: Cij | J24: b | K24: h*i*j | L24: Vol. Rate | M24: k*l | O24: m/n
B25: =$C$7 -> 44743 | C25: =SUMPRODUCT((MeterReadSch[MonthBill]=$B25)*MeterReadSch[WEMO]) -> 44737 | D25: =SUMPRODUCT((MeterReadSch[MonthFlow]=$B25)*MeterReadSch[WEMO]) -> 44768 | E25: =D25-C25 -> 31 | F25: =SUMPRODUCT((ChillTempAct[Date]>=$C25)*(ChillTempAct[Date]<$D25)*ChillTempAct[ChillNHDD]) -> 2.887222222 | G25: =SUMPRODUCT((ChillTempAct[Date]>=$C25)*(ChillTempAct[Date]<$D25)*ChillTempAct[ChillAdjHDD]) -> 0 | H25: =F25-G25 -> 2.887222222 | I25: =SUMPRODUCT((NoOfBills[MonthFlow]=$B25)*NoOfBills[61-GCSF]) -> 494 | J25: =INDEX(BetaCoeff[BetaCoeff],MATCH(C$22,BetaCoeff[RateSched],0)) -> 0.2389388 | K25: =H25*I25*J25 -> 340.7954901 | L25: =SUMPRODUCT((VolRates[Month]=MONTH(B25))*(VolRates[61-GCSF])) -> 0.14216 | M25: =ROUND(K25*L25,2) -> 48.45 | N25: =SUMPRODUCT((BillDeter[Region]=$C$4)*(BillDeter[CustClass]=D$22)*BillDeter[BillingDeterminants]) -> 700365.6444 | O25: =ROUND(M25/N25,5) -> 7e-05
B26: =EDATE(B25,1) -> 44774 | C26: =SUMPRODUCT((MeterReadSch[MonthBill]=$B26)*MeterReadSch[WEMO]) -> 44768 | D26: =SUMPRODUCT((MeterReadSch[MonthFlow]=$B26)*MeterReadSch[WEMO]) -> 44799 | E26: =D26-C26 -> 31 | F26: =SUMPRODUCT((ChillTempAct[Date]>=$C26)*(ChillTempAct[Date]<$D26)*ChillTempAct[ChillNHDD]) -> 8.380501792 | G26: =SUMPRODUCT((ChillTempAct[Date]>=$C26)*(ChillTempAct[Date]<$D26)*ChillTempAct[ChillAdjHDD]) -> 0 | H26: =F26-G26 -> 8.380501792 | I26: =SUMPRODUCT((NoOfBills[MonthFlow]=$B26)*NoOfBills[61-GCSF]) -> 491 | J26: =INDEX(BetaCoeff[BetaCoeff],MATCH(C$22,BetaCoeff[RateSched],0)) -> 0.2389388 | K26: =H26*I26*J26 -> 983.1916774 | L26: =SUMPRODUCT((VolRates[Month]=MONTH(B26))*(VolRates[61-GCSF])) -> 0.14216 | M26: 139.77 | N26: =SUMPRODUCT((BillDeter[Region]=$C$4)*(BillDeter[CustClass]=D$22)*BillDeter[BillingDeterminants]) -> 700365.6444 | O26: =ROUND(M26/N26,5) -> 0.0002
B27: =EDATE(B26,1) -> 44805 | C27: =SUMPRODUCT((MeterReadSch[MonthBill]=$B27)*MeterReadSch[WEMO]) -> 44799 | D27: =SUMPRODUCT((MeterReadSch[MonthFlow]=$B27)*MeterReadSch[WEMO]) -> 44829 | E27: 30 | F27: =SUMPRODUCT((ChillTempAct[Date]>=$C27)*(ChillTempAct[Date]<$D27)*ChillTempAct[ChillNHDD]) -> 45.05296296 | G27: =SUMPRODUCT((ChillTempAct[Date]>=$C27)*(ChillTempAct[Date]<$D27)*ChillTempAct[ChillAdjHDD]) -> 32.07785 | H27: 12.97511296 | I27: =SUMPRODUCT((NoOfBills[MonthFlow]=$B27)*NoOfBills[61-GCSF]) -> 489 | J27: =INDEX(BetaCoeff[BetaCoeff],MATCH(C$22,BetaCoeff[RateSched],0)) -> 0.2389388 | K27: 1516.026123 | L27: =SUMPRODUCT((VolRates[Month]=MONTH(B27))*(VolRates[61-GCSF])) -> 0.14216 | M27: 215.52 | N27: =SUMPRODUCT((BillDeter[Region]=$C$4)*(BillDeter[CustClass]=D$22)*BillDeter[BillingDeterminants]) -> 700365.6444 | O27: 0.00031
B28: 44835 | C28: =SUMPRODUCT((MeterReadSch[MonthBill]=$B28)*MeterReadSch[WEMO]) -> 44829 | D28: =SUMPRODUCT((MeterReadSch[MonthFlow]=$B28)*MeterReadSch[WEMO]) -> 44860 | E28: 31 | F28: =SUMPRODUCT((ChillTempAct[Date]>=$C28)*(ChillTempAct[Date]<$D28)*ChillTempAct[ChillNHDD]) -> 320.529546 | G28: =SUMPRODUCT((ChillTempAct[Date]>=$C28)*(ChillTempAct[Date]<$D28)*ChillTempAct[ChillAdjHDD]) -> 334.5536 | H28: -14.024054 | I28: =SUMPRODUCT((NoOfBills[MonthFlow]=$B28)*NoOfBills[61-GCSF]) -> 503 | J28: =INDEX(BetaCoeff[BetaCoeff],MATCH(C$22,BetaCoeff[RateSched],0)) -> 0.2389388 | K28: -1685.497989 | L28: =SUMPRODUCT((VolRates[Month]=MONTH(B28))*(VolRates[61-GCSF])) -> 0.14216 | M28: -239.61 | N28: =SUMPRODUCT((BillDeter[Region]=$C$4)*(BillDeter[CustClass]=D$22)*BillDeter[BillingDeterminants]) -> 700365.6444 | O28: -0.00034
B29: 44866 | C29: =SUMPRODUCT((MeterReadSch[MonthBill]=$B29)*MeterReadSch[WEMO]) -> 44860 | D29: =SUMPRODUCT((MeterReadSch[MonthFlow]=$B29)*MeterReadSch[WEMO]) -> 44888 | E29: 28 | F29: =SUMPRODUCT((ChillTempAct[Date]>=$C29)*(ChillTempAct[Date]<$D29)*ChillTempAct[ChillNHDD]) -> 602.7387814 | G29: =SUMPRODUCT((ChillTempAct[Date]>=$C29)*(ChillTempAct[Date]<$D29)*ChillTempAct[ChillAdjHDD]) -> 648.8464 | H29: -46.10761864 | I29: =SUMPRODUCT((NoOfBills[MonthFlow]=$B29)*NoOfBills[61-GCSF]) -> 509 | J29: =INDEX(BetaCoeff[BetaCoeff],MATCH(C$22,BetaCoeff[RateSched],0)) -> 0.2389388 | K29: -5607.601626 | L29: =SUMPRODUCT((VolRates[Month]=MONTH(B29))*(VolRates[61-GCSF])) -> 0.14216 | M29: -797.18 | N29: =SUMPRODUCT((BillDeter[Region]=$C$4)*(BillDeter[CustClass]=D$22)*BillDeter[BillingDeterminants]) -> 700365.6444 | O29: -0.00114
B30: 44896 | C30: =SUMPRODUCT((MeterReadSch[MonthBill]=$B30)*MeterReadSch[WEMO]) -> 44888 | D30: =SUMPRODUCT((MeterReadSch[MonthFlow]=$B30)*MeterReadSch[WEMO]) -> 44921 | E30: 33 | F30: =SUMPRODUCT((ChillTempAct[Date]>=$C30)*(ChillTempAct[Date]<$D30)*ChillTempAct[ChillNHDD]) -> 1101.520054 | G30: =SUMPRODUCT((ChillTempAct[Date]>=$C30)*(ChillTempAct[Date]<$D30)*ChillTempAct[ChillAdjHDD]) -> 1194.5903 | H30: -93.07024624 | I30: =SUMPRODUCT((NoOfBills[MonthFlow]=$B30)*NoOfBills[61-GCSF]) -> 516 | J30: =INDEX(BetaCoeff[BetaCoeff],MATCH(C$22,BetaCoeff[RateSched],0)) -> 0.2389388 | K30: -11474.85596 | L30: =SUMPRODUCT((VolRates[Month]=MONTH(B30))*(VolRates[61-GCSF])) -> 0.14216 | M30: -1631.27 | N30: =SUMPRODUCT((BillDeter[Region]=$C$4)*(BillDeter[CustClass]=D$22)*BillDeter[BillingDeterminants]) -> 700365.6444 | O30: -0.00233
B31: Totals | C31: =C25 -> 44737 | D31: =D30 -> 44921 | E31: 184 | F31: =SUM(F25:F30) -> 2081.109068 | G31: =SUM(G25:G30) -> 2210.06815 | H31: =SUM(H25:H30) -> -128.9590819 | I31: =SUM(I25:I30) -> 3002 | J31: =J30 -> 0.2389388 | K31: =SUM(K25:K30) -> -15927.94229 | L31: =L30 -> 0.14216 | M31: =ROUND(SUM(M25:M30),2) -> -2264.32 | N31: =N30 -> 700365.6444 | O31: -0.00323
B32: Reconciling Period Adj. | D32: =M31 -> -2264.32 | E32: Enter in Reconciling Period Adjustment Table (ReconPerAdj)
B33: Enter WNA Amounts in Column M in CSWNA Amounts Table

Sheet CSWNA NEMO
B2: Liberty Midstates | F2: Filing Period
B3: Billing Cycle and HDD Data Summary | F3: Year | G3: Period
B4: Territory | C4: NEMO
B5: Year | C5: =DateSet!C2 -> 2023
B6: Period | C6: =DateSet!C3 -> S1
B7: Analysis Start | C7: =DateSet!J8 -> 2022-07-01
B9: Residential | C9: 60-GRF | D9: 63-GRF | E9: Res
B10: MonthFlow | C10: Meter Read Dates | E10: Days/ Cycle | F10: Heating Degree Days | H10: Difference | I10: No. of Bills | J10: Beta Coeff. | K10: WNAR | L10: WRVR | M10: WNAi | N10: Billing Determinants | O10: Mo Adj.
C11: Begin | D11: End | F11: NDDij | G11: ADDij | H11: (NDDij - ADDij) | I11: Cij | J11: b | K11: h*i*j | L11: Vol. Rate | M11: k*l | O11: m/n
B12: =$C$7 -> 44743 | C12: =SUMPRODUCT((MeterReadSch[MonthBill]=$B12)*MeterReadSch[NEMO]) -> 44742 | D12: =SUMPRODUCT((MeterReadSch[MonthFlow]=$B12)*MeterReadSch[NEMO]) -> 44773 | E12: =D12-C12 -> 31 | F12: =SUMPRODUCT((ChillTempAct[Date]>=$C12)*(ChillTempAct[Date]<$D12)*ChillTempAct[ChillNHDD]) -> 1.938620072 | G12: =SUMPRODUCT((ChillTempAct[Date]>=$C12)*(ChillTempAct[Date]<$D12)*ChillTempAct[ChillAdjHDD]) -> 0 | H12: =F12-G12 -> 1.938620072 | I12: =SUMPRODUCT((NoOfBills[MonthFlow]=$B12)*NoOfBills[60-GRF])+SUMPRODUCT((NoOfBills[MonthFlow]=$B12)*NoOfBills[63-GRF]) -> 14955 | J12: =INDEX(BetaCoeff[BetaCoeff],MATCH(D$9,BetaCoeff[RateSched],0)) -> 0.1125474 | K12: =H12*I12*J12 -> 3262.981331 | L12: =SUMPRODUCT((VolRates[Month]=MONTH(B12))*(VolRates[63-GRF])) -> 0.33048 | M12: =ROUND(K12*L12,2) -> 1078.35 | N12: =SUMPRODUCT((BillDeter[Region]=$C$4)*(BillDeter[CustClass]=E$9)*BillDeter[BillingDeterminants]) -> 11089284.46 | O12: =ROUND(M12/N12,5) -> 0.0001
B13: =EDATE(B12,1) -> 44774 | C13: =SUMPRODUCT((MeterReadSch[MonthBill]=$B13)*MeterReadSch[NEMO]) -> 44773 | D13: =SUMPRODUCT((MeterReadSch[MonthFlow]=$B13)*MeterReadSch[NEMO]) -> 44804 | E13: =D13-C13 -> 31 | F13: =SUMPRODUCT((ChillTempAct[Date]>=$C13)*(ChillTempAct[Date]<$D13)*ChillTempAct[ChillNHDD]) -> 6.44188172 | G13: =SUMPRODUCT((ChillTempAct[Date]>=$C13)*(ChillTempAct[Date]<$D13)*ChillTempAct[ChillAdjHDD]) -> 0 | H13: =F13-G13 -> 6.44188172 | I13: =SUMPRODUCT((NoOfBills[MonthFlow]=$B13)*NoOfBills[60-GRF])+SUMPRODUCT((NoOfBills[MonthFlow]=$B13)*NoOfBills[63-GRF]) -> 14975 | J13: =INDEX(BetaCoeff[BetaCoeff],MATCH(D$9,BetaCoeff[RateSched],0)) -> 0.1125474 | K13: =H13*I13*J13 -> 10857.13016 | L13: =SUMPRODUCT((VolRates[Month]=MONTH(B13))*(VolRates[63-GRF])) -> 0.33004 | M13: 3583.29 | N13: =SUMPRODUCT((BillDeter[Region]=$C$4)*(BillDeter[CustClass]=E$9)*BillDeter[BillingDeterminants]) -> 11089284.46 | O13: =ROUND(M13/N13,5) -> 0.00032
B14: =EDATE(B13,1) -> 44805 | C14: =SUMPRODUCT((MeterReadSch[MonthBill]=$B14)*MeterReadSch[NEMO]) -> 44804 | D14: =SUMPRODUCT((MeterReadSch[MonthFlow]=$B14)*MeterReadSch[NEMO]) -> 44834 | E14: 30 | F14: =SUMPRODUCT((ChillTempAct[Date]>=$C14)*(ChillTempAct[Date]<$D14)*ChillTempAct[ChillNHDD]) -> 80.76925926 | G14: =SUMPRODUCT((ChillTempAct[Date]>=$C14)*(ChillTempAct[Date]<$D14)*ChillTempAct[ChillAdjHDD]) -> 58.9185 | H14: 21.85075926 | I14: =SUMPRODUCT((NoOfBills[MonthFlow]=$B14)*NoOfBills[60-GRF])+SUMPRODUCT((NoOfBills[MonthFlow]=$B14)*NoOfBills[63-GRF]) -> 14982 | J14: =INDEX(BetaCoeff[BetaCoeff],MATCH(D$9,BetaCoeff[RateSched],0)) -> 0.1125474 | K14: 36844.42571 | L14: =SUMPRODUCT((VolRates[Month]=MONTH(B14))*(VolRates[63-GRF])) -> 0.33029 | M14: 12169.35 | N14: =SUMPRODUCT((BillDeter[Region]=$C$4)*(BillDeter[CustClass]=E$9)*BillDeter[BillingDeterminants]) -> 11089284.46 | O14: 0.0011
B15: 44835 | C15: =SUMPRODUCT((MeterReadSch[MonthBill]=$B15)*MeterReadSch[NEMO]) -> 44834 | D15: =SUMPRODUCT((MeterReadSch[MonthFlow]=$B15)*MeterReadSch[NEMO]) -> 44865 | E15: 31 | F15: =SUMPRODUCT((ChillTempAct[Date]>=$C15)*(ChillTempAct[Date]<$D15)*ChillTempAct[ChillNHDD]) -> 367.3385902 | G15: =SUMPRODUCT((ChillTempAct[Date]>=$C15)*(ChillTempAct[Date]<$D15)*ChillTempAct[ChillAdjHDD]) -> 402.73765 | H15: -35.3990598 | I15: =SUMPRODUCT((NoOfBills[MonthFlow]=$B15)*NoOfBills[60-GRF])+SUMPRODUCT((NoOfBills[MonthFlow]=$B15)*NoOfBills[63-GRF]) -> 15586 | J15: =INDEX(BetaCoeff[BetaCoeff],MATCH(D$9,BetaCoeff[RateSched],0)) -> 0.1125474 | K15: -62095.74841 | L15: =SUMPRODUCT((VolRates[Month]=MONTH(B15))*(VolRates[63-GRF])) -> 0.33187 | M15: -20607.72 | N15: =SUMPRODUCT((BillDeter[Region]=$C$4)*(BillDeter[CustClass]=E$9)*BillDeter[BillingDeterminants]) -> 11089284.46 | O15: -0.00186
B16: 44866 | C16: =SUMPRODUCT((MeterReadSch[MonthBill]=$B16)*MeterReadSch[NEMO]) -> 44865 | D16: =SUMPRODUCT((MeterReadSch[MonthFlow]=$B16)*MeterReadSch[NEMO]) -> 44895 | E16: 30 | F16: =SUMPRODUCT((ChillTempAct[Date]>=$C16)*(ChillTempAct[Date]<$D16)*ChillTempAct[ChillNHDD]) -> 692.8430705 | G16: =SUMPRODUCT((ChillTempAct[Date]>=$C16)*(ChillTempAct[Date]<$D16)*ChillTempAct[ChillAdjHDD]) -> 734.1915 | H16: -41.34842951 | I16: =SUMPRODUCT((NoOfBills[MonthFlow]=$B16)*NoOfBills[60-GRF])+SUMPRODUCT((NoOfBills[MonthFlow]=$B16)*NoOfBills[63-GRF]) -> 15648 | J16: =INDEX(BetaCoeff[BetaCoeff],MATCH(D$9,BetaCoeff[RateSched],0)) -> 0.1125474 | K16: -72820.44407 | L16: =SUMPRODUCT((VolRates[Month]=MONTH(B16))*(VolRates[63-GRF])) -> 0.33607 | M16: -24472.77 | N16: =SUMPRODUCT((BillDeter[Region]=$C$4)*(BillDeter[CustClass]=E$9)*BillDeter[BillingDeterminants]) -> 11089284.46 | O16: -0.00221
B17: 44896 | C17: =SUMPRODUCT((MeterReadSch[MonthBill]=$B17)*MeterReadSch[NEMO]) -> 44895 | D17: =SUMPRODUCT((MeterReadSch[MonthFlow]=$B17)*MeterReadSch[NEMO]) -> 44925 | E17: 30 | F17: =SUMPRODUCT((ChillTempAct[Date]>=$C17)*(ChillTempAct[Date]<$D17)*ChillTempAct[ChillNHDD]) -> 1081.368309 | G17: =SUMPRODUCT((ChillTempAct[Date]>=$C17)*(ChillTempAct[Date]<$D17)*ChillTempAct[ChillAdjHDD]) -> 1182.4293 | H17: -101.0609906 | I17: =SUMPRODUCT((NoOfBills[MonthFlow]=$B17)*NoOfBills[60-GRF])+SUMPRODUCT((NoOfBills[MonthFlow]=$B17)*NoOfBills[63-GRF]) -> 15859 | J17: =INDEX(BetaCoeff[BetaCoeff],MATCH(D$9,BetaCoeff[RateSched],0)) -> 0.1125474 | K17: -180382.6723 | L17: =SUMPRODUCT((VolRates[Month]=MONTH(B17))*(VolRates[63-GRF])) -> 0.33607 | M17: -60621.2 | N17: =SUMPRODUCT((BillDeter[Region]=$C$4)*(BillDeter[CustClass]=E$9)*BillDeter[BillingDeterminants]) -> 11089284.46 | O17: -0.00547
B18: Totals | C18: =C12 -> 44742 | D18: =D17 -> 44925 | E18: 183 | F18: =SUM(F12:F17) -> 2230.699731 | G18: 2378.27695 | H18: -147.5772188 | I18: =SUM(I12:I17) -> 92005 | J18: =J17 -> 0.1125474 | K18: =SUM(K12:K17) -> -264334.3276 | L18: =L17 -> 0.33607 | M18: =ROUND(SUM(M12:M17),2) -> -88870.7 | N18: =N17 -> 11089284.46 | O18: -0.00801
B19: Reconciling Period Adj. | D19: =M18 -> -88870.7 | E19: Enter in Reconciling Period Adjustment Table (ReconPerAdj)
B20: Enter WNA Amounts in Column M in CSWNA Amounts Table
B22: Small Comm. | C22: 60-GCSF | D22: 63-GCSF | E22: SGS
B23: MonthFlow | C23: Meter Read Dates | E23: Days/ Cycle | F23: Heating Degree Days | H23: Difference | I23: No. of Bills | J23: Beta Coeff. | K23: WNAR | L23: WRVR | M23: WNAi | N23: Billing Determinants | O23: Mo Adj.
C24: Begin | D24: End | F24: NDDij | G24: ADDij | H24: (NDDij - ADDij) | I24: Cij | J24: b | K24: h*i*j | L24: Vol. Rate | M24: k*l | O24: m/n
B25: =$C$7 -> 44743 | C25: =SUMPRODUCT((MeterReadSch[MonthBill]=$B25)*MeterReadSch[NEMO]) -> 44742 | D25: =SUMPRODUCT((MeterReadSch[MonthFlow]=$B25)*MeterReadSch[NEMO]) -> 44773 | E25: =D25-C25 -> 31 | F25: =SUMPRODUCT((ChillTempAct[Date]>=$C25)*(ChillTempAct[Date]<$D25)*ChillTempAct[ChillNHDD]) -> 1.938620072 | G25: =SUMPRODUCT((ChillTempAct[Date]>=$C25)*(ChillTempAct[Date]<$D25)*ChillTempAct[ChillAdjHDD]) -> 0 | H25: =F25-G25 -> 1.938620072 | I25: =SUMPRODUCT((NoOfBills[MonthFlow]=$B25)*NoOfBills[60-GCSF])+SUMPRODUCT((NoOfBills[MonthFlow]=$B25)*NoOfBills[63-GCSF]) -> 2090 | J25: =INDEX(BetaCoeff[BetaCoeff],MATCH(D$22,BetaCoeff[RateSched],0)) -> 0.2389388 | K25: =H25*I25*J25 -> 968.112147 | L25: =SUMPRODUCT((VolRates[Month]=MONTH(B25))*(VolRates[63-GCSF])) -> 0.14216 | M25: =ROUND(K25*L25,2) -> 137.63 | N25: =SUMPRODUCT((BillDeter[Region]=$C$4)*(BillDeter[CustClass]=E$22)*BillDeter[BillingDeterminants]) -> 3249867.68 | O25: =ROUND(M25/N25,5) -> 4e-05
B26: =EDATE(B25,1) -> 44774 | C26: =SUMPRODUCT((MeterReadSch[MonthBill]=$B26)*MeterReadSch[NEMO]) -> 44773 | D26: =SUMPRODUCT((MeterReadSch[MonthFlow]=$B26)*MeterReadSch[NEMO]) -> 44804 | E26: =D26-C26 -> 31 | F26: =SUMPRODUCT((ChillTempAct[Date]>=$C26)*(ChillTempAct[Date]<$D26)*ChillTempAct[ChillNHDD]) -> 6.44188172 | G26: =SUMPRODUCT((ChillTempAct[Date]>=$C26)*(ChillTempAct[Date]<$D26)*ChillTempAct[ChillAdjHDD]) -> 0 | H26: =F26-G26 -> 6.44188172 | I26: =SUMPRODUCT((NoOfBills[MonthFlow]=$B26)*NoOfBills[60-GCSF])+SUMPRODUCT((NoOfBills[MonthFlow]=$B26)*NoOfBills[63-GCSF]) -> 2082 | J26: =INDEX(BetaCoeff[BetaCoeff],MATCH(D$22,BetaCoeff[RateSched],0)) -> 0.2389388 | K26: =H26*I26*J26 -> 3204.646646 | L26: =SUMPRODUCT((VolRates[Month]=MONTH(B26))*(VolRates[63-GCSF])) -> 0.14216 | M26: 455.57 | N26: =SUMPRODUCT((BillDeter[Region]=$C$4)*(BillDeter[CustClass]=E$22)*BillDeter[BillingDeterminants]) -> 3249867.68 | O26: =ROUND(M26/N26,5) -> 0.00014
B27: =EDATE(B26,1) -> 44805 | C27: =SUMPRODUCT((MeterReadSch[MonthBill]=$B27)*MeterReadSch[NEMO]) -> 44804 | D27: =SUMPRODUCT((MeterReadSch[MonthFlow]=$B27)*MeterReadSch[NEMO]) -> 44834 | E27: 30 | F27: =SUMPRODUCT((ChillTempAct[Date]>=$C27)*(ChillTempAct[Date]<$D27)*ChillTempAct[ChillNHDD]) -> 80.76925926 | G27: =SUMPRODUCT((ChillTempAct[Date]>=$C27)*(ChillTempAct[Date]<$D27)*ChillTempAct[ChillAdjHDD]) -> 58.9185 | H27: 21.85075926 | I27: =SUMPRODUCT((NoOfBills[MonthFlow]=$B27)*NoOfBills[60-GCSF])+SUMPRODUCT((NoOfBills[MonthFlow]=$B27)*NoOfBills[63-GCSF]) -> 2074 | J27: =INDEX(BetaCoeff[BetaCoeff],MATCH(D$22,BetaCoeff[RateSched],0)) -> 0.2389388 | K27: 10828.34196 | L27: =SUMPRODUCT((VolRates[Month]=MONTH(B27))*(VolRates[63-GCSF])) -> 0.14216 | M27: 1539.36 | N27: =SUMPRODUCT((BillDeter[Region]=$C$4)*(BillDeter[CustClass]=E$22)*BillDeter[BillingDeterminants]) -> 3249867.68 | O27: 0.00047
B28: 44835 | C28: =SUMPRODUCT((MeterReadSch[MonthBill]=$B28)*MeterReadSch[NEMO]) -> 44834 | D28: =SUMPRODUCT((MeterReadSch[MonthFlow]=$B28)*MeterReadSch[NEMO]) -> 44865 | E28: 31 | F28: =SUMPRODUCT((ChillTempAct[Date]>=$C28)*(ChillTempAct[Date]<$D28)*ChillTempAct[ChillNHDD]) -> 367.3385902 | G28: =SUMPRODUCT((ChillTempAct[Date]>=$C28)*(ChillTempAct[Date]<$D28)*ChillTempAct[ChillAdjHDD]) -> 402.73765 | H28: -35.3990598 | I28: =SUMPRODUCT((NoOfBills[MonthFlow]=$B28)*NoOfBills[60-GCSF])+SUMPRODUCT((NoOfBills[MonthFlow]=$B28)*NoOfBills[63-GCSF]) -> 2140 | J28: =INDEX(BetaCoeff[BetaCoeff],MATCH(D$22,BetaCoeff[RateSched],0)) -> 0.2389388 | K28: -18100.56698 | L28: =SUMPRODUCT((VolRates[Month]=MONTH(B28))*(VolRates[63-GCSF])) -> 0.14216 | M28: -2573.18 | N28: =SUMPRODUCT((BillDeter[Region]=$C$4)*(BillDeter[CustClass]=E$22)*BillDeter[BillingDeterminants]) -> 3249867.68 | O28: -0.00079
B29: 44866 | C29: =SUMPRODUCT((MeterReadSch[MonthBill]=$B29)*MeterReadSch[NEMO]) -> 44865 | D29: =SUMPRODUCT((MeterReadSch[MonthFlow]=$B29)*MeterReadSch[NEMO]) -> 44895 | E29: 30 | F29: =SUMPRODUCT((ChillTempAct[Date]>=$C29)*(ChillTempAct[Date]<$D29)*ChillTempAct[ChillNHDD]) -> 692.8430705 | G29: =SUMPRODUCT((ChillTempAct[Date]>=$C29)*(ChillTempAct[Date]<$D29)*ChillTempAct[ChillAdjHDD]) -> 734.1915 | H29: -41.34842951 | I29: =SUMPRODUCT((NoOfBills[MonthFlow]=$B29)*NoOfBills[60-GCSF])+SUMPRODUCT((NoOfBills[MonthFlow]=$B29)*NoOfBills[63-GCSF]) -> 2160 | J29: =INDEX(BetaCoeff[BetaCoeff],MATCH(D$22,BetaCoeff[RateSched],0)) -> 0.2389388 | K29: -21340.24732 | L29: =SUMPRODUCT((VolRates[Month]=MONTH(B29))*(VolRates[63-GCSF])) -> 0.14216 | M29: -3033.73 | N29: =SUMPRODUCT((BillDeter[Region]=$C$4)*(BillDeter[CustClass]=E$22)*BillDeter[BillingDeterminants]) -> 3249867.68 | O29: -0.00093
B30: 44896 | C30: =SUMPRODUCT((MeterReadSch[MonthBill]=$B30)*MeterReadSch[NEMO]) -> 44895 | D30: =SUMPRODUCT((MeterReadSch[MonthFlow]=$B30)*MeterReadSch[NEMO]) -> 44925 | E30: 30 | F30: =SUMPRODUCT((ChillTempAct[Date]>=$C30)*(ChillTempAct[Date]<$D30)*ChillTempAct[ChillNHDD]) -> 1081.368309 | G30: =SUMPRODUCT((ChillTempAct[Date]>=$C30)*(ChillTempAct[Date]<$D30)*ChillTempAct[ChillAdjHDD]) -> 1182.4293 | H30: -101.0609906 | I30: =SUMPRODUCT((NoOfBills[MonthFlow]=$B30)*NoOfBills[60-GCSF])+SUMPRODUCT((NoOfBills[MonthFlow]=$B30)*NoOfBills[63-GCSF]) -> 2162 | J30: =INDEX(BetaCoeff[BetaCoeff],MATCH(D$22,BetaCoeff[RateSched],0)) -> 0.2389388 | K30: -52206.6611 | L30: =SUMPRODUCT((VolRates[Month]=MONTH(B30))*(VolRates[63-GCSF])) -> 0.14216 | M30: -7421.7 | N30: =SUMPRODUCT((BillDeter[Region]=$C$4)*(BillDeter[CustClass]=E$22)*BillDeter[BillingDeterminants]) -> 3249867.68 | O30: -0.00228
B31: Totals | C31: =C25 -> 44742 | D31: =D30 -> 44925 | E31: 183 | F31: =SUM(F25:F30) -> 2230.699731 | G31: =SUM(G25:G30) -> 2378.27695 | H31: =SUM(H25:H30) -> -147.5772188 | I31: =SUM(I25:I30) -> 12708 | J31: =J30 -> 0.2389388 | K31: =SUM(K25:K30) -> -76646.37464 | L31: =L30 -> 0.14216 | M31: =ROUND(SUM(M25:M30),2) -> -10896.05 | N31: =SUMPRODUCT((BillDeter[Region]=$C$4)*(BillDeter[CustClass]=E$22)*BillDeter[BillingDeterminants]) -> 3249867.68 | O31: -0.00335
B32: Reconciling Period Adj. | D32: =M31 -> -10896.05 | E32: Enter in Reconciling Period Adjustment Table (ReconPerAdj)
B33: Enter WNA Amounts in Column M in CSWNA Amounts Table

Sheet ChillTempActuals
A1: Date | B1: ChillHigh | C1: ChillLow | D1: ChillAve | E1: ChillHDD | F1: ChillAdj | G1: ChillAdjHDD | H1: ChillNHDD | I1: Year | J1: Month | K1: Rank | L1: Preparer's Notes | M1: Reviewer's Notes | O1: Process for updating table:
A2: 44047 | B2: 74 | C2: 53 | D2: =AVERAGE(ChillTempAct[[#This Row],[ChillHigh]:[ChillLow]]) -> 63.5 | E2: =IF(ChillTempAct[[#This Row],[ChillAve]]<65,65-ChillTempAct[[#This Row],[ChillAve]],0) -> 1.5 | F2: =INDEX(TempAdj[AdjustPct],MATCH(MONTH(ChillTempAct[[#This Row],[Date]]),TempAdj[Month],0)) -> 1.0758 | G2: =ChillTempAct[[#This Row],[ChillHDD]]*(1+ChillTempAct[[#This Row],[ChillAdj]]) -> 3.1137 | H2: =SUMPRODUCT((RankNHDD[Month]=ChillTempAct[[#This Row],[Month]])*(RankNHDD[Rank]=ChillTempAct[[#This Row],[Rank]])*RankNHDD[KIRKNHDD]) -> 4.868709677 | I2: =YEAR(ChillTempAct[[#This Row],[Date]]) -> 2020 | J2: =MONTH(ChillTempAct[[#This Row],[Date]]) -> 8 | K2: =IF(ChillTempAct[[#This Row],[Month]]=J1,K1+1,1) -> 1 | O2: 1) Enter New Data at end of table
A3: 44048 | B3: 74 | C3: 54 | D3: =AVERAGE(ChillTempAct[[#This Row],[ChillHigh]:[ChillLow]]) -> 64 | E3: =IF(ChillTempAct[[#This Row],[ChillAve]]<65,65-ChillTempAct[[#This Row],[ChillAve]],0) -> 1 | F3: =INDEX(TempAdj[AdjustPct],MATCH(MONTH(ChillTempAct[[#This Row],[Date]]),TempAdj[Month],0)) -> 1.0758 | G3: =ChillTempAct[[#This Row],[ChillHDD]]*(1+ChillTempAct[[#This Row],[ChillAdj]]) -> 2.0758 | H3: =SUMPRODUCT((RankNHDD[Month]=ChillTempAct[[#This Row],[Month]])*(RankNHDD[Rank]=ChillTempAct[[#This Row],[Rank]])*RankNHDD[KIRKNHDD]) -> 1.530698925 | I3: =YEAR(ChillTempAct[[#This Row],[Date]]) -> 2020 | J3: =MONTH(ChillTempAct[[#This Row],[Date]]) -> 8 | K3: =IF(ChillTempAct[[#This Row],[Month]]=J2,K2+1,1) -> 2 | P3: New Data = Date, ChillHigh, ChillLow
A4: 44049 | B4: 77 | C4: 56 | D4: =AVERAGE(ChillTempAct[[#This Row],[ChillHigh]:[ChillLow]]) -> 66.5 | E4: =IF(ChillTempAct[[#This Row],[ChillAve]]<65,65-ChillTempAct[[#This Row],[ChillAve]],0) -> 0 | F4: =INDEX(TempAdj[AdjustPct],MATCH(MONTH(ChillTempAct[[#This Row],[Date]]),TempAdj[Month],0)) -> 1.0758 | G4: =ChillTempAct[[#This Row],[ChillHDD]]*(1+ChillTempAct[[#This Row],[ChillAdj]]) -> 0 | H4: =SUMPRODUCT((RankNHDD[Month]=ChillTempAct[[#This Row],[Month]])*(RankNHDD[Rank]=ChillTempAct[[#This Row],[Rank]])*RankNHDD[KIRKNHDD]) -> 0.04247311828 | I4: =YEAR(ChillTempAct[[#This Row],[Date]]) -> 2020 | J4: =MONTH(ChillTempAct[[#This Row],[Date]]) -> 8 | K4: =IF(ChillTempAct[[#This Row],[Month]]=J3,K3+1,1) -> 3 | O4: 2) Sort by:
A5: 44062 | B5: 78 | C5: 57 | D5: =AVERAGE(ChillTempAct[[#This Row],[ChillHigh]:[ChillLow]]) -> 67.5 | E5: =IF(ChillTempAct[[#This Row],[ChillAve]]<65,65-ChillTempAct[[#This Row],[ChillAve]],0) -> 0 | F5: =INDEX(TempAdj[AdjustPct],MATCH(MONTH(ChillTempAct[[#This Row],[Date]]),TempAdj[Month],0)) -> 1.0758 | G5: =ChillTempAct[[#This Row],[ChillHDD]]*(1+ChillTempAct[[#This Row],[ChillAdj]]) -> 0 | H5: =SUMPRODUCT((RankNHDD[Month]=ChillTempAct[[#This Row],[Month]])*(RankNHDD[Rank]=ChillTempAct[[#This Row],[Rank]])*RankNHDD[KIRKNHDD]) -> 0 | I5: =YEAR(ChillTempAct[[#This Row],[Date]]) -> 2020 | J5: =MONTH(ChillTempAct[[#This Row],[Date]]) -> 8 | K5: =IF(ChillTempAct[[#This Row],[Month]]=J4,K4+1,1) -> 4 | P5: Year | Q5: Smallest to Largest
A6: 44063 | B6: 81 | C6: 55 | D6: =AVERAGE(ChillTempAct[[#This Row],[ChillHigh]:[ChillLow]]) -> 68 | E6: =IF(ChillTempAct[[#This Row],[ChillAve]]<65,65-ChillTempAct[[#This Row],[ChillAve]],0) -> 0 | F6: =INDEX(TempAdj[AdjustPct],MATCH(MONTH(ChillTempAct[[#This Row],[Date]]),TempAdj[Month],0)) -> 1.0758 | G6: =ChillTempAct[[#This Row],[ChillHDD]]*(1+ChillTempAct[[#This Row],[ChillAdj]]) -> 0 | H6: =SUMPRODUCT((RankNHDD[Month]=ChillTempAct[[#This Row],[Month]])*(RankNHDD[Rank]=ChillTempAct[[#This Row],[Rank]])*RankNHDD[KIRKNHDD]) -> 0 | I6: =YEAR(ChillTempAct[[#This Row],[Date]]) -> 2020 | J6: =MONTH(ChillTempAct[[#This Row],[Date]]) -> 8 | K6: =IF(ChillTempAct[[#This Row],[Month]]=J5,K5+1,1) -> 5 | P6: Month | Q6: Smallest to Largest
A7: 44073 | B7: 80 | C7: 56 | D7: =AVERAGE(ChillTempAct[[#This Row],[ChillHigh]:[ChillLow]]) -> 68 | E7: =IF(ChillTempAct[[#This Row],[ChillAve]]<65,65-ChillTempAct[[#This Row],[ChillAve]],0) -> 0 | F7: =INDEX(TempAdj[AdjustPct],MATCH(MONTH(ChillTempAct[[#This Row],[Date]]),TempAdj[Month],0)) -> 1.0758 | G7: =ChillTempAct[[#This Row],[ChillHDD]]*(1+ChillTempAct[[#This Row],[ChillAdj]]) -> 0 | H7: =SUMPRODUCT((RankNHDD[Month]=ChillTempAct[[#This Row],[Month]])*(RankNHDD[Rank]=ChillTempAct[[#This Row],[Rank]])*RankNHDD[KIRKNHDD]) -> 0 | I7: =YEAR(ChillTempAct[[#This Row],[Date]]) -> 2020 | J7: =MONTH(ChillTempAct[[#This Row],[Date]]) -> 8 | K7: =IF(ChillTempAct[[#This Row],[Month]]=J6,K6+1,1) -> 6 | P7: ChillAve | Q7: Smallest to Largest
A8: 44044 | B8: 78 | C8: 61 | D8: =AVERAGE(ChillTempAct[[#This Row],[ChillHigh]:[ChillLow]]) -> 69.5 | E8: =IF(ChillTempAct[[#This Row],[ChillAve]]<65,65-ChillTempAct[[#This Row],[ChillAve]],0) -> 0 | F8: =INDEX(TempAdj[AdjustPct],MATCH(MONTH(ChillTempAct[[#This Row],[Date]]),TempAdj[Month],0)) -> 1.0758 | G8: =ChillTempAct[[#This Row],[ChillHDD]]*(1+ChillTempAct[[#This Row],[ChillAdj]]) -> 0 | H8: =SUMPRODUCT((RankNHDD[Month]=ChillTempAct[[#This Row],[Month]])*(RankNHDD[Rank]=ChillTempAct[[#This Row],[Rank]])*RankNHDD[KIRKNHDD]) -> 0 | I8: =YEAR(ChillTempAct[[#This Row],[Date]]) -> 2020 | J8: =MONTH(ChillTempAct[[#This Row],[Date]]) -> 8 | K8: =IF(ChillTempAct[[#This Row],[Month]]=J7,K7+1,1) -> 7 | O8: 3) Formulas in rest of table will be applied to New Data
A9: 44064 | B9: 82 | C9: 57 | D9: =AVERAGE(ChillTempAct[[#This Row],[ChillHigh]:[ChillLow]]) -> 69.5 | E9: =IF(ChillTempAct[[#This Row],[ChillAve]]<65,65-ChillTempAct[[#This Row],[ChillAve]],0) -> 0 | F9: =INDEX(TempAdj[AdjustPct],MATCH(MONTH(ChillTempAct[[#This Row],[Date]]),TempAdj[Month],0)) -> 1.0758 | G9: =ChillTempAct[[#This Row],[ChillHDD]]*(1+ChillTempAct[[#This Row],[ChillAdj]]) -> 0 | H9: =SUMPRODUCT((RankNHDD[Month]=ChillTempAct[[#This Row],[Month]])*(RankNHDD[Rank]=ChillTempAct[[#This Row],[Rank]])*RankNHDD[KIRKNHDD]) -> 0 | I9: =YEAR(ChillTempAct[[#This Row],[Date]]) -> 2020 | J9: =MONTH(ChillTempAct[[#This Row],[Date]]) -> 8 | K9: =IF(ChillTempAct[[#This Row],[Month]]=J8,K8+1,1) -> 8 | O9: 4) Do not overwrite formulas!
A10: 44046 | B10: 82 | C10: 59 | D10: =AVERAGE(ChillTempAct[[#This Row],[ChillHigh]:[ChillLow]]) -> 70.5 | E10: =IF(ChillTempAct[[#This Row],[ChillAve]]<65,65-ChillTempAct[[#This Row],[ChillAve]],0) -> 0 | F10: =INDEX(TempAdj[AdjustPct],MATCH(MONTH(ChillTempAct[[#This Row],[Date]]),TempAdj[Month],0)) -> 1.0758 | G10: =ChillTempAct[[#This Row],[ChillHDD]]*(1+ChillTempAct[[#This Row],[ChillAdj]]) -> 0 | H10: =SUMPRODUCT((RankNHDD[Month]=ChillTempAct[[#This Row],[Month]])*(RankNHDD[Rank]=ChillTempAct[[#This Row],[Rank]])*RankNHDD[KIRKNHDD]) -> 0 | I10: =YEAR(ChillTempAct[[#This Row],[Date]]) -> 2020 | J10: =MONTH(ChillTempAct[[#This Row],[Date]]) -> 8 | K10: =IF(ChillTempAct[[#This Row],[Month]]=J9,K9+1,1) -> 9 | O10: 5) Weather Data is from the Chillicothe, MO weather station
A11: 44061 | B11: 83 | C11: 58 | D11: =AVERAGE(ChillTempAct[[#This Row],[ChillHigh]:[ChillLow]]) -> 70.5 | E11: =IF(ChillTempAct[[#This Row],[ChillAve]]<65,65-ChillTempAct[[#This Row],[ChillAve]],0) -> 0 | F11: =INDEX(TempAdj[AdjustPct],MATCH(MONTH(ChillTempAct[[#This Row],[Date]]),TempAdj[Month],0)) -> 1.0758 | G11: =ChillTempAct[[#This Row],[ChillHDD]]*(1+ChillTempAct[[#This Row],[ChillAdj]]) -> 0 | H11: =SUMPRODUCT((RankNHDD[Month]=ChillTempAct[[#This Row],[Month]])*(RankNHDD[Rank]=ChillTempAct[[#This Row],[Rank]])*RankNHDD[KIRKNHDD]) -> 0 | I11: =YEAR(ChillTempAct[[#This Row],[Date]]) -> 2020 | J11: =MONTH(ChillTempAct[[#This Row],[Date]]) -> 8 | K11: =IF(ChillTempAct[[#This Row],[Month]]=J10,K10+1,1) -> 10 | O11: 6) Station ID Information:
A12: 44074 | B12: 82 | C12: 60 | D12: =AVERAGE(ChillTempAct[[#This Row],[ChillHigh]:[ChillLow]]) -> 71 | E12: =IF(ChillTempAct[[#This Row],[ChillAve]]<65,65-ChillTempAct[[#This Row],[ChillAve]],0) -> 0 | F12: =INDEX(TempAdj[AdjustPct],MATCH(MONTH(ChillTempAct[[#This Row],[Date]]),TempAdj[Month],0)) -> 1.0758 | G12: =ChillTempAct[[#This Row],[ChillHDD]]*(1+ChillTempAct[[#This Row],[ChillAdj]]) -> 0 | H12: =SUMPRODUCT((RankNHDD[Month]=ChillTempAct[[#This Row],[Month]])*(RankNHDD[Rank]=ChillTempAct[[#This Row],[Rank]])*RankNHDD[KIRKNHDD]) -> 0 | I12: =YEAR(ChillTempAct[[#This Row],[Date]]) -> 2020 | J12: =MONTH(ChillTempAct[[#This Row],[Date]]) -> 8 | K12: =IF(ChillTempAct[[#This Row],[Month]]=J11,K11+1,1) -> 11 | P12: NWS Cooperative Network ID: 231580
A13: 44059 | B13: 84 | C13: 59 | D13: =AVERAGE(ChillTempAct[[#This Row],[ChillHigh]:[ChillLow]]) -> 71.5 | E13: =IF(ChillTempAct[[#This Row],[ChillAve]]<65,65-ChillTempAct[[#This Row],[ChillAve]],0) -> 0 | F13: =INDEX(TempAdj[AdjustPct],MATCH(MONTH(ChillTempAct[[#This Row],[Date]]),TempAdj[Month],0)) -> 1.0758 | G13: =ChillTempAct[[#This Row],[ChillHDD]]*(1+ChillTempAct[[#This Row],[ChillAdj]]) -> 0 | H13: =SUMPRODUCT((RankNHDD[Month]=ChillTempAct[[#This Row],[Month]])*(RankNHDD[Rank]=ChillTempAct[[#This Row],[Rank]])*RankNHDD[KIRKNHDD]) -> 0 | I13: =YEAR(ChillTempAct[[#This Row],[Date]]) -> 2020 | J13: =MONTH(ChillTempAct[[#This Row],[Date]]) -> 8 | K13: =IF(ChillTempAct[[#This Row],[Month]]=J12,K12+1,1) -> 12 | P13: Other ID: USC00231580
A14: 44045 | B14: 83 | C14: 62 | D14: =AVERAGE(ChillTempAct[[#This Row],[ChillHigh]:[ChillLow]]) -> 72.5 | E14: =IF(ChillTempAct[[#This Row],[ChillAve]]<65,65-ChillTempAct[[#This Row],[ChillAve]],0) -> 0 | F14: =INDEX(TempAdj[AdjustPct],MATCH(MONTH(ChillTempAct[[#This Row],[Date]]),TempAdj[Month],0)) -> 1.0758 | G14: =ChillTempAct[[#This Row],[ChillHDD]]*(1+ChillTempAct[[#This Row],[ChillAdj]]) -> 0 | H14: =SUMPRODUCT((RankNHDD[Month]=ChillTempAct[[#This Row],[Month]])*(RankNHDD[Rank]=ChillTempAct[[#This Row],[Rank]])*RankNHDD[KIRKNHDD]) -> 0 | I14: =YEAR(ChillTempAct[[#This Row],[Date]]) -> 2020 | J14: =MONTH(ChillTempAct[[#This Row],[Date]]) -> 8 | K14: =IF(ChillTempAct[[#This Row],[Month]]=J13,K13+1,1) -> 13
A15: 44050 | B15: 82 | C15: 64 | D15: =AVERAGE(ChillTempAct[[#This Row],[ChillHigh]:[ChillLow]]) -> 73 | E15: =IF(ChillTempAct[[#This Row],[ChillAve]]<65,65-ChillTempAct[[#This Row],[ChillAve]],0) -> 0 | F15: =INDEX(TempAdj[AdjustPct],MATCH(MONTH(ChillTempAct[[#This Row],[Date]]),TempAdj[Month],0)) -> 1.0758 | G15: =ChillTempAct[[#This Row],[ChillHDD]]*(1+ChillTempAct[[#This Row],[ChillAdj]]) -> 0 | H15: =SUMPRODUCT((RankNHDD[Month]=ChillTempAct[[#This Row],[Month]])*(RankNHDD[Rank]=ChillTempAct[[#This Row],[Rank]])*RankNHDD[KIRKNHDD]) -> 0 | I15: =YEAR(ChillTempAct[[#This Row],[Date]]) -> 2020 | J15: =MONTH(ChillTempAct[[#This Row],[Date]]) -> 8 | K15: =IF(ChillTempAct[[#This Row],[Month]]=J14,K14+1,1) -> 14
A16: 44065 | B16: 87 | C16: 59 | D16: =AVERAGE(ChillTempAct[[#This Row],[ChillHigh]:[ChillLow]]) -> 73 | E16: =IF(ChillTempAct[[#This Row],[ChillAve]]<65,65-ChillTempAct[[#This Row],[ChillAve]],0) -> 0 | F16: =INDEX(TempAdj[AdjustPct],MATCH(MONTH(ChillTempAct[[#This Row],[Date]]),TempAdj[Month],0)) -> 1.0758 | G16: =ChillTempAct[[#This Row],[ChillHDD]]*(1+ChillTempAct[[#This Row],[ChillAdj]]) -> 0 | H16: =SUMPRODUCT((RankNHDD[Month]=ChillTempAct[[#This Row],[Month]])*(RankNHDD[Rank]=ChillTempAct[[#This Row],[Rank]])*RankNHDD[KIRKNHDD]) -> 0 | I16: =YEAR(ChillTempAct[[#This Row],[Date]]) -> 2020 | J16: =MONTH(ChillTempAct[[#This Row],[Date]]) -> 8 | K16: =IF(ChillTempAct[[#This Row],[Month]]=J15,K15+1,1) -> 15
A17: 44060 | B17: 84 | C17: 63 | D17: =AVERAGE(ChillTempAct[[#This Row],[ChillHigh]:[ChillLow]]) -> 73.5 | E17: =IF(ChillTempAct[[#This Row],[ChillAve]]<65,65-ChillTempAct[[#This Row],[ChillAve]],0) -> 0 | F17: =INDEX(TempAdj[AdjustPct],MATCH(MONTH(ChillTempAct[[#This Row],[Date]]),TempAdj[Month],0)) -> 1.0758 | G17: =ChillTempAct[[#This Row],[ChillHDD]]*(1+ChillTempAct[[#This Row],[ChillAdj]]) -> 0 | H17: =SUMPRODUCT((RankNHDD[Month]=ChillTempAct[[#This Row],[Month]])*(RankNHDD[Rank]=ChillTempAct[[#This Row],[Rank]])*RankNHDD[KIRKNHDD]) -> 0 | I17: =YEAR(ChillTempAct[[#This Row],[Date]]) -> 2020 | J17: =MONTH(ChillTempAct[[#This Row],[Date]]) -> 8 | K17: =IF(ChillTempAct[[#This Row],[Month]]=J16,K16+1,1) -> 16
A18: 44055 | B18: 82 | C18: 66 | D18: =AVERAGE(ChillTempAct[[#This Row],[ChillHigh]:[ChillLow]]) -> 74 | E18: =IF(ChillTempAct[[#This Row],[ChillAve]]<65,65-ChillTempAct[[#This Row],[ChillAve]],0) -> 0 | F18: =INDEX(TempAdj[AdjustPct],MATCH(MONTH(ChillTempAct[[#This Row],[Date]]),TempAdj[Month],0)) -> 1.0758 | G18: =ChillTempAct[[#This Row],[ChillHDD]]*(1+ChillTempAct[[#This Row],[ChillAdj]]) -> 0 | H18: =SUMPRODUCT((RankNHDD[Month]=ChillTempAct[[#This Row],[Month]])*(RankNHDD[Rank]=ChillTempAct[[#This Row],[Rank]])*RankNHDD[KIRKNHDD]) -> 0 | I18: =YEAR(ChillTempAct[[#This Row],[Date]]) -> 2020 | J18: =MONTH(ChillTempAct[[#This Row],[Date]]) -> 8 | K18: =IF(ChillTempAct[[#This Row],[Month]]=J17,K17+1,1) -> 17
A19: 44054 | B19: 87 | C19: 65 | D19: =AVERAGE(ChillTempAct[[#This Row],[ChillHigh]:[ChillLow]]) -> 76 | E19: =IF(ChillTempAct[[#This Row],[ChillAve]]<65,65-ChillTempAct[[#This Row],[ChillAve]],0) -> 0 | F19: =INDEX(TempAdj[AdjustPct],MATCH(MONTH(ChillTempAct[[#This Row],[Date]]),TempAdj[Month],0)) -> 1.0758 | G19: =ChillTempAct[[#This Row],[ChillHDD]]*(1+ChillTempAct[[#This Row],[ChillAdj]]) -> 0 | H19: =SUMPRODUCT((RankNHDD[Month]=ChillTempAct[[#This Row],[Month]])*(RankNHDD[Rank]=ChillTempAct[[#This Row],[Rank]])*RankNHDD[KIRKNHDD]) -> 0 | I19: =YEAR(ChillTempAct[[#This Row],[Date]]) -> 2020 | J19: =MONTH(ChillTempAct[[#This Row],[Date]]) -> 8 | K19: =IF(ChillTempAct[[#This Row],[Month]]=J18,K18+1,1) -> 18
A20: 44051 | B20: 88 | C20: 66 | D20: =AVERAGE(ChillTempAct[[#This Row],[ChillHigh]:[ChillLow]]) -> 77 | E20: =IF(ChillTempAct[[#This Row],[ChillAve]]<65,65-ChillTempAct[[#This Row],[ChillAve]],0) -> 0 | F20: =INDEX(TempAdj[AdjustPct],MATCH(MONTH(ChillTempAct[[#This Row],[Date]]),TempAdj[Month],0)) -> 1.0758 | G20: =ChillTempAct[[#This Row],[ChillHDD]]*(1+ChillTempAct[[#This Row],[ChillAdj]]) -> 0 | H20: =SUMPRODUCT((RankNHDD[Month]=ChillTempAct[[#This Row],[Month]])*(RankNHDD[Rank]=ChillTempAct[[#This Row],[Rank]])*RankNHDD[KIRKNHDD]) -> 0 | I20: =YEAR(ChillTempAct[[#This Row],[Date]]) -> 2020 | J20: =MONTH(ChillTempAct[[#This Row],[Date]]) -> 8 | K20: =IF(ChillTempAct[[#This Row],[Month]]=J19,K19+1,1) -> 19
A21: 44058 | B21: 88 | C21: 67 | D21: =AVERAGE(ChillTempAct[[#This Row],[ChillHigh]:[ChillLow]]) -> 77.5 | E21: =IF(ChillTempAct[[#This Row],[ChillAve]]<65,65-ChillTempAct[[#This Row],[ChillAve]],0) -> 0 | F21: =INDEX(TempAdj[AdjustPct],MATCH(MONTH(ChillTempAct[[#This Row],[Date]]),TempAdj[Month],0)) -> 1.0758 | G21: =ChillTempAct[[#This Row],[ChillHDD]]*(1+ChillTempAct[[#This Row],[ChillAdj]]) -> 0 | H21: =SUMPRODUCT((RankNHDD[Month]=ChillTempAct[[#This Row],[Month]])*(RankNHDD[Rank]=ChillTempAct[[#This Row],[Rank]])*RankNHDD[KIRKNHDD]) -> 0 | I21: =YEAR(ChillTempAct[[#This Row],[Date]]) -> 2020 | J21: =MONTH(ChillTempAct[[#This Row],[Date]]) -> 8 | K21: =IF(ChillTempAct[[#This Row],[Month]]=J20,K20+1,1) -> 20
A22: 44066 | B22: 90 | C22: 65 | D22: =AVERAGE(ChillTempAct[[#This Row],[ChillHigh]:[ChillLow]]) -> 77.5 | E22: =IF(ChillTempAct[[#This Row],[ChillAve]]<65,65-ChillTempAct[[#This Row],[ChillAve]],0) -> 0 | F22: =INDEX(TempAdj[AdjustPct],MATCH(MONTH(ChillTempAct[[#This Row],[Date]]),TempAdj[Month],0)) -> 1.0758 | G22: =ChillTempAct[[#This Row],[ChillHDD]]*(1+ChillTempAct[[#This Row],[ChillAdj]]) -> 0 | H22: =SUMPRODUCT((RankNHDD[Month]=ChillTempAct[[#This Row],[Month]])*(RankNHDD[Rank]=ChillTempAct[[#This Row],[Rank]])*RankNHDD[KIRKNHDD]) -> 0 | I22: =YEAR(ChillTempAct[[#This Row],[Date]]) -> 2020 | J22: =MONTH(ChillTempAct[[#This Row],[Date]]) -> 8 | K22: =IF(ChillTempAct[[#This Row],[Month]]=J21,K21+1,1) -> 21
A23: 44053 | B23: 85 | C23: 71 | D23: =AVERAGE(ChillTempAct[[#This Row],[ChillHigh]:[ChillLow]]) -> 78 | E23: =IF(ChillTempAct[[#This Row],[ChillAve]]<65,65-ChillTempAct[[#This Row],[ChillAve]],0) -> 0 | F23: =INDEX(TempAdj[AdjustPct],MATCH(MONTH(ChillTempAct[[#This Row],[Date]]),TempAdj[Month],0)) -> 1.0758 | G23: =ChillTempAct[[#This Row],[ChillHDD]]*(1+ChillTempAct[[#This Row],[ChillAdj]]) -> 0 | H23: =SUMPRODUCT((RankNHDD[Month]=ChillTempAct[[#This Row],[Month]])*(RankNHDD[Rank]=ChillTempAct[[#This Row],[Rank]])*RankNHDD[KIRKNHDD]) -> 0 | I23: =YEAR(ChillTempAct[[#This Row],[Date]]) -> 2020 | J23: =MONTH(ChillTempAct[[#This Row],[Date]]) -> 8 | K23: =IF(ChillTempAct[[#This Row],[Month]]=J22,K22+1,1) -> 22
A24: 44056 | B24: 87 | C24: 70 | D24: =AVERAGE(ChillTempAct[[#This Row],[ChillHigh]:[ChillLow]]) -> 78.5 | E24: =IF(ChillTempAct[[#This Row],[ChillAve]]<65,65-ChillTempAct[[#This Row],[ChillAve]],0) -> 0 | F24: =INDEX(TempAdj[AdjustPct],MATCH(MONTH(ChillTempAct[[#This Row],[Date]]),TempAdj[Month],0)) -> 1.0758 | G24: =ChillTempAct[[#This Row],[ChillHDD]]*(1+ChillTempAct[[#This Row],[ChillAdj]]) -> 0 | H24: =SUMPRODUCT((RankNHDD[Month]=ChillTempAct[[#This Row],[Month]])*(RankNHDD[Rank]=ChillTempAct[[#This Row],[Rank]])*RankNHDD[KIRKNHDD]) -> 0 | I24: =YEAR(ChillTempAct[[#This Row],[Date]]) -> 2020 | J24: =MONTH(ChillTempAct[[#This Row],[Date]]) -> 8 | K24: =IF(ChillTempAct[[#This Row],[Month]]=J23,K23+1,1) -> 23
A25: 44071 | B25: 91 | C25: 66 | D25: =AVERAGE(ChillTempAct[[#This Row],[ChillHigh]:[ChillLow]]) -> 78.5 | E25: =IF(ChillTempAct[[#This Row],[ChillAve]]<65,65-ChillTempAct[[#This Row],[ChillAve]],0) -> 0 | F25: =INDEX(TempAdj[AdjustPct],MATCH(MONTH(ChillTempAct[[#This Row],[Date]]),TempAdj[Month],0)) -> 1.0758 | G25: =ChillTempAct[[#This Row],[ChillHDD]]*(1+ChillTempAct[[#This Row],[ChillAdj]]) -> 0 | H25: =SUMPRODUCT((RankNHDD[Month]=ChillTempAct[[#This Row],[Month]])*(RankNHDD[Rank]=ChillTempAct[[#This Row],[Rank]])*RankNHDD[KIRKNHDD]) -> 0 | I25: =YEAR(ChillTempAct[[#This Row],[Date]]) -> 2020 | J25: =MONTH(ChillTempAct[[#This Row],[Date]]) -> 8 | K25: =IF(ChillTempAct[[#This Row],[Month]]=J24,K24+1,1) -> 24
A26: 44057 | B26: 88 | C26: 70 | D26: =AVERAGE(ChillTempAct[[#This Row],[ChillHigh]:[ChillLow]]) -> 79 | E26: =IF(ChillTempAct[[#This Row],[ChillAve]]<65,65-ChillTempAct[[#This Row],[ChillAve]],0) -> 0 | F26: =INDEX(TempAdj[AdjustPct],MATCH(MONTH(ChillTempAct[[#This Row],[Date]]),TempAdj[Month],0)) -> 1.0758 | G26: =ChillTempAct[[#This Row],[ChillHDD]]*(1+ChillTempAct[[#This Row],[ChillAdj]]) -> 0 | H26: =SUMPRODUCT((RankNHDD[Month]=ChillTempAct[[#This Row],[Month]])*(RankNHDD[Rank]=ChillTempAct[[#This Row],[Rank]])*RankNHDD[KIRKNHDD]) -> 0 | I26: =YEAR(ChillTempAct[[#This Row],[Date]]) -> 2020 | J26: =MONTH(ChillTempAct[[#This Row],[Date]]) -> 8 | K26: =IF(ChillTempAct[[#This Row],[Month]]=J25,K25+1,1) -> 25
A27: 44052 | B27: 85 | C27: 75 | D27: =AVERAGE(ChillTempAct[[#This Row],[ChillHigh]:[ChillLow]]) -> 80 | E27: =IF(ChillTempAct[[#This Row],[ChillAve]]<65,65-ChillTempAct[[#This Row],[ChillAve]],0) -> 0 | F27: =INDEX(TempAdj[AdjustPct],MATCH(MONTH(ChillTempAct[[#This Row],[Date]]),TempAdj[Month],0)) -> 1.0758 | G27: =ChillTempAct[[#This Row],[ChillHDD]]*(1+ChillTempAct[[#This Row],[ChillAdj]]) -> 0 | H27: =SUMPRODUCT((RankNHDD[Month]=ChillTempAct[[#This Row],[Month]])*(RankNHDD[Rank]=ChillTempAct[[#This Row],[Rank]])*RankNHDD[KIRKNHDD]) -> 0 | I27: =YEAR(ChillTempAct[[#This Row],[Date]]) -> 2020 | J27: =MONTH(ChillTempAct[[#This Row],[Date]]) -> 8 | K27: =IF(ChillTempAct[[#This Row],[Month]]=J26,K26+1,1) -> 26
A28: 44068 | B28: 93 | C28: 67 | D28: =AVERAGE(ChillTempAct[[#This Row],[ChillHigh]:[ChillLow]]) -> 80 | E28: =IF(ChillTempAct[[#This Row],[ChillAve]]<65,65-ChillTempAct[[#This Row],[ChillAve]],0) -> 0 | F28: =INDEX(TempAdj[AdjustPct],MATCH(MONTH(ChillTempAct[[#This Row],[Date]]),TempAdj[Month],0)) -> 1.0758 | G28: =ChillTempAct[[#This Row],[ChillHDD]]*(1+ChillTempAct[[#This Row],[ChillAdj]]) -> 0 | H28: =SUMPRODUCT((RankNHDD[Month]=ChillTempAct[[#This Row],[Month]])*(RankNHDD[Rank]=ChillTempAct[[#This Row],[Rank]])*RankNHDD[KIRKNHDD]) -> 0 | I28: =YEAR(ChillTempAct[[#This Row],[Date]]) -> 2020 | J28: =MONTH(ChillTempAct[[#This Row],[Date]]) -> 8 | K28: =IF(ChillTempAct[[#This Row],[Month]]=J27,K27+1,1) -> 27
A29: 44069 | B29: 93 | C29: 68 | D29: =AVERAGE(ChillTempAct[[#This Row],[ChillHigh]:[ChillLow]]) -> 80.5 | E29: =IF(ChillTempAct[[#This Row],[ChillAve]]<65,65-ChillTempAct[[#This Row],[ChillAve]],0) -> 0 | F29: =INDEX(TempAdj[AdjustPct],MATCH(MONTH(ChillTempAct[[#This Row],[Date]]),TempAdj[Month],0)) -> 1.0758 | G29: =ChillTempAct[[#This Row],[ChillHDD]]*(1+ChillTempAct[[#This Row],[ChillAdj]]) -> 0 | H29: =SUMPRODUCT((RankNHDD[Month]=ChillTempAct[[#This Row],[Month]])*(RankNHDD[Rank]=ChillTempAct[[#This Row],[Rank]])*RankNHDD[KIRKNHDD]) -> 0 | I29: =YEAR(ChillTempAct[[#This Row],[Date]]) -> 2020 | J29: =MONTH(ChillTempAct[[#This Row],[Date]]) -> 8 | K29: =IF(ChillTempAct[[#This Row],[Month]]=J28,K28+1,1) -> 28
A30: 44072 | B30: 93 | C30: 68 | D30: =AVERAGE(ChillTempAct[[#This Row],[ChillHigh]:[ChillLow]]) -> 80.5 | E30: =IF(ChillTempAct[[#This Row],[ChillAve]]<65,65-ChillTempAct[[#This Row],[ChillAve]],0) -> 0 | F30: =INDEX(TempAdj[AdjustPct],MATCH(MONTH(ChillTempAct[[#This Row],[Date]]),TempAdj[Month],0)) -> 1.0758 | G30: =ChillTempAct[[#This Row],[ChillHDD]]*(1+ChillTempAct[[#This Row],[ChillAdj]]) -> 0 | H30: =SUMPRODUCT((RankNHDD[Month]=ChillTempAct[[#This Row],[Month]])*(RankNHDD[Rank]=ChillTempAct[[#This Row],[Rank]])*RankNHDD[KIRKNHDD]) -> 0 | I30: =YEAR(ChillTempAct[[#This Row],[Date]]) -> 2020 | J30: =MONTH(ChillTempAct[[#This Row],[Date]]) -> 8 | K30: =IF(ChillTempAct[[#This Row],[Month]]=J29,K29+1,1) -> 29
A31: 44067 | B31: 93 | C31: 69 | D31: =AVERAGE(ChillTempAct[[#This Row],[ChillHigh]:[ChillLow]]) -> 81 | E31: =IF(ChillTempAct[[#This Row],[ChillAve]]<65,65-ChillTempAct[[#This Row],[ChillAve]],0) -> 0 | F31: =INDEX(TempAdj[AdjustPct],MATCH(MONTH(ChillTempAct[[#This Row],[Date]]),TempAdj[Month],0)) -> 1.0758 | G31: =ChillTempAct[[#This Row],[ChillHDD]]*(1+ChillTempAct[[#This Row],[ChillAdj]]) -> 0 | H31: =SUMPRODUCT((RankNHDD[Month]=ChillTempAct[[#This Row],[Month]])*(RankNHDD[Rank]=ChillTempAct[[#This Row],[Rank]])*RankNHDD[KIRKNHDD]) -> 0 | I31: =YEAR(ChillTempAct[[#This Row],[Date]]) -> 2020 | J31: =MONTH(ChillTempAct[[#This Row],[Date]]) -> 8 | K31: =IF(ChillTempAct[[#This Row],[Month]]=J30,K30+1,1) -> 30
A32: 44070 | B32: 93 | C32: 70 | D32: =AVERAGE(ChillTempAct[[#This Row],[ChillHigh]:[ChillLow]]) -> 81.5 | E32: =IF(ChillTempAct[[#This Row],[ChillAve]]<65,65-ChillTempAct[[#This Row],[ChillAve]],0) -> 0 | F32: =INDEX(TempAdj[AdjustPct],MATCH(MONTH(ChillTempAct[[#This Row],[Date]]),TempAdj[Month],0)) -> 1.0758 | G32: =ChillTempAct[[#This Row],[ChillHDD]]*(1+ChillTempAct[[#This Row],[ChillAdj]]) -> 0 | H32: =SUMPRODUCT((RankNHDD[Month]=ChillTempAct[[#This Row],[Month]])*(RankNHDD[Rank]=ChillTempAct[[#This Row],[Rank]])*RankNHDD[KIRKNHDD]) -> 0 | I32: =YEAR(ChillTempAct[[#This Row],[Date]]) -> 2020 | J32: =MONTH(ChillTempAct[[#This Row],[Date]]) -> 8 | K32: =IF(ChillTempAct[[#This Row],[Month]]=J31,K31+1,1) -> 31
A33: 44084 | B33: 55 | C33: 49 | D33: =AVERAGE(ChillTempAct[[#This Row],[ChillHigh]:[ChillLow]]) -> 52 | E33: =IF(ChillTempAct[[#This Row],[ChillAve]]<65,65-ChillTempAct[[#This Row],[ChillAve]],0) -> 13 | F33: =INDEX(TempAdj[AdjustPct],MATCH(MONTH(ChillTempAct[[#This Row],[Date]]),TempAdj[Month],0)) -> 0.3093 | G33: =ChillTempAct[[#This Row],[ChillHDD]]*(1+ChillTempAct[[#This Row],[ChillAdj]]) -> 17.0209 | H33: =SUMPRODUCT((RankNHDD[Month]=ChillTempAct[[#This Row],[Month]])*(RankNHDD[Rank]=ChillTempAct[[#This Row],[Rank]])*RankNHDD[KIRKNHDD]) -> 17.45092593 | I33: =YEAR(ChillTempAct[[#This Row],[Date]]) -> 2020 | J33: =MONTH(ChillTempAct[[#This Row],[Date]]) -> 9 | K33: =IF(ChillTempAct[[#This Row],[Month]]=J32,K32+1,1) -> 1
A34: 44083 | B34: 57 | C34: 49 | D34: =AVERAGE(ChillTempAct[[#This Row],[ChillHigh]:[ChillLow]]) -> 53 | E34: =IF(ChillTempAct[[#This Row],[ChillAve]]<65,65-ChillTempAct[[#This Row],[ChillAve]],0) -> 12 | F34: =INDEX(TempAdj[AdjustPct],MATCH(MONTH(ChillTempAct[[#This Row],[Date]]),TempAdj[Month],0)) -> 0.3093 | G34: =ChillTempAct[[#This Row],[ChillHDD]]*(1+ChillTempAct[[#This Row],[ChillAdj]]) -> 15.7116 | H34: =SUMPRODUCT((RankNHDD[Month]=ChillTempAct[[#This Row],[Month]])*(RankNHDD[Rank]=ChillTempAct[[#This Row],[Rank]])*RankNHDD[KIRKNHDD]) -> 13.4362963 | I34: =YEAR(ChillTempAct[[#This Row],[Date]]) -> 2020 | J34: =MONTH(ChillTempAct[[#This Row],[Date]]) -> 9 | K34: =IF(ChillTempAct[[#This Row],[Month]]=J33,K33+1,1) -> 2
A35: 44085 | B35: 56 | C35: 51 | D35: =AVERAGE(ChillTempAct[[#This Row],[ChillHigh]:[ChillLow]]) -> 53.5 | E35: =IF(ChillTempAct[[#This Row],[ChillAve]]<65,65-ChillTempAct[[#This Row],[ChillAve]],0) -> 11.5 | F35: =INDEX(TempAdj[AdjustPct],MATCH(MONTH(ChillTempAct[[#This Row],[Date]]),TempAdj[Month],0)) -> 0.3093 | G35: =ChillTempAct[[#This Row],[ChillHDD]]*(1+ChillTempAct[[#This Row],[ChillAdj]]) -> 15.05695 | H35: =SUMPRODUCT((RankNHDD[Month]=ChillTempAct[[#This Row],[Month]])*(RankNHDD[Rank]=ChillTempAct[[#This Row],[Rank]])*RankNHDD[KIRKNHDD]) -> 11.30925926 | I35: =YEAR(ChillTempAct[[#This Row],[Date]]) -> 2020 | J35: =MONTH(ChillTempAct[[#This Row],[Date]]) -> 9 | K35: =IF(ChillTempAct[[#This Row],[Month]]=J34,K34+1,1) -> 3
A36: 44103 | B36: 64 | C36: 44 | D36: =AVERAGE(ChillTempAct[[#This Row],[ChillHigh]:[ChillLow]]) -> 54 | E36: =IF(ChillTempAct[[#This Row],[ChillAve]]<65,65-ChillTempAct[[#This Row],[ChillAve]],0) -> 11 | F36: =INDEX(TempAdj[AdjustPct],MATCH(MONTH(ChillTempAct[[#This Row],[Date]]),TempAdj[Month],0)) -> 0.3093 | G36: =ChillTempAct[[#This Row],[ChillHDD]]*(1+ChillTempAct[[#This Row],[ChillAdj]]) -> 14.4023 | H36: =SUMPRODUCT((RankNHDD[Month]=ChillTempAct[[#This Row],[Month]])*(RankNHDD[Rank]=ChillTempAct[[#This Row],[Rank]])*RankNHDD[KIRKNHDD]) -> 9.779814815 | I36: =YEAR(ChillTempAct[[#This Row],[Date]]) -> 2020 | J36: =MONTH(ChillTempAct[[#This Row],[Date]]) -> 9 | K36: =IF(ChillTempAct[[#This Row],[Month]]=J35,K35+1,1) -> 4
A37: 44104 | B37: 70 | C37: 44 | D37: =AVERAGE(ChillTempAct[[#This Row],[ChillHigh]:[ChillLow]]) -> 57 | E37: =IF(ChillTempAct[[#This Row],[ChillAve]]<65,65-ChillTempAct[[#This Row],[ChillAve]],0) -> 8 | F37: =INDEX(TempAdj[AdjustPct],MATCH(MONTH(ChillTempAct[[#This Row],[Date]]),TempAdj[Month],0)) -> 0.3093 | G37: =ChillTempAct[[#This Row],[ChillHDD]]*(1+ChillTempAct[[#This Row],[ChillAdj]]) -> 10.4744 | H37: =SUMPRODUCT((RankNHDD[Month]=ChillTempAct[[#This Row],[Month]])*(RankNHDD[Rank]=ChillTempAct[[#This Row],[Rank]])*RankNHDD[KIRKNHDD]) -> 8.397777778 | I37: =YEAR(ChillTempAct[[#This Row],[Date]]) -> 2020 | J37: =MONTH(ChillTempAct[[#This Row],[Date]]) -> 9 | K37: =IF(ChillTempAct[[#This Row],[Month]]=J36,K36+1,1) -> 5
A38: 44094 | B38: 69 | C38: 46 | D38: =AVERAGE(ChillTempAct[[#This Row],[ChillHigh]:[ChillLow]]) -> 57.5 | E38: =IF(ChillTempAct[[#This Row],[ChillAve]]<65,65-ChillTempAct[[#This Row],[ChillAve]],0) -> 7.5 | F38: =INDEX(TempAdj[AdjustPct],MATCH(MONTH(ChillTempAct[[#This Row],[Date]]),TempAdj[Month],0)) -> 0.3093 | G38: =ChillTempAct[[#This Row],[ChillHDD]]*(1+ChillTempAct[[#This Row],[ChillAdj]]) -> 9.81975 | H38: =SUMPRODUCT((RankNHDD[Month]=ChillTempAct[[#This Row],[Month]])*(RankNHDD[Rank]=ChillTempAct[[#This Row],[Rank]])*RankNHDD[KIRKNHDD]) -> 7.208518519 | I38: =YEAR(ChillTempAct[[#This Row],[Date]]) -> 2020 | J38: =MONTH(ChillTempAct[[#This Row],[Date]]) -> 9 | K38: =IF(ChillTempAct[[#This Row],[Month]]=J37,K37+1,1) -> 6
A39: 44102 | B39: 70 | C39: 47 | D39: =AVERAGE(ChillTempAct[[#This Row],[ChillHigh]:[ChillLow]]) -> 58.5 | E39: =IF(ChillTempAct[[#This Row],[ChillAve]]<65,65-ChillTempAct[[#This Row],[ChillAve]],0) -> 6.5 | F39: =INDEX(TempAdj[AdjustPct],MATCH(MONTH(ChillTempAct[[#This Row],[Date]]),TempAdj[Month],0)) -> 0.3093 | G39: =ChillTempAct[[#This Row],[ChillHDD]]*(1+ChillTempAct[[#This Row],[ChillAdj]]) -> 8.51045 | H39: =SUMPRODUCT((RankNHDD[Month]=ChillTempAct[[#This Row],[Month]])*(RankNHDD[Rank]=ChillTempAct[[#This Row],[Rank]])*RankNHDD[KIRKNHDD]) -> 6.168888889 | I39: =YEAR(ChillTempAct[[#This Row],[Date]]) -> 2020 | J39: =MONTH(ChillTempAct[[#This Row],[Date]]) -> 9 | K39: =IF(ChillTempAct[[#This Row],[Month]]=J38,K38+1,1) -> 7
A40: 44086 | B40: 62 | C40: 56 | D40: =AVERAGE(ChillTempAct[[#This Row],[ChillHigh]:[ChillLow]]) -> 59 | E40: =IF(ChillTempAct[[#This Row],[ChillAve]]<65,65-ChillTempAct[[#This Row],[ChillAve]],0) -> 6 | F40: =INDEX(TempAdj[AdjustPct],MATCH(MONTH(ChillTempAct[[#This Row],[Date]]),TempAdj[Month],0)) -> 0.3093 | G40: =ChillTempAct[[#This Row],[ChillHDD]]*(1+ChillTempAct[[#This Row],[ChillAdj]]) -> 7.8558 | H40: =SUMPRODUCT((RankNHDD[Month]=ChillTempAct[[#This Row],[Month]])*(RankNHDD[Rank]=ChillTempAct[[#This Row],[Rank]])*RankNHDD[KIRKNHDD]) -> 5.265 | I40: =YEAR(ChillTempAct[[#This Row],[Date]]) -> 2020 | J40: =MONTH(ChillTempAct[[#This Row],[Date]]) -> 9 | K40: =IF(ChillTempAct[[#This Row],[Month]]=J39,K39+1,1) -> 8
A41: 44095 | B41: 73 | C41: 48 | D41: =AVERAGE(ChillTempAct[[#This Row],[ChillHigh]:[ChillLow]]) -> 60.5 | E41: =IF(ChillTempAct[[#This Row],[ChillAve]]<65,65-ChillTempAct[[#This Row],[ChillAve]],0) -> 4.5 | F41: =INDEX(TempAdj[AdjustPct],MATCH(MONTH(ChillTempAct[[#This Row],[Date]]),TempAdj[Month],0)) -> 0.3093 | G41: =ChillTempAct[[#This Row],[ChillHDD]]*(1+ChillTempAct[[#This Row],[ChillAdj]]) -> 5.89185 | H41: =SUMPRODUCT((RankNHDD[Month]=ChillTempAct[[#This Row],[Month]])*(RankNHDD[Rank]=ChillTempAct[[#This Row],[Rank]])*RankNHDD[KIRKNHDD]) -> 4.532222222 | I41: =YEAR(ChillTempAct[[#This Row],[Date]]) -> 2020 | J41: =MONTH(ChillTempAct[[#This Row],[Date]]) -> 9 | K41: =IF(ChillTempAct[[#This Row],[Month]]=J40,K40+1,1) -> 9
A42: 44092 | B42: 73 | C42: 50 | D42: =AVERAGE(ChillTempAct[[#This Row],[ChillHigh]:[ChillLow]]) -> 61.5 | E42: =IF(ChillTempAct[[#This Row],[ChillAve]]<65,65-ChillTempAct[[#This Row],[ChillAve]],0) -> 3.5 | F42: =INDEX(TempAdj[AdjustPct],MATCH(MONTH(ChillTempAct[[#This Row],[Date]]),TempAdj[Month],0)) -> 0.3093 | G42: =ChillTempAct[[#This Row],[ChillHDD]]*(1+ChillTempAct[[#This Row],[ChillAdj]]) -> 4.58255 | H42: =SUMPRODUCT((RankNHDD[Month]=ChillTempAct[[#This Row],[Month]])*(RankNHDD[Rank]=ChillTempAct[[#This Row],[Rank]])*RankNHDD[KIRKNHDD]) -> 3.858148148 | I42: =YEAR(ChillTempAct[[#This Row],[Date]]) -> 2020 | J42: =MONTH(ChillTempAct[[#This Row],[Date]]) -> 9 | K42: =IF(ChillTempAct[[#This Row],[Month]]=J41,K41+1,1) -> 10
A43: 44093 | B43: 78 | C43: 48 | D43: =AVERAGE(ChillTempAct[[#This Row],[ChillHigh]:[ChillLow]]) -> 63 | E43: =IF(ChillTempAct[[#This Row],[ChillAve]]<65,65-ChillTempAct[[#This Row],[ChillAve]],0) -> 2 | F43: =INDEX(TempAdj[AdjustPct],MATCH(MONTH(ChillTempAct[[#This Row],[Date]]),TempAdj[Month],0)) -> 0.3093 | G43: =ChillTempAct[[#This Row],[ChillHDD]]*(1+ChillTempAct[[#This Row],[ChillAdj]]) -> 2.6186 | H43: =SUMPRODUCT((RankNHDD[Month]=ChillTempAct[[#This Row],[Month]])*(RankNHDD[Rank]=ChillTempAct[[#This Row],[Rank]])*RankNHDD[KIRKNHDD]) -> 2.931851852 | I43: =YEAR(ChillTempAct[[#This Row],[Date]]) -> 2020 | J43: =MONTH(ChillTempAct[[#This Row],[Date]]) -> 9 | K43: =IF(ChillTempAct[[#This Row],[Month]]=J42,K42+1,1) -> 11
A44: 44096 | B44: 77 | C44: 50 | D44: =AVERAGE(ChillTempAct[[#This Row],[ChillHigh]:[ChillLow]]) -> 63.5 | E44: =IF(ChillTempAct[[#This Row],[ChillAve]]<65,65-ChillTempAct[[#This Row],[ChillAve]],0) -> 1.5 | F44: =INDEX(TempAdj[AdjustPct],MATCH(MONTH(ChillTempAct[[#This Row],[Date]]),TempAdj[Month],0)) -> 0.3093 | G44: =ChillTempAct[[#This Row],[ChillHDD]]*(1+ChillTempAct[[#This Row],[ChillAdj]]) -> 1.96395 | H44: =SUMPRODUCT((RankNHDD[Month]=ChillTempAct[[#This Row],[Month]])*(RankNHDD[Rank]=ChillTempAct[[#This Row],[Rank]])*RankNHDD[KIRKNHDD]) -> 2.153703704 | I44: =YEAR(ChillTempAct[[#This Row],[Date]]) -> 2020 | J44: =MONTH(ChillTempAct[[#This Row],[Date]]) -> 9 | K44: =IF(ChillTempAct[[#This Row],[Month]]=J43,K43+1,1) -> 12
A45: 44087 | B45: 76 | C45: 52 | D45: =AVERAGE(ChillTempAct[[#This Row],[ChillHigh]:[ChillLow]]) -> 64 | E45: =IF(ChillTempAct[[#This Row],[ChillAve]]<65,65-ChillTempAct[[#This Row],[ChillAve]],0) -> 1 | F45: =INDEX(TempAdj[AdjustPct],MATCH(MONTH(ChillTempAct[[#This Row],[Date]]),TempAdj[Month],0)) -> 0.3093 | G45: =ChillTempAct[[#This Row],[ChillHDD]]*(1+ChillTempAct[[#This Row],[ChillAdj]]) -> 1.3093 | H45: =SUMPRODUCT((RankNHDD[Month]=ChillTempAct[[#This Row],[Month]])*(RankNHDD[Rank]=ChillTempAct[[#This Row],[Rank]])*RankNHDD[KIRKNHDD]) -> 1.310925926 | I45: =YEAR(ChillTempAct[[#This Row],[Date]]) -> 2020 | J45: =MONTH(ChillTempAct[[#This Row],[Date]]) -> 9 | K45: =IF(ChillTempAct[[#This Row],[Month]]=J44,K44+1,1) -> 13
A46: 44088 | B46: 76 | C46: 52 | D46: =AVERAGE(ChillTempAct[[#This Row],[ChillHigh]:[ChillLow]]) -> 64 | E46: =IF(ChillTempAct[[#This Row],[ChillAve]]<65,65-ChillTempAct[[#This Row],[ChillAve]],0) -> 1 | F46: =INDEX(TempAdj[AdjustPct],MATCH(MONTH(ChillTempAct[[#This Row],[Date]]),TempAdj[Month],0)) -> 0.3093 | G46: =ChillTempAct[[#This Row],[ChillHDD]]*(1+ChillTempAct[[#This Row],[ChillAdj]]) -> 1.3093 | H46: =SUMPRODUCT((RankNHDD[Month]=ChillTempAct[[#This Row],[Month]])*(RankNHDD[Rank]=ChillTempAct[[#This Row],[Rank]])*RankNHDD[KIRKNHDD]) -> 0.4022222222 | I46: =YEAR(ChillTempAct[[#This Row],[Date]]) -> 2020 | J46: =MONTH(ChillTempAct[[#This Row],[Date]]) -> 9 | K46: =IF(ChillTempAct[[#This Row],[Month]]=J45,K45+1,1) -> 14
A47: 44089 | B47: 78 | C47: 52 | D47: =AVERAGE(ChillTempAct[[#This Row],[ChillHigh]:[ChillLow]]) -> 65 | E47: =IF(ChillTempAct[[#This Row],[ChillAve]]<65,65-ChillTempAct[[#This Row],[ChillAve]],0) -> 0 | F47: =INDEX(TempAdj[AdjustPct],MATCH(MONTH(ChillTempAct[[#This Row],[Date]]),TempAdj[Month],0)) -> 0.3093 | G47: =ChillTempAct[[#This Row],[ChillHDD]]*(1+ChillTempAct[[#This Row],[ChillAdj]]) -> 0 | H47: =SUMPRODUCT((RankNHDD[Month]=ChillTempAct[[#This Row],[Month]])*(RankNHDD[Rank]=ChillTempAct[[#This Row],[Rank]])*RankNHDD[KIRKNHDD]) -> 0 | I47: =YEAR(ChillTempAct[[#This Row],[Date]]) -> 2020 | J47: =MONTH(ChillTempAct[[#This Row],[Date]]) -> 9 | K47: =IF(ChillTempAct[[#This Row],[Month]]=J46,K46+1,1) -> 15
A48: 44090 | B48: 77 | C48: 54 | D48: =AVERAGE(ChillTempAct[[#This Row],[ChillHigh]:[ChillLow]]) -> 65.5 | E48: =IF(ChillTempAct[[#This Row],[ChillAve]]<65,65-ChillTempAct[[#This Row],[ChillAve]],0) -> 0 | F48: =INDEX(TempAdj[AdjustPct],MATCH(MONTH(ChillTempAct[[#This Row],[Date]]),TempAdj[Month],0)) -> 0.3093 | G48: =ChillTempAct[[#This Row],[ChillHDD]]*(1+ChillTempAct[[#This Row],[ChillAdj]]) -> 0 | H48: =SUMPRODUCT((RankNHDD[Month]=ChillTempAct[[#This Row],[Month]])*(RankNHDD[Rank]=ChillTempAct[[#This Row],[Rank]])*RankNHDD[KIRKNHDD]) -> 0 | I48: =YEAR(ChillTempAct[[#This Row],[Date]]) -> 2020 | J48: =MONTH(ChillTempAct[[#This Row],[Date]]) -> 9 | K48: =IF(ChillTempAct[[#This Row],[Month]]=J47,K47+1,1) -> 16
A49: 44097 | B49: 78 | C49: 53 | D49: =AVERAGE(ChillTempAct[[#This Row],[ChillHigh]:[ChillLow]]) -> 65.5 | E49: =IF(ChillTempAct[[#This Row],[ChillAve]]<65,65-ChillTempAct[[#This Row],[ChillAve]],0) -> 0 | F49: =INDEX(TempAdj[AdjustPct],MATCH(MONTH(ChillTempAct[[#This Row],[Date]]),TempAdj[Month],0)) -> 0.3093 | G49: =ChillTempAct[[#This Row],[ChillHDD]]*(1+ChillTempAct[[#This Row],[ChillAdj]]) -> 0 | H49: =SUMPRODUCT((RankNHDD[Month]=ChillTempAct[[#This Row],[Month]])*(RankNHDD[Rank]=ChillTempAct[[#This Row],[Rank]])*RankNHDD[KIRKNHDD]) -> 0 | I49: =YEAR(ChillTempAct[[#This Row],[Date]]) -> 2020 | J49: =MONTH(ChillTempAct[[#This Row],[Date]]) -> 9 | K49: =IF(ChillTempAct[[#This Row],[Month]]=J48,K48+1,1) -> 17
A50: 44098 | B50: 79 | C50: 54 | D50: =AVERAGE(ChillTempAct[[#This Row],[ChillHigh]:[ChillLow]]) -> 66.5 | E50: =IF(ChillTempAct[[#This Row],[ChillAve]]<65,65-ChillTempAct[[#This Row],[ChillAve]],0) -> 0 | F50: =INDEX(TempAdj[AdjustPct],MATCH(MONTH(ChillTempAct[[#This Row],[Date]]),TempAdj[Month],0)) -> 0.3093 | G50: =ChillTempAct[[#This Row],[ChillHDD]]*(1+ChillTempAct[[#This Row],[ChillAdj]]) -> 0 | H50: =SUMPRODUCT((RankNHDD[Month]=ChillTempAct[[#This Row],[Month]])*(RankNHDD[Rank]=ChillTempAct[[#This Row],[Rank]])*RankNHDD[KIRKNHDD]) -> 0 | I50: =YEAR(ChillTempAct[[#This Row],[Date]]) -> 2020 | J50: =MONTH(ChillTempAct[[#This Row],[Date]]) -> 9 | K50: =IF(ChillTempAct[[#This Row],[Month]]=J49,K49+1,1) -> 18
A51: 44099 | B51: 80 | C51: 54 | D51: =AVERAGE(ChillTempAct[[#This Row],[ChillHigh]:[ChillLow]]) -> 67 | E51: =IF(ChillTempAct[[#This Row],[ChillAve]]<65,65-ChillTempAct[[#This Row],[ChillAve]],0) -> 0 | F51: =INDEX(TempAdj[AdjustPct],MATCH(MONTH(ChillTempAct[[#This Row],[Date]]),TempAdj[Month],0)) -> 0.3093 | G51: =ChillTempAct[[#This Row],[ChillHDD]]*(1+ChillTempAct[[#This Row],[ChillAdj]]) -> 0 | H51: =SUMPRODUCT((RankNHDD[Month]=ChillTempAct[[#This Row],[Month]])*(RankNHDD[Rank]=ChillTempAct[[#This Row],[Rank]])*RankNHDD[KIRKNHDD]) -> 0 | I51: =YEAR(ChillTempAct[[#This Row],[Date]]) -> 2020 | J51: =MONTH(ChillTempAct[[#This Row],[Date]]) -> 9 | K51: =IF(ChillTempAct[[#This Row],[Month]]=J50,K50+1,1) -> 19
A52: 44078 | B52: 83 | C52: 52 | D52: =AVERAGE(ChillTempAct[[#This Row],[ChillHigh]:[ChillLow]]) -> 67.5 | E52: =IF(ChillTempAct[[#This Row],[ChillAve]]<65,65-ChillTempAct[[#This Row],[ChillAve]],0) -> 0 | F52: =INDEX(TempAdj[AdjustPct],MATCH(MONTH(ChillTempAct[[#This Row],[Date]]),TempAdj[Month],0)) -> 0.3093 | G52: =ChillTempAct[[#This Row],[ChillHDD]]*(1+ChillTempAct[[#This Row],[ChillAdj]]) -> 0 | H52: =SUMPRODUCT((RankNHDD[Month]=ChillTempAct[[#This Row],[Month]])*(RankNHDD[Rank]=ChillTempAct[[#This Row],[Rank]])*RankNHDD[KIRKNHDD]) -> 0 | I52: =YEAR(ChillTempAct[[#This Row],[Date]]) -> 2020 | J52: =MONTH(ChillTempAct[[#This Row],[Date]]) -> 9 | K52: =IF(ChillTempAct[[#This Row],[Month]]=J51,K51+1,1) -> 20
A53: 44091 | B53: 83 | C53: 53 | D53: =AVERAGE(ChillTempAct[[#This Row],[ChillHigh]:[ChillLow]]) -> 68 | E53: =IF(ChillTempAct[[#This Row],[ChillAve]]<65,65-ChillTempAct[[#This Row],[ChillAve]],0) -> 0 | F53: =INDEX(TempAdj[AdjustPct],MATCH(MONTH(ChillTempAct[[#This Row],[Date]]),TempAdj[Month],0)) -> 0.3093 | G53: =ChillTempAct[[#This Row],[ChillHDD]]*(1+ChillTempAct[[#This Row],[ChillAdj]]) -> 0 | H53: =SUMPRODUCT((RankNHDD[Month]=ChillTempAct[[#This Row],[Month]])*(RankNHDD[Rank]=ChillTempAct[[#This Row],[Rank]])*RankNHDD[KIRKNHDD]) -> 0 | I53: =YEAR(ChillTempAct[[#This Row],[Date]]) -> 2020 | J53: =MONTH(ChillTempAct[[#This Row],[Date]]) -> 9 | K53: =IF(ChillTempAct[[#This Row],[Month]]=J52,K52+1,1) -> 21
A54: 44082 | B54: 82 | C54: 55 | D54: =AVERAGE(ChillTempAct[[#This Row],[ChillHigh]:[ChillLow]]) -> 68.5 | E54: =IF(ChillTempAct[[#This Row],[ChillAve]]<65,65-ChillTempAct[[#This Row],[ChillAve]],0) -> 0 | F54: =INDEX(TempAdj[AdjustPct],MATCH(MONTH(ChillTempAct[[#This Row],[Date]]),TempAdj[Month],0)) -> 0.3093 | G54: =ChillTempAct[[#This Row],[ChillHDD]]*(1+ChillTempAct[[#This Row],[ChillAdj]]) -> 0 | H54: =SUMPRODUCT((RankNHDD[Month]=ChillTempAct[[#This Row],[Month]])*(RankNHDD[Rank]=ChillTempAct[[#This Row],[Rank]])*RankNHDD[KIRKNHDD]) -> 0 | I54: =YEAR(ChillTempAct[[#This Row],[Date]]) -> 2020 | J54: =MONTH(ChillTempAct[[#This Row],[Date]]) -> 9 | K54: =IF(ChillTempAct[[#This Row],[Month]]=J53,K53+1,1) -> 22
A55: 44075 | B55: 75 | C55: 63 | D55: =AVERAGE(ChillTempAct[[#This Row],[ChillHigh]:[ChillLow]]) -> 69 | E55: =IF(ChillTempAct[[#This Row],[ChillAve]]<65,65-ChillTempAct[[#This Row],[ChillAve]],0) -> 0 | F55: =INDEX(TempAdj[AdjustPct],MATCH(MONTH(ChillTempAct[[#This Row],[Date]]),TempAdj[Month],0)) -> 0.3093 | G55: =ChillTempAct[[#This Row],[ChillHDD]]*(1+ChillTempAct[[#This Row],[ChillAdj]]) -> 0 | H55: =SUMPRODUCT((RankNHDD[Month]=ChillTempAct[[#This Row],[Month]])*(RankNHDD[Rank]=ChillTempAct[[#This Row],[Rank]])*RankNHDD[KIRKNHDD]) -> 0 | I55: =YEAR(ChillTempAct[[#This Row],[Date]]) -> 2020 | J55: =MONTH(ChillTempAct[[#This Row],[Date]]) -> 9 | K55: =IF(ChillTempAct[[#This Row],[Month]]=J54,K54+1,1) -> 23
A56: 44079 | B56: 82 | C56: 57 | D56: =AVERAGE(ChillTempAct[[#This Row],[ChillHigh]:[ChillLow]]) -> 69.5 | E56: =IF(ChillTempAct[[#This Row],[ChillAve]]<65,65-ChillTempAct[[#This Row],[ChillAve]],0) -> 0 | F56: =INDEX(TempAdj[AdjustPct],MATCH(MONTH(ChillTempAct[[#This Row],[Date]]),TempAdj[Month],0)) -> 0.3093 | G56: =ChillTempAct[[#This Row],[ChillHDD]]*(1+ChillTempAct[[#This Row],[ChillAdj]]) -> 0 | H56: =SUMPRODUCT((RankNHDD[Month]=ChillTempAct[[#This Row],[Month]])*(RankNHDD[Rank]=ChillTempAct[[#This Row],[Rank]])*RankNHDD[KIRKNHDD]) -> 0 | I56: =YEAR(ChillTempAct[[#This Row],[Date]]) -> 2020 | J56: =MONTH(ChillTempAct[[#This Row],[Date]]) -> 9 | K56: =IF(ChillTempAct[[#This Row],[Month]]=J55,K55+1,1) -> 24
A57: 44100 | B57: 85 | C57: 58 | D57: =AVERAGE(ChillTempAct[[#This Row],[ChillHigh]:[ChillLow]]) -> 71.5 | E57: =IF(ChillTempAct[[#This Row],[ChillAve]]<65,65-ChillTempAct[[#This Row],[ChillAve]],0) -> 0 | F57: =INDEX(TempAdj[AdjustPct],MATCH(MONTH(ChillTempAct[[#This Row],[Date]]),TempAdj[Month],0)) -> 0.3093 | G57: =ChillTempAct[[#This Row],[ChillHDD]]*(1+ChillTempAct[[#This Row],[ChillAdj]]) -> 0 | H57: =SUMPRODUCT((RankNHDD[Month]=ChillTempAct[[#This Row],[Month]])*(RankNHDD[Rank]=ChillTempAct[[#This Row],[Rank]])*RankNHDD[KIRKNHDD]) -> 0 | I57: =YEAR(ChillTempAct[[#This Row],[Date]]) -> 2020 | J57: =MONTH(ChillTempAct[[#This Row],[Date]]) -> 9 | K57: =IF(ChillTempAct[[#This Row],[Month]]=J56,K56+1,1) -> 25
A58: 44076 | B58: 82 | C58: 64 | D58: =AVERAGE(ChillTempAct[[#This Row],[ChillHigh]:[ChillLow]]) -> 73 | E58: =IF(ChillTempAct[[#This Row],[ChillAve]]<65,65-ChillTempAct[[#This Row],[ChillAve]],0) -> 0 | F58: =INDEX(TempAdj[AdjustPct],MATCH(MONTH(ChillTempAct[[#This Row],[Date]]),TempAdj[Month],0)) -> 0.3093 | G58: =ChillTempAct[[#This Row],[ChillHDD]]*(1+ChillTempAct[[#This Row],[ChillAdj]]) -> 0 | H58: =SUMPRODUCT((RankNHDD[Month]=ChillTempAct[[#This Row],[Month]])*(RankNHDD[Rank]=ChillTempAct[[#This Row],[Rank]])*RankNHDD[KIRKNHDD]) -> 0 | I58: =YEAR(ChillTempAct[[#This Row],[Date]]) -> 2020 | J58: =MONTH(ChillTempAct[[#This Row],[Date]]) -> 9 | K58: =IF(ChillTempAct[[#This Row],[Month]]=J57,K57+1,1) -> 26
A59: 44077 | B59: 86 | C59: 62 | D59: =AVERAGE(ChillTempAct[[#This Row],[ChillHigh]:[ChillLow]]) -> 74 | E59: =IF(ChillTempAct[[#This Row],[ChillAve]]<65,65-ChillTempAct[[#This Row],[ChillAve]],0) -> 0 | F59: =INDEX(TempAdj[AdjustPct],MATCH(MONTH(ChillTempAct[[#This Row],[Date]]),TempAdj[Month],0)) -> 0.3093 | G59: =ChillTempAct[[#This Row],[ChillHDD]]*(1+ChillTempAct[[#This Row],[ChillAdj]]) -> 0 | H59: =SUMPRODUCT((RankNHDD[Month]=ChillTempAct[[#This Row],[Month]])*(RankNHDD[Rank]=ChillTempAct[[#This Row],[Rank]])*RankNHDD[KIRKNHDD]) -> 0 | I59: =YEAR(ChillTempAct[[#This Row],[Date]]) -> 2020 | J59: =MONTH(ChillTempAct[[#This Row],[Date]]) -> 9 | K59: =IF(ChillTempAct[[#This Row],[Month]]=J58,K58+1,1) -> 27
A60: 44101 | B60: 86 | C60: 62 | D60: =AVERAGE(ChillTempAct[[#This Row],[ChillHigh]:[ChillLow]]) -> 74 | E60: =IF(ChillTempAct[[#This Row],[ChillAve]]<65,65-ChillTempAct[[#This Row],[ChillAve]],0) -> 0 | F60: =INDEX(TempAdj[AdjustPct],MATCH(MONTH(ChillTempAct[[#This Row],[Date]]),TempAdj[Month],0)) -> 0.3093 | G60: =ChillTempAct[[#This Row],[ChillHDD]]*(1+ChillTempAct[[#This Row],[ChillAdj]]) -> 0 | H60: =SUMPRODUCT((RankNHDD[Month]=ChillTempAct[[#This Row],[Month]])*(RankNHDD[Rank]=ChillTempAct[[#This Row],[Rank]])*RankNHDD[KIRKNHDD]) -> 0 | I60: =YEAR(ChillTempAct[[#This Row],[Date]]) -> 2020 | J60: =MONTH(ChillTempAct[[#This Row],[Date]]) -> 9 | K60: =IF(ChillTempAct[[#This Row],[Month]]=J59,K59+1,1) -> 28
A61: 44080 | B61: 90 | C61: 61 | D61: =AVERAGE(ChillTempAct[[#This Row],[ChillHigh]:[ChillLow]]) -> 75.5 | E61: =IF(ChillTempAct[[#This Row],[ChillAve]]<65,65-ChillTempAct[[#This Row],[ChillAve]],0) -> 0 | F61: =INDEX(TempAdj[AdjustPct],MATCH(MONTH(ChillTempAct[[#This Row],[Date]]),TempAdj[Month],0)) -> 0.3093 | G61: =ChillTempAct[[#This Row],[ChillHDD]]*(1+ChillTempAct[[#This Row],[ChillAdj]]) -> 0 | H61: =SUMPRODUCT((RankNHDD[Month]=ChillTempAct[[#This Row],[Month]])*(RankNHDD[Rank]=ChillTempAct[[#This Row],[Rank]])*RankNHDD[KIRKNHDD]) -> 0 | I61: =YEAR(ChillTempAct[[#This Row],[Date]]) -> 2020 | J61: =MONTH(ChillTempAct[[#This Row],[Date]]) -> 9 | K61: =IF(ChillTempAct[[#This Row],[Month]]=J60,K60+1,1) -> 29
A62: 44081 | B62: 89 | C62: 68 | D62: =AVERAGE(ChillTempAct[[#This Row],[ChillHigh]:[ChillLow]]) -> 78.5 | E62: =IF(ChillTempAct[[#This Row],[ChillAve]]<65,65-ChillTempAct[[#This Row],[ChillAve]],0) -> 0 | F62: =INDEX(TempAdj[AdjustPct],MATCH(MONTH(ChillTempAct[[#This Row],[Date]]),TempAdj[Month],0)) -> 0.3093 | G62: =ChillTempAct[[#This Row],[ChillHDD]]*(1+ChillTempAct[[#This Row],[ChillAdj]]) -> 0 | H62: =SUMPRODUCT((RankNHDD[Month]=ChillTempAct[[#This Row],[Month]])*(RankNHDD[Rank]=ChillTempAct[[#This Row],[Rank]])*RankNHDD[KIRKNHDD]) -> 0 | I62: =YEAR(ChillTempAct[[#This Row],[Date]]) -> 2020 | J62: =MONTH(ChillTempAct[[#This Row],[Date]]) -> 9 | K62: =IF(ChillTempAct[[#This Row],[Month]]=J61,K61+1,1) -> 30
A63: 44131 | B63: 31 | C63: 27 | D63: =AVERAGE(ChillTempAct[[#This Row],[ChillHigh]:[ChillLow]]) -> 29 | E63: =IF(ChillTempAct[[#This Row],[ChillAve]]<65,65-ChillTempAct[[#This Row],[ChillAve]],0) -> 36 | F63: =INDEX(TempAdj[AdjustPct],MATCH(MONTH(ChillTempAct[[#This Row],[Date]]),TempAdj[Month],0)) -> 0.1114 | G63: =ChillTempAct[[#This Row],[ChillHDD]]*(1+ChillTempAct[[#This Row],[ChillAdj]]) -> 40.0104 | H63: =SUMPRODUCT((RankNHDD[Month]=ChillTempAct[[#This Row],[Month]])*(RankNHDD[Rank]=ChillTempAct[[#This Row],[Rank]])*RankNHDD[KIRKNHDD]) -> 30.56630824 | I63: =YEAR(ChillTempAct[[#This Row],[Date]]) -> 2020 | J63: =MONTH(ChillTempAct[[#This Row],[Date]]) -> 10 | K63: =IF(ChillTempAct[[#This Row],[Month]]=J62,K62+1,1) -> 1
A64: 44132 | B64: 35 | C64: 29 | D64: =AVERAGE(ChillTempAct[[#This Row],[ChillHigh]:[ChillLow]]) -> 32 | E64: =IF(ChillTempAct[[#This Row],[ChillAve]]<65,65-ChillTempAct[[#This Row],[ChillAve]],0) -> 33 | F64: =INDEX(TempAdj[AdjustPct],MATCH(MONTH(ChillTempAct[[#This Row],[Date]]),TempAdj[Month],0)) -> 0.1114 | G64: =ChillTempAct[[#This Row],[ChillHDD]]*(1+ChillTempAct[[#This Row],[ChillAdj]]) -> 36.6762 | H64: =SUMPRODUCT((RankNHDD[Month]=ChillTempAct[[#This Row],[Month]])*(RankNHDD[Rank]=ChillTempAct[[#This Row],[Rank]])*RankNHDD[KIRKNHDD]) -> 26.10374552 | I64: =YEAR(ChillTempAct[[#This Row],[Date]]) -> 2020 | J64: =MONTH(ChillTempAct[[#This Row],[Date]]) -> 10 | K64: =IF(ChillTempAct[[#This Row],[Month]]=J63,K63+1,1) -> 2
A65: 44130 | B65: 40 | C65: 27 | D65: =AVERAGE(ChillTempAct[[#This Row],[ChillHigh]:[ChillLow]]) -> 33.5 | E65: =IF(ChillTempAct[[#This Row],[ChillAve]]<65,65-ChillTempAct[[#This Row],[ChillAve]],0) -> 31.5 | F65: =INDEX(TempAdj[AdjustPct],MATCH(MONTH(ChillTempAct[[#This Row],[Date]]),TempAdj[Month],0)) -> 0.1114 | G65: =ChillTempAct[[#This Row],[ChillHDD]]*(1+ChillTempAct[[#This Row],[ChillAdj]]) -> 35.0091 | H65: =SUMPRODUCT((RankNHDD[Month]=ChillTempAct[[#This Row],[Month]])*(RankNHDD[Rank]=ChillTempAct[[#This Row],[Rank]])*RankNHDD[KIRKNHDD]) -> 24.45189964 | I65: =YEAR(ChillTempAct[[#This Row],[Date]]) -> 2020 | J65: =MONTH(ChillTempAct[[#This Row],[Date]]) -> 10 | K65: =IF(ChillTempAct[[#This Row],[Month]]=J64,K64+1,1) -> 3
A66: 44133 | B66: 45 | C66: 29 | D66: =AVERAGE(ChillTempAct[[#This Row],[ChillHigh]:[ChillLow]]) -> 37 | E66: =IF(ChillTempAct[[#This Row],[ChillAve]]<65,65-ChillTempAct[[#This Row],[ChillAve]],0) -> 28 | F66: =INDEX(TempAdj[AdjustPct],MATCH(MONTH(ChillTempAct[[#This Row],[Date]]),TempAdj[Month],0)) -> 0.1114 | G66: =ChillTempAct[[#This Row],[ChillHDD]]*(1+ChillTempAct[[#This Row],[ChillAdj]]) -> 31.1192 | H66: =SUMPRODUCT((RankNHDD[Month]=ChillTempAct[[#This Row],[Month]])*(RankNHDD[Rank]=ChillTempAct[[#This Row],[Rank]])*RankNHDD[KIRKNHDD]) -> 23.15010753 | I66: =YEAR(ChillTempAct[[#This Row],[Date]]) -> 2020 | J66: =MONTH(ChillTempAct[[#This Row],[Date]]) -> 10 | K66: =IF(ChillTempAct[[#This Row],[Month]]=J65,K65+1,1) -> 4
A67: 44129 | B67: 41 | C67: 34 | D67: =AVERAGE(ChillTempAct[[#This Row],[ChillHigh]:[ChillLow]]) -> 37.5 | E67: =IF(ChillTempAct[[#This Row],[ChillAve]]<65,65-ChillTempAct[[#This Row],[ChillAve]],0) -> 27.5 | F67: =INDEX(TempAdj[AdjustPct],MATCH(MONTH(ChillTempAct[[#This Row],[Date]]),TempAdj[Month],0)) -> 0.1114 | G67: =ChillTempAct[[#This Row],[ChillHDD]]*(1+ChillTempAct[[#This Row],[ChillAdj]]) -> 30.5635 | H67: =SUMPRODUCT((RankNHDD[Month]=ChillTempAct[[#This Row],[Month]])*(RankNHDD[Rank]=ChillTempAct[[#This Row],[Rank]])*RankNHDD[KIRKNHDD]) -> 21.90602151 | I67: =YEAR(ChillTempAct[[#This Row],[Date]]) -> 2020 | J67: =MONTH(ChillTempAct[[#This Row],[Date]]) -> 10 | K67: =IF(ChillTempAct[[#This Row],[Month]]=J66,K66+1,1) -> 5
A68: 44134 | B68: 49 | C68: 27 | D68: =AVERAGE(ChillTempAct[[#This Row],[ChillHigh]:[ChillLow]]) -> 38 | E68: =IF(ChillTempAct[[#This Row],[ChillAve]]<65,65-ChillTempAct[[#This Row],[ChillAve]],0) -> 27 | F68: =INDEX(TempAdj[AdjustPct],MATCH(MONTH(ChillTempAct[[#This Row],[Date]]),TempAdj[Month],0)) -> 0.1114 | G68: =ChillTempAct[[#This Row],[ChillHDD]]*(1+ChillTempAct[[#This Row],[ChillAdj]]) -> 30.0078 | H68: =SUMPRODUCT((RankNHDD[Month]=ChillTempAct[[#This Row],[Month]])*(RankNHDD[Rank]=ChillTempAct[[#This Row],[Rank]])*RankNHDD[KIRKNHDD]) -> 20.62353047 | I68: =YEAR(ChillTempAct[[#This Row],[Date]]) -> 2020 | J68: =MONTH(ChillTempAct[[#This Row],[Date]]) -> 10 | K68: =IF(ChillTempAct[[#This Row],[Month]]=J67,K67+1,1) -> 6
A69: 44128 | B69: 44 | C69: 34 | D69: =AVERAGE(ChillTempAct[[#This Row],[ChillHigh]:[ChillLow]]) -> 39 | E69: =IF(ChillTempAct[[#This Row],[ChillAve]]<65,65-ChillTempAct[[#This Row],[ChillAve]],0) -> 26 | F69: =INDEX(TempAdj[AdjustPct],MATCH(MONTH(ChillTempAct[[#This Row],[Date]]),TempAdj[Month],0)) -> 0.1114 | G69: =ChillTempAct[[#This Row],[ChillHDD]]*(1+ChillTempAct[[#This Row],[ChillAdj]]) -> 28.8964 | H69: =SUMPRODUCT((RankNHDD[Month]=ChillTempAct[[#This Row],[Month]])*(RankNHDD[Rank]=ChillTempAct[[#This Row],[Rank]])*RankNHDD[KIRKNHDD]) -> 19.63003584 | I69: =YEAR(ChillTempAct[[#This Row],[Date]]) -> 2020 | J69: =MONTH(ChillTempAct[[#This Row],[Date]]) -> 10 | K69: =IF(ChillTempAct[[#This Row],[Month]]=J68,K68+1,1) -> 7
A70: 44123 | B70: 43 | C70: 37 | D70: =AVERAGE(ChillTempAct[[#This Row],[ChillHigh]:[ChillLow]]) -> 40 | E70: =IF(ChillTempAct[[#This Row],[ChillAve]]<65,65-ChillTempAct[[#This Row],[ChillAve]],0) -> 25 | F70: =INDEX(TempAdj[AdjustPct],MATCH(MONTH(ChillTempAct[[#This Row],[Date]]),TempAdj[Month],0)) -> 0.1114 | G70: =ChillTempAct[[#This Row],[ChillHDD]]*(1+ChillTempAct[[#This Row],[ChillAdj]]) -> 27.785 | H70: =SUMPRODUCT((RankNHDD[Month]=ChillTempAct[[#This Row],[Month]])*(RankNHDD[Rank]=ChillTempAct[[#This Row],[Rank]])*RankNHDD[KIRKNHDD]) -> 18.66224014 | I70: =YEAR(ChillTempAct[[#This Row],[Date]]) -> 2020 | J70: =MONTH(ChillTempAct[[#This Row],[Date]]) -> 10 | K70: =IF(ChillTempAct[[#This Row],[Month]]=J69,K69+1,1) -> 8
A71: 44124 | B71: 43 | C71: 37 | D71: =AVERAGE(ChillTempAct[[#This Row],[ChillHigh]:[ChillLow]]) -> 40 | E71: =IF(ChillTempAct[[#This Row],[ChillAve]]<65,65-ChillTempAct[[#This Row],[ChillAve]],0) -> 25 | F71: =INDEX(TempAdj[AdjustPct],MATCH(MONTH(ChillTempAct[[#This Row],[Date]]),TempAdj[Month],0)) -> 0.1114 | G71: =ChillTempAct[[#This Row],[ChillHDD]]*(1+ChillTempAct[[#This Row],[ChillAdj]]) -> 27.785 | H71: =SUMPRODUCT((RankNHDD[Month]=ChillTempAct[[#This Row],[Month]])*(RankNHDD[Rank]=ChillTempAct[[#This Row],[Rank]])*RankNHDD[KIRKNHDD]) -> 17.58261649 | I71: =YEAR(ChillTempAct[[#This Row],[Date]]) -> 2020 | J71: =MONTH(ChillTempAct[[#This Row],[Date]]) -> 10 | K71: =IF(ChillTempAct[[#This Row],[Month]]=J70,K70+1,1) -> 9
A72: 44125 | B72: 45 | C72: 37 | D72: =AVERAGE(ChillTempAct[[#This Row],[ChillHigh]:[ChillLow]]) -> 41 | E72: =IF(ChillTempAct[[#This Row],[ChillAve]]<65,65-ChillTempAct[[#This Row],[ChillAve]],0) -> 24 | F72: =INDEX(TempAdj[AdjustPct],MATCH(MONTH(ChillTempAct[[#This Row],[Date]]),TempAdj[Month],0)) -> 0.1114 | G72: =ChillTempAct[[#This Row],[ChillHDD]]*(1+ChillTempAct[[#This Row],[ChillAdj]]) -> 26.6736 | H72: =SUMPRODUCT((RankNHDD[Month]=ChillTempAct[[#This Row],[Month]])*(RankNHDD[Rank]=ChillTempAct[[#This Row],[Rank]])*RankNHDD[KIRKNHDD]) -> 16.68234767 | I72: =YEAR(ChillTempAct[[#This Row],[Date]]) -> 2020 | J72: =MONTH(ChillTempAct[[#This Row],[Date]]) -> 10 | K72: =IF(ChillTempAct[[#This Row],[Month]]=J71,K71+1,1) -> 10
A73: 44135 | B73: 56 | C73: 27 | D73: =AVERAGE(ChillTempAct[[#This Row],[ChillHigh]:[ChillLow]]) -> 41.5 | E73: =IF(ChillTempAct[[#This Row],[ChillAve]]<65,65-ChillTempAct[[#This Row],[ChillAve]],0) -> 23.5 | F73: =INDEX(TempAdj[AdjustPct],MATCH(MONTH(ChillTempAct[[#This Row],[Date]]),TempAdj[Month],0)) -> 0.1114 | G73: =ChillTempAct[[#This Row],[ChillHDD]]*(1+ChillTempAct[[#This Row],[ChillAdj]]) -> 26.1179 | H73: =SUMPRODUCT((RankNHDD[Month]=ChillTempAct[[#This Row],[Month]])*(RankNHDD[Rank]=ChillTempAct[[#This Row],[Rank]])*RankNHDD[KIRKNHDD]) -> 15.82145161 | I73: =YEAR(ChillTempAct[[#This Row],[Date]]) -> 2020 | J73: =MONTH(ChillTempAct[[#This Row],[Date]]) -> 10 | K73: =IF(ChillTempAct[[#This Row],[Month]]=J72,K72+1,1) -> 11
A74: 44126 | B74: 51 | C74: 36 | D74: =AVERAGE(ChillTempAct[[#This Row],[ChillHigh]:[ChillLow]]) -> 43.5 | E74: =IF(ChillTempAct[[#This Row],[ChillAve]]<65,65-ChillTempAct[[#This Row],[ChillAve]],0) -> 21.5 | F74: =INDEX(TempAdj[AdjustPct],MATCH(MONTH(ChillTempAct[[#This Row],[Date]]),TempAdj[Month],0)) -> 0.1114 | G74: =ChillTempAct[[#This Row],[ChillHDD]]*(1+ChillTempAct[[#This Row],[ChillAdj]]) -> 23.8951 | H74: =SUMPRODUCT((RankNHDD[Month]=ChillTempAct[[#This Row],[Month]])*(RankNHDD[Rank]=ChillTempAct[[#This Row],[Rank]])*RankNHDD[KIRKNHDD]) -> 14.86100358 | I74: =YEAR(ChillTempAct[[#This Row],[Date]]) -> 2020 | J74: =MONTH(ChillTempAct[[#This Row],[Date]]) -> 10 | K74: =IF(ChillTempAct[[#This Row],[Month]]=J73,K73+1,1) -> 12
A75: 44120 | B75: 57 | C75: 32 | D75: =AVERAGE(ChillTempAct[[#This Row],[ChillHigh]:[ChillLow]]) -> 44.5 | E75: =IF(ChillTempAct[[#This Row],[ChillAve]]<65,65-ChillTempAct[[#This Row],[ChillAve]],0) -> 20.5 | F75: =INDEX(TempAdj[AdjustPct],MATCH(MONTH(ChillTempAct[[#This Row],[Date]]),TempAdj[Month],0)) -> 0.1114 | G75: =ChillTempAct[[#This Row],[ChillHDD]]*(1+ChillTempAct[[#This Row],[ChillAdj]]) -> 22.7837 | H75: =SUMPRODUCT((RankNHDD[Month]=ChillTempAct[[#This Row],[Month]])*(RankNHDD[Rank]=ChillTempAct[[#This Row],[Rank]])*RankNHDD[KIRKNHDD]) -> 13.88419355 | I75: =YEAR(ChillTempAct[[#This Row],[Date]]) -> 2020 | J75: =MONTH(ChillTempAct[[#This Row],[Date]]) -> 10 | K75: =IF(ChillTempAct[[#This Row],[Month]]=J74,K74+1,1) -> 13
A76: 44121 | B76: 60 | C76: 33 | D76: =AVERAGE(ChillTempAct[[#This Row],[ChillHigh]:[ChillLow]]) -> 46.5 | E76: =IF(ChillTempAct[[#This Row],[ChillAve]]<65,65-ChillTempAct[[#This Row],[ChillAve]],0) -> 18.5 | F76: =INDEX(TempAdj[AdjustPct],MATCH(MONTH(ChillTempAct[[#This Row],[Date]]),TempAdj[Month],0)) -> 0.1114 | G76: =ChillTempAct[[#This Row],[ChillHDD]]*(1+ChillTempAct[[#This Row],[ChillAdj]]) -> 20.5609 | H76: =SUMPRODUCT((RankNHDD[Month]=ChillTempAct[[#This Row],[Month]])*(RankNHDD[Rank]=ChillTempAct[[#This Row],[Rank]])*RankNHDD[KIRKNHDD]) -> 12.98724014 | I76: =YEAR(ChillTempAct[[#This Row],[Date]]) -> 2020 | J76: =MONTH(ChillTempAct[[#This Row],[Date]]) -> 10 | K76: =IF(ChillTempAct[[#This Row],[Month]]=J75,K75+1,1) -> 14
A77: 44106 | B77: 61 | C77: 35 | D77: =AVERAGE(ChillTempAct[[#This Row],[ChillHigh]:[ChillLow]]) -> 48 | E77: =IF(ChillTempAct[[#This Row],[ChillAve]]<65,65-ChillTempAct[[#This Row],[ChillAve]],0) -> 17 | F77: =INDEX(TempAdj[AdjustPct],MATCH(MONTH(ChillTempAct[[#This Row],[Date]]),TempAdj[Month],0)) -> 0.1114 | G77: =ChillTempAct[[#This Row],[ChillHDD]]*(1+ChillTempAct[[#This Row],[ChillAdj]]) -> 18.8938 | H77: =SUMPRODUCT((RankNHDD[Month]=ChillTempAct[[#This Row],[Month]])*(RankNHDD[Rank]=ChillTempAct[[#This Row],[Rank]])*RankNHDD[KIRKNHDD]) -> 12.09173835 | I77: =YEAR(ChillTempAct[[#This Row],[Date]]) -> 2020 | J77: =MONTH(ChillTempAct[[#This Row],[Date]]) -> 10 | K77: =IF(ChillTempAct[[#This Row],[Month]]=J76,K76+1,1) -> 15
A78: 44107 | B78: 60 | C78: 36 | D78: =AVERAGE(ChillTempAct[[#This Row],[ChillHigh]:[ChillLow]]) -> 48 | E78: =IF(ChillTempAct[[#This Row],[ChillAve]]<65,65-ChillTempAct[[#This Row],[ChillAve]],0) -> 17 | F78: =INDEX(TempAdj[AdjustPct],MATCH(MONTH(ChillTempAct[[#This Row],[Date]]),TempAdj[Month],0)) -> 0.1114 | G78: =ChillTempAct[[#This Row],[ChillHDD]]*(1+ChillTempAct[[#This Row],[ChillAdj]]) -> 18.8938 | H78: =SUMPRODUCT((RankNHDD[Month]=ChillTempAct[[#This Row],[Month]])*(RankNHDD[Rank]=ChillTempAct[[#This Row],[Rank]])*RankNHDD[KIRKNHDD]) -> 11.30677419 | I78: =YEAR(ChillTempAct[[#This Row],[Date]]) -> 2020 | J78: =MONTH(ChillTempAct[[#This Row],[Date]]) -> 10 | K78: =IF(ChillTempAct[[#This Row],[Month]]=J77,K77+1,1) -> 16
A79: 44108 | B79: 59 | C79: 40 | D79: =AVERAGE(ChillTempAct[[#This Row],[ChillHigh]:[ChillLow]]) -> 49.5 | E79: =IF(ChillTempAct[[#This Row],[ChillAve]]<65,65-ChillTempAct[[#This Row],[ChillAve]],0) -> 15.5 | F79: =INDEX(TempAdj[AdjustPct],MATCH(MONTH(ChillTempAct[[#This Row],[Date]]),TempAdj[Month],0)) -> 0.1114 | G79: =ChillTempAct[[#This Row],[ChillHDD]]*(1+ChillTempAct[[#This Row],[ChillAdj]]) -> 17.2267 | H79: =SUMPRODUCT((RankNHDD[Month]=ChillTempAct[[#This Row],[Month]])*(RankNHDD[Rank]=ChillTempAct[[#This Row],[Rank]])*RankNHDD[KIRKNHDD]) -> 10.56017921 | I79: =YEAR(ChillTempAct[[#This Row],[Date]]) -> 2020 | J79: =MONTH(ChillTempAct[[#This Row],[Date]]) -> 10 | K79: =IF(ChillTempAct[[#This Row],[Month]]=J78,K78+1,1) -> 17
A80: 44109 | B80: 59 | C80: 41 | D80: =AVERAGE(ChillTempAct[[#This Row],[ChillHigh]:[ChillLow]]) -> 50 | E80: =IF(ChillTempAct[[#This Row],[ChillAve]]<65,65-ChillTempAct[[#This Row],[ChillAve]],0) -> 15 | F80: =INDEX(TempAdj[AdjustPct],MATCH(MONTH(ChillTempAct[[#This Row],[Date]]),TempAdj[Month],0)) -> 0.1114 | G80: =ChillTempAct[[#This Row],[ChillHDD]]*(1+ChillTempAct[[#This Row],[ChillAdj]]) -> 16.671 | H80: =SUMPRODUCT((RankNHDD[Month]=ChillTempAct[[#This Row],[Month]])*(RankNHDD[Rank]=ChillTempAct[[#This Row],[Rank]])*RankNHDD[KIRKNHDD]) -> 9.687043011 | I80: =YEAR(ChillTempAct[[#This Row],[Date]]) -> 2020 | J80: =MONTH(ChillTempAct[[#This Row],[Date]]) -> 10 | K80: =IF(ChillTempAct[[#This Row],[Month]]=J79,K79+1,1) -> 18
A81: 44110 | B81: 71 | C81: 41 | D81: =AVERAGE(ChillTempAct[[#This Row],[ChillHigh]:[ChillLow]]) -> 56 | E81: =IF(ChillTempAct[[#This Row],[ChillAve]]<65,65-ChillTempAct[[#This Row],[ChillAve]],0) -> 9 | F81: =INDEX(TempAdj[AdjustPct],MATCH(MONTH(ChillTempAct[[#This Row],[Date]]),TempAdj[Month],0)) -> 0.1114 | G81: =ChillTempAct[[#This Row],[ChillHDD]]*(1+ChillTempAct[[#This Row],[ChillAdj]]) -> 10.0026 | H81: =SUMPRODUCT((RankNHDD[Month]=ChillTempAct[[#This Row],[Month]])*(RankNHDD[Rank]=ChillTempAct[[#This Row],[Rank]])*RankNHDD[KIRKNHDD]) -> 8.902992832 | I81: =YEAR(ChillTempAct[[#This Row],[Date]]) -> 2020 | J81: =MONTH(ChillTempAct[[#This Row],[Date]]) -> 10 | K81: =IF(ChillTempAct[[#This Row],[Month]]=J80,K80+1,1) -> 19
A82: 44105 | B82: 71 | C82: 42 | D82: =AVERAGE(ChillTempAct[[#This Row],[ChillHigh]:[ChillLow]]) -> 56.5 | E82: =IF(ChillTempAct[[#This Row],[ChillAve]]<65,65-ChillTempAct[[#This Row],[ChillAve]],0) -> 8.5 | F82: =INDEX(TempAdj[AdjustPct],MATCH(MONTH(ChillTempAct[[#This Row],[Date]]),TempAdj[Month],0)) -> 0.1114 | G82: =ChillTempAct[[#This Row],[ChillHDD]]*(1+ChillTempAct[[#This Row],[ChillAdj]]) -> 9.4469 | H82: =SUMPRODUCT((RankNHDD[Month]=ChillTempAct[[#This Row],[Month]])*(RankNHDD[Rank]=ChillTempAct[[#This Row],[Rank]])*RankNHDD[KIRKNHDD]) -> 8.11016129 | I82: =YEAR(ChillTempAct[[#This Row],[Date]]) -> 2020 | J82: =MONTH(ChillTempAct[[#This Row],[Date]]) -> 10 | K82: =IF(ChillTempAct[[#This Row],[Month]]=J81,K81+1,1) -> 20
A83: 44117 | B83: 70 | C83: 43 | D83: =AVERAGE(ChillTempAct[[#This Row],[ChillHigh]:[ChillLow]]) -> 56.5 | E83: =IF(ChillTempAct[[#This Row],[ChillAve]]<65,65-ChillTempAct[[#This Row],[ChillAve]],0) -> 8.5 | F83: =INDEX(TempAdj[AdjustPct],MATCH(MONTH(ChillTempAct[[#This Row],[Date]]),TempAdj[Month],0)) -> 0.1114 | G83: =ChillTempAct[[#This Row],[ChillHDD]]*(1+ChillTempAct[[#This Row],[ChillAdj]]) -> 9.4469 | H83: =SUMPRODUCT((RankNHDD[Month]=ChillTempAct[[#This Row],[Month]])*(RankNHDD[Rank]=ChillTempAct[[#This Row],[Rank]])*RankNHDD[KIRKNHDD]) -> 7.22483871 | I83: =YEAR(ChillTempAct[[#This Row],[Date]]) -> 2020 | J83: =MONTH(ChillTempAct[[#This Row],[Date]]) -> 10 | K83: =IF(ChillTempAct[[#This Row],[Month]]=J82,K82+1,1) -> 21
A84: 44122 | B84: 72 | C84: 42 | D84: =AVERAGE(ChillTempAct[[#This Row],[ChillHigh]:[ChillLow]]) -> 57 | E84: =IF(ChillTempAct[[#This Row],[ChillAve]]<65,65-ChillTempAct[[#This Row],[ChillAve]],0) -> 8 | F84: =INDEX(TempAdj[AdjustPct],MATCH(MONTH(ChillTempAct[[#This Row],[Date]]),TempAdj[Month],0)) -> 0.1114 | G84: =ChillTempAct[[#This Row],[ChillHDD]]*(1+ChillTempAct[[#This Row],[ChillAdj]]) -> 8.8912 | H84: =SUMPRODUCT((RankNHDD[Month]=ChillTempAct[[#This Row],[Month]])*(RankNHDD[Rank]=ChillTempAct[[#This Row],[Rank]])*RankNHDD[KIRKNHDD]) -> 6.035394265 | I84: =YEAR(ChillTempAct[[#This Row],[Date]]) -> 2020 | J84: =MONTH(ChillTempAct[[#This Row],[Date]]) -> 10 | K84: =IF(ChillTempAct[[#This Row],[Month]]=J83,K83+1,1) -> 22
A85: 44127 | B85: 84 | C85: 36 | D85: =AVERAGE(ChillTempAct[[#This Row],[ChillHigh]:[ChillLow]]) -> 60 | E85: =IF(ChillTempAct[[#This Row],[ChillAve]]<65,65-ChillTempAct[[#This Row],[ChillAve]],0) -> 5 | F85: =INDEX(TempAdj[AdjustPct],MATCH(MONTH(ChillTempAct[[#This Row],[Date]]),TempAdj[Month],0)) -> 0.1114 | G85: =ChillTempAct[[#This Row],[ChillHDD]]*(1+ChillTempAct[[#This Row],[ChillAdj]]) -> 5.557 | H85: =SUMPRODUCT((RankNHDD[Month]=ChillTempAct[[#This Row],[Month]])*(RankNHDD[Rank]=ChillTempAct[[#This Row],[Rank]])*RankNHDD[KIRKNHDD]) -> 5.054605735 | I85: =YEAR(ChillTempAct[[#This Row],[Date]]) -> 2020 | J85: =MONTH(ChillTempAct[[#This Row],[Date]]) -> 10 | K85: =IF(ChillTempAct[[#This Row],[Month]]=J84,K84+1,1) -> 23
A86: 44118 | B86: 77 | C86: 46 | D86: =AVERAGE(ChillTempAct[[#This Row],[ChillHigh]:[ChillLow]]) -> 61.5 | E86: =IF(ChillTempAct[[#This Row],[ChillAve]]<65,65-ChillTempAct[[#This Row],[ChillAve]],0) -> 3.5 | F86: =INDEX(TempAdj[AdjustPct],MATCH(MONTH(ChillTempAct[[#This Row],[Date]]),TempAdj[Month],0)) -> 0.1114 | G86: =ChillTempAct[[#This Row],[ChillHDD]]*(1+ChillTempAct[[#This Row],[ChillAdj]]) -> 3.8899 | H86: =SUMPRODUCT((RankNHDD[Month]=ChillTempAct[[#This Row],[Month]])*(RankNHDD[Rank]=ChillTempAct[[#This Row],[Rank]])*RankNHDD[KIRKNHDD]) -> 3.94188172 | I86: =YEAR(ChillTempAct[[#This Row],[Date]]) -> 2020 | J86: =MONTH(ChillTempAct[[#This Row],[Date]]) -> 10 | K86: =IF(ChillTempAct[[#This Row],[Month]]=J85,K85+1,1) -> 24
A87: 44111 | B87: 81 | C87: 47 | D87: =AVERAGE(ChillTempAct[[#This Row],[ChillHigh]:[ChillLow]]) -> 64 | E87: =IF(ChillTempAct[[#This Row],[ChillAve]]<65,65-ChillTempAct[[#This Row],[ChillAve]],0) -> 1 | F87: =INDEX(TempAdj[AdjustPct],MATCH(MONTH(ChillTempAct[[#This Row],[Date]]),TempAdj[Month],0)) -> 0.1114 | G87: =ChillTempAct[[#This Row],[ChillHDD]]*(1+ChillTempAct[[#This Row],[ChillAdj]]) -> 1.1114 | H87: =SUMPRODUCT((RankNHDD[Month]=ChillTempAct[[#This Row],[Month]])*(RankNHDD[Rank]=ChillTempAct[[#This Row],[Rank]])*RankNHDD[KIRKNHDD]) -> 2.979551971 | I87: =YEAR(ChillTempAct[[#This Row],[Date]]) -> 2020 | J87: =MONTH(ChillTempAct[[#This Row],[Date]]) -> 10 | K87: =IF(ChillTempAct[[#This Row],[Month]]=J86,K86+1,1) -> 25
A88: 44119 | B88: 82 | C88: 48 | D88: =AVERAGE(ChillTempAct[[#This Row],[ChillHigh]:[ChillLow]]) -> 65 | E88: =IF(ChillTempAct[[#This Row],[ChillAve]]<65,65-ChillTempAct[[#This Row],[ChillAve]],0) -> 0 | F88: =INDEX(TempAdj[AdjustPct],MATCH(MONTH(ChillTempAct[[#This Row],[Date]]),TempAdj[Month],0)) -> 0.1114 | G88: =ChillTempAct[[#This Row],[ChillHDD]]*(1+ChillTempAct[[#This Row],[ChillAdj]]) -> 0 | H88: =SUMPRODUCT((RankNHDD[Month]=ChillTempAct[[#This Row],[Month]])*(RankNHDD[Rank]=ChillTempAct[[#This Row],[Rank]])*RankNHDD[KIRKNHDD]) -> 1.770896057 | I88: =YEAR(ChillTempAct[[#This Row],[Date]]) -> 2020 | J88: =MONTH(ChillTempAct[[#This Row],[Date]]) -> 10 | K88: =IF(ChillTempAct[[#This Row],[Month]]=J87,K87+1,1) -> 26
A89: 44112 | B89: 85 | C89: 53 | D89: =AVERAGE(ChillTempAct[[#This Row],[ChillHigh]:[ChillLow]]) -> 69 | E89: =IF(ChillTempAct[[#This Row],[ChillAve]]<65,65-ChillTempAct[[#This Row],[ChillAve]],0) -> 0 | F89: =INDEX(TempAdj[AdjustPct],MATCH(MONTH(ChillTempAct[[#This Row],[Date]]),TempAdj[Month],0)) -> 0.1114 | G89: =ChillTempAct[[#This Row],[ChillHDD]]*(1+ChillTempAct[[#This Row],[ChillAdj]]) -> 0 | H89: =SUMPRODUCT((RankNHDD[Month]=ChillTempAct[[#This Row],[Month]])*(RankNHDD[Rank]=ChillTempAct[[#This Row],[Rank]])*RankNHDD[KIRKNHDD]) -> 0.6302688172 | I89: =YEAR(ChillTempAct[[#This Row],[Date]]) -> 2020 | J89: =MONTH(ChillTempAct[[#This Row],[Date]]) -> 10 | K89: =IF(ChillTempAct[[#This Row],[Month]]=J88,K88+1,1) -> 27
A90: 44113 | B90: 83 | C90: 56 | D90: =AVERAGE(ChillTempAct[[#This Row],[ChillHigh]:[ChillLow]]) -> 69.5 | E90: =IF(ChillTempAct[[#This Row],[ChillAve]]<65,65-ChillTempAct[[#This Row],[ChillAve]],0) -> 0 | F90: =INDEX(TempAdj[AdjustPct],MATCH(MONTH(ChillTempAct[[#This Row],[Date]]),TempAdj[Month],0)) -> 0.1114 | G90: =ChillTempAct[[#This Row],[ChillHDD]]*(1+ChillTempAct[[#This Row],[ChillAdj]]) -> 0 | H90: =SUMPRODUCT((RankNHDD[Month]=ChillTempAct[[#This Row],[Month]])*(RankNHDD[Rank]=ChillTempAct[[#This Row],[Rank]])*RankNHDD[KIRKNHDD]) -> 0 | I90: =YEAR(ChillTempAct[[#This Row],[Date]]) -> 2020 | J90: =MONTH(ChillTempAct[[#This Row],[Date]]) -> 10 | K90: =IF(ChillTempAct[[#This Row],[Month]]=J89,K89+1,1) -> 28
A91: 44114 | B91: 82 | C91: 57 | D91: =AVERAGE(ChillTempAct[[#This Row],[ChillHigh]:[ChillLow]]) -> 69.5 | E91: =IF(ChillTempAct[[#This Row],[ChillAve]]<65,65-ChillTempAct[[#This Row],[ChillAve]],0) -> 0 | F91: =INDEX(TempAdj[AdjustPct],MATCH(MONTH(ChillTempAct[[#This Row],[Date]]),TempAdj[Month],0)) -> 0.1114 | G91: =ChillTempAct[[#This Row],[ChillHDD]]*(1+ChillTempAct[[#This Row],[ChillAdj]]) -> 0 | H91: =SUMPRODUCT((RankNHDD[Month]=ChillTempAct[[#This Row],[Month]])*(RankNHDD[Rank]=ChillTempAct[[#This Row],[Rank]])*RankNHDD[KIRKNHDD]) -> 0 | I91: =YEAR(ChillTempAct[[#This Row],[Date]]) -> 2020 | J91: =MONTH(ChillTempAct[[#This Row],[Date]]) -> 10 | K91: =IF(ChillTempAct[[#This Row],[Month]]=J90,K90+1,1) -> 29
A92: 44115 | B92: 83 | C92: 57 | D92: =AVERAGE(ChillTempAct[[#This Row],[ChillHigh]:[ChillLow]]) -> 70 | E92: =IF(ChillTempAct[[#This Row],[ChillAve]]<65,65-ChillTempAct[[#This Row],[ChillAve]],0) -> 0 | F92: =INDEX(TempAdj[AdjustPct],MATCH(MONTH(ChillTempAct[[#This Row],[Date]]),TempAdj[Month],0)) -> 0.1114 | G92: =ChillTempAct[[#This Row],[ChillHDD]]*(1+ChillTempAct[[#This Row],[ChillAdj]]) -> 0 | H92: =SUMPRODUCT((RankNHDD[Month]=ChillTempAct[[#This Row],[Month]])*(RankNHDD[Rank]=ChillTempAct[[#This Row],[Rank]])*RankNHDD[KIRKNHDD]) -> 0 | I92: =YEAR(ChillTempAct[[#This Row],[Date]]) -> 2020 | J92: =MONTH(ChillTempAct[[#This Row],[Date]]) -> 10 | K92: =IF(ChillTempAct[[#This Row],[Month]]=J91,K91+1,1) -> 30
A93: 44116 | B93: 85 | C93: 55 | D93: =AVERAGE(ChillTempAct[[#This Row],[ChillHigh]:[ChillLow]]) -> 70 | E93: =IF(ChillTempAct[[#This Row],[ChillAve]]<65,65-ChillTempAct[[#This Row],[ChillAve]],0) -> 0 | F93: =INDEX(TempAdj[AdjustPct],MATCH(MONTH(ChillTempAct[[#This Row],[Date]]),TempAdj[Month],0)) -> 0.1114 | G93: =ChillTempAct[[#This Row],[ChillHDD]]*(1+ChillTempAct[[#This Row],[ChillAdj]]) -> 0 | H93: =SUMPRODUCT((RankNHDD[Month]=ChillTempAct[[#This Row],[Month]])*(RankNHDD[Rank]=ChillTempAct[[#This Row],[Rank]])*RankNHDD[KIRKNHDD]) -> 0 | I93: =YEAR(ChillTempAct[[#This Row],[Date]]) -> 2020 | J93: =MONTH(ChillTempAct[[#This Row],[Date]]) -> 10 | K93: =IF(ChillTempAct[[#This Row],[Month]]=J92,K92+1,1) -> 31
A94: 44165 | B94: 43 | C94: 20 | D94: =AVERAGE(ChillTempAct[[#This Row],[ChillHigh]:[ChillLow]]) -> 31.5 | E94: =IF(ChillTempAct[[#This Row],[ChillAve]]<65,65-ChillTempAct[[#This Row],[ChillAve]],0) -> 33.5 | F94: =INDEX(TempAdj[AdjustPct],MATCH(MONTH(ChillTempAct[[#This Row],[Date]]),TempAdj[Month],0)) -> 0.0426 | G94: =ChillTempAct[[#This Row],[ChillHDD]]*(1+ChillTempAct[[#This Row],[ChillAdj]]) -> 34.9271 | H94: =SUMPRODUCT((RankNHDD[Month]=ChillTempAct[[#This Row],[Month]])*(RankNHDD[Rank]=ChillTempAct[[#This Row],[Rank]])*RankNHDD[KIRKNHDD]) -> 47.15166667 | I94: =YEAR(ChillTempAct[[#This Row],[Date]]) -> 2020 | J94: =MONTH(ChillTempAct[[#This Row],[Date]]) -> 11 | K94: =IF(ChillTempAct[[#This Row],[Month]]=J93,K93+1,1) -> 1
A95: 44149 | B95: 45 | C95: 22 | D95: =AVERAGE(ChillTempAct[[#This Row],[ChillHigh]:[ChillLow]]) -> 33.5 | E95: =IF(ChillTempAct[[#This Row],[ChillAve]]<65,65-ChillTempAct[[#This Row],[ChillAve]],0) -> 31.5 | F95: =INDEX(TempAdj[AdjustPct],MATCH(MONTH(ChillTempAct[[#This Row],[Date]]),TempAdj[Month],0)) -> 0.0426 | G95: =ChillTempAct[[#This Row],[ChillHDD]]*(1+ChillTempAct[[#This Row],[ChillAdj]]) -> 32.8419 | H95: =SUMPRODUCT((RankNHDD[Month]=ChillTempAct[[#This Row],[Month]])*(RankNHDD[Rank]=ChillTempAct[[#This Row],[Rank]])*RankNHDD[KIRKNHDD]) -> 41.10722222 | I95: =YEAR(ChillTempAct[[#This Row],[Date]]) -> 2020 | J95: =MONTH(ChillTempAct[[#This Row],[Date]]) -> 11 | K95: =IF(ChillTempAct[[#This Row],[Month]]=J94,K94+1,1) -> 2
A96: 44159 | B96: 42 | C96: 26 | D96: =AVERAGE(ChillTempAct[[#This Row],[ChillHigh]:[ChillLow]]) -> 34 | E96: =IF(ChillTempAct[[#This Row],[ChillAve]]<65,65-ChillTempAct[[#This Row],[ChillAve]],0) -> 31 | F96: =INDEX(TempAdj[AdjustPct],MATCH(MONTH(ChillTempAct[[#This Row],[Date]]),TempAdj[Month],0)) -> 0.0426 | G96: =ChillTempAct[[#This Row],[ChillHDD]]*(1+ChillTempAct[[#This Row],[ChillAdj]]) -> 32.3206 | H96: =SUMPRODUCT((RankNHDD[Month]=ChillTempAct[[#This Row],[Month]])*(RankNHDD[Rank]=ChillTempAct[[#This Row],[Rank]])*RankNHDD[KIRKNHDD]) -> 38.46814815 | I96: =YEAR(ChillTempAct[[#This Row],[Date]]) -> 2020 | J96: =MONTH(ChillTempAct[[#This Row],[Date]]) -> 11 | K96: =IF(ChillTempAct[[#This Row],[Month]]=J95,K95+1,1) -> 3
A97: 44137 | B97: 48 | C97: 24 | D97: =AVERAGE(ChillTempAct[[#This Row],[ChillHigh]:[ChillLow]]) -> 36 | E97: =IF(ChillTempAct[[#This Row],[ChillAve]]<65,65-ChillTempAct[[#This Row],[ChillAve]],0) -> 29 | F97: =INDEX(TempAdj[AdjustPct],MATCH(MONTH(ChillTempAct[[#This Row],[Date]]),TempAdj[Month],0)) -> 0.0426 | G97: =ChillTempAct[[#This Row],[ChillHDD]]*(1+ChillTempAct[[#This Row],[ChillAdj]]) -> 30.2354 | H97: =SUMPRODUCT((RankNHDD[Month]=ChillTempAct[[#This Row],[Month]])*(RankNHDD[Rank]=ChillTempAct[[#This Row],[Rank]])*RankNHDD[KIRKNHDD]) -> 36.3112963 | I97: =YEAR(ChillTempAct[[#This Row],[Date]]) -> 2020 | J97: =MONTH(ChillTempAct[[#This Row],[Date]]) -> 11 | K97: =IF(ChillTempAct[[#This Row],[Month]]=J96,K96+1,1) -> 4
A98: 44161 | B98: 44 | C98: 31 | D98: =AVERAGE(ChillTempAct[[#This Row],[ChillHigh]:[ChillLow]]) -> 37.5 | E98: =IF(ChillTempAct[[#This Row],[ChillAve]]<65,65-ChillTempAct[[#This Row],[ChillAve]],0) -> 27.5 | F98: =INDEX(TempAdj[AdjustPct],MATCH(MONTH(ChillTempAct[[#This Row],[Date]]),TempAdj[Month],0)) -> 0.0426 | G98: =ChillTempAct[[#This Row],[ChillHDD]]*(1+ChillTempAct[[#This Row],[ChillAdj]]) -> 28.6715 | H98: =SUMPRODUCT((RankNHDD[Month]=ChillTempAct[[#This Row],[Month]])*(RankNHDD[Rank]=ChillTempAct[[#This Row],[Rank]])*RankNHDD[KIRKNHDD]) -> 34.69555556 | I98: =YEAR(ChillTempAct[[#This Row],[Date]]) -> 2020 | J98: =MONTH(ChillTempAct[[#This Row],[Date]]) -> 11 | K98: =IF(ChillTempAct[[#This Row],[Month]]=J97,K97+1,1) -> 5
A99: 44146 | B99: 51 | C99: 26 | D99: =AVERAGE(ChillTempAct[[#This Row],[ChillHigh]:[ChillLow]]) -> 38.5 | E99: =IF(ChillTempAct[[#This Row],[ChillAve]]<65,65-ChillTempAct[[#This Row],[ChillAve]],0) -> 26.5 | F99: =INDEX(TempAdj[AdjustPct],MATCH(MONTH(ChillTempAct[[#This Row],[Date]]),TempAdj[Month],0)) -> 0.0426 | G99: =ChillTempAct[[#This Row],[ChillHDD]]*(1+ChillTempAct[[#This Row],[ChillAdj]]) -> 27.6289 | H99: =SUMPRODUCT((RankNHDD[Month]=ChillTempAct[[#This Row],[Month]])*(RankNHDD[Rank]=ChillTempAct[[#This Row],[Rank]])*RankNHDD[KIRKNHDD]) -> 33.24481481 | I99: =YEAR(ChillTempAct[[#This Row],[Date]]) -> 2020 | J99: =MONTH(ChillTempAct[[#This Row],[Date]]) -> 11 | K99: =IF(ChillTempAct[[#This Row],[Month]]=J98,K98+1,1) -> 6
A100: 44158 | B100: 53 | C100: 25 | D100: =AVERAGE(ChillTempAct[[#This Row],[ChillHigh]:[ChillLow]]) -> 39 | E100: =IF(ChillTempAct[[#This Row],[ChillAve]]<65,65-ChillTempAct[[#This Row],[ChillAve]],0) -> 26 | F100: =INDEX(TempAdj[AdjustPct],MATCH(MONTH(ChillTempAct[[#This Row],[Date]]),TempAdj[Month],0)) -> 0.0426 | G100: =ChillTempAct[[#This Row],[ChillHDD]]*(1+ChillTempAct[[#This Row],[ChillAdj]]) -> 27.1076 | H100: =SUMPRODUCT((RankNHDD[Month]=ChillTempAct[[#This Row],[Month]])*(RankNHDD[Rank]=ChillTempAct[[#This Row],[Rank]])*RankNHDD[KIRKNHDD]) -> 31.98425926 | I100: =YEAR(ChillTempAct[[#This Row],[Date]]) -> 2020 | J100: =MONTH(ChillTempAct[[#This Row],[Date]]) -> 11 | K100: =IF(ChillTempAct[[#This Row],[Month]]=J99,K99+1,1) -> 7
A101: 44148 | B101: 59 | C101: 21 | D101: =AVERAGE(ChillTempAct[[#This Row],[ChillHigh]:[ChillLow]]) -> 40 | E101: =IF(ChillTempAct[[#This Row],[ChillAve]]<65,65-ChillTempAct[[#This Row],[ChillAve]],0) -> 25 | F101: =INDEX(TempAdj[AdjustPct],MATCH(MONTH(ChillTempAct[[#This Row],[Date]]),TempAdj[Month],0)) -> 0.0426 | G101: =ChillTempAct[[#This Row],[ChillHDD]]*(1+ChillTempAct[[#This Row],[ChillAdj]]) -> 26.065 | H101: =SUMPRODUCT((RankNHDD[Month]=ChillTempAct[[#This Row],[Month]])*(RankNHDD[Rank]=ChillTempAct[[#This Row],[Rank]])*RankNHDD[KIRKNHDD]) -> 30.96074074 | I101: =YEAR(ChillTempAct[[#This Row],[Date]]) -> 2020 | J101: =MONTH(ChillTempAct[[#This Row],[Date]]) -> 11 | K101: =IF(ChillTempAct[[#This Row],[Month]]=J100,K100+1,1) -> 8
A102: 44151 | B102: 52 | C102: 28 | D102: =AVERAGE(ChillTempAct[[#This Row],[ChillHigh]:[ChillLow]]) -> 40 | E102: =IF(ChillTempAct[[#This Row],[ChillAve]]<65,65-ChillTempAct[[#This Row],[ChillAve]],0) -> 25 | F102: =INDEX(TempAdj[AdjustPct],MATCH(MONTH(ChillTempAct[[#This Row],[Date]]),TempAdj[Month],0)) -> 0.0426 | G102: =ChillTempAct[[#This Row],[ChillHDD]]*(1+ChillTempAct[[#This Row],[ChillAdj]]) -> 26.065 | H102: =SUMPRODUCT((RankNHDD[Month]=ChillTempAct[[#This Row],[Month]])*(RankNHDD[Rank]=ChillTempAct[[#This Row],[Rank]])*RankNHDD[KIRKNHDD]) -> 29.91111111 | I102: =YEAR(ChillTempAct[[#This Row],[Date]]) -> 2020 | J102: =MONTH(ChillTempAct[[#This Row],[Date]]) -> 11 | K102: =IF(ChillTempAct[[#This Row],[Month]]=J101,K101+1,1) -> 9
A103: 44163 | B103: 50 | C103: 30 | D103: =AVERAGE(ChillTempAct[[#This Row],[ChillHigh]:[ChillLow]]) -> 40 | E103: =IF(ChillTempAct[[#This Row],[ChillAve]]<65,65-ChillTempAct[[#This Row],[ChillAve]],0) -> 25 | F103: =INDEX(TempAdj[AdjustPct],MATCH(MONTH(ChillTempAct[[#This Row],[Date]]),TempAdj[Month],0)) -> 0.0426 | G103: =ChillTempAct[[#This Row],[ChillHDD]]*(1+ChillTempAct[[#This Row],[ChillAdj]]) -> 26.065 | H103: =SUMPRODUCT((RankNHDD[Month]=ChillTempAct[[#This Row],[Month]])*(RankNHDD[Rank]=ChillTempAct[[#This Row],[Rank]])*RankNHDD[KIRKNHDD]) -> 28.92925926 | I103: =YEAR(ChillTempAct[[#This Row],[Date]]) -> 2020 | J103: =MONTH(ChillTempAct[[#This Row],[Date]]) -> 11 | K103: =IF(ChillTempAct[[#This Row],[Month]]=J102,K102+1,1) -> 10
A104: 44153 | B104: 50 | C104: 31 | D104: =AVERAGE(ChillTempAct[[#This Row],[ChillHigh]:[ChillLow]]) -> 40.5 | E104: =IF(ChillTempAct[[#This Row],[ChillAve]]<65,65-ChillTempAct[[#This Row],[ChillAve]],0) -> 24.5 | F104: =INDEX(TempAdj[AdjustPct],MATCH(MONTH(ChillTempAct[[#This Row],[Date]]),TempAdj[Month],0)) -> 0.0426 | G104: =ChillTempAct[[#This Row],[ChillHDD]]*(1+ChillTempAct[[#This Row],[ChillAdj]]) -> 25.5437 | H104: =SUMPRODUCT((RankNHDD[Month]=ChillTempAct[[#This Row],[Month]])*(RankNHDD[Rank]=ChillTempAct[[#This Row],[Rank]])*RankNHDD[KIRKNHDD]) -> 27.71962963 | I104: =YEAR(ChillTempAct[[#This Row],[Date]]) -> 2020 | J104: =MONTH(ChillTempAct[[#This Row],[Date]]) -> 11 | K104: =IF(ChillTempAct[[#This Row],[Month]]=J103,K103+1,1) -> 11
A105: 44157 | B105: 46 | C105: 37 | D105: =AVERAGE(ChillTempAct[[#This Row],[ChillHigh]:[ChillLow]]) -> 41.5 | E105: =IF(ChillTempAct[[#This Row],[ChillAve]]<65,65-ChillTempAct[[#This Row],[ChillAve]],0) -> 23.5 | F105: =INDEX(TempAdj[AdjustPct],MATCH(MONTH(ChillTempAct[[#This Row],[Date]]),TempAdj[Month],0)) -> 0.0426 | G105: =ChillTempAct[[#This Row],[ChillHDD]]*(1+ChillTempAct[[#This Row],[ChillAdj]]) -> 24.5011 | H105: =SUMPRODUCT((RankNHDD[Month]=ChillTempAct[[#This Row],[Month]])*(RankNHDD[Rank]=ChillTempAct[[#This Row],[Rank]])*RankNHDD[KIRKNHDD]) -> 26.55111111 | I105: =YEAR(ChillTempAct[[#This Row],[Date]]) -> 2020 | J105: =MONTH(ChillTempAct[[#This Row],[Date]]) -> 11 | K105: =IF(ChillTempAct[[#This Row],[Month]]=J104,K104+1,1) -> 12
A106: 44147 | B106: 54 | C106: 30 | D106: =AVERAGE(ChillTempAct[[#This Row],[ChillHigh]:[ChillLow]]) -> 42 | E106: =IF(ChillTempAct[[#This Row],[ChillAve]]<65,65-ChillTempAct[[#This Row],[ChillAve]],0) -> 23 | F106: =INDEX(TempAdj[AdjustPct],MATCH(MONTH(ChillTempAct[[#This Row],[Date]]),TempAdj[Month],0)) -> 0.0426 | G106: =ChillTempAct[[#This Row],[ChillHDD]]*(1+ChillTempAct[[#This Row],[ChillAdj]]) -> 23.9798 | H106: =SUMPRODUCT((RankNHDD[Month]=ChillTempAct[[#This Row],[Month]])*(RankNHDD[Rank]=ChillTempAct[[#This Row],[Rank]])*RankNHDD[KIRKNHDD]) -> 25.42037037 | I106: =YEAR(ChillTempAct[[#This Row],[Date]]) -> 2020 | J106: =MONTH(ChillTempAct[[#This Row],[Date]]) -> 11 | K106: =IF(ChillTempAct[[#This Row],[Month]]=J105,K105+1,1) -> 13
A107: 44162 | B107: 53 | C107: 33 | D107: =AVERAGE(ChillTempAct[[#This Row],[ChillHigh]:[ChillLow]]) -> 43 | E107: =IF(ChillTempAct[[#This Row],[ChillAve]]<65,65-ChillTempAct[[#This Row],[ChillAve]],0) -> 22 | F107: =INDEX(TempAdj[AdjustPct],MATCH(MONTH(ChillTempAct[[#This Row],[Date]]),TempAdj[Month],0)) -> 0.0426 | G107: =ChillTempAct[[#This Row],[ChillHDD]]*(1+ChillTempAct[[#This Row],[ChillAdj]]) -> 22.9372 | H107: =SUMPRODUCT((RankNHDD[Month]=ChillTempAct[[#This Row],[Month]])*(RankNHDD[Rank]=ChillTempAct[[#This Row],[Rank]])*RankNHDD[KIRKNHDD]) -> 24.46351852 | I107: =YEAR(ChillTempAct[[#This Row],[Date]]) -> 2020 | J107: =MONTH(ChillTempAct[[#This Row],[Date]]) -> 11 | K107: =IF(ChillTempAct[[#This Row],[Month]]=J106,K106+1,1) -> 14
A108: 44152 | B108: 62 | C108: 27 | D108: =AVERAGE(ChillTempAct[[#This Row],[ChillHigh]:[ChillLow]]) -> 44.5 | E108: =IF(ChillTempAct[[#This Row],[ChillAve]]<65,65-ChillTempAct[[#This Row],[ChillAve]],0) -> 20.5 | F108: =INDEX(TempAdj[AdjustPct],MATCH(MONTH(ChillTempAct[[#This Row],[Date]]),TempAdj[Month],0)) -> 0.0426 | G108: =ChillTempAct[[#This Row],[ChillHDD]]*(1+ChillTempAct[[#This Row],[ChillAdj]]) -> 21.3733 | H108: =SUMPRODUCT((RankNHDD[Month]=ChillTempAct[[#This Row],[Month]])*(RankNHDD[Rank]=ChillTempAct[[#This Row],[Rank]])*RankNHDD[KIRKNHDD]) -> 23.60925926 | I108: =YEAR(ChillTempAct[[#This Row],[Date]]) -> 2020 | J108: =MONTH(ChillTempAct[[#This Row],[Date]]) -> 11 | K108: =IF(ChillTempAct[[#This Row],[Month]]=J107,K107+1,1) -> 15
A109: 44164 | B109: 57 | C109: 32 | D109: =AVERAGE(ChillTempAct[[#This Row],[ChillHigh]:[ChillLow]]) -> 44.5 | E109: =IF(ChillTempAct[[#This Row],[ChillAve]]<65,65-ChillTempAct[[#This Row],[ChillAve]],0) -> 20.5 | F109: =INDEX(TempAdj[AdjustPct],MATCH(MONTH(ChillTempAct[[#This Row],[Date]]),TempAdj[Month],0)) -> 0.0426 | G109: =ChillTempAct[[#This Row],[ChillHDD]]*(1+ChillTempAct[[#This Row],[ChillAdj]]) -> 21.3733 | H109: =SUMPRODUCT((RankNHDD[Month]=ChillTempAct[[#This Row],[Month]])*(RankNHDD[Rank]=ChillTempAct[[#This Row],[Rank]])*RankNHDD[KIRKNHDD]) -> 22.75981481 | I109: =YEAR(ChillTempAct[[#This Row],[Date]]) -> 2020 | J109: =MONTH(ChillTempAct[[#This Row],[Date]]) -> 11 | K109: =IF(ChillTempAct[[#This Row],[Month]]=J108,K108+1,1) -> 16
A110: 44138 | B110: 65 | C110: 28 | D110: =AVERAGE(ChillTempAct[[#This Row],[ChillHigh]:[ChillLow]]) -> 46.5 | E110: =IF(ChillTempAct[[#This Row],[ChillAve]]<65,65-ChillTempAct[[#This Row],[ChillAve]],0) -> 18.5 | F110: =INDEX(TempAdj[AdjustPct],MATCH(MONTH(ChillTempAct[[#This Row],[Date]]),TempAdj[Month],0)) -> 0.0426 | G110: =ChillTempAct[[#This Row],[ChillHDD]]*(1+ChillTempAct[[#This Row],[ChillAdj]]) -> 19.2881 | H110: =SUMPRODUCT((RankNHDD[Month]=ChillTempAct[[#This Row],[Month]])*(RankNHDD[Rank]=ChillTempAct[[#This Row],[Rank]])*RankNHDD[KIRKNHDD]) -> 22.06425926 | I110: =YEAR(ChillTempAct[[#This Row],[Date]]) -> 2020 | J110: =MONTH(ChillTempAct[[#This Row],[Date]]) -> 11 | K110: =IF(ChillTempAct[[#This Row],[Month]]=J109,K109+1,1) -> 17
A111: 44160 | B111: 51 | C111: 42 | D111: =AVERAGE(ChillTempAct[[#This Row],[ChillHigh]:[ChillLow]]) -> 46.5 | E111: =IF(ChillTempAct[[#This Row],[ChillAve]]<65,65-ChillTempAct[[#This Row],[ChillAve]],0) -> 18.5 | F111: =INDEX(TempAdj[AdjustPct],MATCH(MONTH(ChillTempAct[[#This Row],[Date]]),TempAdj[Month],0)) -> 0.0426 | G111: =ChillTempAct[[#This Row],[ChillHDD]]*(1+ChillTempAct[[#This Row],[ChillAdj]]) -> 19.2881 | H111: =SUMPRODUCT((RankNHDD[Month]=ChillTempAct[[#This Row],[Month]])*(RankNHDD[Rank]=ChillTempAct[[#This Row],[Rank]])*RankNHDD[KIRKNHDD]) -> 21.27277778 | I111: =YEAR(ChillTempAct[[#This Row],[Date]]) -> 2020 | J111: =MONTH(ChillTempAct[[#This Row],[Date]]) -> 11 | K111: =IF(ChillTempAct[[#This Row],[Month]]=J110,K110+1,1) -> 18
A112: 44156 | B112: 56 | C112: 39 | D112: =AVERAGE(ChillTempAct[[#This Row],[ChillHigh]:[ChillLow]]) -> 47.5 | E112: =IF(ChillTempAct[[#This Row],[ChillAve]]<65,65-ChillTempAct[[#This Row],[ChillAve]],0) -> 17.5 | F112: =INDEX(TempAdj[AdjustPct],MATCH(MONTH(ChillTempAct[[#This Row],[Date]]),TempAdj[Month],0)) -> 0.0426 | G112: =ChillTempAct[[#This Row],[ChillHDD]]*(1+ChillTempAct[[#This Row],[ChillAdj]]) -> 18.2455 | H112: =SUMPRODUCT((RankNHDD[Month]=ChillTempAct[[#This Row],[Month]])*(RankNHDD[Rank]=ChillTempAct[[#This Row],[Rank]])*RankNHDD[KIRKNHDD]) -> 20.59444444 | I112: =YEAR(ChillTempAct[[#This Row],[Date]]) -> 2020 | J112: =MONTH(ChillTempAct[[#This Row],[Date]]) -> 11 | K112: =IF(ChillTempAct[[#This Row],[Month]]=J111,K111+1,1) -> 19
A113: 44150 | B113: 62 | C113: 38 | D113: =AVERAGE(ChillTempAct[[#This Row],[ChillHigh]:[ChillLow]]) -> 50 | E113: =IF(ChillTempAct[[#This Row],[ChillAve]]<65,65-ChillTempAct[[#This Row],[ChillAve]],0) -> 15 | F113: =INDEX(TempAdj[AdjustPct],MATCH(MONTH(ChillTempAct[[#This Row],[Date]]),TempAdj[Month],0)) -> 0.0426 | G113: =ChillTempAct[[#This Row],[ChillHDD]]*(1+ChillTempAct[[#This Row],[ChillAdj]]) -> 15.639 | H113: =SUMPRODUCT((RankNHDD[Month]=ChillTempAct[[#This Row],[Month]])*(RankNHDD[Rank]=ChillTempAct[[#This Row],[Rank]])*RankNHDD[KIRKNHDD]) -> 19.57666667 | I113: =YEAR(ChillTempAct[[#This Row],[Date]]) -> 2020 | J113: =MONTH(ChillTempAct[[#This Row],[Date]]) -> 11 | K113: =IF(ChillTempAct[[#This Row],[Month]]=J112,K112+1,1) -> 20
A114: 44136 | B114: 68 | C114: 35 | D114: =AVERAGE(ChillTempAct[[#This Row],[ChillHigh]:[ChillLow]]) -> 51.5 | E114: =IF(ChillTempAct[[#This Row],[ChillAve]]<65,65-ChillTempAct[[#This Row],[ChillAve]],0) -> 13.5 | F114: =INDEX(TempAdj[AdjustPct],MATCH(MONTH(ChillTempAct[[#This Row],[Date]]),TempAdj[Month],0)) -> 0.0426 | G114: =ChillTempAct[[#This Row],[ChillHDD]]*(1+ChillTempAct[[#This Row],[ChillAdj]]) -> 14.0751 | H114: =SUMPRODUCT((RankNHDD[Month]=ChillTempAct[[#This Row],[Month]])*(RankNHDD[Rank]=ChillTempAct[[#This Row],[Rank]])*RankNHDD[KIRKNHDD]) -> 18.07796296 | I114: =YEAR(ChillTempAct[[#This Row],[Date]]) -> 2020 | J114: =MONTH(ChillTempAct[[#This Row],[Date]]) -> 11 | K114: =IF(ChillTempAct[[#This Row],[Month]]=J113,K113+1,1) -> 21
A115: 44154 | B115: 67 | C115: 40 | D115: =AVERAGE(ChillTempAct[[#This Row],[ChillHigh]:[ChillLow]]) -> 53.5 | E115: =IF(ChillTempAct[[#This Row],[ChillAve]]<65,65-ChillTempAct[[#This Row],[ChillAve]],0) -> 11.5 | F115: =INDEX(TempAdj[AdjustPct],MATCH(MONTH(ChillTempAct[[#This Row],[Date]]),TempAdj[Month],0)) -> 0.0426 | G115: =ChillTempAct[[#This Row],[ChillHDD]]*(1+ChillTempAct[[#This Row],[ChillAdj]]) -> 11.9899 | H115: =SUMPRODUCT((RankNHDD[Month]=ChillTempAct[[#This Row],[Month]])*(RankNHDD[Rank]=ChillTempAct[[#This Row],[Rank]])*RankNHDD[KIRKNHDD]) -> 17.13425926 | I115: =YEAR(ChillTempAct[[#This Row],[Date]]) -> 2020 | J115: =MONTH(ChillTempAct[[#This Row],[Date]]) -> 11 | K115: =IF(ChillTempAct[[#This Row],[Month]]=J114,K114+1,1) -> 22
A116: 44139 | B116: 74 | C116: 36 | D116: =AVERAGE(ChillTempAct[[#This Row],[ChillHigh]:[ChillLow]]) -> 55 | E116: =IF(ChillTempAct[[#This Row],[ChillAve]]<65,65-ChillTempAct[[#This Row],[ChillAve]],0) -> 10 | F116: =INDEX(TempAdj[AdjustPct],MATCH(MONTH(ChillTempAct[[#This Row],[Date]]),TempAdj[Month],0)) -> 0.0426 | G116: =ChillTempAct[[#This Row],[ChillHDD]]*(1+ChillTempAct[[#This Row],[ChillAdj]]) -> 10.426 | H116: =SUMPRODUCT((RankNHDD[Month]=ChillTempAct[[#This Row],[Month]])*(RankNHDD[Rank]=ChillTempAct[[#This Row],[Rank]])*RankNHDD[KIRKNHDD]) -> 16.06314815 | I116: =YEAR(ChillTempAct[[#This Row],[Date]]) -> 2020 | J116: =MONTH(ChillTempAct[[#This Row],[Date]]) -> 11 | K116: =IF(ChillTempAct[[#This Row],[Month]]=J115,K115+1,1) -> 23
A117: 44140 | B117: 68 | C117: 48 | D117: =AVERAGE(ChillTempAct[[#This Row],[ChillHigh]:[ChillLow]]) -> 58 | E117: =IF(ChillTempAct[[#This Row],[ChillAve]]<65,65-ChillTempAct[[#This Row],[ChillAve]],0) -> 7 | F117: =INDEX(TempAdj[AdjustPct],MATCH(MONTH(ChillTempAct[[#This Row],[Date]]),TempAdj[Month],0)) -> 0.0426 | G117: =ChillTempAct[[#This Row],[ChillHDD]]*(1+ChillTempAct[[#This Row],[ChillAdj]]) -> 7.2982 | H117: =SUMPRODUCT((RankNHDD[Month]=ChillTempAct[[#This Row],[Month]])*(RankNHDD[Rank]=ChillTempAct[[#This Row],[Rank]])*RankNHDD[KIRKNHDD]) -> 15.07685185 | I117: =YEAR(ChillTempAct[[#This Row],[Date]]) -> 2020 | J117: =MONTH(ChillTempAct[[#This Row],[Date]]) -> 11 | K117: =IF(ChillTempAct[[#This Row],[Month]]=J116,K116+1,1) -> 24
A118: 44141 | B118: 75 | C118: 42 | D118: =AVERAGE(ChillTempAct[[#This Row],[ChillHigh]:[ChillLow]]) -> 58.5 | E118: =IF(ChillTempAct[[#This Row],[ChillAve]]<65,65-ChillTempAct[[#This Row],[ChillAve]],0) -> 6.5 | F118: =INDEX(TempAdj[AdjustPct],MATCH(MONTH(ChillTempAct[[#This Row],[Date]]),TempAdj[Month],0)) -> 0.0426 | G118: =ChillTempAct[[#This Row],[ChillHDD]]*(1+ChillTempAct[[#This Row],[ChillAdj]]) -> 6.7769 | H118: =SUMPRODUCT((RankNHDD[Month]=ChillTempAct[[#This Row],[Month]])*(RankNHDD[Rank]=ChillTempAct[[#This Row],[Rank]])*RankNHDD[KIRKNHDD]) -> 13.91333333 | I118: =YEAR(ChillTempAct[[#This Row],[Date]]) -> 2020 | J118: =MONTH(ChillTempAct[[#This Row],[Date]]) -> 11 | K118: =IF(ChillTempAct[[#This Row],[Month]]=J117,K117+1,1) -> 25
A119: 44142 | B119: 74 | C119: 44 | D119: =AVERAGE(ChillTempAct[[#This Row],[ChillHigh]:[ChillLow]]) -> 59 | E119: =IF(ChillTempAct[[#This Row],[ChillAve]]<65,65-ChillTempAct[[#This Row],[ChillAve]],0) -> 6 | F119: =INDEX(TempAdj[AdjustPct],MATCH(MONTH(ChillTempAct[[#This Row],[Date]]),TempAdj[Month],0)) -> 0.0426 | G119: =ChillTempAct[[#This Row],[ChillHDD]]*(1+ChillTempAct[[#This Row],[ChillAdj]]) -> 6.2556 | H119: =SUMPRODUCT((RankNHDD[Month]=ChillTempAct[[#This Row],[Month]])*(RankNHDD[Rank]=ChillTempAct[[#This Row],[Rank]])*RankNHDD[KIRKNHDD]) -> 12.53277778 | I119: =YEAR(ChillTempAct[[#This Row],[Date]]) -> 2020 | J119: =MONTH(ChillTempAct[[#This Row],[Date]]) -> 11 | K119: =IF(ChillTempAct[[#This Row],[Month]]=J118,K118+1,1) -> 26
A120: 44155 | B120: 72 | C120: 46 | D120: =AVERAGE(ChillTempAct[[#This Row],[ChillHigh]:[ChillLow]]) -> 59 | E120: =IF(ChillTempAct[[#This Row],[ChillAve]]<65,65-ChillTempAct[[#This Row],[ChillAve]],0) -> 6 | F120: =INDEX(TempAdj[AdjustPct],MATCH(MONTH(ChillTempAct[[#This Row],[Date]]),TempAdj[Month],0)) -> 0.0426 | G120: =ChillTempAct[[#This Row],[ChillHDD]]*(1+ChillTempAct[[#This Row],[ChillAdj]]) -> 6.2556 | H120: =SUMPRODUCT((RankNHDD[Month]=ChillTempAct[[#This Row],[Month]])*(RankNHDD[Rank]=ChillTempAct[[#This Row],[Rank]])*RankNHDD[KIRKNHDD]) -> 10.46722222 | I120: =YEAR(ChillTempAct[[#This Row],[Date]]) -> 2020 | J120: =MONTH(ChillTempAct[[#This Row],[Date]]) -> 11 | K120: =IF(ChillTempAct[[#This Row],[Month]]=J119,K119+1,1) -> 27
A121: 44145 | B121: 77 | C121: 43 | D121: =AVERAGE(ChillTempAct[[#This Row],[ChillHigh]:[ChillLow]]) -> 60 | E121: =IF(ChillTempAct[[#This Row],[ChillAve]]<65,65-ChillTempAct[[#This Row],[ChillAve]],0) -> 5 | F121: =INDEX(TempAdj[AdjustPct],MATCH(MONTH(ChillTempAct[[#This Row],[Date]]),TempAdj[Month],0)) -> 0.0426 | G121: =ChillTempAct[[#This Row],[ChillHDD]]*(1+ChillTempAct[[#This Row],[ChillAdj]]) -> 5.213 | H121: =SUMPRODUCT((RankNHDD[Month]=ChillTempAct[[#This Row],[Month]])*(RankNHDD[Rank]=ChillTempAct[[#This Row],[Rank]])*RankNHDD[KIRKNHDD]) -> 7.907222222 | I121: =YEAR(ChillTempAct[[#This Row],[Date]]) -> 2020 | J121: =MONTH(ChillTempAct[[#This Row],[Date]]) -> 11 | K121: =IF(ChillTempAct[[#This Row],[Month]]=J120,K120+1,1) -> 28
A122: 44143 | B122: 72 | C122: 49 | D122: =AVERAGE(ChillTempAct[[#This Row],[ChillHigh]:[ChillLow]]) -> 60.5 | E122: =IF(ChillTempAct[[#This Row],[ChillAve]]<65,65-ChillTempAct[[#This Row],[ChillAve]],0) -> 4.5 | F122: =INDEX(TempAdj[AdjustPct],MATCH(MONTH(ChillTempAct[[#This Row],[Date]]),TempAdj[Month],0)) -> 0.0426 | G122: =ChillTempAct[[#This Row],[ChillHDD]]*(1+ChillTempAct[[#This Row],[ChillAdj]]) -> 4.6917 | H122: =SUMPRODUCT((RankNHDD[Month]=ChillTempAct[[#This Row],[Month]])*(RankNHDD[Rank]=ChillTempAct[[#This Row],[Rank]])*RankNHDD[KIRKNHDD]) -> 5.386111111 | I122: =YEAR(ChillTempAct[[#This Row],[Date]]) -> 2020 | J122: =MONTH(ChillTempAct[[#This Row],[Date]]) -> 11 | K122: =IF(ChillTempAct[[#This Row],[Month]]=J121,K121+1,1) -> 29
A123: 44144 | B123: 76 | C123: 60 | D123: =AVERAGE(ChillTempAct[[#This Row],[ChillHigh]:[ChillLow]]) -> 68 | E123: =IF(ChillTempAct[[#This Row],[ChillAve]]<65,65-ChillTempAct[[#This Row],[ChillAve]],0) -> 0 | F123: =INDEX(TempAdj[AdjustPct],MATCH(MONTH(ChillTempAct[[#This Row],[Date]]),TempAdj[Month],0)) -> 0.0426 | G123: =ChillTempAct[[#This Row],[ChillHDD]]*(1+ChillTempAct[[#This Row],[ChillAdj]]) -> 0 | H123: =SUMPRODUCT((RankNHDD[Month]=ChillTempAct[[#This Row],[Month]])*(RankNHDD[Rank]=ChillTempAct[[#This Row],[Rank]])*RankNHDD[KIRKNHDD]) -> 1.790740741 | I123: =YEAR(ChillTempAct[[#This Row],[Date]]) -> 2020 | J123: =MONTH(ChillTempAct[[#This Row],[Date]]) -> 11 | K123: =IF(ChillTempAct[[#This Row],[Month]]=J122,K122+1,1) -> 30
A124: 44190 | B124: 22 | C124: 4 | D124: =AVERAGE(ChillTempAct[[#This Row],[ChillHigh]:[ChillLow]]) -> 13 | E124: =IF(ChillTempAct[[#This Row],[ChillAve]]<65,65-ChillTempAct[[#This Row],[ChillAve]],0) -> 52 | F124: =INDEX(TempAdj[AdjustPct],MATCH(MONTH(ChillTempAct[[#This Row],[Date]]),TempAdj[Month],0)) -> 0.0288 | G124: =ChillTempAct[[#This Row],[ChillHDD]]*(1+ChillTempAct[[#This Row],[ChillAdj]]) -> 53.4976 | H124: =SUMPRODUCT((RankNHDD[Month]=ChillTempAct[[#This Row],[Month]])*(RankNHDD[Rank]=ChillTempAct[[#This Row],[Rank]])*RankNHDD[KIRKNHDD]) -> 64.14112903 | I124: =YEAR(ChillTempAct[[#This Row],[Date]]) -> 2020 | J124: =MONTH(ChillTempAct[[#This Row],[Date]]) -> 12 | K124: =IF(ChillTempAct[[#This Row],[Month]]=J123,K123+1,1) -> 1
A125: 44191 | B125: 32 | C125: 5 | D125: =AVERAGE(ChillTempAct[[#This Row],[ChillHigh]:[ChillLow]]) -> 18.5 | E125: =IF(ChillTempAct[[#This Row],[ChillAve]]<65,65-ChillTempAct[[#This Row],[ChillAve]],0) -> 46.5 | F125: =INDEX(TempAdj[AdjustPct],MATCH(MONTH(ChillTempAct[[#This Row],[Date]]),TempAdj[Month],0)) -> 0.0288 | G125: =ChillTempAct[[#This Row],[ChillHDD]]*(1+ChillTempAct[[#This Row],[ChillAdj]]) -> 47.8392 | H125: =SUMPRODUCT((RankNHDD[Month]=ChillTempAct[[#This Row],[Month]])*(RankNHDD[Rank]=ChillTempAct[[#This Row],[Rank]])*RankNHDD[KIRKNHDD]) -> 56.41344086 | I125: =YEAR(ChillTempAct[[#This Row],[Date]]) -> 2020 | J125: =MONTH(ChillTempAct[[#This Row],[Date]]) -> 12 | K125: =IF(ChillTempAct[[#This Row],[Month]]=J124,K124+1,1) -> 2
A126: 44196 | B126: 32 | C126: 13 | D126: =AVERAGE(ChillTempAct[[#This Row],[ChillHigh]:[ChillLow]]) -> 22.5 | E126: =IF(ChillTempAct[[#This Row],[ChillAve]]<65,65-ChillTempAct[[#This Row],[ChillAve]],0) -> 42.5 | F126: =INDEX(TempAdj[AdjustPct],MATCH(MONTH(ChillTempAct[[#This Row],[Date]]),TempAdj[Month],0)) -> 0.0288 | G126: =ChillTempAct[[#This Row],[ChillHDD]]*(1+ChillTempAct[[#This Row],[ChillAdj]]) -> 43.724 | H126: =SUMPRODUCT((RankNHDD[Month]=ChillTempAct[[#This Row],[Month]])*(RankNHDD[Rank]=ChillTempAct[[#This Row],[Rank]])*RankNHDD[KIRKNHDD]) -> 53.05569892 | I126: =YEAR(ChillTempAct[[#This Row],[Date]]) -> 2020 | J126: =MONTH(ChillTempAct[[#This Row],[Date]]) -> 12 | K126: =IF(ChillTempAct[[#This Row],[Month]]=J125,K125+1,1) -> 3
A127: 44181 | B127: 27 | C127: 19 | D127: =AVERAGE(ChillTempAct[[#This Row],[ChillHigh]:[ChillLow]]) -> 23 | E127: =IF(ChillTempAct[[#This Row],[ChillAve]]<65,65-ChillTempAct[[#This Row],[ChillAve]],0) -> 42 | F127: =INDEX(TempAdj[AdjustPct],MATCH(MONTH(ChillTempAct[[#This Row],[Date]]),TempAdj[Month],0)) -> 0.0288 | G127: =ChillTempAct[[#This Row],[ChillHDD]]*(1+ChillTempAct[[#This Row],[ChillAdj]]) -> 43.2096 | H127: =SUMPRODUCT((RankNHDD[Month]=ChillTempAct[[#This Row],[Month]])*(RankNHDD[Rank]=ChillTempAct[[#This Row],[Rank]])*RankNHDD[KIRKNHDD]) -> 50.10607527 | I127: =YEAR(ChillTempAct[[#This Row],[Date]]) -> 2020 | J127: =MONTH(ChillTempAct[[#This Row],[Date]]) -> 12 | K127: =IF(ChillTempAct[[#This Row],[Month]]=J126,K126+1,1) -> 4
A128: 44179 | B128: 31 | C128: 18 | D128: =AVERAGE(ChillTempAct[[#This Row],[ChillHigh]:[ChillLow]]) -> 24.5 | E128: =IF(ChillTempAct[[#This Row],[ChillAve]]<65,65-ChillTempAct[[#This Row],[ChillAve]],0) -> 40.5 | F128: =INDEX(TempAdj[AdjustPct],MATCH(MONTH(ChillTempAct[[#This Row],[Date]]),TempAdj[Month],0)) -> 0.0288 | G128: =ChillTempAct[[#This Row],[ChillHDD]]*(1+ChillTempAct[[#This Row],[ChillAdj]]) -> 41.6664 | H128: =SUMPRODUCT((RankNHDD[Month]=ChillTempAct[[#This Row],[Month]])*(RankNHDD[Rank]=ChillTempAct[[#This Row],[Rank]])*RankNHDD[KIRKNHDD]) -> 47.62043011 | I128: =YEAR(ChillTempAct[[#This Row],[Date]]) -> 2020 | J128: =MONTH(ChillTempAct[[#This Row],[Date]]) -> 12 | K128: =IF(ChillTempAct[[#This Row],[Month]]=J127,K127+1,1) -> 5
A129: 44180 | B129: 31 | C129: 18 | D129: =AVERAGE(ChillTempAct[[#This Row],[ChillHigh]:[ChillLow]]) -> 24.5 | E129: =IF(ChillTempAct[[#This Row],[ChillAve]]<65,65-ChillTempAct[[#This Row],[ChillAve]],0) -> 40.5 | F129: =INDEX(TempAdj[AdjustPct],MATCH(MONTH(ChillTempAct[[#This Row],[Date]]),TempAdj[Month],0)) -> 0.0288 | G129: =ChillTempAct[[#This Row],[ChillHDD]]*(1+ChillTempAct[[#This Row],[ChillAdj]]) -> 41.6664 | H129: =SUMPRODUCT((RankNHDD[Month]=ChillTempAct[[#This Row],[Month]])*(RankNHDD[Rank]=ChillTempAct[[#This Row],[Rank]])*RankNHDD[KIRKNHDD]) -> 45.68014337 | I129: =YEAR(ChillTempAct[[#This Row],[Date]]) -> 2020 | J129: =MONTH(ChillTempAct[[#This Row],[Date]]) -> 12 | K129: =IF(ChillTempAct[[#This Row],[Month]]=J128,K128+1,1) -> 6
A130: 44182 | B130: 31 | C130: 18 | D130: =AVERAGE(ChillTempAct[[#This Row],[ChillHigh]:[ChillLow]]) -> 24.5 | E130: =IF(ChillTempAct[[#This Row],[ChillAve]]<65,65-ChillTempAct[[#This Row],[ChillAve]],0) -> 40.5 | F130: =INDEX(TempAdj[AdjustPct],MATCH(MONTH(ChillTempAct[[#This Row],[Date]]),TempAdj[Month],0)) -> 0.0288 | G130: =ChillTempAct[[#This Row],[ChillHDD]]*(1+ChillTempAct[[#This Row],[ChillAdj]]) -> 41.6664 | H130: =SUMPRODUCT((RankNHDD[Month]=ChillTempAct[[#This Row],[Month]])*(RankNHDD[Rank]=ChillTempAct[[#This Row],[Rank]])*RankNHDD[KIRKNHDD]) -> 43.91664875 | I130: =YEAR(ChillTempAct[[#This Row],[Date]]) -> 2020 | J130: =MONTH(ChillTempAct[[#This Row],[Date]]) -> 12 | K130: =IF(ChillTempAct[[#This Row],[Month]]=J129,K129+1,1) -> 7
A131: 44166 | B131: 37 | C131: 15 | D131: =AVERAGE(ChillTempAct[[#This Row],[ChillHigh]:[ChillLow]]) -> 26 | E131: =IF(ChillTempAct[[#This Row],[ChillAve]]<65,65-ChillTempAct[[#This Row],[ChillAve]],0) -> 39 | F131: =INDEX(TempAdj[AdjustPct],MATCH(MONTH(ChillTempAct[[#This Row],[Date]]),TempAdj[Month],0)) -> 0.0288 | G131: =ChillTempAct[[#This Row],[ChillHDD]]*(1+ChillTempAct[[#This Row],[ChillAdj]]) -> 40.1232 | H131: =SUMPRODUCT((RankNHDD[Month]=ChillTempAct[[#This Row],[Month]])*(RankNHDD[Rank]=ChillTempAct[[#This Row],[Rank]])*RankNHDD[KIRKNHDD]) -> 42.34930108 | I131: =YEAR(ChillTempAct[[#This Row],[Date]]) -> 2020 | J131: =MONTH(ChillTempAct[[#This Row],[Date]]) -> 12 | K131: =IF(ChillTempAct[[#This Row],[Month]]=J130,K130+1,1) -> 8
A132: 44195 | B132: 32 | C132: 24 | D132: =AVERAGE(ChillTempAct[[#This Row],[ChillHigh]:[ChillLow]]) -> 28 | E132: =IF(ChillTempAct[[#This Row],[ChillAve]]<65,65-ChillTempAct[[#This Row],[ChillAve]],0) -> 37 | F132: =INDEX(TempAdj[AdjustPct],MATCH(MONTH(ChillTempAct[[#This Row],[Date]]),TempAdj[Month],0)) -> 0.0288 | G132: =ChillTempAct[[#This Row],[ChillHDD]]*(1+ChillTempAct[[#This Row],[ChillAdj]]) -> 38.0656 | H132: =SUMPRODUCT((RankNHDD[Month]=ChillTempAct[[#This Row],[Month]])*(RankNHDD[Rank]=ChillTempAct[[#This Row],[Rank]])*RankNHDD[KIRKNHDD]) -> 41.07274194 | I132: =YEAR(ChillTempAct[[#This Row],[Date]]) -> 2020 | J132: =MONTH(ChillTempAct[[#This Row],[Date]]) -> 12 | K132: =IF(ChillTempAct[[#This Row],[Month]]=J131,K131+1,1) -> 9
A133: 44167 | B133: 44 | C133: 15 | D133: =AVERAGE(ChillTempAct[[#This Row],[ChillHigh]:[ChillLow]]) -> 29.5 | E133: =IF(ChillTempAct[[#This Row],[ChillAve]]<65,65-ChillTempAct[[#This Row],[ChillAve]],0) -> 35.5 | F133: =INDEX(TempAdj[AdjustPct],MATCH(MONTH(ChillTempAct[[#This Row],[Date]]),TempAdj[Month],0)) -> 0.0288 | G133: =ChillTempAct[[#This Row],[ChillHDD]]*(1+ChillTempAct[[#This Row],[ChillAdj]]) -> 36.5224 | H133: =SUMPRODUCT((RankNHDD[Month]=ChillTempAct[[#This Row],[Month]])*(RankNHDD[Rank]=ChillTempAct[[#This Row],[Rank]])*RankNHDD[KIRKNHDD]) -> 40.17485663 | I133: =YEAR(ChillTempAct[[#This Row],[Date]]) -> 2020 | J133: =MONTH(ChillTempAct[[#This Row],[Date]]) -> 12 | K133: =IF(ChillTempAct[[#This Row],[Month]]=J132,K132+1,1) -> 10
A134: 44185 | B134: 39 | C134: 20 | D134: =AVERAGE(ChillTempAct[[#This Row],[ChillHigh]:[ChillLow]]) -> 29.5 | E134: =IF(ChillTempAct[[#This Row],[ChillAve]]<65,65-ChillTempAct[[#This Row],[ChillAve]],0) -> 35.5 | F134: =INDEX(TempAdj[AdjustPct],MATCH(MONTH(ChillTempAct[[#This Row],[Date]]),TempAdj[Month],0)) -> 0.0288 | G134: =ChillTempAct[[#This Row],[ChillHDD]]*(1+ChillTempAct[[#This Row],[ChillAdj]]) -> 36.5224 | H134: =SUMPRODUCT((RankNHDD[Month]=ChillTempAct[[#This Row],[Month]])*(RankNHDD[Rank]=ChillTempAct[[#This Row],[Rank]])*RankNHDD[KIRKNHDD]) -> 39.34302867 | I134: =YEAR(ChillTempAct[[#This Row],[Date]]) -> 2020 | J134: =MONTH(ChillTempAct[[#This Row],[Date]]) -> 12 | K134: =IF(ChillTempAct[[#This Row],[Month]]=J133,K133+1,1) -> 11
A135: 44194 | B135: 35 | C135: 24 | D135: =AVERAGE(ChillTempAct[[#This Row],[ChillHigh]:[ChillLow]]) -> 29.5 | E135: =IF(ChillTempAct[[#This Row],[ChillAve]]<65,65-ChillTempAct[[#This Row],[ChillAve]],0) -> 35.5 | F135: =INDEX(TempAdj[AdjustPct],MATCH(MONTH(ChillTempAct[[#This Row],[Date]]),TempAdj[Month],0)) -> 0.0288 | G135: =ChillTempAct[[#This Row],[ChillHDD]]*(1+ChillTempAct[[#This Row],[ChillAdj]]) -> 36.5224 | H135: =SUMPRODUCT((RankNHDD[Month]=ChillTempAct[[#This Row],[Month]])*(RankNHDD[Rank]=ChillTempAct[[#This Row],[Rank]])*RankNHDD[KIRKNHDD]) -> 38.28035842 | I135: =YEAR(ChillTempAct[[#This Row],[Date]]) -> 2020 | J135: =MONTH(ChillTempAct[[#This Row],[Date]]) -> 12 | K135: =IF(ChillTempAct[[#This Row],[Month]]=J134,K134+1,1) -> 12
A136: 44173 | B136: 34 | C136: 28 | D136: =AVERAGE(ChillTempAct[[#This Row],[ChillHigh]:[ChillLow]]) -> 31 | E136: =IF(ChillTempAct[[#This Row],[ChillAve]]<65,65-ChillTempAct[[#This Row],[ChillAve]],0) -> 34 | F136: =INDEX(TempAdj[AdjustPct],MATCH(MONTH(ChillTempAct[[#This Row],[Date]]),TempAdj[Month],0)) -> 0.0288 | G136: =ChillTempAct[[#This Row],[ChillHDD]]*(1+ChillTempAct[[#This Row],[ChillAdj]]) -> 34.9792 | H136: =SUMPRODUCT((RankNHDD[Month]=ChillTempAct[[#This Row],[Month]])*(RankNHDD[Rank]=ChillTempAct[[#This Row],[Rank]])*RankNHDD[KIRKNHDD]) -> 37.37077061 | I136: =YEAR(ChillTempAct[[#This Row],[Date]]) -> 2020 | J136: =MONTH(ChillTempAct[[#This Row],[Date]]) -> 12 | K136: =IF(ChillTempAct[[#This Row],[Month]]=J135,K135+1,1) -> 13
A137: 44178 | B137: 34 | C137: 28 | D137: =AVERAGE(ChillTempAct[[#This Row],[ChillHigh]:[ChillLow]]) -> 31 | E137: =IF(ChillTempAct[[#This Row],[ChillAve]]<65,65-ChillTempAct[[#This Row],[ChillAve]],0) -> 34 | F137: =INDEX(TempAdj[AdjustPct],MATCH(MONTH(ChillTempAct[[#This Row],[Date]]),TempAdj[Month],0)) -> 0.0288 | G137: =ChillTempAct[[#This Row],[ChillHDD]]*(1+ChillTempAct[[#This Row],[ChillAdj]]) -> 34.9792 | H137: =SUMPRODUCT((RankNHDD[Month]=ChillTempAct[[#This Row],[Month]])*(RankNHDD[Rank]=ChillTempAct[[#This Row],[Rank]])*RankNHDD[KIRKNHDD]) -> 36.52629032 | I137: =YEAR(ChillTempAct[[#This Row],[Date]]) -> 2020 | J137: =MONTH(ChillTempAct[[#This Row],[Date]]) -> 12 | K137: =IF(ChillTempAct[[#This Row],[Month]]=J136,K136+1,1) -> 14
A138: 44192 | B138: 46 | C138: 16 | D138: =AVERAGE(ChillTempAct[[#This Row],[ChillHigh]:[ChillLow]]) -> 31 | E138: =IF(ChillTempAct[[#This Row],[ChillAve]]<65,65-ChillTempAct[[#This Row],[ChillAve]],0) -> 34 | F138: =INDEX(TempAdj[AdjustPct],MATCH(MONTH(ChillTempAct[[#This Row],[Date]]),TempAdj[Month],0)) -> 0.0288 | G138: =ChillTempAct[[#This Row],[ChillHDD]]*(1+ChillTempAct[[#This Row],[ChillAdj]]) -> 34.9792 | H138: =SUMPRODUCT((RankNHDD[Month]=ChillTempAct[[#This Row],[Month]])*(RankNHDD[Rank]=ChillTempAct[[#This Row],[Rank]])*RankNHDD[KIRKNHDD]) -> 35.81541219 | I138: =YEAR(ChillTempAct[[#This Row],[Date]]) -> 2020 | J138: =MONTH(ChillTempAct[[#This Row],[Date]]) -> 12 | K138: =IF(ChillTempAct[[#This Row],[Month]]=J137,K137+1,1) -> 15
A139: 44169 | B139: 42 | C139: 24 | D139: =AVERAGE(ChillTempAct[[#This Row],[ChillHigh]:[ChillLow]]) -> 33 | E139: =IF(ChillTempAct[[#This Row],[ChillAve]]<65,65-ChillTempAct[[#This Row],[ChillAve]],0) -> 32 | F139: =INDEX(TempAdj[AdjustPct],MATCH(MONTH(ChillTempAct[[#This Row],[Date]]),TempAdj[Month],0)) -> 0.0288 | G139: =ChillTempAct[[#This Row],[ChillHDD]]*(1+ChillTempAct[[#This Row],[ChillAdj]]) -> 32.9216 | H139: =SUMPRODUCT((RankNHDD[Month]=ChillTempAct[[#This Row],[Month]])*(RankNHDD[Rank]=ChillTempAct[[#This Row],[Rank]])*RankNHDD[KIRKNHDD]) -> 34.72700717 | I139: =YEAR(ChillTempAct[[#This Row],[Date]]) -> 2020 | J139: =MONTH(ChillTempAct[[#This Row],[Date]]) -> 12 | K139: =IF(ChillTempAct[[#This Row],[Month]]=J138,K138+1,1) -> 16
A140: 44189 | B140: 57 | C140: 9 | D140: =AVERAGE(ChillTempAct[[#This Row],[ChillHigh]:[ChillLow]]) -> 33 | E140: =IF(ChillTempAct[[#This Row],[ChillAve]]<65,65-ChillTempAct[[#This Row],[ChillAve]],0) -> 32 | F140: =INDEX(TempAdj[AdjustPct],MATCH(MONTH(ChillTempAct[[#This Row],[Date]]),TempAdj[Month],0)) -> 0.0288 | G140: =ChillTempAct[[#This Row],[ChillHDD]]*(1+ChillTempAct[[#This Row],[ChillAdj]]) -> 32.9216 | H140: =SUMPRODUCT((RankNHDD[Month]=ChillTempAct[[#This Row],[Month]])*(RankNHDD[Rank]=ChillTempAct[[#This Row],[Rank]])*RankNHDD[KIRKNHDD]) -> 33.68179211 | I140: =YEAR(ChillTempAct[[#This Row],[Date]]) -> 2020 | J140: =MONTH(ChillTempAct[[#This Row],[Date]]) -> 12 | K140: =IF(ChillTempAct[[#This Row],[Month]]=J139,K139+1,1) -> 17
A141: 44174 | B141: 39 | C141: 28 | D141: =AVERAGE(ChillTempAct[[#This Row],[ChillHigh]:[ChillLow]]) -> 33.5 | E141: =IF(ChillTempAct[[#This Row],[ChillAve]]<65,65-ChillTempAct[[#This Row],[ChillAve]],0) -> 31.5 | F141: =INDEX(TempAdj[AdjustPct],MATCH(MONTH(ChillTempAct[[#This Row],[Date]]),TempAdj[Month],0)) -> 0.0288 | G141: =ChillTempAct[[#This Row],[ChillHDD]]*(1+ChillTempAct[[#This Row],[ChillAdj]]) -> 32.4072 | H141: =SUMPRODUCT((RankNHDD[Month]=ChillTempAct[[#This Row],[Month]])*(RankNHDD[Rank]=ChillTempAct[[#This Row],[Rank]])*RankNHDD[KIRKNHDD]) -> 32.82433692 | I141: =YEAR(ChillTempAct[[#This Row],[Date]]) -> 2020 | J141: =MONTH(ChillTempAct[[#This Row],[Date]]) -> 12 | K141: =IF(ChillTempAct[[#This Row],[Month]]=J140,K140+1,1) -> 18
A142: 44183 | B142: 43 | C142: 26 | D142: =AVERAGE(ChillTempAct[[#This Row],[ChillHigh]:[ChillLow]]) -> 34.5 | E142: =IF(ChillTempAct[[#This Row],[ChillAve]]<65,65-ChillTempAct[[#This Row],[ChillAve]],0) -> 30.5 | F142: =INDEX(TempAdj[AdjustPct],MATCH(MONTH(ChillTempAct[[#This Row],[Date]]),TempAdj[Month],0)) -> 0.0288 | G142: =ChillTempAct[[#This Row],[ChillHDD]]*(1+ChillTempAct[[#This Row],[ChillAdj]]) -> 31.3784 | H142: =SUMPRODUCT((RankNHDD[Month]=ChillTempAct[[#This Row],[Month]])*(RankNHDD[Rank]=ChillTempAct[[#This Row],[Rank]])*RankNHDD[KIRKNHDD]) -> 31.93419355 | I142: =YEAR(ChillTempAct[[#This Row],[Date]]) -> 2020 | J142: =MONTH(ChillTempAct[[#This Row],[Date]]) -> 12 | K142: =IF(ChillTempAct[[#This Row],[Month]]=J141,K141+1,1) -> 19
A143: 44193 | B143: 53 | C143: 16 | D143: =AVERAGE(ChillTempAct[[#This Row],[ChillHigh]:[ChillLow]]) -> 34.5 | E143: =IF(ChillTempAct[[#This Row],[ChillAve]]<65,65-ChillTempAct[[#This Row],[ChillAve]],0) -> 30.5 | F143: =INDEX(TempAdj[AdjustPct],MATCH(MONTH(ChillTempAct[[#This Row],[Date]]),TempAdj[Month],0)) -> 0.0288 | G143: =ChillTempAct[[#This Row],[ChillHDD]]*(1+ChillTempAct[[#This Row],[ChillAdj]]) -> 31.3784 | H143: =SUMPRODUCT((RankNHDD[Month]=ChillTempAct[[#This Row],[Month]])*(RankNHDD[Rank]=ChillTempAct[[#This Row],[Rank]])*RankNHDD[KIRKNHDD]) -> 30.96679211 | I143: =YEAR(ChillTempAct[[#This Row],[Date]]) -> 2020 | J143: =MONTH(ChillTempAct[[#This Row],[Date]]) -> 12 | K143: =IF(ChillTempAct[[#This Row],[Month]]=J142,K142+1,1) -> 20
A144: 44186 | B144: 48 | C144: 23 | D144: =AVERAGE(ChillTempAct[[#This Row],[ChillHigh]:[ChillLow]]) -> 35.5 | E144: =IF(ChillTempAct[[#This Row],[ChillAve]]<65,65-ChillTempAct[[#This Row],[ChillAve]],0) -> 29.5 | F144: =INDEX(TempAdj[AdjustPct],MATCH(MONTH(ChillTempAct[[#This Row],[Date]]),TempAdj[Month],0)) -> 0.0288 | G144: =ChillTempAct[[#This Row],[ChillHDD]]*(1+ChillTempAct[[#This Row],[ChillAdj]]) -> 30.3496 | H144: =SUMPRODUCT((RankNHDD[Month]=ChillTempAct[[#This Row],[Month]])*(RankNHDD[Rank]=ChillTempAct[[#This Row],[Rank]])*RankNHDD[KIRKNHDD]) -> 30.17603943 | I144: =YEAR(ChillTempAct[[#This Row],[Date]]) -> 2020 | J144: =MONTH(ChillTempAct[[#This Row],[Date]]) -> 12 | K144: =IF(ChillTempAct[[#This Row],[Month]]=J143,K143+1,1) -> 21
A145: 44172 | B145: 46 | C145: 26 | D145: =AVERAGE(ChillTempAct[[#This Row],[ChillHigh]:[ChillLow]]) -> 36 | E145: =IF(ChillTempAct[[#This Row],[ChillAve]]<65,65-ChillTempAct[[#This Row],[ChillAve]],0) -> 29 | F145: =INDEX(TempAdj[AdjustPct],MATCH(MONTH(ChillTempAct[[#This Row],[Date]]),TempAdj[Month],0)) -> 0.0288 | G145: =ChillTempAct[[#This Row],[ChillHDD]]*(1+ChillTempAct[[#This Row],[ChillAdj]]) -> 29.8352 | H145: =SUMPRODUCT((RankNHDD[Month]=ChillTempAct[[#This Row],[Month]])*(RankNHDD[Rank]=ChillTempAct[[#This Row],[Rank]])*RankNHDD[KIRKNHDD]) -> 29.45564516 | I145: =YEAR(ChillTempAct[[#This Row],[Date]]) -> 2020 | J145: =MONTH(ChillTempAct[[#This Row],[Date]]) -> 12 | K145: =IF(ChillTempAct[[#This Row],[Month]]=J144,K144+1,1) -> 22
A146: 44168 | B146: 49 | C146: 24 | D146: =AVERAGE(ChillTempAct[[#This Row],[ChillHigh]:[ChillLow]]) -> 36.5 | E146: =IF(ChillTempAct[[#This Row],[ChillAve]]<65,65-ChillTempAct[[#This Row],[ChillAve]],0) -> 28.5 | F146: =INDEX(TempAdj[AdjustPct],MATCH(MONTH(ChillTempAct[[#This Row],[Date]]),TempAdj[Month],0)) -> 0.0288 | G146: =ChillTempAct[[#This Row],[ChillHDD]]*(1+ChillTempAct[[#This Row],[ChillAdj]]) -> 29.3208 | H146: =SUMPRODUCT((RankNHDD[Month]=ChillTempAct[[#This Row],[Month]])*(RankNHDD[Rank]=ChillTempAct[[#This Row],[Rank]])*RankNHDD[KIRKNHDD]) -> 28.63349462 | I146: =YEAR(ChillTempAct[[#This Row],[Date]]) -> 2020 | J146: =MONTH(ChillTempAct[[#This Row],[Date]]) -> 12 | K146: =IF(ChillTempAct[[#This Row],[Month]]=J145,K145+1,1) -> 23
A147: 44177 | B147: 41 | C147: 33 | D147: =AVERAGE(ChillTempAct[[#This Row],[ChillHigh]:[ChillLow]]) -> 37 | E147: =IF(ChillTempAct[[#This Row],[ChillAve]]<65,65-ChillTempAct[[#This Row],[ChillAve]],0) -> 28 | F147: =INDEX(TempAdj[AdjustPct],MATCH(MONTH(ChillTempAct[[#This Row],[Date]]),TempAdj[Month],0)) -> 0.0288 | G147: =ChillTempAct[[#This Row],[ChillHDD]]*(1+ChillTempAct[[#This Row],[ChillAdj]]) -> 28.8064 | H147: =SUMPRODUCT((RankNHDD[Month]=ChillTempAct[[#This Row],[Month]])*(RankNHDD[Rank]=ChillTempAct[[#This Row],[Rank]])*RankNHDD[KIRKNHDD]) -> 27.6161828 | I147: =YEAR(ChillTempAct[[#This Row],[Date]]) -> 2020 | J147: =MONTH(ChillTempAct[[#This Row],[Date]]) -> 12 | K147: =IF(ChillTempAct[[#This Row],[Month]]=J146,K146+1,1) -> 24
A148: 44170 | B148: 52 | C148: 23 | D148: =AVERAGE(ChillTempAct[[#This Row],[ChillHigh]:[ChillLow]]) -> 37.5 | E148: =IF(ChillTempAct[[#This Row],[ChillAve]]<65,65-ChillTempAct[[#This Row],[ChillAve]],0) -> 27.5 | F148: =INDEX(TempAdj[AdjustPct],MATCH(MONTH(ChillTempAct[[#This Row],[Date]]),TempAdj[Month],0)) -> 0.0288 | G148: =ChillTempAct[[#This Row],[ChillHDD]]*(1+ChillTempAct[[#This Row],[ChillAdj]]) -> 28.292 | H148: =SUMPRODUCT((RankNHDD[Month]=ChillTempAct[[#This Row],[Month]])*(RankNHDD[Rank]=ChillTempAct[[#This Row],[Rank]])*RankNHDD[KIRKNHDD]) -> 26.56740143 | I148: =YEAR(ChillTempAct[[#This Row],[Date]]) -> 2020 | J148: =MONTH(ChillTempAct[[#This Row],[Date]]) -> 12 | K148: =IF(ChillTempAct[[#This Row],[Month]]=J147,K147+1,1) -> 25
A149: 44171 | B149: 53 | C149: 23 | D149: =AVERAGE(ChillTempAct[[#This Row],[ChillHigh]:[ChillLow]]) -> 38 | E149: =IF(ChillTempAct[[#This Row],[ChillAve]]<65,65-ChillTempAct[[#This Row],[ChillAve]],0) -> 27 | F149: =INDEX(TempAdj[AdjustPct],MATCH(MONTH(ChillTempAct[[#This Row],[Date]]),TempAdj[Month],0)) -> 0.0288 | G149: =ChillTempAct[[#This Row],[ChillHDD]]*(1+ChillTempAct[[#This Row],[ChillAdj]]) -> 27.7776 | H149: =SUMPRODUCT((RankNHDD[Month]=ChillTempAct[[#This Row],[Month]])*(RankNHDD[Rank]=ChillTempAct[[#This Row],[Rank]])*RankNHDD[KIRKNHDD]) -> 25.63401434 | I149: =YEAR(ChillTempAct[[#This Row],[Date]]) -> 2020 | J149: =MONTH(ChillTempAct[[#This Row],[Date]]) -> 12 | K149: =IF(ChillTempAct[[#This Row],[Month]]=J148,K148+1,1) -> 26
A150: 44187 | B150: 57 | C150: 24 | D150: =AVERAGE(ChillTempAct[[#This Row],[ChillHigh]:[ChillLow]]) -> 40.5 | E150: =IF(ChillTempAct[[#This Row],[ChillAve]]<65,65-ChillTempAct[[#This Row],[ChillAve]],0) -> 24.5 | F150: =INDEX(TempAdj[AdjustPct],MATCH(MONTH(ChillTempAct[[#This Row],[Date]]),TempAdj[Month],0)) -> 0.0288 | G150: =ChillTempAct[[#This Row],[ChillHDD]]*(1+ChillTempAct[[#This Row],[ChillAdj]]) -> 25.2056 | H150: =SUMPRODUCT((RankNHDD[Month]=ChillTempAct[[#This Row],[Month]])*(RankNHDD[Rank]=ChillTempAct[[#This Row],[Rank]])*RankNHDD[KIRKNHDD]) -> 24.53048387 | I150: =YEAR(ChillTempAct[[#This Row],[Date]]) -> 2020 | J150: =MONTH(ChillTempAct[[#This Row],[Date]]) -> 12 | K150: =IF(ChillTempAct[[#This Row],[Month]]=J149,K149+1,1) -> 27
A151: 44184 | B151: 52 | C151: 30 | D151: =AVERAGE(ChillTempAct[[#This Row],[ChillHigh]:[ChillLow]]) -> 41 | E151: =IF(ChillTempAct[[#This Row],[ChillAve]]<65,65-ChillTempAct[[#This Row],[ChillAve]],0) -> 24 | F151: =INDEX(TempAdj[AdjustPct],MATCH(MONTH(ChillTempAct[[#This Row],[Date]]),TempAdj[Month],0)) -> 0.0288 | G151: =ChillTempAct[[#This Row],[ChillHDD]]*(1+ChillTempAct[[#This Row],[ChillAdj]]) -> 24.6912 | H151: =SUMPRODUCT((RankNHDD[Month]=ChillTempAct[[#This Row],[Month]])*(RankNHDD[Rank]=ChillTempAct[[#This Row],[Rank]])*RankNHDD[KIRKNHDD]) -> 23.02955197 | I151: =YEAR(ChillTempAct[[#This Row],[Date]]) -> 2020 | J151: =MONTH(ChillTempAct[[#This Row],[Date]]) -> 12 | K151: =IF(ChillTempAct[[#This Row],[Month]]=J150,K150+1,1) -> 28
A152: 44188 | B152: 59 | C152: 25 | D152: =AVERAGE(ChillTempAct[[#This Row],[ChillHigh]:[ChillLow]]) -> 42 | E152: =IF(ChillTempAct[[#This Row],[ChillAve]]<65,65-ChillTempAct[[#This Row],[ChillAve]],0) -> 23 | F152: =INDEX(TempAdj[AdjustPct],MATCH(MONTH(ChillTempAct[[#This Row],[Date]]),TempAdj[Month],0)) -> 0.0288 | G152: =ChillTempAct[[#This Row],[ChillHDD]]*(1+ChillTempAct[[#This Row],[ChillAdj]]) -> 23.6624 | H152: =SUMPRODUCT((RankNHDD[Month]=ChillTempAct[[#This Row],[Month]])*(RankNHDD[Rank]=ChillTempAct[[#This Row],[Rank]])*RankNHDD[KIRKNHDD]) -> 20.71503584 | I152: =YEAR(ChillTempAct[[#This Row],[Date]]) -> 2020 | J152: =MONTH(ChillTempAct[[#This Row],[Date]]) -> 12 | K152: =IF(ChillTempAct[[#This Row],[Month]]=J151,K151+1,1) -> 29
A153: 44175 | B153: 64 | C153: 28 | D153: =AVERAGE(ChillTempAct[[#This Row],[ChillHigh]:[ChillLow]]) -> 46 | E153: =IF(ChillTempAct[[#This Row],[ChillAve]]<65,65-ChillTempAct[[#This Row],[ChillAve]],0) -> 19 | F153: =INDEX(TempAdj[AdjustPct],MATCH(MONTH(ChillTempAct[[#This Row],[Date]]),TempAdj[Month],0)) -> 0.0288 | G153: =ChillTempAct[[#This Row],[ChillHDD]]*(1+ChillTempAct[[#This Row],[ChillAdj]]) -> 19.5472 | H153: =SUMPRODUCT((RankNHDD[Month]=ChillTempAct[[#This Row],[Month]])*(RankNHDD[Rank]=ChillTempAct[[#This Row],[Rank]])*RankNHDD[KIRKNHDD]) -> 18.22508961 | I153: =YEAR(ChillTempAct[[#This Row],[Date]]) -> 2020 | J153: =MONTH(ChillTempAct[[#This Row],[Date]]) -> 12 | K153: =IF(ChillTempAct[[#This Row],[Month]]=J152,K152+1,1) -> 30
A154: 44176 | B154: 68 | C154: 31 | D154: =AVERAGE(ChillTempAct[[#This Row],[ChillHigh]:[ChillLow]]) -> 49.5 | E154: =IF(ChillTempAct[[#This Row],[ChillAve]]<65,65-ChillTempAct[[#This Row],[ChillAve]],0) -> 15.5 | F154: =INDEX(TempAdj[AdjustPct],MATCH(MONTH(ChillTempAct[[#This Row],[Date]]),TempAdj[Month],0)) -> 0.0288 | G154: =ChillTempAct[[#This Row],[ChillHDD]]*(1+ChillTempAct[[#This Row],[ChillAdj]]) -> 15.9464 | H154: =SUMPRODUCT((RankNHDD[Month]=ChillTempAct[[#This Row],[Month]])*(RankNHDD[Rank]=ChillTempAct[[#This Row],[Rank]])*RankNHDD[KIRKNHDD]) -> 12.17994624 | I154: =YEAR(ChillTempAct[[#This Row],[Date]]) -> 2020 | J154: =MONTH(ChillTempAct[[#This Row],[Date]]) -> 12 | K154: =IF(ChillTempAct[[#This Row],[Month]]=J153,K153+1,1) -> 31
A155: 44224 | B155: 25 | C155: 4 | D155: =AVERAGE(ChillTempAct[[#This Row],[ChillHigh]:[ChillLow]]) -> 14.5 | E155: =IF(ChillTempAct[[#This Row],[ChillAve]]<65,65-ChillTempAct[[#This Row],[ChillAve]],0) -> 50.5 | F155: =INDEX(TempAdj[AdjustPct],MATCH(MONTH(ChillTempAct[[#This Row],[Date]]),TempAdj[Month],0)) -> 0.0289 | G155: =ChillTempAct[[#This Row],[ChillHDD]]*(1+ChillTempAct[[#This Row],[ChillAdj]]) -> 51.95945 | H155: =SUMPRODUCT((RankNHDD[Month]=ChillTempAct[[#This Row],[Month]])*(RankNHDD[Rank]=ChillTempAct[[#This Row],[Rank]])*RankNHDD[KIRKNHDD]) -> 65.82270609 | I155: =YEAR(ChillTempAct[[#This Row],[Date]]) -> 2021 | J155: =MONTH(ChillTempAct[[#This Row],[Date]]) -> 1 | K155: =IF(ChillTempAct[[#This Row],[Month]]=J154,K154+1,1) -> 1
A156: 44225 | B156: 28 | C156: 4 | D156: =AVERAGE(ChillTempAct[[#This Row],[ChillHigh]:[ChillLow]]) -> 16 | E156: =IF(ChillTempAct[[#This Row],[ChillAve]]<65,65-ChillTempAct[[#This Row],[ChillAve]],0) -> 49 | F156: =INDEX(TempAdj[AdjustPct],MATCH(MONTH(ChillTempAct[[#This Row],[Date]]),TempAdj[Month],0)) -> 0.0289 | G156: =ChillTempAct[[#This Row],[ChillHDD]]*(1+ChillTempAct[[#This Row],[ChillAdj]]) -> 50.4161 | H156: =SUMPRODUCT((RankNHDD[Month]=ChillTempAct[[#This Row],[Month]])*(RankNHDD[Rank]=ChillTempAct[[#This Row],[Rank]])*RankNHDD[KIRKNHDD]) -> 60.7222043 | I156: =YEAR(ChillTempAct[[#This Row],[Date]]) -> 2021 | J156: =MONTH(ChillTempAct[[#This Row],[Date]]) -> 1 | K156: =IF(ChillTempAct[[#This Row],[Month]]=J155,K155+1,1) -> 2
A157: 44199 | B157: 27 | C157: 12 | D157: =AVERAGE(ChillTempAct[[#This Row],[ChillHigh]:[ChillLow]]) -> 19.5 | E157: =IF(ChillTempAct[[#This Row],[ChillAve]]<65,65-ChillTempAct[[#This Row],[ChillAve]],0) -> 45.5 | F157: =INDEX(TempAdj[AdjustPct],MATCH(MONTH(ChillTempAct[[#This Row],[Date]]),TempAdj[Month],0)) -> 0.0289 | G157: =ChillTempAct[[#This Row],[ChillHDD]]*(1+ChillTempAct[[#This Row],[ChillAdj]]) -> 46.81495 | H157: =SUMPRODUCT((RankNHDD[Month]=ChillTempAct[[#This Row],[Month]])*(RankNHDD[Rank]=ChillTempAct[[#This Row],[Rank]])*RankNHDD[KIRKNHDD]) -> 57.48797491 | I157: =YEAR(ChillTempAct[[#This Row],[Date]]) -> 2021 | J157: =MONTH(ChillTempAct[[#This Row],[Date]]) -> 1 | K157: =IF(ChillTempAct[[#This Row],[Month]]=J156,K156+1,1) -> 3
A158: 44198 | B158: 27 | C158: 17 | D158: =AVERAGE(ChillTempAct[[#This Row],[ChillHigh]:[ChillLow]]) -> 22 | E158: =IF(ChillTempAct[[#This Row],[ChillAve]]<65,65-ChillTempAct[[#This Row],[ChillAve]],0) -> 43 | F158: =INDEX(TempAdj[AdjustPct],MATCH(MONTH(ChillTempAct[[#This Row],[Date]]),TempAdj[Month],0)) -> 0.0289 | G158: =ChillTempAct[[#This Row],[ChillHDD]]*(1+ChillTempAct[[#This Row],[ChillAdj]]) -> 44.2427 | H158: =SUMPRODUCT((RankNHDD[Month]=ChillTempAct[[#This Row],[Month]])*(RankNHDD[Rank]=ChillTempAct[[#This Row],[Rank]])*RankNHDD[KIRKNHDD]) -> 55.1638172 | I158: =YEAR(ChillTempAct[[#This Row],[Date]]) -> 2021 | J158: =MONTH(ChillTempAct[[#This Row],[Date]]) -> 1 | K158: =IF(ChillTempAct[[#This Row],[Month]]=J157,K157+1,1) -> 4
A159: 44223 | B159: 25 | C159: 19 | D159: =AVERAGE(ChillTempAct[[#This Row],[ChillHigh]:[ChillLow]]) -> 22 | E159: =IF(ChillTempAct[[#This Row],[ChillAve]]<65,65-ChillTempAct[[#This Row],[ChillAve]],0) -> 43 | F159: =INDEX(TempAdj[AdjustPct],MATCH(MONTH(ChillTempAct[[#This Row],[Date]]),TempAdj[Month],0)) -> 0.0289 | G159: =ChillTempAct[[#This Row],[ChillHDD]]*(1+ChillTempAct[[#This Row],[ChillAdj]]) -> 44.2427 | H159: =SUMPRODUCT((RankNHDD[Month]=ChillTempAct[[#This Row],[Month]])*(RankNHDD[Rank]=ChillTempAct[[#This Row],[Rank]])*RankNHDD[KIRKNHDD]) -> 53.20421147 | I159: =YEAR(ChillTempAct[[#This Row],[Date]]) -> 2021 | J159: =MONTH(ChillTempAct[[#This Row],[Date]]) -> 1 | K159: =IF(ChillTempAct[[#This Row],[Month]]=J158,K158+1,1) -> 5
A160: 44197 | B160: 32 | C160: 13 | D160: =AVERAGE(ChillTempAct[[#This Row],[ChillHigh]:[ChillLow]]) -> 22.5 | E160: =IF(ChillTempAct[[#This Row],[ChillAve]]<65,65-ChillTempAct[[#This Row],[ChillAve]],0) -> 42.5 | F160: =INDEX(TempAdj[AdjustPct],MATCH(MONTH(ChillTempAct[[#This Row],[Date]]),TempAdj[Month],0)) -> 0.0289 | G160: =ChillTempAct[[#This Row],[ChillHDD]]*(1+ChillTempAct[[#This Row],[ChillAdj]]) -> 43.72825 | H160: =SUMPRODUCT((RankNHDD[Month]=ChillTempAct[[#This Row],[Month]])*(RankNHDD[Rank]=ChillTempAct[[#This Row],[Rank]])*RankNHDD[KIRKNHDD]) -> 51.39324373 | I160: =YEAR(ChillTempAct[[#This Row],[Date]]) -> 2021 | J160: =MONTH(ChillTempAct[[#This Row],[Date]]) -> 1 | K160: =IF(ChillTempAct[[#This Row],[Month]]=J159,K159+1,1) -> 6
A161: 44219 | B161: 29 | C161: 17 | D161: =AVERAGE(ChillTempAct[[#This Row],[ChillHigh]:[ChillLow]]) -> 23 | E161: =IF(ChillTempAct[[#This Row],[ChillAve]]<65,65-ChillTempAct[[#This Row],[ChillAve]],0) -> 42 | F161: =INDEX(TempAdj[AdjustPct],MATCH(MONTH(ChillTempAct[[#This Row],[Date]]),TempAdj[Month],0)) -> 0.0289 | G161: =ChillTempAct[[#This Row],[ChillHDD]]*(1+ChillTempAct[[#This Row],[ChillAdj]]) -> 43.2138 | H161: =SUMPRODUCT((RankNHDD[Month]=ChillTempAct[[#This Row],[Month]])*(RankNHDD[Rank]=ChillTempAct[[#This Row],[Rank]])*RankNHDD[KIRKNHDD]) -> 49.68496416 | I161: =YEAR(ChillTempAct[[#This Row],[Date]]) -> 2021 | J161: =MONTH(ChillTempAct[[#This Row],[Date]]) -> 1 | K161: =IF(ChillTempAct[[#This Row],[Month]]=J160,K160+1,1) -> 7
